Workbook

Sheet Besi
B1: BESİ SIĞIRLARI İÇİN EN DÜŞÜK | F1: Coşkun & İnal & İnal | K1: =TODAY() -> 2024-11-11 | Q1: Selçuk Üniversitesi Veteriner Fakültesi | AB1: Adres | AC1: Rasyonlar | AD1: Rasyon Kayıt Bölümü
B2: MALİYETLİ RASYON PROGRAMI | C2: MİKTAR | D2: Fiyat | Q2: Rasyon Hazırlama Programları | AB2: AE | AC2: Besi Sığırı-250 | AD2: Diğer bilgiler | AE2: 1 | AF2: 2 | AG2: 3 | AH2: 4 | AI2: 5 | AJ2: 6 | AK2: 7 | AL2: 8 | AM2: 9 | AN2: 10 | AO2: =AN2+1 -> 11 | AP2: =AO2+1 -> 12 | AQ2: 13 | AR2: 14 | AS2: 15 | AT2: 16 | AU2: 17 | AV2: 18 | AW2: 19 | AX2: 20 | AY2: 21 | AZ2: 22 | BA2: 23 | BB2: 24 | BC2: 25 | BD2: 26 | BE2: 27 | BF2: 28 | BG2: 29 | BH2: 30
B3: VERİLECEK YEMLER | C3: kg | D3: TL | E3: Verilecek miktar | G3: BESİN MADDELERİ | H3: İHTİYAÇ | I3: RASYON | J3: SONUÇ | K3: Hayvanın Tipi : | L3: Besi Sığırı | Q3: Fİ & Şİ & BC | AB3: AF | AC3: Besi Sığırı-300 | AD3: Rasyonun Adı : | AE3: Besi Sığırı-250 | AF3: Besi Sığırı-300 | AG3: Besi Sığırı-350 | AH3: Besi Sığırı-400 | AI3: Besi Sığırı-450
C4: =Rapor!Y2 -> 9.372028587 | D4: =(C5*D5+C6*D6+C7*D7+C8*D8+C9*D9+C10*D10+C11*D11+C12*D12+C13*D13+C14*D14+C15*D15+C16*D16+C17*D17+C18*D18+C19*D19+C20*D20+C21*D21+C22*D22+C23*D23+C24*D24+C25*D25+C26*D26+C27*D27+C28*D28+C29*D29+C30*D30+C31*D31) -> 54.8717287 | E4: En az | F4: En çok | G4: =Rapor!G4 -> Kuru Madde, kg/gün | H4: =Rapor!H4 -> 8.25036259 | I4: =Rapor!I4 -> 8.373585157 | J4: =Rapor!J4 -> TAMAM | K4: Irkı : | L4: Siyah Alaca | AB4: AG | AC4: Besi Sığırı-350 | AD4: Rasyonun hazırlandığı tarih :
A5: 1 | B5: MISIR SİLAJI, %23-26 KM | C5: 0 | D5: 2.5 | E5: 0 | F5: 5 | G5: =Rapor!G5 -> Rasyon Kuru Madde Oranı, % | I5: =Rapor!I5 -> 89.34656013 | K5: Yaşı : | L5: 10 | M5: ay | AB5: AH | AC5: Besi Sığırı-400 | AD5: Hayvan sahibinin adı soyadı :
A6: 2 | B6: ARPA SAMANI | C6: 3.9 | D6: 1.5 | E6: 0 | F6: 5 | G6: =Rapor!G6 -> Rasyon Kaba Yem Oranı, % | I6: =Rapor!I6 -> 42.38327949 | K6: Kondisyon Skoru : | L6: 5 | AB6: AI | AC6: Besi Sığırı-450 | AD6: Rasyonu Hazırlayanın Adı Soyadı : | AE6: wwww | AF6: wwww | AG6: wwww | AH6: wwww | AI6: wwww
A7: 3 | B7: ARPA, HAFİF | C7: 0.3800285875 | D7: 8 | E7: 0 | F7: 5 | G7: =Rapor!G7 -> Ham Protein, g/gün | I7: =Rapor!I7 -> 634.175522 | K7: Canlı ağırlığı : | L7: 300 | M7: kg | AB7: AJ | AD7: Adresi :
A8: 3 | B8: MISIR, 65 kg/hektolitre | C8: 5 | D8: 9 | E8: 0 | F8: 5 | G8: =Rapor!G8 -> Metabolik Protein, g/gün | H8: =Rapor!H8 -> 769.8755 | I8: =Rapor!I8 -> 758.146866 | J8: =Rapor!J8 -> TAMAM | K8: Hedef besi sonu ağırlığı : | L8: 550 | M8: kg | AB8: AK | AD8: Telefonu :
A9: 3 | B9: ŞEKER PANCARI | C9: 0 | D9: 2 | E9: 0 | F9: 5 | G9: =Rapor!G9 -> Rumende Yıkımlanan Protein, g/gün | I9: =Rapor!I9 -> 263.5944241 | K9: İstenilen canlı ağırlık artışı : | L9: 1.5 | M9: kg/gün | P9: HAYVAN SAHİBİ İLE İLGİLİ BİLGİLER | R9: RASYONLA İLGİLİ BİLGİLER | T9: İhtiyaç | U9: Rasyon | V9: Denge | AB9: AL | AD9: Hayvan Tanımlama Bilgisi Girişi
A10: 4 | B10: AYÇİÇEĞİ KÜSPESİ, %28 HP | C10: 0 | D10: 11 | E10: 0 | F10: 5 | G10: =Rapor!G10 -> Ham Protein, % KM | I10: =Rapor!I10 -> 7.573524483 | K10: Hedef yağlılık düzeyi : | L10: Az yağlı, % 27 yağlı | P10: Adı Soyadı: | Q10: aaa bbbb | R10: Kuru madde tüketimi (kg/gün): | T10: =DMIreal -> 8.25036259 | U10: =TotalDMFed -> 8.373585157 | V10: =IF(T10="","",IF(U10>(T10*1.02),"FAZLA",IF(U10<(T10*0.98),"EKSİK","TAMAM"))) -> TAMAM | AB10: AM | AD10: Hayvanın Tipi : | AE10: Besi Sığırı | AF10: Besi Sığırı | AG10: Besi Sığırı | AH10: Besi Sığırı | AI10: Besi Sığırı
A11: 7 | B11: DİKALSİYUMFOSFAT | C11: 0.02 | D11: 35 | E11: 0 | F11: 0.1 | G11: =Rapor!G11 -> ME, Mcal/gün | H11: =Rapor!H11 -> 20.87258686 | I11: =Rapor!I11 -> 20.46375194 | J11: =Rapor!J11 -> TAMAM | P11: Adresi: | Q11: aaaa mah sssss sokak | R11: Rasyon kuru madde oranı (%): | U11: =TotalDMFed/Rapor!Y2*100 -> 89.34656013 | AB11: AN | AD11: Irkı : | AE11: Brangus | AF11: Brangus | AG11: Brangus | AH11: Brangus | AI11: Brangus
A12: 7 | B12: MERMER TOZU | C12: 0.062 | D12: 2 | E12: 0 | F12: 3 | G12: =Rapor!G12 -> ME, Mcal/kg KM | I12: =Rapor!I12 -> 2.443845922 | K12: Kaç gün önce doğurdu? : | M12: gün | P12: Telefonu: | Q12: 533 333 33 33 | AB12: AO | AD12: Yaşı : | AE12: 10 | AF12: 10 | AG12: 10 | AH12: 10 | AI12: 15
A13: 7 | B13: TUZ | C13: 0.005 | D13: 1.5 | E13: 0.005 | F13: 0.05 | G13: =Rapor!G13 -> NEbüyüme, Mcal/kg KM | I13: =Rapor!I13 -> 0.9023516869 | K13: Kaç günlük gebe? : | L13: 0 | M13: gün | R13: HP (% KM): | U13: =CPtotal/(TotalDMFed*10) -> 7.573524483 | AB13: AP | AD13: Kondisyon Skoru : | AE13: 5 | AF13: 5 | AG13: 5 | AH13: 5 | AI13: 5
A14: 7 | B14: VİT.-MİN. KAR. (ROVIMIX 302-FM/30) (SÜT, BESİ) | C14: 0.005 | D14: 30 | E14: 0.005 | F14: 0.05 | G14: =Rapor!G14 -> NEyaşamapayı, Mcal/kg KM | I14: =Rapor!I14 -> 1.515729082 | K14: Kaçıncı doğumunu yapacak : | L14: 0 | P14: HAYVANLA İLGİLİ BİLGİLER | R14: Metabolik Protein (g/gün): | T14: =MPmaint+MPg+MPlact+MPpreg -> 660.6620785 | U14: =MPtotal -> 758.146866 | V14: =IF(T14=""," ",IF(U14>(T14*1.02),"FAZLA",IF(U14<(T14*0.98),"EKSİK","TAMAM"))) -> FAZLA | AB14: AQ | AD14: Canlı ağırlığı : | AE14: 250 | AF14: 300 | AG14: 350 | AH14: 400 | AI14: 450
C15: 0 | E15: 0 | F15: 0 | G15: =Rapor!G15 -> Ca, g/gün | H15: =Rapor!H15 -> 39.53600096 | I15: =Rapor!I15 -> 39.13685509 | J15: =Rapor!J15 -> TAMAM | K15: Mevcut hava sıcaklığı : | L15: 20 | M15: ºC | P15: Hayvanın tipi: | Q15: =AnimalType -> Besi Sığırı | R15: Rumende Yıkılabilir Protein (% HP): | U15: =DIP/CPtotal*100 -> 41.56490041 | AB15: AR | AD15: Hedef besi sonu ağırlığı : | AE15: 500 | AF15: 500 | AG15: 500 | AH15: 500 | AI15: 500
C16: 0 | E16: 0 | F16: 0 | G16: =Rapor!G16 -> Ca, % KM | I16: =Rapor!I16 -> 0.4673846908 | K16: Geçen ayın sıcaklık ortalaması : | L16: 22 | M16: °C | P16: Irkı: | Q16: =Breed -> Siyah Alaca | AB16: AS | AD16: İstenilen canlı ağırlık artışı : | AE16: 1.6 | AF16: 1.6 | AG16: 1.6 | AH16: 1.6 | AI16: 1.6
C17: 0 | E17: 0 | F17: 0 | G17: =Rapor!G17 -> P, g/gün | H17: =Rapor!H17 -> 21.06760608 | I17: =Rapor!I17 -> 20.73275811 | J17: =Rapor!J17 -> TAMAM | K17: Sıcaklık Stresi : | L17: Normal | P17: Yaşı (ay): | Q17: =Age -> 10 | R17: ME, Mcal/gün: | T17: =MEtotal -> 20.87258686 | U17: =MEsup -> 20.46375194 | V17: =IF(T17=""," ",IF(U17>(T17*1.02),"FAZLA",IF(U17<(T17*0.98),"EKSİK","TAMAM"))) -> TAMAM | AB17: AT | AD17: Hedef yağlılık düzeyi : | AE17: Az yağlı, % 27 yağlı | AF17: Az yağlı, % 27 yağlı | AG17: Az yağlı, % 27 yağlı | AH17: Az yağlı, % 27 yağlı | AI17: Az yağlı, % 27 yağlı
C18: 0 | E18: 0 | F18: 0 | G18: =Rapor!G18 -> P, % KM | I18: =Rapor!I18 -> 0.2475971489 | K18: Geceleri serinliyor mu? | L18: Evet | P18: Kondisyon skoru: | Q18: =CS -> 5 | R18: ME (Mcal/kg KM): | U18: =MEconc -> 2.598475 | AB18: AU | AD18: Kullanılan Büyüme Uyarıcılar :
C19: 0 | E19: 0 | F19: 0 | G19: =Rapor!G19 -> Ca / P | H19: =Rapor!H19 -> 1.876625223 | I19: =Rapor!I19 -> 1.887682038 | J19: =Rapor!J19 -> TAMAM | K19: Zemindeki çamur miktarı : | L19: Yok | P19: Canlı ağırlığı (kg): | Q19: =BW -> 300 | R19: NEb (Mcal/kg KM): | U19: =NEgsup/TotalDMFed -> 0.9023516869 | V19: =IF(T19=""," ",IF(U19>(T19*1.02),"FAZLA",IF(U19<(T19*0.98),"EKSİK","TAMAM"))) ->  | AB19: AV | AD19: Kaç gün önce doğurdu? :
C20: 0 | E20: 0 | F20: 0 | G20: =Rapor!G20 -> NDF, % KM | I20: =Rapor!I20 -> 36.83803277 | K20: Deri ve kıllarının durumu : | L20: Kuru | P20: Hedef besi sonu ağırlığı (kg): | Q20: =BesiSonAg -> 550 | R20: NEyp (Mcal/kg KM): | U20: =NEmsup/TotalDMFed -> 1.515729082 | AB20: AW | AD20: Kaç günlük gebe? : | AE20: 0 | AF20: 0 | AG20: 0 | AH20: 0 | AI20: 0
C21: 0 | E21: 0 | F21: 0 | G21: =Rapor!G21 -> eNDF, % KM | I21: =Rapor!I21 -> 34.10322128 | J21: =Rapor!J21 ->  | K21: Rüzgarın hızı : | L21: 1 | M21: km/sa | P21: İstenilen canlı ağırlık artışı (kg/gün): | Q21: =IF(AnimalType="Damızlık Düve", IF(DaysPreg>0,APADG,BPADG), IF(OR(AnimalType="Kurudaki İnek",AnimalType="Laktasyondaki İnek")=TRUE,IF(DaysPreg>0,ADGpreg+ACADG,ACADG),ADG)) -> 1.5 | AB21: AX | AD21: Kaçıncı doğumunu yapacak : | AE21: 0 | AF21: 0 | AG21: 0 | AH21: 0 | AI21: 0
C22: 0 | E22: 0 | F22: 0 | G22: =Rapor!G22 -> NFC, % KM | I22: =Rapor!I22 -> 49.39166785 | K22: Merada otluyor mu? | L22: Otlamıyor | P22: Hedef yağlılık düzeyi: | Q22: =Yaglanma -> Az yağlı, % 27 yağlı | R22: Ca (g/gün): | T22: =Camaint+Cagrow+Capreg+Calact -> 39.53600096 | U22: =Casup -> 39.13685509 | V22: =IF(T22=""," ",IF(U22>(T22*1.02),"FAZLA",IF(U22<(T22*0.98),"EKSİK","TAMAM"))) -> TAMAM | AB22: AY | AD22: Mevcut hava sıcaklığı : | AE22: 20 | AF22: 20 | AG22: 20 | AH22: 20 | AI22: 20
C23: 0 | E23: 0 | F23: 0 | G23: =Rapor!G23 -> Nişasta, % KM | I23: =Rapor!I23 -> 45.17301682 | K23: Otlanan mera alanı : | M23: hektar | R23: Ca (% KM): | U23: =Casup/10/TotalDMFed -> 0.4673846908 | AB23: AZ | AD23: Geçen ayın sıcaklık ortalaması : | AE23: 22 | AF23: 22 | AG23: 22 | AH23: 22 | AI23: 22
C24: 0 | E24: 0 | F24: 0 | G24: =Rapor!G24 -> TSBM, % KM | I24: =Rapor!I24 -> 66.26919374 | K24: Merada otlanabilir ot miktarı : | M24: ton/hektar | P24: =IF(OR(AnimalType="Laktasyondaki İnek",AnimalType="Kurudaki İnek")=TRUE,"Kaç gün önce doğurdu? :","") ->  | Q24: =IF(OR(AnimalType="Laktasyondaki İnek",AnimalType="Kurudaki İnek")=TRUE,SonDogumTarihi,"") ->  | R24: P (g/gün): | T24: =Pmaint+Pgrow+Ppreg+Plact -> 21.06760608 | U24: =Psup -> 20.73275811 | V24: =IF(T24=""," ",IF(U24>(T24*1.02),"FAZLA",IF(U24<(T24*0.98),"EKSİK","TAMAM"))) -> TAMAM | AB24: BA | AD24: Sıcaklık Stresi : | AE24: Normal | AF24: Normal | AG24: Normal | AH24: Normal | AI24: Normal
C25: 0 | E25: 0 | F25: 0 | G25: =Rapor!G25 -> Rumen pH'sı | I25: =Rapor!I25 -> 6.46 | K25: Merada otlayan hayvan sayısı : | P25: =IF(OR(AnimalType="Laktasyondaki İnek",AnimalType="Kurudaki İnek",AnimalType="Damızlık Düve")=TRUE,"Kaç günlük gebe? :","") ->  | Q25: =IF(OR(AnimalType="Laktasyondaki İnek",AnimalType="Kurudaki İnek",AnimalType="Damızlık Düve")=TRUE,DaysPreg,"") ->  | R25: P (% KM): | U25: =Psup/10/TotalDMFed -> 0.2475971489 | AB25: BB | AD25: Geceleri serinliyor mu? | AE25: Evet | AF25: Evet | AG25: Evet | AH25: Evet | AI25: Evet
C26: 0 | E26: 0 | F26: 0 | K26: Merada kalınan süre : | M26: gün | P26: =IF(OR(AnimalType="Laktasyondaki İnek",AnimalType="Kurudaki İnek",AnimalType="Damızlık Düve")=TRUE,"Kaçıncı doğumunu yapacak? :","") ->  | Q26: =IF(OR(AnimalType="Laktasyondaki İnek",AnimalType="Kurudaki İnek",AnimalType="Damızlık Düve")=TRUE,DogumSay,"") ->  | R26: Ca/P oranı (%): | T26: =T22/T24 -> 1.876625223 | U26: =I15/I17 -> 1.887682038 | V26: =IF(T26="","",IF(U26>(T26*1.05),"FAZLA",IF(U26<(T26*0.95),"EKSİK","TAMAM"))) -> TAMAM | AB26: BC | AD26: Zemindeki çamur miktarı : | AE26: Yok | AF26: Yok | AG26: Yok | AH26: Yok | AI26: Yok
C27: 0 | E27: 0 | F27: 0 | G27: =Rapor!G27 -> Kesif yem; Miktarı,kg | I27: =Rapor!I27 ->  | K27: Meranın arazi durumu : | P27: Otlama: | Q27: =Otlama -> Otlamıyor | AB27: BD | AD27: Deri ve kıllarının durumu : | AE27: Kuru | AF27: Kuru | AG27: Kuru | AH27: Kuru | AI27: Kuru
C28: 0 | E28: 0 | F28: 0 | G28: =Rapor!G28 -> HP,% KM | I28: =Rapor!I28 ->  | K28: Meradaki kuru madde tüketimi : | M28: kg/gün | P28: =IF(Q27="Otlamıyor","","Otlanan mera alanı (ha) :") ->  | Q28: =IF(Q27="Otlamıyor","",GU) ->  | R28: Kaba Yem Oranı, (% KM): | U28: =FORAGE -> 42.38327949 | AB28: BE | AD28: Rüzgarın hızı : | AE28: 1 | AF28: 1 | AG28: 1 | AH28: 1 | AI28: 1
C29: 0 | E29: 0 | F29: 0 | G29: =Rapor!G29 -> ME,Mcal/kg KM | I29: =Rapor!I29 ->  | P29: =IF(Q27="Otlamıyor","","Merada otlanabilir ot miktarı (t/ha):") ->  | Q29: =IF(Q27="Otlamıyor","",pAVAIL) ->  | R29: NDF (% KM): | U29: =NDF -> 36.83803277 | AB29: BF | AD29: Merada otluyor mu? | AE29: Otlamıyor | AF29: Otlamıyor | AG29: Otlamıyor | AH29: Otlamıyor | AI29: Otlamıyor
C30: 0 | E30: 0 | F30: 0 | G30: =Rapor!G30 -> Ca,% KM | I30: =Rapor!I30 ->  | P30: =IF(Q27="Otlamıyor","","Merada otlayan hayvan sayısı :") ->  | Q30: =IF(Q27="Otlamıyor","",GrazeN) ->  | R30: eNDF (% KM): | U30: =eNDF -> 34.10322128 | AB30: BG | AD30: Otlanan mera alanı :
C31: 0 | E31: 0 | F31: 0 | G31: =Rapor!G31 -> P,% KM | I31: =Rapor!I31 ->  | P31: =IF(Q27="Otlamıyor","","Merada kalınan süre (gün):") ->  | Q31: =IF(Q27="Otlamıyor","",DOP) ->  | R31: NFC (% KM): | U31: =Rapor!AS33/(TotalDMFed*10) -> 49.45137943 | AB31: BH | AD31: Merada otlanabilir ot miktarı :
P32: =IF(Q27="Otlamıyor","","Meranın arazi durumu :") ->  | Q32: =IF(Q27="Otlamıyor","",TERRAIN) ->  | R32: Nişasta (% KM): | U32: =Rapor!CN170 -> 45.17301682 | AD32: Merada otlayan hayvan sayısı :
P33: =IF(Q27="Otlamıyor","","Meradaki kuru madde tüketimi (kg/gün):") ->  | Q33: =IF(Q27="Otlamıyor","",pI) ->  | R33: TSBM (% KM): | U33: =TDN/TotalDMFed/10 -> 66.26919374 | AD33: Merada kalınan süre :
AD34: Meranın arazi durumu :
R35: Rumen pH'sı: | U35: =pH -> 6.46 | AD35: Meradaki kuru madde tüketimi :
R36: Rasyon Maliyeti, Krş/gün: | U36: =FİYAT -> 54.8717287 | AD36: Yemlerin KODU | AE36: 1 | AF36: 1 | AG36: 1 | AH36: 1 | AI36: 1
AE37: 2 | AF37: 2 | AG37: 2 | AH37: 2 | AI37: 2
AE38: 2 | AF38: 2 | AG38: 2 | AH38: 2 | AI38: 2
AE39: 2 | AF39: 2 | AG39: 2 | AH39: 2 | AI39: 2
AE40: 3 | AF40: 3 | AG40: 3 | AH40: 3 | AI40: 3
AE41: 3 | AF41: 3 | AG41: 3 | AH41: 3 | AI41: 3
AE42: 4 | AF42: 4 | AG42: 4 | AH42: 4 | AI42: 4
AE43: 4 | AF43: 4 | AG43: 4 | AH43: 4 | AI43: 4
P44: =CONCATENATE("Rasyonun ",HayvanSay," hayvana verilecek şekilde düzenlenmiştir.") -> Rasyonun 100 hayvana verilecek şekilde düzenlenmiştir. | AE44: 7 | AF44: 7 | AG44: 7 | AH44: 7 | AI44: 7
P45: =CONCATENATE("Rasyon ",OgunSay," öğünde verilecektir.") -> Rasyon 2 öğünde verilecektir. | AE45: 7 | AF45: 7 | AG45: 7 | AH45: 7 | AI45: 7
AE46: 7 | AF46: 7 | AG46: 7 | AH46: 7 | AI46: 7
P47: RASYON ÖZETİ | Q47: Miktar | R47: KM | S47: Toplam Miktar kg/gün | T47: Bir hayvana kg/öğün | U47: Toplam Miktar, kg/öğün | V47: Oran, % | AE47: 7 | AF47: 7 | AG47: 7 | AH47: 7 | AI47: 7
P48: Yem Maddeleri | Q48: kg/gün | R48: kg/gün
K49: 1 | O49: 2
K50: 2 | O50: 3
B51: Hayvanla İlgili bilgiler | G51: Rasyonla ilgili bilgiler | I51: İhtiyaç | J51: Rasyon | K51: Denge | O51: 3
B52: Hayvanın tipi: | C52: =AnimalType -> Besi Sığırı | G52: Kuru madde tüketimi (kg/gün): | I52: =DMIreal -> 8.25036259 | J52: =TotalDMFed -> 8.373585157 | O52: 5
B53: Irkı: | C53: =Breed -> Siyah Alaca | G53: Kuru madde tüketim oranı (% CA): | J53: =TotalDMFed/BW*100 -> 2.791195052 | O53: 5
B54: Yaşı (ay): | C54: =Age -> 10 | G54: KMT/KMTyp (kg): | J54: =IF(AnimalType="Damızlık Düve",(TDN/1000)/(0.035*(SBW^0.75)),(TDN/1000)/(0.035*(BW^0.75))) -> 2.199450249 | O54: 7
B55: Kondisyon skoru: | C55: =CS -> 5 | G55: Kaba Yem Oranı, % | J55: =FORAGE -> 42.38327949 | O55: 7
B56: Canlı ağırlığı (kg): | C56: =BW -> 300 | G56: NDF (% KM): | I56: =IF(AnimalType="Sağmal İnek",25,IF(AnimalType="Kurudaki İnek",33,IF(AnimalType="Damızlık Düve",30,0))) -> 0 | J56: =NDF -> 36.83803277 | K56: =CONCATENATE(IF(J56-I56>=0,"+",""),TEXT(J56-I56,"0,0")) -> +36,8 | O56: 7
B57: Ergin canlı ağırlığı (kg): | C57: =MW -> 682 | G57: eNDF (% KM): | I57: =IF(AnimalType="Sağmal İnek",15,"") ->  | J57: =eNDF -> 34.10322128 | K57: =IF(I57="","",CONCATENATE(IF(J57-I57>=0,"+",""),TEXT(J57-I57,0))) ->  | O57: 10
B58: Hedef besi sonu ağırlığı (kg): | C58: =BesiSonAg -> 550 | G58: HP (% KM): | J58: =CPtotal/(TotalDMFed*10) -> 7.573524483
B59: İstenilen canlı ağırlık artışı (kg/gün): | C59: =IF(AnimalType="Damızlık Düve", IF(DaysPreg>0,APADG,BPADG), IF(OR(AnimalType="Kurudaki İnek",AnimalType="Laktasyondaki İnek")=TRUE,IF(DaysPreg>0,ADGpreg+ACADG,ACADG),ADG)) -> 1.5 | G59: MP (% KM): | J59: =MPtotal/(TotalDMFed*10) -> 9.054029448
B60: Hedef yağlılık düzeyi: | C60: =Rapor!CR59 -> Az yağlı, % 27 yağlı | G60: NSC (% KM): | J60: =Rapor!AS33/(TotalDMFed*10) -> 49.45137943
B61: Büyüme uyarıcılar: | C61: =Rapor!CR60 -> 0 | G61: TSBM (% KM): | J61: =TDN/TotalDMFed/10 -> 66.26919374
B62: =IF(OR(AnimalType="Laktasyondaki İnek",AnimalType="Kurudaki İnek")=TRUE,"Kaç gün önce doğurdu? :","") ->  | C62: =IF(OR(AnimalType="Laktasyondaki İnek",AnimalType="Kurudaki İnek")=TRUE,SonDogumTarihi,"") ->  | G62: Rumen pH'sı: | J62: =pH -> 6.46
B63: =IF(OR(AnimalType="Laktasyondaki İnek",AnimalType="Kurudaki İnek",AnimalType="Damızlık Düve")=TRUE,"Kaç günlük gebe? :","") ->  | C63: =IF(OR(AnimalType="Laktasyondaki İnek",AnimalType="Kurudaki İnek",AnimalType="Damızlık Düve")=TRUE,DaysPreg,"") ->  | G63: ME (Mcal/kg KM): | J63: =MEI/TotalDMFed -> 2.443845922 | AD63: Yemlerin ADI | AE63: MISIR SİLAJI, %26-29 KM | AF63: MISIR SİLAJI, %26-29 KM | AG63: MISIR SİLAJI, %26-29 KM | AH63: MISIR SİLAJI, %26-29 KM | AI63: MISIR SİLAJI, %26-29 KM
B64: =IF(OR(AnimalType="Laktasyondaki İnek",AnimalType="Kurudaki İnek",AnimalType="Damızlık Düve")=TRUE,"Kaçıncı doğumunu yapacak? :","") ->  | C64: =IF(OR(AnimalType="Laktasyondaki İnek",AnimalType="Kurudaki İnek",AnimalType="Damızlık Düve")=TRUE,DogumSay,"") ->  | G64: NEyp (Mcal/kg KM): | J64: =NEmsup/TotalDMFed -> 1.515729082 | AE64: ARPA SAMANI | AF64: ARPA SAMANI | AG64: ARPA SAMANI | AH64: ARPA SAMANI | AI64: ARPA SAMANI
B65: Otlama: | C65: =Otlama -> Otlamıyor | G65: NEb (Mcal/kg KM): | J65: =NEgsup/TotalDMFed -> 0.9023516869 | AE65: BUĞDAY SAMANI | AF65: BUĞDAY SAMANI | AG65: BUĞDAY SAMANI | AH65: BUĞDAY SAMANI | AI65: BUĞDAY SAMANI
B66: Otlanan mera alanı (ha) : | C66: =GU -> 0 | G66: MP-Mikrobiyel (g/gün): | J66: =MPbact -> 461.6857333 | AE66: BUĞDAYGİL (WHEATGRASS) KURU OTU | AF66: BUĞDAYGİL (WHEATGRASS) KURU OTU | AG66: BUĞDAYGİL (WHEATGRASS) KURU OTU | AH66: BUĞDAYGİL (WHEATGRASS) KURU OTU | AI66: BUĞDAYGİL (WHEATGRASS) KURU OTU
B67: Merada otlanabilir ot miktarı (t/ha): | C67: =pAVAIL -> 0 | G67: MP-Yemden gelen (g/gün): | J67: =MPfeed -> 296.4611327 | AE67: ARPA, HAFİF | AF67: ARPA, HAFİF | AG67: ARPA, HAFİF | AH67: ARPA, HAFİF | AI67: ARPA, HAFİF
B68: Merada otlayan hayvan sayısı : | C68: =GrazeN -> 0 | G68: MP-Mikrobiyel (%): | J68: =(J66/(J66+J67))*100 -> 60.89660908 | AE68: MISIR PULU (FLAKED) | AF68: MISIR PULU (FLAKED) | AG68: MISIR PULU (FLAKED) | AH68: MISIR PULU (FLAKED) | AI68: MISIR PULU (FLAKED)
B69: Merada kalınan süre (gün): | C69: =DOP -> 0 | G69: Ca (% KM): | J69: =Casup/10/TotalDMFed -> 0.4673846908 | AE69: PAMUK TOHUMU KÜSPESİ, SOLVENT, % 32 | AF69: PAMUK TOHUMU KÜSPESİ, SOLVENT, % 32 | AG69: PAMUK TOHUMU KÜSPESİ, SOLVENT, % 32 | AH69: PAMUK TOHUMU KÜSPESİ, SOLVENT, % 32 | AI69: PAMUK TOHUMU KÜSPESİ, SOLVENT, % 32
B70: Meranın arazi durumu : | C70: =TERRAIN -> 0 | G70: P (% KM): | J70: =Psup/10/TotalDMFed -> 0.2475971489
B71: Meradaki kuru madde tüketimi (kg/gün): | C71: =pI -> 0 | G71: Rasyon Maliyeti, Krş/gün: | J71: =FİYAT -> 54.8717287 | AE71: MERMER TOZU | AF71: MERMER TOZU | AG71: MERMER TOZU | AH71: MERMER TOZU | AI71: MERMER TOZU
B72: Meradaki kuru madde tüketimi (kg/gün): | C72: =pI -> 0 | G72: 1 KS değişimi için gerekli gün: | J72: =DaysToChange -> 19.29310132 | AE72: SODYUMBİKARBONAT | AF72: SODYUMBİKARBONAT | AG72: SODYUMBİKARBONAT | AH72: SODYUMBİKARBONAT | AI72: SODYUMBİKARBONAT
B73: Rasyon besin maddesi dengesi | C73: İhtiyaç | D73: Rasyon | E73: Denge | F73: % KM'de | AE73: TUZ | AF73: TUZ | AG73: TUZ | AH73: TUZ | AI73: TUZ
B74: Ca (g/gün) | C74: =Rapor!CV89 -> 39.53600096 | D74: =Casup -> 39.13685509 | E74: =CONCATENATE(IF((D74-C74)>=0,"+",""),TEXT((D74-C74),"0,0")) -> -0,4 | F74: =Casup/10/TotalDMFed -> 0.4673846908 | G74: Amino asit tablosu | AE74: VİT.-MİN. KAR. (ROVIMIX 302-FM/30) (SÜT, BESİ) | AF74: VİT.-MİN. KAR. (ROVIMIX 302-FM/30) (SÜT, BESİ) | AG74: VİT.-MİN. KAR. (ROVIMIX 302-FM/30) (SÜT, BESİ) | AH74: VİT.-MİN. KAR. (ROVIMIX 302-FM/30) (SÜT, BESİ) | AI74: VİT.-MİN. KAR. (ROVIMIX 302-FM/30) (SÜT, BESİ)
B75: P (g/gün) | C75: =Rapor!CV90 -> 21.06760608 | D75: =Psup -> 20.73275811 | E75: -0,3 | F75: =Psup/10/TotalDMFed -> 0.2475971489 | H75: İhtiyaç | I75: Rasyon | J75: Denge
B76: Mg (g/gün) | C76: =Rapor!CV91 -> 8.25036259 | D76: =Mgsup -> 14.49879774 | E76: +6,2 | F76: =Mgsup/10/TotalDMFed -> 0.1731492242 | G76: Metionin (g/gün) | H76: =Rapor!CV108 -> 5.798206726 | I76: =Rapor!CJ185 -> 6.606666972 | J76: =CONCATENATE(IF((I76-H76)>=0,"+",""),TEXT((I76-H76),"0,0")) -> +0,8
B77: K (g/gün) | C77: =Rapor!CV92 -> 49.50217554 | D77: =Ksup -> 99.94389082 | E77: +50,4 | F77: =Ksup/10/TotalDMFed -> 1.193561526 | G77: Lizin (g/gün) | H77: =Rapor!CV109 -> 18.55426152 | I77: =Rapor!CJ186 -> 14.68862235 | J77: =CONCATENATE(IF((I77-H77)>=0,"+",""),TEXT((I77-H77),"0,0")) -> -3,9
B78: Na (g/gün) | C78: =Rapor!CV93 -> 5.775253813 | D78: =Nasup -> 7.485627547 | E78: +1,7 | F78: =Nasup/10/TotalDMFed -> 0.08939572963 | G78: Metionin (% MP) | I78: =(I76/(J66+J67))*100 -> 0.8714231066
B79: S (g/gün) | C79: =Rapor!CV94 -> 12.37554389 | D79: =Ssup -> 12.54298277 | E79: +0,2 | F79: =Ssup/10/TotalDMFed -> 0.1497922638 | G79: Lizin (% MP) | I79: =(I77/(J66+J67))*100 -> 1.937437588
F80: mg/kg KM | G80: Histidin (g/gün) | H80: =Rapor!CV110 -> 7.247758408 | I80: =Rapor!CJ187 -> 14.62417323 | J80: =CONCATENATE(IF((I80-H80)>=0,"+",""),TEXT((I80-H80),"0,0")) -> +7,4
B81: Co (mg/gün) | C81: =Rapor!CV95 -> 0.825036259 | D81: =Cosup -> 3.14797078 | E81: =CONCATENATE(IF((D81-C81)>=0,"+",""),TEXT((D81-C81),"0,0")) -> +2,3 | F81: =Cosup/TotalDMFed -> 0.3759406181 | G81: Fenilalanin (g/gün) | H81: =Rapor!CV111 -> 10.14686177 | I81: =Rapor!CJ188 -> 16.04025803 | J81: +5,9
B82: Cu (mg/gün) | C82: =Rapor!CV96 -> 82.5036259 | D82: =Cusup -> 85.43465635 | E82: +2,9 | F82: =Cusup/TotalDMFed -> 10.20287664 | G82: Triptofan (g/gün) | H82: =Rapor!CV112 -> 1.739462018 | I82: =Rapor!CJ189 -> 45.66361716 | J82: +43,9
B83: I (mg/gün) | C83: =Rapor!CV97 -> 4.125181295 | D83: =Isup -> 4.016721258 | E83: -0,1 | F83: =Isup/TotalDMFed -> 0.4796895455 | G83: Treonin (g/gün) | H83: =Rapor!CV113 -> 11.30650312 | I83: =Rapor!CJ190 -> 16.00157298 | J83: +4,7
B84: Fe (mg/gün) | C84: =Rapor!CV98 -> 412.5181295 | D84: =Fesup -> 1401.258264 | E84: +988,7 | F84: =Fesup/TotalDMFed -> 167.3426899 | G84: Löysin (g/gün) | H84: =Rapor!CV114 -> 19.42399253 | I84: =Rapor!CJ191 -> 20.44211002 | J84: +1,0
B85: Mn (mg/gün) | C85: =Rapor!CV99 -> 165.0072518 | D85: =Mnsup -> 345.4970953 | E85: +180,5 | F85: =Mnsup/TotalDMFed -> 41.2603549 | G85: İzolöysin (g/gün) | H85: =Rapor!CV115 -> 8.117489417 | I85: =Rapor!CJ192 -> 10.23946158 | J85: +2,1
B86: Se (mg/gün) | C86: =Rapor!CV100 -> 0.825036259 | D86: =Sesup -> 0.8101965283 | E86: 0,0 | F86: =Sesup/TotalDMFed -> 0.09675622963 | G86: Valin (g/gün) | H86: =Rapor!CV116 -> 11.59641345 | I86: =Rapor!CJ193 -> 19.32733563 | J86: +7,7
B87: Zn (mg/gün) | C87: =Rapor!CV101 -> 247.5108777 | D87: =Znsup -> 291.631477 | E87: +44,1 | F87: =Znsup/TotalDMFed -> 34.82755254 | G87: Arjinin (g/gün) | H87: =Rapor!CV117 -> 9.567041098 | I87: =Rapor!CJ194 -> 4.020408698 | J87: -5,5
F88: IU/kg KM
B89: Vit A (IU) | C89: =Rapor!CV102 -> 18150.7977 | D89: =VitAsup*1000 -> 79819.8156 | E89: =CONCATENATE(IF((D89-C89)>=0,"+",""),TEXT((D89-C89),0)) -> +61669 | F89: =VitAsup*1000/TotalDMFed -> 9532.334609
B90: Vit D (IU) | C90: =Rapor!CV103 -> 2268.849712 | D90: =VitDsup*1000 -> 17484.3 | E90: =CONCATENATE(IF((D90-C90)>=0,"+",""),TEXT((D90-C90),0)) -> +15215 | F90: =VitDsup*1000/TotalDMFed -> 2088.030356 | AD90: Yemlerin MİKTARI | AE90: 3 | AF90: 4 | AG90: 5 | AH90: 6 | AI90: 7
AE91: 0.5 | AF91: 0.5 | AG91: 0.5 | AH91: 0.5 | AI91: 0.5
AE92: 1 | AF92: 1 | AG92: 1 | AH92: 1 | AI92: 1
AE93: 1 | AF93: 1 | AG93: 1 | AH93: 2 | AI93: 2
AE94: 2 | AF94: 3 | AG94: 4 | AH94: 4 | AI94: 4.5
AE95: 2 | AF95: 2 | AG95: 2.5 | AH95: 2.5 | AI95: 2.5
AE96: 1 | AF96: 1
AE98: 0.11 | AF98: 0.13 | AG98: 0.1 | AH98: 0.1 | AI98: 0.1
AE100: 0.005 | AF100: 0.005 | AG100: 0.008 | AH100: 0.008 | AI100: 0.008
AE101: 0.005 | AF101: 0.005 | AG101: 0.008 | AH101: 0.008 | AI101: 0.008
AD117: Fiyat | AE117: 15 | AF117: 15 | AG117: 15 | AH117: 15 | AI117: 15
AE118: 20 | AF118: 20 | AG118: 20 | AH118: 20 | AI118: 20
AE119: 200 | AF119: 200 | AG119: 200 | AH119: 200 | AI119: 200
AE120: 75 | AF120: 75 | AG120: 75 | AH120: 75 | AI120: 75
AE121: 70 | AF121: 70 | AG121: 70 | AH121: 70 | AI121: 70
AE122: 750 | AF122: 750 | AG122: 750 | AH122: 750 | AI122: 750
AE123: 72 | AF123: 72 | AG123: 72 | AH123: 72 | AI123: 72
AE126: 70 | AF126: 70 | AG126: 70 | AH126: 70 | AI126: 70
AE127: 25 | AF127: 25 | AG127: 25 | AH127: 25 | AI127: 25
AE128: 3000 | AF128: 3000 | AG128: 3000 | AH128: 3000 | AI128: 3000
AD144: En az | AE144: 0 | AF144: 0 | AG144: 0 | AH144: 0 | AI144: 0
AE145: 0 | AF145: 0 | AG145: 0 | AH145: 0 | AI145: 0
AE146: 0 | AF146: 0 | AG146: 0 | AH146: 0 | AI146: 0
AE147: 0 | AF147: 0 | AG147: 0 | AH147: 0 | AI147: 0
AE148: 0 | AF148: 0 | AG148: 0 | AH148: 0 | AI148: 0
AE149: 0 | AF149: 0 | AG149: 0 | AH149: 0 | AI149: 0
AE150: 0 | AF150: 0 | AG150: 0 | AH150: 0 | AI150: 0
AE151: 0 | AF151: 0 | AG151: 0 | AH151: 0 | AI151: 0
AE152: 0 | AF152: 0 | AG152: 0 | AH152: 0 | AI152: 0
AE153: 0 | AF153: 0 | AG153: 0 | AH153: 0 | AI153: 0
AE154: 0.005 | AF154: 0.005 | AG154: 0.005 | AH154: 0.005 | AI154: 0.005
AE155: 0.009 | AF155: 0.009 | AG155: 0.009 | AH155: 0.009 | AI155: 0.009
AD171: En çok | AE171: 5 | AF171: 5 | AG171: 5 | AH171: 5 | AI171: 5
AE172: 5 | AF172: 5 | AG172: 5 | AH172: 5 | AI172: 5
AE173: 5 | AF173: 5 | AG173: 5 | AH173: 5 | AI173: 5
AE174: 5 | AF174: 5 | AG174: 5 | AH174: 5 | AI174: 5
AE175: 5 | AF175: 5 | AG175: 5 | AH175: 5 | AI175: 5
AE176: 5 | AF176: 5 | AG176: 5 | AH176: 5 | AI176: 5
AE177: 5 | AF177: 5 | AG177: 5 | AH177: 5 | AI177: 5
AE178: 3 | AF178: 3 | AG178: 3 | AH178: 3 | AI178: 3
AE179: 3 | AF179: 3 | AG179: 3 | AH179: 3 | AI179: 3
AE180: 0.1 | AF180: 0.1 | AG180: 0.1 | AH180: 0.1 | AI180: 0.1
AE181: 0.05 | AF181: 0.05 | AG181: 0.05 | AH181: 0.05 | AI181: 0.05
AE182: 0.03 | AF182: 0.03 | AG182: 0.03 | AH182: 0.03 | AI182: 0.03
AB201: AE | AC201: Karma-ataman | AD201: Yem1 | AE201: MISIR SİLAJI, %35 TANE | AF201: BUĞDAY SAMANI | AG201: BUĞDAY SAMANI | AH201: BUĞDAY SAMANI | AI201: BUĞDAY SAMANI
AB202: AF | AC202: Karma1-Besiyemli | AD202: Yem2 | AE202: YONCA SİLAJI, TAM ÇİÇ. | AF202: MISIR SAPLARI,KURU | AG202: MISIR SAPLARI,KURU | AH202: MISIR SAPLARI,KURU | AI202: MISIR SAPLARI,KURU
AB203: AG | AC203: Karma2-Sütyemli | AD203: Yem3 | AE203: ARPA, AĞIR | AF203: YULAF KURU OTU | AG203: YULAF KURU OTU | AH203: YULAF KURU OTU | AI203: YULAF KURU OTU
AB204: AH | AC204: Karma3-Çiğitli | AD204: Yem4 | AE204: ŞEK. PAN. POSASI, YAŞ, AMBALAJLI | AF204: ARPA, AĞIR | AG204: ARPA, AĞIR | AH204: ARPA, AĞIR | AI204: ARPA, AĞIR
AB205: AI | AC205: Karma4-Yulafotlu | AD205: Yem5 | AE205: SIĞIR BESİ YEMİ,14,2800 | AF205: MISIR PULU (FLAKED) | AG205: MISIR PULU (FLAKED) | AH205: MISIR PULU (FLAKED) | AI205: MISIR PULU (FLAKED)
AB206: AJ | AD206: Yem6 | AF206: PAMUK TOHUMU, BÜTÜN | AG206: PAMUK TOHUMU, BÜTÜN | AH206: PAMUK TOHUMU, BÜTÜN | AI206: PAMUK TOHUMU, BÜTÜN
AB207: AK | AD207: Yem7 | AF207: AYÇİÇEĞİ KÜSPESİ, %36 HP | AG207: AYÇİÇEĞİ KÜSPESİ, %36 HP | AH207: AYÇİÇEĞİ KÜSPESİ, %36 HP | AI207: AYÇİÇEĞİ KÜSPESİ, %36 HP
AB208: AL | AD208: Yem8 | AF208: PAMUK TOHUMU KÜSPESİ, SOLVENT, % 32 | AG208: PAMUK TOHUMU KÜSPESİ, SOLVENT, % 32 | AH208: PAMUK TOHUMU KÜSPESİ, SOLVENT, % 32 | AI208: PAMUK TOHUMU KÜSPESİ, SOLVENT, % 32
AB209: AM | AD209: Yem9 | AF209: SIĞIR BESİ YEMİ,13,2700 | AG209: SIĞIR BESİ YEMİ,13,2700 | AH209: SIĞIR BESİ YEMİ,13,2700 | AI209: SIĞIR BESİ YEMİ,13,2700
AB210: AN | AD210: Yem10 | AF210: SIĞIR SÜT YEMİ | AG210: SIĞIR SÜT YEMİ | AH210: SIĞIR SÜT YEMİ | AI210: SIĞIR SÜT YEMİ
AB211: AO | AD211: Yem11 | AF211: MERMER TOZU | AG211: MERMER TOZU | AH211: MERMER TOZU | AI211: MERMER TOZU
AB212: AP | AD212: Yem12 | AF212: TUZ | AG212: TUZ | AH212: TUZ | AI212: TUZ
AB213: AQ | AD213: Yem13 | AF213: VİT.-MİN. KAR. (ROVIMIX 302-FM/30) (SÜT, BESİ) | AG213: VİT.-MİN. KAR. (ROVIMIX 302-FM/30) (SÜT, BESİ) | AH213: VİT.-MİN. KAR. (ROVIMIX 302-FM/30) (SÜT, BESİ) | AI213: VİT.-MİN. KAR. (ROVIMIX 302-FM/30) (SÜT, BESİ)
AB214: AR | AD214: Yem14
AB215: AS | AD215: Yem15
AB216: AT | AD216: Yem16
AB217: AU | AD217: Yem17
AB218: AV | AD218: Yem18
AB219: AW | AD219: Yem19
AB220: AX | AD220: Yem20
AB221: AY | AD221: Yem21
AB222: AZ | AD222: Yem22
AB223: BA | AD223: Yem23
AB224: BB | AD224: Yem24
AB225: BC | AD225: Yem25
AB226: BD | AD226: Yem26
AB227: BE | AD227: Yem27
AB228: BF | AD228: Miktar1 | AE228: 6
AB229: BG | AD229: Miktar2 | AE229: 3
AB230: BH | AD230: Miktar3 | AE230: 3
AD231: Miktar4 | AE231: 5 | AF231: 1.9 | AG231: 2 | AH231: 2 | AI231: 2.4
AD232: Miktar5 | AE232: 1.5 | AF232: 1.9 | AG232: 2 | AH232: 1.5 | AI232: 2.4
AD233: Miktar6 | AH233: 0.5
AD234: Miktar7
AD235: Miktar8
AD236: Miktar9 | AF236: 1.9
AD237: Miktar10 | AG237: 1.7 | AI237: 1.5
AD238: Miktar11 | AF238: 0.01 | AG238: 0.01 | AH238: 0.02 | AI238: 0.07
AD239: Miktar12 | AF239: 0.01 | AG239: 0.01 | AH239: 0.03
AD240: Miktar13 | AF240: 0.01 | AG240: 0.01 | AH240: 0.02 | AI240: 0.01
AD241: Miktar14
AD242: Miktar15
AD243: Miktar16
AD244: Miktar17
AD245: Miktar18
AD246: Miktar19
AD247: Miktar20
AD248: Miktar21
AD249: Miktar22
AD250: Miktar23
AD251: Miktar24
AD252: Miktar25
AD253: Miktar26
AD254: Miktar27

Sheet Rapor
X1: HESAPLAMA TABLOSU | Z1: 4 | AA1: 5 | AB1: 6 | AC1: 7 | AD1: 8 | AE1: 9 | AF1: 10 | AG1: 11 | AH1: 12 | AI1: 13 | AJ1: 14 | AK1: 15 | AL1: 16 | AM1: 17 | AN1: 18 | AO1: 19 | AP1: 20 | AQ1: 21 | AR1: 22 | AS1: 23 | AT1: 24 | AU1: 25 | AV1: 26 | AW1: 27 | AX1: 28 | AY1: 29 | AZ1: 30 | BA1: 31 | BB1: 32 | BC1: 33 | BD1: 34 | BE1: 35 | BF1: 36 | BG1: 37 | BH1: 38 | BI1: 39 | BJ1: 40 | BK1: 41 | BL1: 42 | BM1: 43 | BN1: 44 | BO1: 45 | BP1: 46 | BQ1: 47 | BR1: 48 | BS1: 49 | BT1: 50 | BU1: 51 | BV1: 52 | BW1: 53 | BX1: 54 | BY1: 55 | BZ1: 56 | CL1: Tanımlamalar | CM1: SBW= | CN1: =BW*0.96 -> 288 | CQ1: Table 10-1. Breed maintenance requirement multiplier, birth weights and peak milk yield production. | CX1: =TODAY() -> 2024-11-11 | DB1: İlk Gebelik
W2: =SUM(W5:W31) -> 54.8717287 | Y2: =SUM(Y5:Y31) -> 9.372028587 | Z2: =AVERAGE(Z5:Z31) -> 24.51851852 | AI2: =AVERAGE(AI5:AI31) -> 1.044444444 | AL2: =AVERAGE(AL5:AL31) -> 1.796296296 | AM2: =AVERAGE(AM5:AM31) -> 7.296296296 | AN2: =AVERAGE(AN5:AN31) -> 3.62962963 | AO2: =AVERAGE(AO5:AO31) -> 2.777777778 | CB2: =SUM(CB5:CB31) -> 3.476835277 | CC2: 9.951811119 | CD2: 8.07954792 | CE2: 6.580477637 | CF2: 9.418003529 | CG2: 7.130031764 | CH2: 7.670137968 | CI2: 3.226465345 | CJ2: 6.528514066 | CK2: 2.181682643 | CL2: Irkı | CM2: EBW= | CN2: =0.891*SBW -> 256.608 | CQ2: Kod | CR2: Süt Proteini, % | CS2: NEm (BE) | CT2: Birth Wt kg (CBW) | CU2: Peak Milk Yield kg/day (PKYD) | CV2: Düve Ergin Ağırlığı | CW2: Gebelik Süresi (GL), gün | CX2: Ergenlik yaşı, gün | CY2: Deri kalınlığı | CZ2: Süt Yağı, % | DA2: İBY,ay | DB2: Ağ. % | DC2: a1 | DL2: Tablo 10-7 Rumen mikrobiyel hücre duvarı ve hücre duvarı olmayan proteinlerin a.a. Kompozisyonu, g/100 g protein
C3: MİKTAR | D3: Fiyat | E3: Verilecek miktar | G3: BESİN MADDELERİ | H3: İHTİYAÇ | I3: RASYON | J3: SONUÇ | W3: Fiyat | X3: VERİLECEK YEMLER | Y3: MİKTAR | Z3: KM %Yem | AA3: NDF %KM | AB3: Lignin %NDF | AC3: Effekt. %NDF | AD3: HS,% | AE3: TDN %KM | AF3: ME,Mcal/kg | AG3: NEm,Mcal/kg | AH3: NEg,Mcal/kg | AI3: HP,% | AJ3: DIP %HP | AK3: UIP %HP | AL3: SoIP %HP | AM3: NPN %SoIP | AN3: NDFIP %HP | AO3: ADFIP %HP | AP3: Nişasta %NSC | AQ3: HY %KM | AR3: HK %KM | AS3: A kd %/sa© | AT3: B1 kd %/sa© | AU3: B2 kd %/sa© | AV3: B1 kd %/sa(p) | AW3: B2 kd %/sa(p) | AX3: B3 kd %/sa(p) | AY3: MET %UIP | AZ3: LİZ %UIP | BA3: ARJ %UIP | BB3: TRE %UIP | BC3: LÖY %UIP | BD3: İZOLÖY %UIP | BE3: VAL %UIP | BF3: HIS %UIP | BG3: FENAL %UIP | BH3: TRİP %UIP | BI3: Ca %KM | BJ3: P %KM | BK3: Mg %KM | BL3: Cl %KM | BM3: K %KM | BN3: Na %KM | BO3: S %KM | BP3: Co mg/kg | BQ3: Cu mg/kg | BR3: I mg/kg | BS3: Fe mg/kg | BT3: Mn mg/kg | BU3: Se mg/kg | BV3: Zn mg/kg | BW3: Vit A 1000 IU/kg | BX3: Vit D 1000 IU/kg | BY3: Vit E IU/kg | BZ3: FİYAT,TL | CB3: MET, g | CC3: LİZ, g | CD3: ARJ, g | CE3: TRE, g | CF3: LÖY, g | CG3: İZOLÖY, g | CH3: VAL, g | CI3: HIS, g | CJ3: FENAL, g | CK3: TRİP, g | CL3: Brangus | CM3: SWG= | CN3: =IF(AnimalType="Damızlık Düve", IF(DaysPreg>0,APADG+ADGpreg,BPADG), IF(OR(AnimalType="Kurudaki İnek",AnimalType="Laktasyondaki İnek")=TRUE,IF(DaysPreg>0,ADGpreg+ACADG,ACADG),ADG)) *0.96 -> 1.44 | CQ3: Angus | CR3: 3.8 | CS3: 1 | CT3: 36 | CU3: 8 | CV3: 512.1 | CW3: 280 | CX3: 356 | CY3: 1 | CZ3: 4.03 | DA3: 30 | DB3: 0.6 | DC3: 0.07 | DO3: Ruminal bakteri
B4: VERİLECEK YEMLER | C4: =Y2 -> 9.372028587 | D4: TL | E4: En az | F4: En çok | G4: Kuru Madde, kg/gün | H4: =DMIreal -> 8.25036259 | I4: =TotalDMFed -> 8.373585157 | J4: =IF(H4="","",IF(I4>(H4*1.02),"FAZLA",IF(I4<(H4*0.98),"EKSİK","TAMAM"))) -> TAMAM | X4: KABA YEMLER | CB4: REBAA | CC4: REBAA | CD4: REBAA | CE4: REBAA | CF4: REBAA | CG4: REBAA | CH4: REBAA | CI4: REBAA | CJ4: REBAA | CK4: REBAA | CL4: Esmer | CM4: EWG= | CN4: =SWG*0.956 -> 1.37664 | CQ4: Ayrşayr | CR4: 3.4 | CS4: 1.2 | CT4: 32 | CU4: 36 | CV4: 545 | CW4: 278 | CX4: 347 | CY4: 1 | CZ4: 4 | DA4: 24 | DB4: 0.55 | DC4: 0.073 | DL4: Amino a. | DM4: Hücre duvarı | DN4: Hücre duvarı olmayan | DO4: Ortalama | DP4: SD
A5: =Besi!A5 -> 1 | B5: =Besi!B5 -> MISIR SİLAJI, %23-26 KM | C5: =Besi!C5 -> 0 | D5: =Besi!D5 -> 2.5 | E5: =Besi!E5 -> 0 | F5: =Besi!F5 -> 5 | G5: Rasyon Kuru Madde Oranı, % | I5: =TotalDMFed/Y2*100 -> 89.34656013 | T5: 1.3 | W5: =IF(Besi!B5=0,0,IF(Besi!C5<=0,0,Besi!C5*Besi!D5)) -> 0 | X5: =IF(B5=0,0,B5) -> MISIR SİLAJI, %23-26 KM | Y5: =IF(Besi!B5=0,0,IF(Besi!C5<=0,0,Besi!C5)) -> 0 | Z5: =IF(B5=0,0,IF(C5<=0,0,VLOOKUP(X5,X126:CA657,Z$1,FALSE))) -> 0 | AA5: =IF(B5=0,0,IF(C5<=0,0,VLOOKUP(X5,X126:CA657,AA$1,FALSE))) -> 0 | AB5: =IF(B5=0,0,IF(C5<=0,0,VLOOKUP(X5,X126:CA657,AB$1,FALSE))) -> 0 | AC5: =IF(B5=0,0,IF(C5<=0,0,VLOOKUP(X5,X126:CA657,AC$1,FALSE))) -> 0 | AD5: =IF(B5=0,0,IF(C5<=0,0,VLOOKUP(X5,X126:CA657,AD$1,FALSE))) -> 0 | AE5: =IF(B5=0,0,IF(C5<=0,0,VLOOKUP(X5,X126:CA657,AE$1,FALSE))) -> 0 | AF5: =IF(B5=0,0,IF(C5<=0,0,VLOOKUP(X5,X126:CA657,AF$1,FALSE))) -> 0 | AG5: =IF(B5=0,0,IF(C5<=0,0,VLOOKUP(X5,X126:CA657,AG$1,FALSE))) -> 0 | AH5: =IF(B5=0,0,IF(C5<=0,0,VLOOKUP(X5,X126:CA657,AH$1,FALSE))) -> 0 | AI5: =IF(B5=0,0,IF(C5<=0,0,VLOOKUP(X5,X126:CA657,AI$1,FALSE))) -> 0 | AJ5: =IF(B5=0,0,IF(C5<=0,0,VLOOKUP(X5,X126:CA657,AJ$1,FALSE))) -> 0 | AK5: =IF(B5=0,0,IF(C5<=0,0,VLOOKUP(X5,X126:CA657,AK$1,FALSE))) -> 0 | AL5: =IF(B5=0,0,IF(C5<=0,0,VLOOKUP(X5,X126:CA657,AL$1,FALSE))) -> 0 | AM5: =IF(B5=0,0,IF(C5<=0,0,VLOOKUP(X5,X126:CA657,AM$1,FALSE))) -> 0 | AN5: =IF(B5=0,0,IF(C5<=0,0,VLOOKUP(X5,X126:CA657,AN$1,FALSE))) -> 0 | AO5: =IF(B5=0,0,IF(C5<=0,0,VLOOKUP(X5,X126:CA657,AO$1,FALSE))) -> 0 | AP5: =IF(B5=0,0,IF(C5<=0,0,VLOOKUP(X5,X126:CA657,AP$1,FALSE))) -> 0 | AQ5: =IF(B5=0,0,IF(C5<=0,0,VLOOKUP(X5,X126:CA657,AQ$1,FALSE))) -> 0 | AR5: =IF(B5=0,0,IF(C5<=0,0,VLOOKUP(X5,X126:CA657,AR$1,FALSE))) -> 0 | AS5: =IF(B5=0,0,IF(C5<=0,0,VLOOKUP(X5,X126:CA657,AS$1,FALSE))) -> 0 | AT5: =IF(B5=0,0,IF(C5<=0,0,VLOOKUP(X5,X126:CA657,AT$1,FALSE))) -> 0 | AU5: =IF(B5=0,0,IF(C5<=0,0,VLOOKUP(X5,X126:CA657,AU$1,FALSE))) -> 0 | AV5: =IF(B5=0,0,IF(C5<=0,0,VLOOKUP(X5,X126:CA657,AV$1,FALSE))) -> 0 | AW5: =IF(B5=0,0,IF(C5<=0,0,VLOOKUP(X5,X126:CA657,AW$1,FALSE))) -> 0 | AX5: =IF(B5=0,0,IF(C5<=0,0,VLOOKUP(X5,X126:CA657,AX$1,FALSE))) -> 0 | AY5: =IF(B5=0,0,IF(C5<=0,0,VLOOKUP(X5,X126:CA657,AY$1,FALSE))) -> 0 | AZ5: =IF(B5=0,0,IF(C5<=0,0,VLOOKUP(X5,X126:CA657,AZ$1,FALSE))) -> 0 | BA5: =IF(B5=0,0,IF(C5<=0,0,VLOOKUP(X5,X126:CA657,BA$1,FALSE))) -> 0 | BB5: =IF(B5=0,0,IF(C5<=0,0,VLOOKUP(X5,X126:CA657,BB$1,FALSE))) -> 0 | BC5: =IF(B5=0,0,IF(C5<=0,0,VLOOKUP(X5,X126:CA657,BC$1,FALSE))) -> 0 | BD5: =IF(B5=0,0,IF(C5<=0,0,VLOOKUP(X5,X126:CA657,BD$1,FALSE))) -> 0 | BE5: =IF(B5=0,0,IF(C5<=0,0,VLOOKUP(X5,X126:CA657,BE$1,FALSE))) -> 0 | BF5: =IF(B5=0,0,IF(C5<=0,0,VLOOKUP(X5,X126:CA657,BF$1,FALSE))) -> 0 | BG5: =IF(B5=0,0,IF(C5<=0,0,VLOOKUP(X5,X126:CA657,BG$1,FALSE))) -> 0 | BH5: =IF(B5=0,0,IF(C5<=0,0,VLOOKUP(X5,X126:CA657,BH$1,FALSE))) -> 0 | BI5: =IF(B5=0,0,IF(C5<=0,0,VLOOKUP(X5,X126:CA657,BI$1,FALSE))) -> 0 | BJ5: =IF(B5=0,0,IF(C5<=0,0,VLOOKUP(X5,X126:CA657,BJ$1,FALSE))) -> 0 | BK5: =IF(B5=0,0,IF(C5<=0,0,VLOOKUP(X5,X126:CA657,BK$1,FALSE))) -> 0 | BL5: =IF(B5=0,0,IF(C5<=0,0,VLOOKUP(X5,X126:CA657,BL$1,FALSE))) -> 0 | BM5: =IF(B5=0,0,IF(C5<=0,0,VLOOKUP(X5,X126:CA657,BM$1,FALSE))) -> 0 | BN5: =IF(B5=0,0,IF(C5<=0,0,VLOOKUP(X5,X126:CA657,BN$1,FALSE))) -> 0 | BO5: =IF(B5=0,0,IF(C5<=0,0,VLOOKUP(X5,X126:CA657,BO$1,FALSE))) -> 0 | BP5: =IF(B5=0,0,IF(C5<=0,0,VLOOKUP(X5,X126:CA657,BP$1,FALSE))) -> 0 | BQ5: =IF(B5=0,0,IF(C5<=0,0,VLOOKUP(X5,X126:CA657,BQ$1,FALSE))) -> 0 | BR5: =IF(B5=0,0,IF(C5<=0,0,VLOOKUP(X5,X126:CA657,BR$1,FALSE))) -> 0 | BS5: =IF(B5=0,0,IF(C5<=0,0,VLOOKUP(X5,X126:CA657,BS$1,FALSE))) -> 0 | BT5: =IF(B5=0,0,IF(C5<=0,0,VLOOKUP(X5,X126:CA657,BT$1,FALSE))) -> 0 | BU5: =IF(B5=0,0,IF(C5<=0,0,VLOOKUP(X5,X126:CA657,BU$1,FALSE))) -> 0 | BV5: =IF(B5=0,0,IF(C5<=0,0,VLOOKUP(X5,X126:CA657,BV$1,FALSE))) -> 0 | BW5: =IF(B5=0,0,IF(C5<=0,0,VLOOKUP(X5,X126:CA657,BW$1,FALSE))) -> 0 | BX5: =IF(B5=0,0,IF(C5<=0,0,VLOOKUP(X5,X126:CA657,BX$1,FALSE))) -> 0 | BY5: =IF(B5=0,0,IF(C5<=0,0,VLOOKUP(X5,X126:CA657,BY$1,FALSE))) -> 0 | BZ5: =IF(B5=0,0,IF(C5<=0,0,VLOOKUP(X5,X126:CA657,BZ$1,FALSE))) -> 0 | CB5: =IF(ISERROR((2.4*0.01*BM66)+(2.68*0.01*BL66))=TRUE,0,(2.4*0.01*BM66)+(2.68*0.01*BL66)) -> 0 | CC5: =IF(ISERROR((5.6*0.01*BM66)+(8.2*0.01*BL66))=TRUE,0,(5.6*0.01*BM66)+(8.2*0.01*BL66)) -> 0 | CD5: =IF(ISERROR((3.82*0.01*BM66)+(6.96*0.01*BL66))=TRUE,0,(3.82*0.01*BM66)+(6.96*0.01*BL66)) -> 0 | CE5: =IF(ISERROR((3.3*0.01*BM66)+(5.59*0.01*BL66))=TRUE,0,(3.3*0.01*BM66)+(5.59*0.01*BL66)) -> 0 | CF5: =IF(ISERROR((5.9*0.01*BM66)+(7.51*0.01*BL66))=TRUE,0,(5.9*0.01*BM66)+(7.51*0.01*BL66)) -> 0 | CG5: =IF(ISERROR((4*0.01*BM66)+(5.88*0.01*BL66))=TRUE,0,(4*0.01*BM66)+(5.88*0.01*BL66)) -> 0 | CH5: =IF(ISERROR((4.7*0.01*BM66)+(6.16*0.01*BL66))=TRUE,0,(4.7*0.01*BM66)+(6.16*0.01*BL66)) -> 0 | CI5: =IF(ISERROR((1.74*0.01*BM66)+(2.69*0.01*BL66))=TRUE,0,(1.74*0.01*BM66)+(2.69*0.01*BL66)) -> 0 | CJ5: =IF(ISERROR((4.2*0.01*BM66)+(5.16*0.01*BL66))=TRUE,0,(4.2*0.01*BM66)+(5.16*0.01*BL66)) -> 0 | CK5: =IF(ISERROR((1.63*0.01*BM66)+(1.63*0.01*BL66))=TRUE,0,(1.63*0.01*BM66)+(1.63*0.01*BL66)) -> 0 | CL5: Jersey | CM5: EBG= | CN5: =SWG*0.956 -> 1.37664 | CQ5: Esmer | CR5: 3.3 | CS5: 1.2 | CT5: 39 | CU5: 37 | CV5: 600 | CW5: 290 | CX5: 347 | CY5: 1 | CZ5: 3.5 | DA5: 27 | DB5: 0.55 | DC5: 0.073 | DL5: Metionin | DM5: 2.4 | DN5: 2.68 | DO5: 2.6 | DP5: 0.7
A6: =Besi!A6 -> 2 | B6: =Besi!B6 -> ARPA SAMANI | C6: =Besi!C6 -> 3.9 | D6: =Besi!D6 -> 1.5 | E6: =Besi!E6 -> 0 | F6: =Besi!F6 -> 5 | G6: Rasyon Kaba Yem Oranı, % | I6: =FORAGE -> 42.38327949 | T6: 0 | W6: =IF(Besi!B6=0,0,IF(Besi!C6<=0,0,Besi!C6*Besi!D6)) -> 5.85 | X6: ARPA SAMANI | Y6: =IF(Besi!B6=0,0,IF(Besi!C6<=0,0,Besi!C6)) -> 3.9 | Z6: 91 | AA6: 72.5 | AB6: 13.75 | AC6: 100 | AD6: 42 | AE6: 40 | AF6: 1.45 | AG6: 0.6 | AH6: 0.08 | AI6: 4.4 | AJ6: 30 | AK6: 70 | AL6: 20 | AM6: 95 | AN6: 75 | AO6: 65 | AP6: 100 | AQ6: 1.9 | AR6: 7.5 | AS6: 250 | AT6: 30 | AU6: 3 | AV6: 135 | AW6: 11 | AX6: 0.09 | AY6: 0.67 | AZ6: 2.83 | BA6: 2.83 | BB6: 2.83 | BC6: 5.49 | BD6: 2.83 | BE6: 3.83 | BF6: 1 | BG6: 3.5 | BH6: 4.5 | BI6: 0.3 | BJ6: 0.07 | BK6: 0.23 | BL6: 0.67 | BM6: 2.37 | BN6: 0.14 | BO6: 0.17 | BP6: 0.07 | BQ6: 5.4 | BR6: 0 | BS6: 200 | BT6: 16 | BU6: 0 | BV6: 7 | BW6: 1 | BX6: 0.7 | BY6: 0 | BZ6: 1.5 | CB6: 0.4661969662 | CC6: 1.33440436 | CD6: 1.083358983 | CE6: 0.8823537688 | CF6: 1.262827923 | CG6: 0.9560416045 | CH6: 1.028462601 | CI6: 0.4326257172 | CJ6: 0.8753861511 | CK6: 0.2925343735 | CL6: Limuzin | CQ6: Braford | CR6: 3.8 | CS6: 0.95 | CT6: 36.0476 | CU6: 7 | CV6: 550 | CX6: 433 | CY6: 0.8 | CZ6: 4 | DA6: 32 | DB6: 0.62 | DC6: 0.067 | DL6: Lizin | DM6: 5.6 | DN6: 8.2 | DO6: 7.9 | DP6: 0.9
A7: =Besi!A7 -> 3 | B7: =Besi!B7 -> ARPA, HAFİF | C7: =Besi!C7 -> 0.3800285875 | D7: =Besi!D7 -> 8 | E7: =Besi!E7 -> 0 | F7: =Besi!F7 -> 5 | G7: Ham Protein, g/gün | I7: =(büyükX*TotalDMFed)*10 -> 634.175522 | T7: 1.2 | W7: =IF(Besi!B7=0,0,IF(Besi!C7<=0,0,Besi!C7*Besi!D7)) -> 3.0402287 | X7: ARPA, HAFİF | Y7: =IF(Besi!B7=0,0,IF(Besi!C7<=0,0,Besi!C7)) -> 0.3800285875 | Z7: 88 | AA7: 28 | AB7: 10.35 | AC7: 34 | AD7: 0 | AE7: 77 | AF7: 2.78 | AG7: 1.85 | AH7: 1.22 | AI7: 14 | AJ7: 66.92 | AK7: 33.07 | AL7: 17 | AM7: 29 | AN7: 8 | AO7: 5 | AP7: 90 | AQ7: 2.3 | AR7: 4 | AS7: 300 | AT7: 30 | AU7: 5 | AV7: 300 | AW7: 12 | AX7: 0.35 | AY7: 0.81 | AZ7: 3.07 | BA7: 4.83 | BB7: 3.15 | BC7: 6.83 | BD7: 3.92 | BE7: 4.88 | BF7: 2.29 | BG7: 5.6 | BH7: 1.26 | BI7: 0.06 | BJ7: 0.39 | BK7: 0.15 | BL7: 0.13 | BM7: 0.52 | BN7: 0.03 | BO7: 0.17 | BP7: 0.19 | BQ7: 8.6 | BR7: 0.05 | BS7: 90 | BT7: 18.1 | BU7: 0.18 | BV7: 44.4 | BW7: 3.8 | BX7: 0 | BY7: 26.2 | BZ7: 8 | CB7: 0.4124875328 | CC7: 1.180670837 | CD7: 0.9585477948 | CE7: 0.7806999093 | CF7: 1.11734055 | CG7: 0.8458983463 | CH7: 0.9099758933 | CI7: 0.3827839469 | CJ7: 0.7745350141 | CK7: 0.2588321905 | CL7: Simental | CM7: TDNp : | CN7: =VLOOKUP(MID(TEXT(I1,"gg.aa.yyyy"),4,2),CU64:CW75,3,FALSE) -> 50 | CO7: Meranın toplam SBM içeriği oranı, % | CQ7: Brangus | CR7: 3.8 | CS7: 0.95 | CT7: 35.1 | CU7: 8 | CV7: 516.4 | CW7: 284.7 | CX7: 385 | CY7: 0.8 | CZ7: 4 | DA7: 32 | DB7: 0.62 | DC7: 0.067 | DL7: Histidin | DM7: 1.74 | DN7: 2.69 | DO7: 2 | DP7: 0.4
A8: =Besi!A8 -> 3 | B8: =Besi!B8 -> MISIR, 65 kg/hektolitre | C8: =Besi!C8 -> 5 | D8: =Besi!D8 -> 9 | E8: =Besi!E8 -> 0 | F8: =Besi!F8 -> 5 | G8: Metabolik Protein, g/gün | H8: =(-0.56*SBW+476.1)*ADG + (0.0495*SBW+5.7429) + (-0.00015*SBW^2 + 0.8009*SBW + 51.429) +8 -> 769.8755 | I8: =MPtotal -> 758.146866 | J8: =IF(H8=""," ",IF(I8>(H8*1.02),"FAZLA",IF(I8<(H8*0.98),"EKSİK","TAMAM"))) -> TAMAM | T8: 4.5 | W8: =IF(Besi!B8=0,0,IF(Besi!C8<=0,0,Besi!C8*Besi!D8)) -> 45 | X8: MISIR, 65 kg/hektolitre | Y8: =IF(Besi!B8=0,0,IF(Besi!C8<=0,0,Besi!C8)) -> 5 | Z8: 88 | AA8: 9.5 | AB8: 2.22 | AC8: 60 | AD8: 0 | AE8: 88 | AF8: 3.27 | AG8: 2.26 | AH8: 1.56 | AI8: 9.8 | AJ8: 43 | AK8: 57 | AL8: 11.5 | AM8: 73 | AN8: 15 | AO8: 5 | AP8: 90 | AQ8: 4.3 | AR8: 1.6 | AS8: 150 | AT8: 10 | AU8: 4 | AV8: 135 | AW8: 5 | AX8: 0.1 | AY8: 1.12 | AZ8: 1.65 | BA8: 1.82 | BB8: 2.8 | BC8: 10.73 | BD8: 2.69 | BE8: 3.75 | BF8: 2.06 | BG8: 3.65 | BH8: 0.37 | BI8: 0.035 | BJ8: 0.3 | BK8: 0.13 | BL8: 0.06 | BM8: 0.32 | BN8: 0.01 | BO8: 0.13 | BP8: 0.43 | BQ8: 3 | BR8: 0 | BS8: 30 | BT8: 6.1 | BU8: 0 | BV8: 0 | BW8: 0 | BX8: 0 | BY8: 0 | BZ8: 9 | CB8: 2.598150778 | CC8: 7.436735923 | CD8: 6.037641142 | CE8: 4.917423959 | CF8: 7.037835056 | CG8: 5.328091813 | CH8: 5.731699474 | CI8: 2.411055681 | CJ8: 4.878592901 | CK8: 1.630316079 | CL8: Siyah Alaca | CM8: ENERJİ İHTİYACI | CQ8: Braunvieh | CR8: 3.8 | CS8: 1.2 | CT8: 38.3 | CU8: 12 | CV8: 635.9 | CW8: 284.1 | CX8: 347 | CY8: 1 | CZ8: 4 | DA8: 27 | DB8: 0.57 | DC8: 0.084 | DL8: Fenilalanin | DM8: 4.2 | DN8: 5.16 | DO8: 5.1 | DP8: 0.3
A9: =Besi!A9 -> 3 | B9: =Besi!B9 -> ŞEKER PANCARI | C9: =Besi!C9 -> 0 | D9: =Besi!D9 -> 2 | E9: =Besi!E9 -> 0 | F9: =Besi!F9 -> 5 | G9: Rumende Yıkımlanan Protein, g/gün | I9: =DIP -> 263.5944241 | J9: =IF(H9=""," ",IF(I9>(H9*1.3),"FAZLA",IF(I9<(H9*0.98),"EKSİK","TAMAM"))) ->  | W9: =IF(Besi!B9=0,0,IF(Besi!C9<=0,0,Besi!C9*Besi!D9)) -> 0 | X9: ŞEKER PANCARI | Y9: =IF(Besi!B9=0,0,IF(Besi!C9<=0,0,Besi!C9)) -> 0 | Z9: 0 | AA9: 0 | AB9: 0 | AC9: 0 | AD9: 0 | AE9: 0 | AF9: 0 | AG9: 0 | AH9: 0 | AI9: 0 | AJ9: 0 | AK9: 0 | AL9: 0 | AM9: 0 | AN9: 0 | AO9: 0 | AP9: 0 | AQ9: 0 | AR9: 0 | AS9: 0 | AT9: 0 | AU9: 0 | AV9: 0 | AW9: 0 | AX9: 0 | AY9: 0 | AZ9: 0 | BA9: 0 | BB9: 0 | BC9: 0 | BD9: 0 | BE9: 0 | BF9: 0 | BG9: 0 | BH9: 0 | BI9: 0 | BJ9: 0 | BK9: 0 | BL9: 0 | BM9: 0 | BN9: 0 | BO9: 0 | BP9: 0 | BQ9: 0 | BR9: 0 | BS9: 0 | BT9: 0 | BU9: 0 | BV9: 0 | BW9: 0 | BX9: 0 | BY9: 0 | BZ9: 0 | CB9: 0 | CC9: 0 | CD9: 0 | CE9: 0 | CF9: 0 | CG9: 0 | CH9: 0 | CI9: 0 | CJ9: 0 | CK9: 0 | CL9: Şarole | CM9: YAŞAMA PAYI | CQ9: Şarole | CR9: 3.8 | CS9: 1 | CT9: 40.3 | CU9: 9 | CV9: 661.8 | CW9: 286 | CX9: 370 | CY9: 1 | CZ9: 4 | DA9: 30 | DB9: 0.6 | DC9: 0.07 | DL9: Triptofan | DM9: 1.63 | DN9: 1.63 | DO9: - | DP9: -
A10: =Besi!A10 -> 4 | B10: =Besi!B10 -> AYÇİÇEĞİ KÜSPESİ, %28 HP | C10: =Besi!C10 -> 0 | D10: =Besi!D10 -> 11 | E10: =Besi!E10 -> 0 | F10: =Besi!F10 -> 5 | G10: Ham Protein, % KM | I10: =büyükX -> 7.573524483 | T10: 0.5 | W10: =IF(Besi!B10=0,0,IF(Besi!C10<=0,0,Besi!C10*Besi!D10)) -> 0 | X10: AYÇİÇEĞİ KÜSPESİ, %28 HP | Y10: =IF(Besi!B10=0,0,IF(Besi!C10<=0,0,Besi!C10)) -> 0 | Z10: 0 | AA10: 0 | AB10: 0 | AC10: 0 | AD10: 0 | AE10: 0 | AF10: 0 | AG10: 0 | AH10: 0 | AI10: 0 | AJ10: 0 | AK10: 0 | AL10: 0 | AM10: 0 | AN10: 0 | AO10: 0 | AP10: 0 | AQ10: 0 | AR10: 0 | AS10: 0 | AT10: 0 | AU10: 0 | AV10: 0 | AW10: 0 | AX10: 0 | AY10: 0 | AZ10: 0 | BA10: 0 | BB10: 0 | BC10: 0 | BD10: 0 | BE10: 0 | BF10: 0 | BG10: 0 | BH10: 0 | BI10: 0 | BJ10: 0 | BK10: 0 | BL10: 0 | BM10: 0 | BN10: 0 | BO10: 0 | BP10: 0 | BQ10: 0 | BR10: 0 | BS10: 0 | BT10: 0 | BU10: 0 | BV10: 0 | BW10: 0 | BX10: 0 | BY10: 0 | BZ10: 0 | CB10: 0 | CC10: 0 | CD10: 0 | CE10: 0 | CF10: 0 | CG10: 0 | CH10: 0 | CI10: 0 | CJ10: 0 | CK10: 0 | CM10: a1 : | CN10: =VLOOKUP(Breed,CQ3:DC30,13,FALSE) -> 0.073 | CO10: termonötral yaşama payı ihtiyacı (Mcal/gün(SBW^0,75) | CQ10: Çiyanina | CR10: 3.8 | CS10: 1 | CT10: 39.9 | CU10: 6 | CV10: 550 | CW10: 286.7 | CX10: 400 | CY10: 1.2 | CZ10: 4 | DA10: 30 | DB10: 0.6 | DC10: 0.07 | DL10: Treonin | DM10: 3.3 | DN10: 5.59 | DO10: 5.8 | DP10: 0.5
A11: =Besi!A11 -> 7 | B11: =Besi!B11 -> DİKALSİYUMFOSFAT | C11: =Besi!C11 -> 0.02 | D11: =Besi!D11 -> 35 | E11: =Besi!E11 -> 0 | F11: =Besi!F11 -> 0.1 | G11: ME, Mcal/gün | H11: =MEtotal -> 20.87258686 | I11: =MEsup -> 20.46375194 | J11: =IF(H11=""," ",IF(I11>(H11*1.02),"FAZLA",IF(I11<(H11*0.98),"EKSİK","TAMAM"))) -> TAMAM | T11: 8 | W11: =IF(Besi!B11=0,0,IF(Besi!C11<=0,0,Besi!C11*Besi!D11)) -> 0.7 | X11: DİKALSİYUMFOSFAT | Y11: =IF(Besi!B11=0,0,IF(Besi!C11<=0,0,Besi!C11)) -> 0.02 | Z11: 97 | AA11: 0 | AB11: 0 | AC11: 0 | AD11: 0 | AE11: 0 | AF11: 0 | AG11: 0 | AH11: 0 | AI11: 0 | AJ11: 0 | AK11: 0 | AL11: 0 | AM11: 0 | AN11: 0 | AO11: 0 | AP11: 0 | AQ11: 0 | AR11: 100 | AS11: 0 | AT11: 0 | AU11: 0 | AV11: 0 | AW11: 0 | AX11: 0 | AY11: 0 | AZ11: 0 | BA11: 0 | BB11: 0 | BC11: 0 | BD11: 0 | BE11: 0 | BF11: 0 | BG11: 0 | BH11: 0 | BI11: 22 | BJ11: 19.3 | BK11: 0.59 | BL11: 0 | BM11: 0.07 | BN11: 0.05 | BO11: 1.14 | BP11: 10 | BQ11: 10 | BR11: 0 | BS11: 14400 | BT11: 300 | BU11: 0 | BV11: 100 | BW11: 0 | BX11: 0 | BY11: 0 | BZ11: 35 | CB11: 0 | CC11: 0 | CD11: 0 | CE11: 0 | CF11: 0 | CG11: 0 | CH11: 0 | CI11: 0 | CJ11: 0 | CK11: 0 | CM11: a2= | CN11: =0.0007*(20-TempPre) -> -0.0014 | CO11: önceki çevre sıcaklığı için yaşama payı ayarlaması (Mcal/gün/SBW0^0,75) | CP11: =((88.426-(0.785*TempPre)+(0.0116*TempPre^2))-77)/1000 -> -0.0002296 | CQ11: Frezyan | CR11: 3.3 | CS11: 1.2 | CT11: 35 | CU11: 37 | CV11: 550 | CX11: 347 | CY11: 1 | CZ11: 3.5 | DA11: 24 | DB11: 0.55 | DC11: 0.073 | DL11: Löysin | DM11: 5.9 | DN11: 7.51 | DO11: 8.1 | DP11: 0.8
A12: =Besi!A12 -> 7 | B12: =Besi!B12 -> MERMER TOZU | C12: =Besi!C12 -> 0.062 | D12: =Besi!D12 -> 2 | E12: =Besi!E12 -> 0 | F12: =Besi!F12 -> 3 | G12: ME, Mcal/kg KM | I12: =MEI/TotalDMFed -> 2.443845922 | T12: 0.08 | W12: =IF(Besi!B12=0,0,IF(Besi!C12<=0,0,Besi!C12*Besi!D12)) -> 0.124 | X12: MERMER TOZU | Y12: =IF(Besi!B12=0,0,IF(Besi!C12<=0,0,Besi!C12)) -> 0.062 | Z12: 98 | AA12: 0 | AB12: 0 | AC12: 0 | AD12: 0 | AE12: 0 | AF12: 0 | AG12: 0 | AH12: 0 | AI12: 0 | AJ12: 0 | AK12: 0 | AL12: 0 | AM12: 0 | AN12: 0 | AO12: 0 | AP12: 0 | AQ12: 0 | AR12: 100 | AS12: 0 | AT12: 0 | AU12: 0 | AV12: 0 | AW12: 0 | AX12: 0 | AY12: 0 | AZ12: 0 | BA12: 0 | BB12: 0 | BC12: 0 | BD12: 0 | BE12: 0 | BF12: 0 | BG12: 0 | BH12: 0 | BI12: 37 | BJ12: 0 | BK12: 0 | BL12: 0 | BM12: 0 | BN12: 0 | BO12: 0 | BP12: 0 | BQ12: 0 | BR12: 0 | BS12: 0 | BT12: 0 | BU12: 0 | BV12: 0 | BW12: 0 | BX12: 0 | BY12: 0 | BZ12: 2 | CB12: 0 | CC12: 0 | CD12: 0 | CE12: 0 | CF12: 0 | CG12: 0 | CH12: 0 | CI12: 0 | CJ12: 0 | CK12: 0 | CM12: BE = | CN12: =VLOOKUP(Breed,CQ3:CS30,3,FALSE) -> 1.2 | CO12: NEm ihtiyacına ırkın (Table 10-1) etkisi, Breed | CQ12: Gernzey | CR12: 3.7 | CS12: 1.2 | CT12: 32 | CU12: 35 | CV12: 450 | CW12: 283 | CX12: 347 | CY12: 1 | CZ12: 4.7 | DA12: 27 | DB12: 0.55 | DC12: 0.073 | DL12: İzolöysin | DM12: 4 | DN12: 5.88 | DO12: 5.7 | DP12: 0.4
A13: =Besi!A13 -> 7 | B13: =Besi!B13 -> TUZ | C13: =Besi!C13 -> 0.005 | D13: =Besi!D13 -> 1.5 | E13: =Besi!E13 -> 0.005 | F13: =Besi!F13 -> 0.05 | G13: NEbüyüme, Mcal/kg KM | I13: =NEgsup/TotalDMFed -> 0.9023516869 | T13: 0.04 | W13: =IF(Besi!B13=0,0,IF(Besi!C13<=0,0,Besi!C13*Besi!D13)) -> 0.0075 | X13: TUZ | Y13: =IF(Besi!B13=0,0,IF(Besi!C13<=0,0,Besi!C13)) -> 0.005 | Z13: 100 | AA13: 0 | AB13: 0 | AC13: 0 | AD13: 0 | AE13: 0 | AF13: 0 | AG13: 0 | AH13: 0 | AI13: 0 | AJ13: 0 | AK13: 0 | AL13: 0 | AM13: 0 | AN13: 0 | AO13: 0 | AP13: 0 | AQ13: 0 | AR13: 100 | AS13: 0 | AT13: 0 | AU13: 0 | AV13: 0 | AW13: 0 | AX13: 0 | AY13: 0 | AZ13: 0 | BA13: 0 | BB13: 0 | BC13: 0 | BD13: 0 | BE13: 0 | BF13: 0 | BG13: 0 | BH13: 0 | BI13: 0 | BJ13: 0 | BK13: 0 | BL13: 60.66 | BM13: 0 | BN13: 39.34 | BO13: 0 | BP13: 0 | BQ13: 0 | BR13: 0 | BS13: 0 | BT13: 0 | BU13: 0 | BV13: 0 | BW13: 0 | BX13: 0 | BY13: 0 | BZ13: 1.5 | CB13: 0 | CC13: 0 | CD13: 0 | CE13: 0 | CF13: 0 | CG13: 0 | CH13: 0 | CI13: 0 | CJ13: 0 | CK13: 0 | CM13: Lactation, L : | CN13: =IF(AnimalType="Laktasyondaki İnek",1.2,1) -> 1 | CO13: NEm ihtiyacına laktasyonun etkisi, Kuruda=1 Laktasyonda=1,2 | CQ13: Hereford | CR13: 3.8 | CS13: 1 | CT13: 37.5 | CU13: 7 | CV13: 495.3 | CX13: 383 | CY13: 1.2 | CZ13: 4 | DA13: 30 | DB13: 0.6 | DC13: 0.07 | DL13: Valin | DM13: 4.7 | DN13: 6.16 | DO13: 6.2 | DP13: 0.6
A14: =Besi!A14 -> 7 | B14: =Besi!B14 -> VİT.-MİN. KAR. (ROVIMIX 302-FM/30) (SÜT, BESİ) | C14: =Besi!C14 -> 0.005 | D14: =Besi!D14 -> 30 | E14: =Besi!E14 -> 0.005 | F14: =Besi!F14 -> 0.05 | G14: NEyaşamapayı, Mcal/kg KM | I14: =NEmsup/TotalDMFed -> 1.515729082 | T14: 0.005 | W14: =IF(Besi!B14=0,0,IF(Besi!C14<=0,0,Besi!C14*Besi!D14)) -> 0.15 | X14: VİT.-MİN. KAR. (ROVIMIX 302-FM/30) (SÜT, BESİ) | Y14: =IF(Besi!B14=0,0,IF(Besi!C14<=0,0,Besi!C14)) -> 0.005 | Z14: 100 | AA14: 0 | AB14: 0 | AC14: 0 | AD14: 0 | AE14: 0 | AF14: 0 | AG14: 0 | AH14: 0 | AI14: 0 | AJ14: 0 | AK14: 0 | AL14: 0 | AM14: 0 | AN14: 0 | AO14: 0 | AP14: 0 | AQ14: 0 | AR14: 0 | AS14: 0 | AT14: 0 | AU14: 0 | AV14: 0 | AW14: 0 | AX14: 0 | AY14: 0 | AZ14: 0 | BA14: 0 | BB14: 0 | BC14: 0 | BD14: 0 | BE14: 0 | BF14: 0 | BG14: 0 | BH14: 0 | BI14: 0 | BJ14: 0 | BK14: 0 | BL14: 0 | BM14: 0 | BN14: 0 | BO14: 0 | BP14: 150 | BQ14: 10000 | BR14: 800 | BS14: 50000 | BT14: 50000 | BU14: 150 | BV14: 50000 | BW14: 15000 | BX14: 3000 | BY14: 30000 | BZ14: 30 | CB14: 0 | CC14: 0 | CD14: 0 | CE14: 0 | CF14: 0 | CG14: 0 | CH14: 0 | CI14: 0 | CJ14: 0 | CK14: 0 | CM14: COMP = | CN14: =0.8+((CS-1)*0.05) -> 1 | CO14: NEm ihtiyacına önceki besleme planının etkisi | CQ14: Siyah Alaca | CR14: 3.3 | CS14: 1.2 | CT14: 36 | CU14: 43 | CV14: 682 | CW14: 281 | CX14: 347 | CY14: 1 | CZ14: 3.5 | DA14: 24 | DB14: 0.55 | DC14: 0.073 | DL14: Arjinin | DM14: 3.82 | DN14: 6.96 | DO14: 5.1 | DP14: 0.7
A15: =Besi!A15 -> 0 | B15: =Besi!B15 -> 0 | C15: =Besi!C15 -> 0 | D15: =Besi!D15 -> 0 | E15: =Besi!E15 -> 0 | F15: =Besi!F15 -> 0 | G15: Ca, g/gün | H15: =Camaint+Cagrow+Capreg+Calact -> 39.53600096 | I15: =Casup -> 39.13685509 | J15: =IF(H15=""," ",IF(I15>(H15*1.02),"FAZLA",IF(I15<(H15*0.98),"EKSİK","TAMAM"))) -> TAMAM | T15: 0.007 | W15: =IF(Besi!B15=0,0,IF(Besi!C15<=0,0,Besi!C15*Besi!D15)) -> 0 | X15: 0 | Y15: =IF(Besi!B15=0,0,IF(Besi!C15<=0,0,Besi!C15)) -> 0 | Z15: 0 | AA15: 0 | AB15: 0 | AC15: 0 | AD15: 0 | AE15: 0 | AF15: 0 | AG15: 0 | AH15: 0 | AI15: 0 | AJ15: 0 | AK15: 0 | AL15: 0 | AM15: 0 | AN15: 0 | AO15: 0 | AP15: 0 | AQ15: 0 | AR15: 0 | AS15: 0 | AT15: 0 | AU15: 0 | AV15: 0 | AW15: 0 | AX15: 0 | AY15: 0 | AZ15: 0 | BA15: 0 | BB15: 0 | BC15: 0 | BD15: 0 | BE15: 0 | BF15: 0 | BG15: 0 | BH15: 0 | BI15: 0 | BJ15: 0 | BK15: 0 | BL15: 0 | BM15: 0 | BN15: 0 | BO15: 0 | BP15: 0 | BQ15: 0 | BR15: 0 | BS15: 0 | BT15: 0 | BU15: 0 | BV15: 0 | BW15: 0 | BX15: 0 | BY15: 0 | BZ15: 0 | CB15: 0 | CC15: 0 | CD15: 0 | CE15: 0 | CF15: 0 | CG15: 0 | CH15: 0 | CI15: 0 | CJ15: 0 | CK15: 0 | CM15: NEm= | CN15: =SBW^0.75*((abir*BE*büyükL*COMP)+aiki) -> 6.026312264 | CO15: iklime alışma için ayarlanmış Net enerji yaşama payı | CQ15: Jersey | CR15: 3.9 | CS15: 1.2 | CT15: 30.7 | CU15: 34 | CV15: 454 | CW15: 282 | CX15: 317 | CY15: 1 | CZ15: 5.2 | DA15: 24 | DB15: 0.55 | DC15: 0.073
A16: =Besi!A16 -> 0 | B16: =Besi!B16 -> 0 | C16: =Besi!C16 -> 0 | D16: =Besi!D16 -> 0 | E16: =Besi!E16 -> 0 | F16: =Besi!F16 -> 0 | G16: Ca, % KM | I16: =Casup/10/TotalDMFed -> 0.4673846908 | T16: 0 | W16: =IF(Besi!B16=0,0,IF(Besi!C16<=0,0,Besi!C16*Besi!D16)) -> 0 | X16: 0 | Y16: =IF(Besi!B16=0,0,IF(Besi!C16<=0,0,Besi!C16)) -> 0 | Z16: 0 | AA16: 0 | AB16: 0 | AC16: 0 | AD16: 0 | AE16: 0 | AF16: 0 | AG16: 0 | AH16: 0 | AI16: 0 | AJ16: 0 | AK16: 0 | AL16: 0 | AM16: 0 | AN16: 0 | AO16: 0 | AP16: 0 | AQ16: 0 | AR16: 0 | AS16: 0 | AT16: 0 | AU16: 0 | AV16: 0 | AW16: 0 | AX16: 0 | AY16: 0 | AZ16: 0 | BA16: 0 | BB16: 0 | BC16: 0 | BD16: 0 | BE16: 0 | BF16: 0 | BG16: 0 | BH16: 0 | BI16: 0 | BJ16: 0 | BK16: 0 | BL16: 0 | BM16: 0 | BN16: 0 | BO16: 0 | BP16: 0 | BQ16: 0 | BR16: 0 | BS16: 0 | BT16: 0 | BU16: 0 | BV16: 0 | BW16: 0 | BX16: 0 | BY16: 0 | BZ16: 0 | CB16: 0 | CC16: 0 | CD16: 0 | CE16: 0 | CF16: 0 | CG16: 0 | CH16: 0 | CI16: 0 | CJ16: 0 | CK16: 0 | CM16: Meradaysa aktivite için ayarlama | CQ16: Limuzin | CR16: 3.8 | CS16: 1 | CT16: 38.4 | CU16: 9 | CV16: 570.5 | CW16: 288.1 | CX16: 384 | CY16: 1 | CZ16: 4 | DA16: 30 | DB16: 0.55 | DC16: 0.07 | DL16: Tablo 10-8 Tahmini eNDF ihtiyaçları
A17: =Besi!A17 -> 0 | B17: =Besi!B17 -> 0 | C17: =Besi!C17 -> 0 | D17: =Besi!D17 -> 0 | E17: =Besi!E17 -> 0 | F17: =Besi!F17 -> 0 | G17: P, g/gün | H17: =Pmaint+Pgrow+Ppreg+Plact -> 21.06760608 | I17: =Psup -> 20.73275811 | J17: =IF(H17=""," ",IF(I17>(H17*1.02),"FAZLA",IF(I17<(H17*0.98),"EKSİK","TAMAM"))) -> TAMAM | T17: 0 | W17: =IF(Besi!B17=0,0,IF(Besi!C17<=0,0,Besi!C17*Besi!D17)) -> 0 | X17: 0 | Y17: =IF(Besi!B17=0,0,IF(Besi!C17<=0,0,Besi!C17)) -> 0 | Z17: 0 | AA17: 0 | AB17: 0 | AC17: 0 | AD17: 0 | AE17: 0 | AF17: 0 | AG17: 0 | AH17: 0 | AI17: 0 | AJ17: 0 | AK17: 0 | AL17: 0 | AM17: 0 | AN17: 0 | AO17: 0 | AP17: 0 | AQ17: 0 | AR17: 0 | AS17: 0 | AT17: 0 | AU17: 0 | AV17: 0 | AW17: 0 | AX17: 0 | AY17: 0 | AZ17: 0 | BA17: 0 | BB17: 0 | BC17: 0 | BD17: 0 | BE17: 0 | BF17: 0 | BG17: 0 | BH17: 0 | BI17: 0 | BJ17: 0 | BK17: 0 | BL17: 0 | BM17: 0 | BN17: 0 | BO17: 0 | BP17: 0 | BQ17: 0 | BR17: 0 | BS17: 0 | BT17: 0 | BU17: 0 | BV17: 0 | BW17: 0 | BX17: 0 | BY17: 0 | BZ17: 0 | CB17: 0 | CC17: 0 | CD17: 0 | CE17: 0 | CF17: 0 | CG17: 0 | CH17: 0 | CI17: 0 | CJ17: 0 | CK17: 0 | CM17: NEmact= | CN17: =IF(Otlama="Otlamıyor",0,((0.006*pI*(0.9*(TDNp/100)))+(0.05* IF(TERRAIN="Düz",1,IF(TERRAIN="Engebeli",1.5,2)) /((0.002471*pAVAIL)+3)))*BW/4.184) -> 0 | CO17: NEm ihtiyacına aktivitenin etkisi, Mcal/kg | CQ17: Longhorn | CR17: 3.8 | CS17: 1 | CT17: 32 | CU17: 5 | CV17: 550 | CW17: 286.8 | CX17: 370 | CY17: 1 | CZ17: 4 | DA17: 30 | DB17: 0.6 | DC17: 0.07 | DL17: Rasyon tipi | DN17: Min. eNDF ihtiyacı, % KM'de
A18: =Besi!A18 -> 0 | B18: =Besi!B18 -> 0 | C18: =Besi!C18 -> 0 | D18: =Besi!D18 -> 0 | E18: =Besi!E18 -> 0 | F18: =Besi!F18 -> 0 | G18: P, % KM | I18: =Psup/10/TotalDMFed -> 0.2475971489 | T18: 0 | W18: =IF(Besi!B18=0,0,IF(Besi!C18<=0,0,Besi!C18*Besi!D18)) -> 0 | X18: 0 | Y18: =IF(Besi!B18=0,0,IF(Besi!C18<=0,0,Besi!C18)) -> 0 | Z18: 0 | AA18: 0 | AB18: 0 | AC18: 0 | AD18: 0 | AE18: 0 | AF18: 0 | AG18: 0 | AH18: 0 | AI18: 0 | AJ18: 0 | AK18: 0 | AL18: 0 | AM18: 0 | AN18: 0 | AO18: 0 | AP18: 0 | AQ18: 0 | AR18: 0 | AS18: 0 | AT18: 0 | AU18: 0 | AV18: 0 | AW18: 0 | AX18: 0 | AY18: 0 | AZ18: 0 | BA18: 0 | BB18: 0 | BC18: 0 | BD18: 0 | BE18: 0 | BF18: 0 | BG18: 0 | BH18: 0 | BI18: 0 | BJ18: 0 | BK18: 0 | BL18: 0 | BM18: 0 | BN18: 0 | BO18: 0 | BP18: 0 | BQ18: 0 | BR18: 0 | BS18: 0 | BT18: 0 | BU18: 0 | BV18: 0 | BW18: 0 | BX18: 0 | BY18: 0 | BZ18: 0 | CB18: 0 | CC18: 0 | CD18: 0 | CE18: 0 | CF18: 0 | CG18: 0 | CH18: 0 | CI18: 0 | CJ18: 0 | CK18: 0 | CM18: NEma : | CN18: =(0.0533*ADG^2 + 0.541*ADG + 0.6957) + IF(BW<=400,0, (0.000003*BW^2 - 0.0014*BW + 0.046 )) -> 1.627125 | CO18: Rasyonun yaşama payı net enerji değeri, Mcal/kg, değiştiridik, sabitledik | CQ18: Meyn Anju | CR18: 3.8 | CS18: 1 | CT18: 40.6 | CU18: 9 | CV18: 771.8 | CW18: 284.8 | CX18: 370 | CY18: 1 | CZ18: 4 | DA18: 30 | DB18: 0.6 | DC18: 0.07 | DL18: Yüksek konsantre, mix rasyon, iyi bakım, ionofor | DN18: 5-8 | DO18: a
A19: =Besi!A19 -> 0 | B19: =Besi!B19 -> 0 | C19: =Besi!C19 -> 0 | D19: =Besi!D19 -> 0 | E19: =Besi!E19 -> 0 | F19: =Besi!F19 -> 0 | G19: Ca / P | H19: =H15/H17 -> 1.876625223 | I19: =I15/I17 -> 1.887682038 | J19: =IF(H19="","",IF(I19>(H19*1.05),"FAZLA",IF(I19<(H19*0.95),"EKSİK","TAMAM"))) -> TAMAM | T19: 0 | W19: =IF(Besi!B19=0,0,IF(Besi!C19<=0,0,Besi!C19*Besi!D19)) -> 0 | X19: 0 | Y19: =IF(Besi!B19=0,0,IF(Besi!C19<=0,0,Besi!C19)) -> 0 | Z19: 0 | AA19: 0 | AB19: 0 | AC19: 0 | AD19: 0 | AE19: 0 | AF19: 0 | AG19: 0 | AH19: 0 | AI19: 0 | AJ19: 0 | AK19: 0 | AL19: 0 | AM19: 0 | AN19: 0 | AO19: 0 | AP19: 0 | AQ19: 0 | AR19: 0 | AS19: 0 | AT19: 0 | AU19: 0 | AV19: 0 | AW19: 0 | AX19: 0 | AY19: 0 | AZ19: 0 | BA19: 0 | BB19: 0 | BC19: 0 | BD19: 0 | BE19: 0 | BF19: 0 | BG19: 0 | BH19: 0 | BI19: 0 | BJ19: 0 | BK19: 0 | BL19: 0 | BM19: 0 | BN19: 0 | BO19: 0 | BP19: 0 | BQ19: 0 | BR19: 0 | BS19: 0 | BT19: 0 | BU19: 0 | BV19: 0 | BW19: 0 | BX19: 0 | BY19: 0 | BZ19: 0 | CB19: 0 | CC19: 0 | CD19: 0 | CE19: 0 | CF19: 0 | CG19: 0 | CH19: 0 | CI19: 0 | CJ19: 0 | CK19: 0 | CM19: ADTV = | CN19: 1 | CO19: Rasyon ionofor içeriyorsa 1,12 içermiyorsa 1 | CQ19: Piedmontese | CR19: 3.8 | CS19: 1 | CT19: 37.1 | CU19: 7 | CV19: 550 | CW19: 287.2 | CX19: 340 | CY19: 1 | CZ19: 4 | DA19: 30 | DB19: 0.6 | DC19: 0.07 | DL19: Mix rasyon, değişken bakım, ionofor yok | DN19: 20
A20: =Besi!A20 -> 0 | B20: =Besi!B20 -> 0 | C20: =Besi!C20 -> 0 | D20: =Besi!D20 -> 0 | E20: =Besi!E20 -> 0 | F20: =Besi!F20 -> 0 | G20: NDF, % KM | I20: =NDF -> 36.83803277 | T20: 0 | W20: =IF(Besi!B20=0,0,IF(Besi!C20<=0,0,Besi!C20*Besi!D20)) -> 0 | X20: 0 | Y20: =IF(Besi!B20=0,0,IF(Besi!C20<=0,0,Besi!C20)) -> 0 | Z20: 0 | AA20: 0 | AB20: 0 | AC20: 0 | AD20: 0 | AE20: 0 | AF20: 0 | AG20: 0 | AH20: 0 | AI20: 0 | AJ20: 0 | AK20: 0 | AL20: 0 | AM20: 0 | AN20: 0 | AO20: 0 | AP20: 0 | AQ20: 0 | AR20: 0 | AS20: 0 | AT20: 0 | AU20: 0 | AV20: 0 | AW20: 0 | AX20: 0 | AY20: 0 | AZ20: 0 | BA20: 0 | BB20: 0 | BC20: 0 | BD20: 0 | BE20: 0 | BF20: 0 | BG20: 0 | BH20: 0 | BI20: 0 | BJ20: 0 | BK20: 0 | BL20: 0 | BM20: 0 | BN20: 0 | BO20: 0 | BP20: 0 | BQ20: 0 | BR20: 0 | BS20: 0 | BT20: 0 | BU20: 0 | BV20: 0 | BW20: 0 | BX20: 0 | BY20: 0 | BZ20: 0 | CB20: 0 | CC20: 0 | CD20: 0 | CE20: 0 | CF20: 0 | CG20: 0 | CH20: 0 | CI20: 0 | CJ20: 0 | CK20: 0 | CM20: Im = | CN20: =(NEm+NEmact)/(NEma*ADTV) -> 3.703656611 | CO20: Yaşama payı için tüketim (stres yok), kg KM/gün | CQ20: Pinzgauer | CR20: 3.8 | CS20: 1 | CT20: 38.2 | CU20: 11 | CV20: 590.2 | CW20: 285.2 | CX20: 343 | CY20: 1 | CZ20: 4 | DA20: 30 | DB20: 0.6 | DC20: 0.07 | DL20: NFC ve mikrobiyel protein verimini artırmak için yüksek konsantre yem | DN20: 20 | DO20: b
A21: =Besi!A21 -> 0 | B21: =Besi!B21 -> 0 | C21: =Besi!C21 -> 0 | D21: =Besi!D21 -> 0 | E21: =Besi!E21 -> 0 | F21: =Besi!F21 -> 0 | G21: eNDF, % KM | I21: =eNDF -> 34.10322128 | J21: =IF(I21<8,"DİKKAT","") ->  | T21: 0 | W21: =IF(Besi!B21=0,0,IF(Besi!C21<=0,0,Besi!C21*Besi!D21)) -> 0 | X21: 0 | Y21: =IF(Besi!B21=0,0,IF(Besi!C21<=0,0,Besi!C21)) -> 0 | Z21: 0 | AA21: 0 | AB21: 0 | AC21: 0 | AD21: 0 | AE21: 0 | AF21: 0 | AG21: 0 | AH21: 0 | AI21: 0 | AJ21: 0 | AK21: 0 | AL21: 0 | AM21: 0 | AN21: 0 | AO21: 0 | AP21: 0 | AQ21: 0 | AR21: 0 | AS21: 0 | AT21: 0 | AU21: 0 | AV21: 0 | AW21: 0 | AX21: 0 | AY21: 0 | AZ21: 0 | BA21: 0 | BB21: 0 | BC21: 0 | BD21: 0 | BE21: 0 | BF21: 0 | BG21: 0 | BH21: 0 | BI21: 0 | BJ21: 0 | BK21: 0 | BL21: 0 | BM21: 0 | BN21: 0 | BO21: 0 | BP21: 0 | BQ21: 0 | BR21: 0 | BS21: 0 | BT21: 0 | BU21: 0 | BV21: 0 | BW21: 0 | BX21: 0 | BY21: 0 | BZ21: 0 | CB21: 0 | CC21: 0 | CD21: 0 | CE21: 0 | CF21: 0 | CG21: 0 | CH21: 0 | CI21: 0 | CJ21: 0 | CK21: 0 | CM21: Büyüyen sığırlar için | CO21: ısı artışını hesaplamak için kullanılır | CQ21: Polled Hereford | CR21: 3.8 | CS21: 1 | CT21: 33 | CU21: 7 | CV21: 550 | CX21: 383 | CY21: 1.2 | CZ21: 4 | DA21: 30 | DB21: 0.6 | DC21: 0.07 | DL21: a: Rumen pH'sını 5,6-5,7'nin üzerinde tutmak için
A22: =Besi!A22 -> 0 | B22: =Besi!B22 -> 0 | C22: =Besi!C22 -> 0 | D22: =Besi!D22 -> 0 | E22: =Besi!E22 -> 0 | F22: =Besi!F22 -> 0 | G22: NFC, % KM | I22: =CN169 -> 49.39166785 | T22: 0 | W22: =IF(Besi!B22=0,0,IF(Besi!C22<=0,0,Besi!C22*Besi!D22)) -> 0 | X22: 0 | Y22: =IF(Besi!B22=0,0,IF(Besi!C22<=0,0,Besi!C22)) -> 0 | Z22: 0 | AA22: 0 | AB22: 0 | AC22: 0 | AD22: 0 | AE22: 0 | AF22: 0 | AG22: 0 | AH22: 0 | AI22: 0 | AJ22: 0 | AK22: 0 | AL22: 0 | AM22: 0 | AN22: 0 | AO22: 0 | AP22: 0 | AQ22: 0 | AR22: 0 | AS22: 0 | AT22: 0 | AU22: 0 | AV22: 0 | AW22: 0 | AX22: 0 | AY22: 0 | AZ22: 0 | BA22: 0 | BB22: 0 | BC22: 0 | BD22: 0 | BE22: 0 | BF22: 0 | BG22: 0 | BH22: 0 | BI22: 0 | BJ22: 0 | BK22: 0 | BL22: 0 | BM22: 0 | BN22: 0 | BO22: 0 | BP22: 0 | BQ22: 0 | BR22: 0 | BS22: 0 | BT22: 0 | BU22: 0 | BV22: 0 | BW22: 0 | BX22: 0 | BY22: 0 | BZ22: 0 | CB22: 0 | CC22: 0 | CD22: 0 | CE22: 0 | CF22: 0 | CG22: 0 | CH22: 0 | CI22: 0 | CJ22: 0 | CK22: 0 | CM22: NEga : | CN22: =(0.0248*ADG^2 + 0.5395*ADG + 0.1636) + IF(BW<=400,0, (0.0000051*BW^2 - 0.0035*BW + 0.5454 )) -> 1.02865 | CO22: Rasyonun ağırlık artışı, büyüme net enerji içeriği, Mcal/kg, değiştiridik, sabitledik | CQ22: Red Poll | CR22: 3.8 | CS22: 1 | CT22: 35.1 | CU22: 10 | CV22: 550 | CW22: 284.6 | CX22: 353 | CY22: 1.2 | CZ22: 4 | DA22: 30 | DB22: 0.6 | DC22: 0.07 | DL22: b: Rumen pH'sını 6,2'nin üzerinde tutmak için
A23: =Besi!A23 -> 0 | B23: =Besi!B23 -> 0 | C23: =Besi!C23 -> 0 | D23: =Besi!D23 -> 0 | E23: =Besi!E23 -> 0 | F23: =Besi!F23 -> 0 | G23: Nişasta, % KM | I23: =CN170 -> 45.17301682 | T23: 0 | W23: =IF(Besi!B23=0,0,IF(Besi!C23<=0,0,Besi!C23*Besi!D23)) -> 0 | X23: 0 | Y23: =IF(Besi!B23=0,0,IF(Besi!C23<=0,0,Besi!C23)) -> 0 | Z23: 0 | AA23: 0 | AB23: 0 | AC23: 0 | AD23: 0 | AE23: 0 | AF23: 0 | AG23: 0 | AH23: 0 | AI23: 0 | AJ23: 0 | AK23: 0 | AL23: 0 | AM23: 0 | AN23: 0 | AO23: 0 | AP23: 0 | AQ23: 0 | AR23: 0 | AS23: 0 | AT23: 0 | AU23: 0 | AV23: 0 | AW23: 0 | AX23: 0 | AY23: 0 | AZ23: 0 | BA23: 0 | BB23: 0 | BC23: 0 | BD23: 0 | BE23: 0 | BF23: 0 | BG23: 0 | BH23: 0 | BI23: 0 | BJ23: 0 | BK23: 0 | BL23: 0 | BM23: 0 | BN23: 0 | BO23: 0 | BP23: 0 | BQ23: 0 | BR23: 0 | BS23: 0 | BT23: 0 | BU23: 0 | BV23: 0 | BW23: 0 | BX23: 0 | BY23: 0 | BZ23: 0 | CB23: 0 | CC23: 0 | CD23: 0 | CE23: 0 | CF23: 0 | CG23: 0 | CH23: 0 | CI23: 0 | CJ23: 0 | CK23: 0 | CM23: DMI= | CN23: =DMIreal -> 8.25036259 | CO23: Eq. 7-2 | CQ23: Seylırz | CR23: 3.8 | CS23: 1 | CT23: 37.1 | CU23: 9 | CV23: 550 | CW23: 284.8 | CX23: 360 | CY23: 1.2 | CZ23: 4 | DA23: 30 | DB23: 0.6 | DC23: 0.07
A24: =Besi!A24 -> 0 | B24: =Besi!B24 -> 0 | C24: =Besi!C24 -> 0 | D24: =Besi!D24 -> 0 | E24: =Besi!E24 -> 0 | F24: =Besi!F24 -> 0 | G24: TSBM, % KM | I24: =TDN/TotalDMFed/10 -> 66.26919374 | T24: 0 | W24: =IF(Besi!B24=0,0,IF(Besi!C24<=0,0,Besi!C24*Besi!D24)) -> 0 | X24: 0 | Y24: =IF(Besi!B24=0,0,IF(Besi!C24<=0,0,Besi!C24)) -> 0 | Z24: 0 | AA24: 0 | AB24: 0 | AC24: 0 | AD24: 0 | AE24: 0 | AF24: 0 | AG24: 0 | AH24: 0 | AI24: 0 | AJ24: 0 | AK24: 0 | AL24: 0 | AM24: 0 | AN24: 0 | AO24: 0 | AP24: 0 | AQ24: 0 | AR24: 0 | AS24: 0 | AT24: 0 | AU24: 0 | AV24: 0 | AW24: 0 | AX24: 0 | AY24: 0 | AZ24: 0 | BA24: 0 | BB24: 0 | BC24: 0 | BD24: 0 | BE24: 0 | BF24: 0 | BG24: 0 | BH24: 0 | BI24: 0 | BJ24: 0 | BK24: 0 | BL24: 0 | BM24: 0 | BN24: 0 | BO24: 0 | BP24: 0 | BQ24: 0 | BR24: 0 | BS24: 0 | BT24: 0 | BU24: 0 | BV24: 0 | BW24: 0 | BX24: 0 | BY24: 0 | BZ24: 0 | CB24: 0 | CC24: 0 | CD24: 0 | CE24: 0 | CF24: 0 | CG24: 0 | CH24: 0 | CI24: 0 | CJ24: 0 | CK24: 0 | CM24: RE= | CN24: =IF(AnimalType="Laktasyondaki İnek",((DMIreal-Im)*NEga)+YEn+NEpreg,(DMIreal-Im)*NEga) -> 4.676969105 | CO24: ısı artışını hesaplamak için kullanılır | CQ24: Santa Gertudis | CR24: 3.8 | CS24: 0.95 | CT24: 37.4 | CU24: 8 | CV24: 550 | CW24: 285.2 | CX24: 391 | CY24: 1 | CZ24: 4 | DA24: 24 | DB24: 0.62 | DC24: 0.067 | DL24: Tablo 10-2. Kalsiyum ve fosfor ihtiyaçları
A25: =Besi!A25 -> 0 | B25: =Besi!B25 -> 0 | C25: =Besi!C25 -> 0 | D25: =Besi!D25 -> 0 | E25: =Besi!E25 -> 0 | F25: =Besi!F25 -> 0 | G25: Rumen pH'sı | I25: =pH -> 6.46 | T25: 0 | W25: =IF(Besi!B25=0,0,IF(Besi!C25<=0,0,Besi!C25*Besi!D25)) -> 0 | X25: 0 | Y25: =IF(Besi!B25=0,0,IF(Besi!C25<=0,0,Besi!C25)) -> 0 | Z25: 0 | AA25: 0 | AB25: 0 | AC25: 0 | AD25: 0 | AE25: 0 | AF25: 0 | AG25: 0 | AH25: 0 | AI25: 0 | AJ25: 0 | AK25: 0 | AL25: 0 | AM25: 0 | AN25: 0 | AO25: 0 | AP25: 0 | AQ25: 0 | AR25: 0 | AS25: 0 | AT25: 0 | AU25: 0 | AV25: 0 | AW25: 0 | AX25: 0 | AY25: 0 | AZ25: 0 | BA25: 0 | BB25: 0 | BC25: 0 | BD25: 0 | BE25: 0 | BF25: 0 | BG25: 0 | BH25: 0 | BI25: 0 | BJ25: 0 | BK25: 0 | BL25: 0 | BM25: 0 | BN25: 0 | BO25: 0 | BP25: 0 | BQ25: 0 | BR25: 0 | BS25: 0 | BT25: 0 | BU25: 0 | BV25: 0 | BW25: 0 | BX25: 0 | BY25: 0 | BZ25: 0 | CB25: 0 | CC25: 0 | CD25: 0 | CE25: 0 | CF25: 0 | CG25: 0 | CH25: 0 | CI25: 0 | CJ25: 0 | CK25: 0 | CO25: (RE+YEn+NEpreg)=(DMIreal-Im)*NEma NEma = NElactation farzedilir | CP25: =1.8545+0.01937*BW -> 7.6655 | CQ25: Şorthorn | CR25: 3.8 | CS25: 1 | CT25: 38.9 | CU25: 8.5 | CV25: 542.1 | CW25: 284 | CX25: 349 | CY25: 1 | CZ25: 4 | DA25: 24 | DB25: 0.6 | DC25: 0.07 | DM25: İhtiyaçlar, g/gün | DQ25: Maksimum
A26: =Besi!A26 -> 0 | B26: =Besi!B26 -> 0 | C26: =Besi!C26 -> 0 | D26: =Besi!D26 -> 0 | E26: =Besi!E26 -> 0 | F26: =Besi!F26 -> 0 | T26: 0 | W26: =IF(Besi!B26=0,0,IF(Besi!C26<=0,0,Besi!C26*Besi!D26)) -> 0 | X26: 0 | Y26: =IF(Besi!B26=0,0,IF(Besi!C26<=0,0,Besi!C26)) -> 0 | Z26: 0 | AA26: 0 | AB26: 0 | AC26: 0 | AD26: 0 | AE26: 0 | AF26: 0 | AG26: 0 | AH26: 0 | AI26: 0 | AJ26: 0 | AK26: 0 | AL26: 0 | AM26: 0 | AN26: 0 | AO26: 0 | AP26: 0 | AQ26: 0 | AR26: 0 | AS26: 0 | AT26: 0 | AU26: 0 | AV26: 0 | AW26: 0 | AX26: 0 | AY26: 0 | AZ26: 0 | BA26: 0 | BB26: 0 | BC26: 0 | BD26: 0 | BE26: 0 | BF26: 0 | BG26: 0 | BH26: 0 | BI26: 0 | BJ26: 0 | BK26: 0 | BL26: 0 | BM26: 0 | BN26: 0 | BO26: 0 | BP26: 0 | BQ26: 0 | BR26: 0 | BS26: 0 | BT26: 0 | BU26: 0 | BV26: 0 | BW26: 0 | BX26: 0 | BY26: 0 | BZ26: 0 | CB26: 0 | CC26: 0 | CD26: 0 | CE26: 0 | CF26: 0 | CG26: 0 | CH26: 0 | CI26: 0 | CJ26: 0 | CK26: 0 | CM26: YEn= | CN26: =EMilk -> 0 | CO26: net enerji süt, Mcal /kg | CQ26: Simental | CR26: 3.8 | CS26: 1.2 | CT26: 39.9 | CU26: 12 | CV26: 577.5 | CW26: 286.4 | CX26: 358 | CY26: 1 | CZ26: 4 | DA26: 27 | DB26: 0.57 | DC26: 0.084 | DL26: Mineral | DM26: Yaşama payı | DN26: Büyüme | DO26: Laktasyon | DP26: Gebelik(son 90 gün) | DQ26: tolerans
A27: =Besi!A27 -> 0 | B27: =Besi!B27 -> 0 | C27: =Besi!C27 -> 0 | D27: =Besi!D27 -> 0 | E27: =Besi!E27 -> 0 | F27: =Besi!F27 -> 0 | G27: Kesif yem; Miktarı,kg | I27: =IF(OR(J4="TAMAM",J4="FAZLA")=TRUE,"",(H4-I4)/0.88) ->  | T27: 0 | W27: =IF(Besi!B27=0,0,IF(Besi!C27<=0,0,Besi!C27*Besi!D27)) -> 0 | X27: 0 | Y27: =IF(Besi!B27=0,0,IF(Besi!C27<=0,0,Besi!C27)) -> 0 | Z27: 0 | AA27: 0 | AB27: 0 | AC27: 0 | AD27: 0 | AE27: 0 | AF27: 0 | AG27: 0 | AH27: 0 | AI27: 0 | AJ27: 0 | AK27: 0 | AL27: 0 | AM27: 0 | AN27: 0 | AO27: 0 | AP27: 0 | AQ27: 0 | AR27: 0 | AS27: 0 | AT27: 0 | AU27: 0 | AV27: 0 | AW27: 0 | AX27: 0 | AY27: 0 | AZ27: 0 | BA27: 0 | BB27: 0 | BC27: 0 | BD27: 0 | BE27: 0 | BF27: 0 | BG27: 0 | BH27: 0 | BI27: 0 | BJ27: 0 | BK27: 0 | BL27: 0 | BM27: 0 | BN27: 0 | BO27: 0 | BP27: 0 | BQ27: 0 | BR27: 0 | BS27: 0 | BT27: 0 | BU27: 0 | BV27: 0 | BW27: 0 | BX27: 0 | BY27: 0 | BZ27: 0 | CB27: 0 | CC27: 0 | CD27: 0 | CE27: 0 | CF27: 0 | CG27: 0 | CH27: 0 | CI27: 0 | CJ27: 0 | CK27: 0 | CM27: Soğuk stresi için ayarlama | CQ27: South Devon | CR27: 3.8 | CS27: 1 | CT27: 36.9 | CU27: 8 | CV27: 550 | CW27: 286 | CX27: 352 | CY27: 1 | CZ27: 4 | DA27: 27 | DB27: 0.6 | DC27: 0.07 | DL27: Ca, g/gün | DM27: 0,0154*SBW/0,5 | DN27: NPg*0,071/0,5 | DO27: Milk*1,23/0,5 | DP27: CBW*(13,7/90)/0,5 | DQ27: 0,2*DMIreal
A28: =Besi!A28 -> 0 | B28: =Besi!B28 -> 0 | C28: =Besi!C28 -> 0 | D28: =Besi!D28 -> 0 | E28: =Besi!E28 -> 0 | F28: =Besi!F28 -> 0 | G28: HP,% KM | I28: =IF(OR(CPtotal>=(H8/0.67),I27="")=TRUE,"",((((H8/0.67)-CPtotal)/10/($H4-$I4)))) ->  | T28: 0 | W28: =IF(Besi!B28=0,0,IF(Besi!C28<=0,0,Besi!C28*Besi!D28)) -> 0 | X28: 0 | Y28: =IF(Besi!B28=0,0,IF(Besi!C28<=0,0,Besi!C28)) -> 0 | Z28: 0 | AA28: 0 | AB28: 0 | AC28: 0 | AD28: 0 | AE28: 0 | AF28: 0 | AG28: 0 | AH28: 0 | AI28: 0 | AJ28: 0 | AK28: 0 | AL28: 0 | AM28: 0 | AN28: 0 | AO28: 0 | AP28: 0 | AQ28: 0 | AR28: 0 | AS28: 0 | AT28: 0 | AU28: 0 | AV28: 0 | AW28: 0 | AX28: 0 | AY28: 0 | AZ28: 0 | BA28: 0 | BB28: 0 | BC28: 0 | BD28: 0 | BE28: 0 | BF28: 0 | BG28: 0 | BH28: 0 | BI28: 0 | BJ28: 0 | BK28: 0 | BL28: 0 | BM28: 0 | BN28: 0 | BO28: 0 | BP28: 0 | BQ28: 0 | BR28: 0 | BS28: 0 | BT28: 0 | BU28: 0 | BV28: 0 | BW28: 0 | BX28: 0 | BY28: 0 | BZ28: 0 | CB28: 0 | CC28: 0 | CD28: 0 | CE28: 0 | CF28: 0 | CG28: 0 | CH28: 0 | CI28: 0 | CJ28: 0 | CK28: 0 | CM28: SA = | CN28: =0.09*BW^0.67 -> 4.110680758 | CO28: Hayvanın yüzey alanı, m2 | CQ28: Tarentez | CR28: 3.8 | CS28: 1 | CT28: 37.3 | CU28: 9 | CV28: 550 | CW28: 287 | CX28: 358 | CY28: 1.2 | CZ28: 4 | DA28: 30 | DB28: 0.6 | DC28: 0.07 | DL28: P, g/gün | DM28: 0,016*SBW/0,68 | DN28: NPg*0,045/0,68 | DO28: Milk*0,95/0,68 | DP28: CBW*(7,6/90)/0,68 | DQ28: 0,1*DMIreal
A29: =Besi!A29 -> 0 | B29: =Besi!B29 -> 0 | C29: =Besi!C29 -> 0 | D29: =Besi!D29 -> 0 | E29: =Besi!E29 -> 0 | F29: =Besi!F29 -> 0 | G29: ME,Mcal/kg KM | I29: =IF(OR(J11="TAMAM",J11="FAZLA",I27="")=TRUE,"",((H11-I11))/($H4-$I4)) ->  | T29: 0 | W29: =IF(Besi!B29=0,0,IF(Besi!C29<=0,0,Besi!C29*Besi!D29)) -> 0 | X29: 0 | Y29: =IF(Besi!B29=0,0,IF(Besi!C29<=0,0,Besi!C29)) -> 0 | Z29: 0 | AA29: 0 | AB29: 0 | AC29: 0 | AD29: 0 | AE29: 0 | AF29: 0 | AG29: 0 | AH29: 0 | AI29: 0 | AJ29: 0 | AK29: 0 | AL29: 0 | AM29: 0 | AN29: 0 | AO29: 0 | AP29: 0 | AQ29: 0 | AR29: 0 | AS29: 0 | AT29: 0 | AU29: 0 | AV29: 0 | AW29: 0 | AX29: 0 | AY29: 0 | AZ29: 0 | BA29: 0 | BB29: 0 | BC29: 0 | BD29: 0 | BE29: 0 | BF29: 0 | BG29: 0 | BH29: 0 | BI29: 0 | BJ29: 0 | BK29: 0 | BL29: 0 | BM29: 0 | BN29: 0 | BO29: 0 | BP29: 0 | BQ29: 0 | BR29: 0 | BS29: 0 | BT29: 0 | BU29: 0 | BV29: 0 | BW29: 0 | BX29: 0 | BY29: 0 | BZ29: 0 | CB29: 0 | CC29: 0 | CD29: 0 | CE29: 0 | CF29: 0 | CG29: 0 | CH29: 0 | CI29: 0 | CJ29: 0 | CK29: 0 | CM29: HE= | CN29: =(MEI-(RE+YEn+NEpreg))/SA -> 3.840430274 | CO29: Isı üretimi, Mcal/gün | DL29: SWB: Shrunk Body weight,kg; DMIreal: KM tüketimi, kg; NPg: Alıkonulan protein, g; Milk: Süt verimi, kg; CBW: Beklenen buzağı doğum ağırlığı, kg
A30: =Besi!A30 -> 0 | B30: =Besi!B30 -> 0 | C30: =Besi!C30 -> 0 | D30: =Besi!D30 -> 0 | E30: =Besi!E30 -> 0 | F30: =Besi!F30 -> 0 | G30: Ca,% KM | I30: =IF(OR(J15="TAMAM",J15="FAZLA",I27="")=TRUE,"",((H15-I15)/10)/($H4-$I4)) ->  | T30: 0 | W30: =IF(Besi!B30=0,0,IF(Besi!C30<=0,0,Besi!C30*Besi!D30)) -> 0 | X30: 0 | Y30: =IF(Besi!B30=0,0,IF(Besi!C30<=0,0,Besi!C30)) -> 0 | Z30: 0 | AA30: 0 | AB30: 0 | AC30: 0 | AD30: 0 | AE30: 0 | AF30: 0 | AG30: 0 | AH30: 0 | AI30: 0 | AJ30: 0 | AK30: 0 | AL30: 0 | AM30: 0 | AN30: 0 | AO30: 0 | AP30: 0 | AQ30: 0 | AR30: 0 | AS30: 0 | AT30: 0 | AU30: 0 | AV30: 0 | AW30: 0 | AX30: 0 | AY30: 0 | AZ30: 0 | BA30: 0 | BB30: 0 | BC30: 0 | BD30: 0 | BE30: 0 | BF30: 0 | BG30: 0 | BH30: 0 | BI30: 0 | BJ30: 0 | BK30: 0 | BL30: 0 | BM30: 0 | BN30: 0 | BO30: 0 | BP30: 0 | BQ30: 0 | BR30: 0 | BS30: 0 | BT30: 0 | BU30: 0 | BV30: 0 | BW30: 0 | BX30: 0 | BY30: 0 | BZ30: 0 | CB30: 0 | CC30: 0 | CD30: 0 | CE30: 0 | CF30: 0 | CG30: 0 | CH30: 0 | CI30: 0 | CJ30: 0 | CK30: 0 | CM30: MEI= | CN30: =AF33 -> 20.46375194 | CO30: Metabolik enerji tüketimi, Mcal/gün
A31: =Besi!A31 -> 0 | B31: =Besi!B31 -> 0 | C31: =Besi!C31 -> 0 | D31: =Besi!D31 -> 0 | E31: =Besi!E31 -> 0 | F31: =Besi!F31 -> 0 | G31: P,% KM | I31: =IF(OR(J17="TAMAM",J17="FAZLA",I27="")=TRUE,"",((H17-I17)/10)/($H4-$I4)) ->  | T31: 0 | W31: =IF(Besi!B31=0,0,IF(Besi!C31<=0,0,Besi!C31*Besi!D31)) -> 0 | X31: 0 | Y31: =IF(Besi!B31=0,0,IF(Besi!C31<=0,0,Besi!C31)) -> 0 | Z31: 0 | AA31: 0 | AB31: 0 | AC31: 0 | AD31: 0 | AE31: 0 | AF31: 0 | AG31: 0 | AH31: 0 | AI31: 0 | AJ31: 0 | AK31: 0 | AL31: 0 | AM31: 0 | AN31: 0 | AO31: 0 | AP31: 0 | AQ31: 0 | AR31: 0 | AS31: 0 | AT31: 0 | AU31: 0 | AV31: 0 | AW31: 0 | AX31: 0 | AY31: 0 | AZ31: 0 | BA31: 0 | BB31: 0 | BC31: 0 | BD31: 0 | BE31: 0 | BF31: 0 | BG31: 0 | BH31: 0 | BI31: 0 | BJ31: 0 | BK31: 0 | BL31: 0 | BM31: 0 | BN31: 0 | BO31: 0 | BP31: 0 | BQ31: 0 | BR31: 0 | BS31: 0 | BT31: 0 | BU31: 0 | BV31: 0 | BW31: 0 | BX31: 0 | BY31: 0 | BZ31: 0 | CB31: 0 | CC31: 0 | CD31: 0 | CE31: 0 | CF31: 0 | CG31: 0 | CH31: 0 | CI31: 0 | CJ31: 0 | CK31: 0 | CM31: NEpreg= | CN31: =NEm_req/1000/DMIreal -> 0 | CO31: Gebe uterus için alıkonulan net enerji, Mcal/kg
CB32: DIGBAA | CC32: DIGBAA | CD32: DIGBAA | CE32: DIGBAA | CF32: DIGBAA | CG32: DIGBAA | CH32: DIGBAA | CI32: DIGBAA | CJ32: DIGBAA | CK32: DIGBAA | CM32: EI= | CN32: =IF((7.36-0.296*WIND+2.55*HAIR)*_MUD2*HIDE<0,0,(7.36-0.296*WIND+2.55*HAIR)*_MUD2*HIDE) -> 10.379 | CO32: eksternal izolasyon değeri, ºC / Mcal / m2 / gün
W33: =SUM(W36:W62) -> 3.549 | Y33: =SUM(Y36:Y62) -> 9.372028587 | Z33: 8.373585157 | AA33: 3.084664044 | AB33: 0.3727621785 | AC33: 2.855662275 | AE33: 5549.107371 | AF33: 20.46375194 | AG33: 12.69208654 | AH33: 7.555918691 | AI33: 634.175522 | AJ33: 263.5944241 | AK33: 370.5764159 | AL33: 88.77851874 | AM33: 68.17708243 | AN33: 185.5425618 | AO33: 125.4023761 | AP33: 7809.982641 | AQ33: 264.3227786 | AR33: 435.1120063 | AS33: 4140.853368 | AU33: =SUM(AU36:AU62) -> 4135.853368 | BI33: =SUM(BI36:BI62) -> 39.13685509 | BJ33: 20.73275811 | BK33: 14.49879774 | BL33: 29.8860527 | BM33: 99.94389082 | BN33: 7.485627547 | BO33: 12.54298277 | BP33: 3.14797078 | BQ33: 85.43465635 | BR33: 4.016721258 | BS33: 1401.258264 | BT33: 345.4970953 | BU33: 0.8101965283 | BV33: 291.631477 | BW33: 79.8198156 | BX33: 17.4843 | BY33: 158.7619391 | BZ33: 54.8717287 | CB33: =SUM(CB35:CB61) -> 2.532043082 | CC33: 7.747295998 | CD33: 6.575753676 | CE33: 5.281388369 | CF33: 7.095389383 | CG33: 5.366419667 | CH33: 5.81991992 | CI33: 2.541491004 | CJ33: 4.875127725 | CK33: 1.540011278 | CM33: MUD2 = | CN33: =IF(Kirlilik="Kuru",1,IF(Kirlilik="Hayvanın aşağı kısımları biraz çamurlu",0.8,IF(Kirlilik="Üzeri ıslak ve keçeleşmiş",0.5,0.2))) -> 1 | CO33: Kod 1=1,0 Kod 2=0,8 Kod 3=0,5 Kod 4=0,2 | CR33: Table 3. Condition score resulting from various rates of gain. | CX33: Tablo 10-4 Sığırlarda KM tüketimi için düzeltme faktörleri | DC33: Tablo 3-1 Vücut kompozisyonu ile büyüme döneminin ve canlı ağırlık artışının ilişkisi
B34: Hayvan sayısını giriniz : | C34: 100 | W34: Kaba | X34: VERİLECEK YEMLER | Y34: MİKTAR | Z34: KM, kg | AA34: NDF, kg | AB34: Lignin, g | AC34: Effekt.NDF, kg | AE34: TDN, g | AF34: ME,Mcal | AG34: NEm,Mcal | AH34: NEg,Mcal | AI34: HP,g | AJ34: DIP, g | AK34: UIP, g | AL34: SoIP, g | AM34: NPN, g | AN34: NDFIP, g | AO34: ADFIP, g | AP34: Nişasta, g | AQ34: HY, g | AR34: HK, g | AS34: Diet NSC,g | AT34: NFC, % | AU34: NFC, g | BG34: Y | BH34: Yüssü | BI34: Ca, g | BJ34: P, g | BK34: Mg, g | BL34: Cl, g | BM34: K, g | BN34: Na, g | BO34: S, g | BP34: Co, mg | BQ34: Cu, mg | BR34: I, mg | BS34: Fe, mg | BT34: Mn, mg | BU34: Se, mg | BV34: Zn, mg | BW34: Vit A, 1000 IU | BX34: Vit D, 1000 | BY34: Vit E, IU | BZ34: FİYAT,Krş | CB34: MET, g | CC34: LİZ, g | CD34: ARJ, g | CE34: TRE, g | CF34: LÖY, g | CG34: İZOLÖY, g | CH34: VAL, g | CI34: HIS, g | CJ34: FENAL, g | CK34: TRİP, g | CM34: HAIR = | CN34: =VLOOKUP(MID(TEXT(I1,"gg.aa.yyyy"),4,2),CU64:CV75,2,FALSE) -> 1.3 | CO34: Kıl uzunluğu, yaz için 0,6, kış için 1,3 cm | CR34: Condition score | CX34: Irk (BI) | DA34: Çarpan | DE34: Shrunk Body Weight, kg
B35: Öğün sayısını giriniz : | C35: 2 | X35: KABA YEMLER | CB35: =IF(ISERROR(2.68*0.01*BL66)=TRUE,0,2.68*0.01*BL66) -> 0 | CC35: =IF(ISERROR(8.2*0.01*BL66)=TRUE,0,8.2*0.01*BL66) -> 0 | CD35: =IF(ISERROR(6.96*0.01*BL66)=TRUE,0,6.96*0.01*BL66) -> 0 | CE35: =IF(ISERROR(5.59*0.01*BL66)=TRUE,0,5.59*0.01*BL66) -> 0 | CF35: =IF(ISERROR(7.51*0.01*BL66)=TRUE,0,7.51*0.01*BL66) -> 0 | CG35: =IF(ISERROR(5.68*0.01*BL66)=TRUE,0,5.68*0.01*BL66) -> 0 | CH35: =IF(ISERROR(6.16*0.01*BL66)=TRUE,0,6.16*0.01*BL66) -> 0 | CI35: =IF(ISERROR(2.69*0.01*BL66)=TRUE,0,2.69*0.01*BL66) -> 0 | CJ35: =IF(ISERROR(5.16*0.01*BL66)=TRUE,0,5.16*0.01*BL66) -> 0 | CK35: =IF(ISERROR(1.63*0.01*BL66)=TRUE,0,1.63*0.01*BL66) -> 0 | CL35: AnimalType grubu | CM35: HIDE = | CN35: =VLOOKUP(Breed,CQ3:CY30,9,FALSE) -> 1 | CO35: Deri kalınlığı, 0,8=ince, 1=orta, 1,2=kalın, Tablo 10-1'den alınıyor | CR35: 1 | CS35: 3 | CT35: 5 | CU35: 7 | CV35: 9 | CX35: Siyah Alaca | DA35: 1.08 | DC35: Shrunk ADG,kg | DD35: 200 | DE35: 250 | DF35: 300 | DG35: 350 | DH35: 400 | DI35: 450 | DJ35: 500
W36: =IF(OR(A5=1,A5=2)=TRUE,Z36,0) -> 0 | X36: =X5 -> MISIR SİLAJI, %23-26 KM | Y36: 0 | Z36: =IF(B5=0,0,IF(OR(C5<=0,C5="")=TRUE,0,Y5*Z5/100)) -> 0 | AA36: =IF(B5=0,0,IF(C5<=0,0,Z36*AA5/100)) -> 0 | AB36: =IF(B5=0,0,IF(C5<=0,0,AA36*AB5/100)) -> 0 | AC36: =IF(B5=0,0,IF(C5<=0,0,AA36*AC5/100)) -> 0 | AE36: =IF(B5=0,0,IF(C5<=0,0,Z36*AE5*10)) -> 0 | AF36: =IF(B5=0,0,IF(C5<=0,0,Z36*AF5)) -> 0 | AG36: =IF(B5=0,0,IF(C5<=0,0,Z36*AG5)) -> 0 | AH36: =IF(B5=0,0,IF(C5<=0,0,Z36*AH5)) -> 0 | AI36: =IF(B5=0,0,IF(C5<=0,0,Z36*AI5*10)) -> 0 | AJ36: =IF(B5=0,0,IF(C5<=0,0,AI36*AJ5/100)) -> 0 | AK36: =IF(B5=0,0,IF(C5<=0,0,AI36*AK5/100)) -> 0 | AL36: =IF(B5=0,0,IF(C5<=0,0,AI36*AL5/100)) -> 0 | AM36: =IF(B5=0,0,IF(C5<=0,0,AL36*AM5/100)) -> 0 | AN36: =IF(B5=0,0,IF(C5<=0,0,AI36*AN5/100)) -> 0 | AO36: =IF(B5=0,0,IF(C5<=0,0,AI36*AO5/100)) -> 0 | AP36: =IF(B5=0,0,IF(C5<=0,0,Z36*AP5*10)) -> 0 | AQ36: =IF(B5=0,0,IF(C5<=0,0,Z36*AQ5*10)) -> 0 | AR36: =IF(B5=0,0,IF(C5<=0,0,Z36*AR5*10)) -> 0 | AS36: =IF(ISERROR((100-(AI5+AQ5+(AA5-(AN5*AI5/100))+AR5))*Z36*10)=TRUE,0,(100-(AI5+AQ5+(AA5-(AN5*AI5/100))+AR5))*Z36*10) -> 0 | AT36: =IF(ISERROR(BH96-BL96-BJ96)=TRUE,0,BH96-BL96-BJ96) -> 100 | AU36: =IF(ISERROR(AT36*AZ36*10)=TRUE,0,BI96-BM96-BK96) -> 0 | BG36: =IF(ISERROR(1/((0.05/(AU5/100-0.02))+(2.5)))=TRUE,0,(1/((0.05/(AU5/100-0.02))+(2.5)))) -> 0 | BH36: =IF(ISERROR(relY*BG36)=TRUE,0,relY*BG36) -> 0 | BI36: =IF(ISERROR(Z36*BI5*10)=TRUE,0,Z36*BI5*10) -> 0 | BJ36: =IF(ISERROR(Z36*BJ5*10)=TRUE,0,Z36*BJ5*10) -> 0 | BK36: =IF(ISERROR(Z36*BK5*10)=TRUE,0,Z36*BK5*10) -> 0 | BL36: =IF(ISERROR(Z36*BL5*10)=TRUE,0,Z36*BL5*10) -> 0 | BM36: =IF(ISERROR(Z36*BM5*10)=TRUE,0,Z36*BM5*10) -> 0 | BN36: =IF(ISERROR(Z36*BN5*10)=TRUE,0,Z36*BN5*10) -> 0 | BO36: =IF(ISERROR(Z36*BO5*10)=TRUE,0,Z36*BO5*10) -> 0 | BP36: =IF(ISERROR(Z36*BP5)=TRUE,0,Z36*BP5) -> 0 | BQ36: =IF(ISERROR(Z36*BQ5)=TRUE,0,Z36*BQ5) -> 0 | BR36: =IF(ISERROR(Z36*BR5)=TRUE,0,Z36*BR5) -> 0 | BS36: =IF(ISERROR(Z36*BS5)=TRUE,0,Z36*BS5) -> 0 | BT36: =IF(ISERROR(Z36*BT5)=TRUE,0,Z36*BT5) -> 0 | BU36: =IF(ISERROR(Z36*BU5)=TRUE,0,Z36*BU5) -> 0 | BV36: =IF(ISERROR(Z36*BV5)=TRUE,0,Z36*BV5) -> 0 | BW36: =IF(ISERROR(Z36*BW5)=TRUE,0,Z36*BW5) -> 0 | BX36: =IF(ISERROR(Z36*BX5)=TRUE,0,Z36*BX5) -> 0 | BY36: =IF(ISERROR(Z36*BY5)=TRUE,0,Z36*BY5) -> 0 | BZ36: =IF(ISERROR(Y5*BZ5)=TRUE,0,Y5*BZ5) -> 0 | CB36: 0.339513008 | CC36: 1.038808457 | CD36: 0.8817203491 | CE36: 0.7081633263 | CF36: 0.9513965261 | CG36: 0.7195648826 | CH36: 0.7803731825 | CI36: 0.3407798476 | CJ36: 0.6536892243 | CK36: 0.2064948519 | CL36: Besi Sığırı | CM36: TI= | CN36: =IF(Age*30.4<31,2.5,IF(Age*30.4<184,6.5,IF(Age*30.4<364,5.1875+(0.3125*CS),5.25+(0.75*CS)))) -> 6.75 | CO36: doku (internal) izolasyon değeri, ºC / Mcal / m2 / gün | CR36: Very thin | CT36: Average | CU36: Very fat | CX36: Siyah AlacaXEtçi | DA36: 1.04 | DE36: NEg ihtiyacı, Mcal/gün
D37: Hayvan | F37: Bir öğünde | W37: =IF(OR(A6=1,A6=2)=TRUE,Z37,0) -> 3.549 | X37: ARPA SAMANI | Y37: 3.9 | Z37: 3.549 | AA37: 2.573025 | AB37: 0.3537909375 | AC37: 2.573025 | AE37: 1419.6 | AF37: 5.14605 | AG37: 2.1294 | AH37: 0.28392 | AI37: 156.156 | AJ37: 46.8468 | AK37: 109.3092 | AL37: 31.2312 | AM37: 29.66964 | AN37: 117.117 | AO37: 101.5014 | AP37: 3549 | AQ37: 67.431 | AR37: =IF(B6=0,0,IF(C6<=0,0,Z37*AR6*10)) -> 266.175 | AS37: 603.33 | AT37: 17 | AU37: 603.33 | BG37: 0.1333333333 | BH37: 0.1320898562 | BI37: 10.647 | BJ37: 2.4843 | BK37: 8.1627 | BL37: 23.7783 | BM37: 84.1113 | BN37: 4.9686 | BO37: 6.0333 | BP37: 0.24843 | BQ37: 19.1646 | BR37: 0 | BS37: 709.8 | BT37: 56.784 | BU37: 0 | BV37: 24.843 | BW37: 3.549 | BX37: 2.4843 | BY37: 0 | BZ37: 5.85 | CB37: 0.3003985293 | CC37: 0.9191298286 | CD37: 0.7801394642 | CE37: 0.6265775295 | CF37: 0.8417884162 | CG37: 0.6366655398 | CH37: 0.6904682615 | CI37: 0.3015194194 | CJ37: 0.578379258 | CK37: 0.1827050757 | CM37: IN= | CN37: =TI+EI -> 17.129 | CO37: izolasyon değeri,ºC/Mcal/m2/gün | CQ37: Mature or | CR37: Önceki günlük canlı ağırlık artışı, lb/d | DC37: 0.6 | DD37: 1.68 | DE37: 1.99 | DF37: 2.28 | DG37: 2.56 | DH37: 2.83 | DI37: 3.09 | DJ37: 3.34
D38: başına | E38: Günlük | F38: hayvan | G38: Bir öğünde | W38: 0 | X38: ARPA, HAFİF | Y38: 0.3800285875 | Z38: 0.334425157 | AA38: 0.09363904395 | AB38: 0.009691641049 | AC38: 0.03183727494 | AE38: 257.5073709 | AF38: 0.9297019363 | AG38: 0.6186865404 | AH38: 0.4079986915 | AI38: 46.81952197 | AJ38: 31.33162411 | AK38: 15.48321592 | AL38: 7.959318736 | AM38: 2.308202433 | AN38: 3.745561758 | AO38: 2.340976099 | AP38: 300.9826413 | AQ38: 7.69177861 | AR38: 13.37700628 | AS38: 176.6433679 | AT38: 52.82 | AU38: 176.6433679 | BG38: 0.24 | BH38: 0.2377617412 | BI38: 0.2006550942 | BJ38: 1.304258112 | BK38: 0.5016377354 | BL38: 0.434752704 | BM38: 1.739010816 | BN38: 0.1003275471 | BO38: 0.5685227668 | BP38: 0.06354077982 | BQ38: 2.87605635 | BR38: 0.01672125785 | BS38: 30.09826413 | BT38: 6.053095341 | BU38: 0.06019652825 | BV38: 14.84847697 | BW38: 1.270815596 | BX38: 0 | BY38: 8.761939112 | BZ38: 3.0402287 | CB38: 1.892131545 | CC38: 5.789357712 | CD38: 4.913893863 | CE38: 3.946647513 | CF38: 5.302204441 | CG38: 4.010189244 | CH38: 4.349078476 | CI38: 1.899191737 | CJ38: 3.643059243 | CK38: 1.15081135 | CM38: LCT= | CN38: =39-(IN*HE*0.85) -> -16.91532064 | CO38: hayvanın alt kritik sıcaklığı, ºC -15 gibi | CQ38: Finishing wt, lb | CX38: Empty vücut yağı etkisi (BFAF) | DC38: 0.8 | DD38: 2.31 | DE38: 2.73 | DF38: 3.13 | DG38: 3.51 | DH38: 3.88 | DI38: 4.24 | DJ38: 4.59
B39: VERİLECEK YEMLER | C39: Oran, % | D39: günlük | E39: toplam | F39: başına | G39: toplam | W39: 0 | X39: MISIR, 65 kg/hektolitre | Y39: 5 | Z39: 4.4 | AA39: 0.418 | AB39: 0.0092796 | AC39: 0.2508 | AE39: 3872 | AF39: 14.388 | AG39: 9.944 | AH39: 6.864 | AI39: 431.2 | AJ39: 185.416 | AK39: 245.784 | AL39: 49.588 | AM39: 36.19924 | AN39: 64.68 | AO39: 21.56 | AP39: 3960 | AQ39: 189.2 | AR39: 70.4 | AS39: 3355.88 | AT39: 76.27 | AU39: 3355.88 | BG39: 0.2 | BH39: 0.1981347843 | BI39: 1.54 | BJ39: 13.2 | BK39: 5.72 | BL39: 2.64 | BM39: 14.08 | BN39: 0.44 | BO39: 5.72 | BP39: 1.892 | BQ39: 13.2 | BR39: 0 | BS39: 132 | BT39: 26.84 | BU39: 0 | BV39: 0 | BW39: 0 | BX39: 0 | BY39: 0 | BZ39: 45 | CB39: 0 | CC39: 0 | CD39: 0 | CE39: 0 | CF39: 0 | CG39: 0 | CH39: 0 | CI39: 0 | CJ39: 0 | CK39: 0 | CM39: MEcs= | CN39: =IF(LCT>Tc,SA*(LCT-Tc)/IN,0) -> 0 | CO39: soğuk stresine bağlı gerekli ME,Mcal/gün | CQ39: 880 | CR39: 0.66 | CS39: 0.97 | CT39: 1.3 | CU39: 1.6 | CV39: 1.9 | CX39: 21.3 | CY39: (350 kg EQW'a kadar) | DA39: 1 | DC39: 1 | DD39: 2.95 | DE39: 3.48 | DF39: 4 | DG39: 4.49 | DH39: 4.96 | DI39: 5.42 | DJ39: 5.86
D40: miktar,kg | E40: miktar,kg | F40: miktar,kg | G40: miktar,kg | W40: 0 | X40: ŞEKER PANCARI | Y40: 0 | Z40: 0 | AA40: 0 | AB40: 0 | AC40: 0 | AE40: 0 | AF40: 0 | AG40: 0 | AH40: 0 | AI40: 0 | AJ40: 0 | AK40: 0 | AL40: 0 | AM40: 0 | AN40: 0 | AO40: 0 | AP40: 0 | AQ40: 0 | AR40: 0 | AS40: 0 | AT40: 100 | AU40: 0 | BG40: 0 | BH40: 0 | BI40: 0 | BJ40: 0 | BK40: 0 | BL40: 0 | BM40: 0 | BN40: 0 | BO40: 0 | BP40: 0 | BQ40: 0 | BR40: 0 | BS40: 0 | BT40: 0 | BU40: 0 | BV40: 0 | BW40: 0 | BX40: 0 | BY40: 0 | BZ40: 0 | CB40: 0 | CC40: 0 | CD40: 0 | CE40: 0 | CF40: 0 | CG40: 0 | CH40: 0 | CI40: 0 | CJ40: 0 | CK40: 0 | CM40: NEmcs= | CN40: =km*MEcs -> 0 | CO40: soğuk stresine bağlı gerekli NE,Mcal/gün | CQ40: 1030 | CR40: 0.73 | CS40: 1.06 | CT40: 1.39 | CU40: 1.72 | CV40: 2.05 | CX40: 23.8 | CY40: (400 kg EQW) | DA40: 0.97 | DC40: 1.3 | DD40: 3.93 | DE40: 4.65 | DF40: 5.33 | DG40: 5.98 | DH40: 6.61 | DI40: 7.22 | DJ40: 7.81
B41: =Besi!B5 -> MISIR SİLAJI, %23-26 KM | C41: =ROUND((Besi!C5/Besi!$C$4)*100,2) -> 0 | D41: =ROUND(Besi!C5,2) -> 0 | E41: =ROUND(C$34*Besi!C5,2) -> 0 | F41: =IF(ISERROR(ROUND(D41/$C$35,2))=TRUE,"",ROUND(D41/$C$35,2)) -> 0 | G41: =IF(ISERROR(ROUND(F41*$C$34,2))=TRUE,"",ROUND(F41*$C$34,2)) -> 0 | J41: 30.95 | K41: 5 | L41: 50 | M41: 2.5 | N41: 25 | W41: 0 | X41: AYÇİÇEĞİ KÜSPESİ, %28 HP | Y41: 0 | Z41: 0 | AA41: 0 | AB41: 0 | AC41: 0 | AE41: 0 | AF41: 0 | AG41: 0 | AH41: 0 | AI41: 0 | AJ41: 0 | AK41: 0 | AL41: 0 | AM41: 0 | AN41: 0 | AO41: 0 | AP41: 0 | AQ41: 0 | AR41: 0 | AS41: 0 | AT41: 100 | AU41: 0 | BG41: 0 | BH41: 0 | BI41: 0 | BJ41: 0 | BK41: 0 | BL41: 0 | BM41: 0 | BN41: 0 | BO41: 0 | BP41: 0 | BQ41: 0 | BR41: 0 | BS41: 0 | BT41: 0 | BU41: 0 | BV41: 0 | BW41: 0 | BX41: 0 | BY41: 0 | BZ41: 0 | CB41: 0 | CC41: 0 | CD41: 0 | CE41: 0 | CF41: 0 | CG41: 0 | CH41: 0 | CI41: 0 | CJ41: 0 | CK41: 0 | CM41: km : | CN41: 0.576 | CO41: diet NEm/diet ME; | CQ41: 1180 | CR41: 0.79 | CS41: 1.15 | CT41: 1.5 | CU41: 1.85 | CV41: 2.2 | CX41: 26.5 | CY41: (450 kg EQW) | DA41: 0.9 | DE41: Ağırlık artışındaki protein, %
B42: =Besi!B6 -> ARPA SAMANI | C42: =ROUND((Besi!C6/Besi!$C$4)*100,2) -> 41.61 | D42: =ROUND(Besi!C6,2) -> 3.9 | E42: =ROUND(C$34*Besi!C6,2) -> 390 | F42: =IF(ISERROR(ROUND(D42/$C$35,2))=TRUE,"",ROUND(D42/$C$35,2)) -> 1.95 | G42: =IF(ISERROR(ROUND(F42*$C$34,2))=TRUE,"",ROUND(F42*$C$34,2)) -> 195 | J42: 2.45 | K42: 0.4 | L42: 3.97 | M42: 0.2 | N42: 2 | W42: 0 | X42: DİKALSİYUMFOSFAT | Y42: 0.02 | Z42: 0.0194 | AA42: 0 | AB42: 0 | AC42: 0 | AE42: 0 | AF42: 0 | AG42: 0 | AH42: 0 | AI42: 0 | AJ42: 0 | AK42: 0 | AL42: 0 | AM42: 0 | AN42: 0 | AO42: 0 | AP42: 0 | AQ42: 0 | AR42: 19.4 | AS42: 0 | AT42: 0 | AU42: 0 | BG42: 0 | BH42: 0 | BI42: 4.268 | BJ42: 3.7442 | BK42: 0.11446 | BL42: 0 | BM42: 0.01358 | BN42: 0.0097 | BO42: 0.22116 | BP42: 0.194 | BQ42: 0.194 | BR42: 0 | BS42: 279.36 | BT42: 5.82 | BU42: 0 | BV42: 1.94 | BW42: 0 | BX42: 0 | BY42: 0 | BZ42: 0.7 | CB42: 0 | CC42: 0 | CD42: 0 | CE42: 0 | CF42: 0 | CG42: 0 | CH42: 0 | CI42: 0 | CJ42: 0 | CK42: 0 | CM42: NEmhs = | CN42: =IF(Tc>=30,IF(HeatStress="Normal",1,IF(HeatStress="Yüzeysel hızlı soluma",1.07,1.18)),1) -> 1 | CO42: 1,07 yüzeysel hızlı soluma için, ve 1,18 ağzı açık soluma eğer sıcaklık ≥30 ºC | CQ42: 1325 | CR42: 0.84 | CS42: 1.21 | CT42: 1.6 | CU42: 1.97 | CV42: 2.35 | CX42: 29 | CY42: (500 kg EQW) | DA42: 0.82 | DC42: 0.6 | DD42: 20.4 | DE42: 19.5 | DF42: 18.8 | DG42: 18 | DH42: 17.3 | DI42: 16.6 | DJ42: 16
B43: =Besi!B7 -> ARPA, HAFİF | C43: =ROUND((Besi!C7/Besi!$C$4)*100,2) -> 4.05 | D43: =ROUND(Besi!C7,2) -> 0.38 | E43: =ROUND(C$34*Besi!C7,2) -> 38 | F43: 0.19 | G43: 19 | J43: 11.43 | K43: 1.85 | L43: 18.47 | M43: 0.93 | N43: 9.3 | W43: 0 | X43: MERMER TOZU | Y43: 0.062 | Z43: 0.06076 | AA43: 0 | AB43: 0 | AC43: 0 | AE43: 0 | AF43: 0 | AG43: 0 | AH43: 0 | AI43: 0 | AJ43: 0 | AK43: 0 | AL43: 0 | AM43: 0 | AN43: 0 | AO43: 0 | AP43: 0 | AQ43: 0 | AR43: 60.76 | AS43: 0 | AT43: 0 | AU43: 0 | BG43: 0 | BH43: 0 | BI43: 22.4812 | BJ43: 0 | BK43: 0 | BL43: 0 | BM43: 0 | BN43: 0 | BO43: 0 | BP43: 0 | BQ43: 0 | BR43: 0 | BS43: 0 | BT43: 0 | BU43: 0 | BV43: 0 | BW43: 0 | BX43: 0 | BY43: 0 | BZ43: 0.124 | CB43: 0 | CC43: 0 | CD43: 0 | CE43: 0 | CF43: 0 | CG43: 0 | CH43: 0 | CI43: 0 | CJ43: 0 | CK43: 0 | CM43: NEmtotal= | CN43: =IF(HeatStress="Normal",NEm+NEmact+NEmcs,NEm*NEmhs+NEmact) -> 6.026312264 | CO43: ırk, laktasyon, cinsiyet, otlama, çevre sıcaklığına uyum ve stres etkileri için ayarlamada gerekli yaşama payı net enerjisi, Mcal/gün | CQ43: 1470 | CR43: 0.88 | CS43: 1.3 | CT43: 1.7 | CU43: 2.09 | CV43: 2.5 | CX43: 31.5 | CY43: (550 kg EQW) | DA43: 0.73 | DC43: 0.8 | DD43: 18.7 | DE43: 17.6 | DF43: 16.5 | DG43: 15.5 | DH43: 14.6 | DI43: 13.6 | DJ43: 12.7
B44: =Besi!B8 -> MISIR, 65 kg/hektolitre | C44: =ROUND((Besi!C8/Besi!$C$4)*100,2) -> 53.35 | D44: =ROUND(Besi!C8,2) -> 5 | E44: =ROUND(C$34*Besi!C8,2) -> 500 | F44: 2.5 | G44: 250 | J44: 23.66 | K44: 3.82 | L44: 38.22 | M44: 1.91 | N44: 19.1 | W44: 0 | X44: TUZ | Y44: 0.005 | Z44: 0.005 | AA44: 0 | AB44: 0 | AC44: 0 | AE44: 0 | AF44: 0 | AG44: 0 | AH44: 0 | AI44: 0 | AJ44: 0 | AK44: 0 | AL44: 0 | AM44: 0 | AN44: 0 | AO44: 0 | AP44: 0 | AQ44: 0 | AR44: 5 | AS44: 0 | AT44: 0 | AU44: 0 | BG44: 0 | BH44: 0 | BI44: 0 | BJ44: 0 | BK44: 0 | BL44: 3.033 | BM44: 0 | BN44: 1.967 | BO44: 0 | BP44: 0 | BQ44: 0 | BR44: 0 | BS44: 0 | BT44: 0 | BU44: 0 | BV44: 0 | BW44: 0 | BX44: 0 | BY44: 0 | BZ44: 0.0075 | CB44: 0 | CC44: 0 | CD44: 0 | CE44: 0 | CF44: 0 | CG44: 0 | CH44: 0 | CI44: 0 | CJ44: 0 | CK44: 0 | CL44: Yağlılık düzeyi | CM44: Imtotal= | CN44: =NEmtotal/NEma -> 3.703656611 | CO44: streste yaşama payı için tüketim, kg KM/gün | CQ44: CA,kg | CS44: GCAA, g/gün | DC44: 1 | DD44: 17 | DE44: 15.6 | DF44: 14.2 | DG44: 13 | DH44: 11.7 | DI44: 10.5 | DJ44: 9.3
B45: =Besi!B9 -> ŞEKER PANCARI | C45: =ROUND((Besi!C9/Besi!$C$4)*100,2) -> 0 | D45: =ROUND(Besi!C9,2) -> 0 | E45: =ROUND(C$34*Besi!C9,2) -> 0 | F45: 0 | G45: 0 | J45: 0 | K45: 0 | L45: 0 | M45: 0 | N45: 0 | W45: 0 | X45: VİT.-MİN. KAR. (ROVIMIX 302-FM/30) (SÜT, BESİ) | Y45: 0.005 | Z45: 0.005 | AA45: 0 | AB45: 0 | AC45: 0 | AE45: 0 | AF45: 0 | AG45: 0 | AH45: 0 | AI45: 0 | AJ45: 0 | AK45: 0 | AL45: 0 | AM45: 0 | AN45: 0 | AO45: 0 | AP45: 0 | AQ45: 0 | AR45: 0 | AS45: 5 | AT45: 0 | AU45: 0 | BG45: 0 | BH45: 0 | BI45: 0 | BJ45: 0 | BK45: 0 | BL45: 0 | BM45: 0 | BN45: 0 | BO45: 0 | BP45: 0.75 | BQ45: 50 | BR45: 4 | BS45: 250 | BT45: 250 | BU45: 0.75 | BV45: 250 | BW45: 75 | BX45: 15 | BY45: 150 | BZ45: 0.15 | CB45: 0 | CC45: 0 | CD45: 0 | CE45: 0 | CF45: 0 | CG45: 0 | CH45: 0 | CI45: 0 | CJ45: 0 | CK45: 0 | CL45: Yağlı, % 28 yağlı | CM45: MEtotal= | CN45: =(NEmtotal/(0.35*((MEconc*4.184)/18.4)+0.503))+(pRE/(0.78*((MEconc*4.184)/18.4)+0.006))+(CN92/(0.35*((MEconc*4.184)/18.4)+0.42))+((NEm_req/1000)/(0.78*((MEconc*4.184)/18.4)+0.006)) -> 20.87258686 | CO45: Metabolik Enerji ihtiyacı, Mcal/gün (McDonald 2002, sy.296) | CQ45: =880*0.454 -> 399.52 | CR45: =0.66*0.454 -> 0.29964 | CS45: =0.97*0.454 -> 0.44038 | CT45: =1.3*0.454 -> 0.5902 | CU45: =1.6*0.454 -> 0.7264 | CV45: =1.9*0.454 -> 0.8626 | CX45: Anabolik implant (ADTV) | DA45: 1 | DC45: 1.3 | DD45: 14.4 | DE45: 12.5 | DF45: 10.7 | DG45: 9 | DH45: 7.3 | DI45: 5.7 | DJ45: 4.2
B46: =Besi!B10 -> AYÇİÇEĞİ KÜSPESİ, %28 HP | C46: =ROUND((Besi!C10/Besi!$C$4)*100,2) -> 0 | D46: =ROUND(Besi!C10,2) -> 0 | E46: =ROUND(C$34*Besi!C10,2) -> 0 | F46: 0 | G46: 0 | J46: 0.34 | K46: 0.05 | L46: 0.54 | M46: 0.03 | N46: 0.3 | W46: 0 | X46: =X15 -> 0 | Y46: =Y15 -> 0 | Z46: 0 | AA46: 0 | AB46: 0 | AC46: 0 | AE46: 0 | AF46: 0 | AG46: 0 | AH46: 0 | AI46: 0 | AJ46: 0 | AK46: 0 | AL46: 0 | AM46: 0 | AN46: 0 | AO46: 0 | AP46: 0 | AQ46: 0 | AR46: 0 | AS46: 0 | AT46: 100 | AU46: 0 | BG46: 0 | BH46: 0 | BI46: 0 | BJ46: 0 | BK46: 0 | BL46: 0 | BM46: 0 | BN46: 0 | BO46: 0 | BP46: 0 | BQ46: 0 | BR46: 0 | BS46: 0 | BT46: 0 | BU46: 0 | BV46: 0 | BW46: 0 | BX46: 0 | BY46: 0 | BZ46: 0 | CB46: 0 | CC46: 0 | CD46: 0 | CE46: 0 | CF46: 0 | CG46: 0 | CH46: 0 | CI46: 0 | CJ46: 0 | CK46: 0 | CL46: Az yağlı, % 27 yağlı | CM46: MEconc = | CN46: =(0.0857*ADG^2 + 0.5357*ADG + 1.6021) + IF(BW<=400,0, (0.0000035*BW^2 - 0.0016*BW + 0.0539 )) -> 2.598475 | CO46: Rasyonun Metabolik Enerji konsantrasyonu, Mcal/kg KM, değiştirdik, sabitledik | CP46: =MEI/TotalDMFed -> 2.443845922 | CQ46: =1030*0.454 -> 467.62 | CR46: =0.73*0.454 -> 0.33142 | CS46: =1.06*0.454 -> 0.48124 | CT46: =1.39*0.454 -> 0.63106 | CU46: =1.72*0.454 -> 0.78088 | CV46: =2.05*0.454 -> 0.9307 | CX46: Anabolik stimulan yoksa | DA46: 0.94 | DE46: Ağırlık artışındaki yağ, %
B47: =Besi!B11 -> DİKALSİYUMFOSFAT | C47: =ROUND((Besi!C11/Besi!$C$4)*100,2) -> 0.21 | D47: =ROUND(Besi!C11,2) -> 0.02 | E47: =ROUND(C$34*Besi!C11,2) -> 2 | F47: 0.01 | G47: 1 | J47: 30.95 | K47: 5 | L47: 50 | M47: 2.5 | N47: 25 | W47: 0 | X47: 0 | Y47: 0 | Z47: 0 | AA47: 0 | AB47: 0 | AC47: 0 | AE47: 0 | AF47: 0 | AG47: 0 | AH47: 0 | AI47: 0 | AJ47: 0 | AK47: 0 | AL47: 0 | AM47: 0 | AN47: 0 | AO47: 0 | AP47: 0 | AQ47: 0 | AR47: 0 | AS47: 0 | AT47: 100 | AU47: 0 | BG47: 0 | BH47: 0 | BI47: 0 | BJ47: 0 | BK47: 0 | BL47: 0 | BM47: 0 | BN47: 0 | BO47: 0 | BP47: 0 | BQ47: 0 | BR47: 0 | BS47: 0 | BT47: 0 | BU47: 0 | BV47: 0 | BW47: 0 | BX47: 0 | BY47: 0 | BZ47: 0 | CB47: 0 | CC47: 0 | CD47: 0 | CE47: 0 | CF47: 0 | CG47: 0 | CH47: 0 | CI47: 0 | CJ47: 0 | CK47: 0 | CL47: Çok az yağlı, % 25 yağlı | CM47: PROTEİN İHTİYACI | CQ47: =1180*0.454 -> 535.72 | CR47: =0.79*0.454 -> 0.35866 | CS47: =1.15*0.454 -> 0.5221 | CT47: =1.5*0.454 -> 0.681 | CU47: =1.85*0.454 -> 0.8399 | CV47: =2.2*0.454 -> 0.9988 | DC47: 0.6 | DD47: 5.9 | DE47: 9.7 | DF47: 13.2 | DG47: 16.6 | DH47: 19.9 | DI47: 23.1 | DJ47: 26.2
B48: =Besi!B12 -> MERMER TOZU | C48: =ROUND((Besi!C12/Besi!$C$4)*100,2) -> 0.66 | D48: =ROUND(Besi!C12,2) -> 0.06 | E48: =ROUND(C$34*Besi!C12,2) -> 6.2 | F48: 0.03 | G48: 3 | J48: 0.04 | K48: 0.01 | L48: 0.06 | M48: 0.01 | N48: 0.1 | W48: 0 | X48: 0 | Y48: 0 | Z48: 0 | AA48: 0 | AB48: 0 | AC48: 0 | AE48: 0 | AF48: 0 | AG48: 0 | AH48: 0 | AI48: 0 | AJ48: 0 | AK48: 0 | AL48: 0 | AM48: 0 | AN48: 0 | AO48: 0 | AP48: 0 | AQ48: 0 | AR48: 0 | AS48: 0 | AT48: 100 | AU48: 0 | BG48: 0 | BH48: 0 | BI48: 0 | BJ48: 0 | BK48: 0 | BL48: 0 | BM48: 0 | BN48: 0 | BO48: 0 | BP48: 0 | BQ48: 0 | BR48: 0 | BS48: 0 | BT48: 0 | BU48: 0 | BV48: 0 | BW48: 0 | BX48: 0 | BY48: 0 | BZ48: 0 | CB48: 0 | CC48: 0 | CD48: 0 | CE48: 0 | CF48: 0 | CG48: 0 | CH48: 0 | CI48: 0 | CJ48: 0 | CK48: 0 | CM48: Yaşama Payı | CQ48: =1325*0.454 -> 601.55 | CR48: =0.84*0.454 -> 0.38136 | CS48: =1.21*0.454 -> 0.54934 | CT48: =1.6*0.454 -> 0.7264 | CU48: =1.97*0.454 -> 0.89438 | CV48: =2.35*0.454 -> 1.0669 | CX48: Sıcaklık, °C (TEMP) | DC48: 0.8 | DD48: 13.6 | DE48: 18.7 | DF48: 23.6 | DG48: 28.2 | DH48: 32.8 | DI48: 37.1 | DJ48: 41.4
B49: =Besi!B13 -> TUZ | C49: =ROUND((Besi!C13/Besi!$C$4)*100,2) -> 0.05 | D49: =ROUND(Besi!C13,2) -> 0.01 | E49: =ROUND(C$34*Besi!C13,2) -> 0.5 | F49: 0.01 | G49: 1 | J49: 0.03 | K49: 0.01 | L49: 0.05 | M49: 0.01 | N49: 0.1 | W49: 0 | X49: 0 | Y49: 0 | Z49: 0 | AA49: 0 | AB49: 0 | AC49: 0 | AE49: 0 | AF49: 0 | AG49: 0 | AH49: 0 | AI49: 0 | AJ49: 0 | AK49: 0 | AL49: 0 | AM49: 0 | AN49: 0 | AO49: 0 | AP49: 0 | AQ49: 0 | AR49: 0 | AS49: 0 | AT49: 100 | AU49: 0 | BG49: 0 | BH49: 0 | BI49: 0 | BJ49: 0 | BK49: 0 | BL49: 0 | BM49: 0 | BN49: 0 | BO49: 0 | BP49: 0 | BQ49: 0 | BR49: 0 | BS49: 0 | BT49: 0 | BU49: 0 | BV49: 0 | BW49: 0 | BX49: 0 | BY49: 0 | BZ49: 0 | CB49: 0 | CC49: 0 | CD49: 0 | CE49: 0 | CF49: 0 | CG49: 0 | CH49: 0 | CI49: 0 | CJ49: 0 | CK49: 0 | CM49: MPmaint= | CN49: =3.8*SBW^0.75 -> 265.6610975 | CO49: Yaşama payı için gerekli MP, g/gün, HATA, NRC2016'ya göre düzeltildi | CQ49: =1470*0.454 -> 667.38 | CR49: =0.88*0.454 -> 0.39952 | CS49: =1.3*0.454 -> 0.5902 | CT49: =1.7*0.454 -> 0.7718 | CU49: =2.09*0.454 -> 0.94886 | CV49: =2.5*0.454 -> 1.135 | CX49: >35, gece soğutması yok | DA49: 0.65 | DC49: 1 | DD49: 21.4 | DE49: 27.9 | DF49: 34.1 | DG49: 40.1 | DH49: 45.6 | DI49: 51.5 | DJ49: 56.9
B50: =Besi!B14 -> VİT.-MİN. KAR. (ROVIMIX 302-FM/30) (SÜT, BESİ) | C50: =ROUND((Besi!C14/Besi!$C$4)*100,2) -> 0.05 | D50: =ROUND(Besi!C14,2) -> 0.01 | E50: =ROUND(C$34*Besi!C14,2) -> 0.5 | F50: 0.01 | G50: 1 | J50: 0.16 | K50: 0.03 | L50: 0.25 | M50: 0.02 | N50: 0.2 | W50: 0 | X50: 0 | Y50: 0 | Z50: 0 | AA50: 0 | AB50: 0 | AC50: 0 | AE50: 0 | AF50: 0 | AG50: 0 | AH50: 0 | AI50: 0 | AJ50: 0 | AK50: 0 | AL50: 0 | AM50: 0 | AN50: 0 | AO50: 0 | AP50: 0 | AQ50: 0 | AR50: 0 | AS50: 0 | AT50: 100 | AU50: 0 | BG50: 0 | BH50: 0 | BI50: 0 | BJ50: 0 | BK50: 0 | BL50: 0 | BM50: 0 | BN50: 0 | BO50: 0 | BP50: 0 | BQ50: 0 | BR50: 0 | BS50: 0 | BT50: 0 | BU50: 0 | BV50: 0 | BW50: 0 | BX50: 0 | BY50: 0 | BZ50: 0 | CB50: 0 | CC50: 0 | CD50: 0 | CE50: 0 | CF50: 0 | CG50: 0 | CH50: 0 | CI50: 0 | CJ50: 0 | CK50: 0 | CL50: Kaba yemler | CM50: Büyüme | CO50: Enerji ve Protein İhtiyaçları | CX50: >35, gece soğutmalı | DA50: 0.9 | DC50: 1.3 | DD50: 22.3 | DE50: 29 | DF50: 35.4 | DG50: 41.5 | DH50: 47.4 | DI50: 53.2 | DJ50: 58.7
B51: =Besi!B15 -> 0 | C51: =ROUND((Besi!C15/Besi!$C$4)*100,2) -> 0 | D51: =ROUND(Besi!C15,2) -> 0 | E51: =ROUND(C$34*Besi!C15,2) -> 0 | F51: 0 | G51: 0 | W51: 0 | X51: 0 | Y51: 0 | Z51: 0 | AA51: 0 | AB51: 0 | AC51: 0 | AE51: 0 | AF51: 0 | AG51: 0 | AH51: 0 | AI51: 0 | AJ51: 0 | AK51: 0 | AL51: 0 | AM51: 0 | AN51: 0 | AO51: 0 | AP51: 0 | AQ51: 0 | AR51: 0 | AS51: 0 | AT51: 100 | AU51: 0 | BG51: 0 | BH51: 0 | BI51: 0 | BJ51: 0 | BK51: 0 | BL51: 0 | BM51: 0 | BN51: 0 | BO51: 0 | BP51: 0 | BQ51: 0 | BR51: 0 | BS51: 0 | BT51: 0 | BU51: 0 | BV51: 0 | BW51: 0 | BX51: 0 | BY51: 0 | BZ51: 0 | CB51: 0 | CC51: 0 | CD51: 0 | CE51: 0 | CF51: 0 | CG51: 0 | CH51: 0 | CI51: 0 | CJ51: 0 | CK51: 0 | CL51: Baklagil Kuru Otu | CM51: SRW= | CN51: =IF(OR(AnimalType="Damızlık Düve",AnimalType="Damızlık Boğa",Yaglanma="Yağlı, % 28 yağlı")=TRUE,478,IF(Yaglanma="Az yağlı, % 27 yağlı",462,435)) -> 462 | CO51: Damızlık düve, Damızlık Boğa ve yağlanacak besiler için 478 kg (% 28 yağlı) | CX51: 25-35 | DA51: 0.9 | DE51: Vücut yağı, %
B52: =Besi!B16 -> 0 | C52: =ROUND((Besi!C16/Besi!$C$4)*100,2) -> 0 | D52: =ROUND(Besi!C16,2) -> 0 | E52: =ROUND(C$34*Besi!C16,2) -> 0 | F52: 0 | G52: 0 | W52: 0 | X52: 0 | Y52: 0 | Z52: 0 | AA52: 0 | AB52: 0 | AC52: 0 | AE52: 0 | AF52: 0 | AG52: 0 | AH52: 0 | AI52: 0 | AJ52: 0 | AK52: 0 | AL52: 0 | AM52: 0 | AN52: 0 | AO52: 0 | AP52: 0 | AQ52: 0 | AR52: 0 | AS52: 0 | AT52: 100 | AU52: 0 | BG52: 0 | BH52: 0 | BI52: 0 | BJ52: 0 | BK52: 0 | BL52: 0 | BM52: 0 | BN52: 0 | BO52: 0 | BP52: 0 | BQ52: 0 | BR52: 0 | BS52: 0 | BT52: 0 | BU52: 0 | BV52: 0 | BW52: 0 | BX52: 0 | BY52: 0 | BZ52: 0 | CB52: 0 | CC52: 0 | CD52: 0 | CE52: 0 | CF52: 0 | CG52: 0 | CH52: 0 | CI52: 0 | CJ52: 0 | CK52: 0 | CL52: Mısır Silajı | CO52: Az yağlanacak besiler için 462 kg (% 26,8 yağlı) | CQ52: Hayvanın Tipi : | CR52: Besi Sığırı | CT52: KONTROL | CX52: 15-25 | DA52: 1 | DC52: 0.6 | DD52: 11.6 | DE52: 10.8 | DF52: 10.9 | DG52: 11.5 | DH52: 12.3 | DI52: 13.4 | DJ52: 14.5
B53: =Besi!B17 -> 0 | C53: =ROUND((Besi!C17/Besi!$C$4)*100,2) -> 0 | D53: =ROUND(Besi!C17,2) -> 0 | E53: =ROUND(C$34*Besi!C17,2) -> 0 | F53: 0 | G53: 0 | W53: 0 | X53: 0 | Y53: 0 | Z53: 0 | AA53: 0 | AB53: 0 | AC53: 0 | AE53: 0 | AF53: 0 | AG53: 0 | AH53: 0 | AI53: 0 | AJ53: 0 | AK53: 0 | AL53: 0 | AM53: 0 | AN53: 0 | AO53: 0 | AP53: 0 | AQ53: 0 | AR53: 0 | AS53: 0 | AT53: 100 | AU53: 0 | BG53: 0 | BH53: 0 | BI53: 0 | BJ53: 0 | BK53: 0 | BL53: 0 | BM53: 0 | BN53: 0 | BO53: 0 | BP53: 0 | BQ53: 0 | BR53: 0 | BS53: 0 | BT53: 0 | BU53: 0 | BV53: 0 | BW53: 0 | BX53: 0 | BY53: 0 | BZ53: 0 | CB53: 0 | CC53: 0 | CD53: 0 | CE53: 0 | CF53: 0 | CG53: 0 | CH53: 0 | CI53: 0 | CJ53: 0 | CK53: 0 | CO53: Yağlanmayacak besiler için 435 kg (%25,2 yağlı) | CQ53: Irkı : | CR53: Siyah Alaca | CX53: 5-15 | DA53: 1.03 | DC53: 0.8 | DD53: 11.6 | DE53: 12.5 | DF53: 13.9 | DG53: 15.6 | DH53: 17.5 | DI53: 19.4 | DJ53: 21.4
B54: =Besi!B18 -> 0 | C54: =ROUND((Besi!C18/Besi!$C$4)*100,2) -> 0 | D54: =ROUND(Besi!C18,2) -> 0 | E54: =ROUND(C$34*Besi!C18,2) -> 0 | F54: 0 | G54: 0 | W54: 0 | X54: 0 | Y54: 0 | Z54: 0 | AA54: 0 | AB54: 0 | AC54: 0 | AE54: 0 | AF54: 0 | AG54: 0 | AH54: 0 | AI54: 0 | AJ54: 0 | AK54: 0 | AL54: 0 | AM54: 0 | AN54: 0 | AO54: 0 | AP54: 0 | AQ54: 0 | AR54: 0 | AS54: 0 | AT54: 100 | AU54: 0 | BG54: 0 | BH54: 0 | BI54: 0 | BJ54: 0 | BK54: 0 | BL54: 0 | BM54: 0 | BN54: 0 | BO54: 0 | BP54: 0 | BQ54: 0 | BR54: 0 | BS54: 0 | BT54: 0 | BU54: 0 | BV54: 0 | BW54: 0 | BX54: 0 | BY54: 0 | BZ54: 0 | CB54: 0 | CC54: 0 | CD54: 0 | CE54: 0 | CF54: 0 | CG54: 0 | CH54: 0 | CI54: 0 | CJ54: 0 | CK54: 0 | CM54: EQSBW= | CN54: =SBW*(SRW/FSBW) -> 252 | CO54: SBW eşdeğeri | CQ54: Yaşı : | CR54: 10 | CS54: ay | CT54: 10 | CX54: -5-+5 | DA54: 1.05 | DC54: 1 | DD54: 11.6 | DE54: 14.2 | DF54: 17 | DG54: 19.9 | DH54: 22.8 | DI54: 25.6 | DJ54: 28.5
B55: =Besi!B19 -> 0 | C55: =ROUND((Besi!C19/Besi!$C$4)*100,2) -> 0 | D55: =ROUND(Besi!C19,2) -> 0 | E55: =ROUND(C$34*Besi!C19,2) -> 0 | F55: 0 | G55: 0 | W55: 0 | X55: 0 | Y55: 0 | Z55: 0 | AA55: 0 | AB55: 0 | AC55: 0 | AE55: 0 | AF55: 0 | AG55: 0 | AH55: 0 | AI55: 0 | AJ55: 0 | AK55: 0 | AL55: 0 | AM55: 0 | AN55: 0 | AO55: 0 | AP55: 0 | AQ55: 0 | AR55: 0 | AS55: 0 | AT55: 100 | AU55: 0 | BG55: 0 | BH55: 0 | BI55: 0 | BJ55: 0 | BK55: 0 | BL55: 0 | BM55: 0 | BN55: 0 | BO55: 0 | BP55: 0 | BQ55: 0 | BR55: 0 | BS55: 0 | BT55: 0 | BU55: 0 | BV55: 0 | BW55: 0 | BX55: 0 | BY55: 0 | BZ55: 0 | CB55: 0 | CC55: 0 | CD55: 0 | CE55: 0 | CF55: 0 | CG55: 0 | CH55: 0 | CI55: 0 | CJ55: 0 | CK55: 0 | CL55: Kaçıncı doğumunu yapacak | CM55: FSBW= | CN55: =IF(AnimalType="Damızlık Boğa",(VLOOKUP(Breed,CQ3:CZ30,6,FALSE)*0.6)*0.96,IF(AnimalType="Damızlık Düve",VLOOKUP(Breed,CQ3:CZ30,6,FALSE)*0.96,BesiSonAg*0.96)) -> 528 | CO55: Shrunk besi sonu ağırlığı, kg | CQ55: Kondisyon Skoru : | CR55: 5 | CX55: -15--5 | DA55: 1.07 | DC55: 1.3 | DD55: 11.6 | DE55: 14.4 | DF55: 17.4 | DG55: 20.4 | DH55: 23.4 | DI55: 26.4 | DJ55: 29.3
B56: =Besi!B20 -> 0 | C56: =ROUND((Besi!C20/Besi!$C$4)*100,2) -> 0 | D56: =ROUND(Besi!C20,2) -> 0 | E56: =ROUND(C$34*Besi!C20,2) -> 0 | F56: 0 | G56: 0 | W56: 0 | X56: 0 | Y56: 0 | Z56: 0 | AA56: 0 | AB56: 0 | AC56: 0 | AE56: 0 | AF56: 0 | AG56: 0 | AH56: 0 | AI56: 0 | AJ56: 0 | AK56: 0 | AL56: 0 | AM56: 0 | AN56: 0 | AO56: 0 | AP56: 0 | AQ56: 0 | AR56: 0 | AS56: 0 | AT56: 100 | AU56: 0 | BG56: 0 | BH56: 0 | BI56: 0 | BJ56: 0 | BK56: 0 | BL56: 0 | BM56: 0 | BN56: 0 | BO56: 0 | BP56: 0 | BQ56: 0 | BR56: 0 | BS56: 0 | BT56: 0 | BU56: 0 | BV56: 0 | BW56: 0 | BX56: 0 | BY56: 0 | BZ56: 0 | CB56: 0 | CC56: 0 | CD56: 0 | CE56: 0 | CF56: 0 | CG56: 0 | CH56: 0 | CI56: 0 | CJ56: 0 | CK56: 0 | CL56: 1 | CM56: EQEBW= | CN56: =0.891*EQSBW -> 224.532 | CO56: EBW eşdeğeri | CQ56: Canlı ağırlığı : | CR56: 300 | CS56: kg | CX56: < -15 | DA56: 1.16 | DC56: >1,3 | DD56: 11.6 | DE56: 14.2 | DF56: 17 | DG56: 20.1 | DH56: 23.1 | DI56: 26.1 | DJ56: 29.1
B57: =Besi!B21 -> 0 | C57: =ROUND((Besi!C21/Besi!$C$4)*100,2) -> 0 | D57: =ROUND(Besi!C21,2) -> 0 | E57: =ROUND(C$34*Besi!C21,2) -> 0 | F57: 0 | G57: 0 | W57: 0 | X57: 0 | Y57: 0 | Z57: 0 | AA57: 0 | AB57: 0 | AC57: 0 | AE57: 0 | AF57: 0 | AG57: 0 | AH57: 0 | AI57: 0 | AJ57: 0 | AK57: 0 | AL57: 0 | AM57: 0 | AN57: 0 | AO57: 0 | AP57: 0 | AQ57: 0 | AR57: 0 | AS57: 0 | AT57: 100 | AU57: 0 | BG57: 0 | BH57: 0 | BI57: 0 | BJ57: 0 | BK57: 0 | BL57: 0 | BM57: 0 | BN57: 0 | BO57: 0 | BP57: 0 | BQ57: 0 | BR57: 0 | BS57: 0 | BT57: 0 | BU57: 0 | BV57: 0 | BW57: 0 | BX57: 0 | BY57: 0 | BZ57: 0 | CB57: 0 | CC57: 0 | CD57: 0 | CE57: 0 | CF57: 0 | CG57: 0 | CH57: 0 | CI57: 0 | CJ57: 0 | CK57: 0 | CL57: 2 | CM57: pRE= | CN57: =0.0635*EBW^0.75*EBG^1.097 -> 5.781124613 | CO57: Alıkonulan enerji, Mcal/gün (NEb) | CQ57: Hedef besi sonu ağırlığı : | CR57: 550 | CS57: kg | CX57: Çamur (MUD1) | DC57: NEg ihtiyaçları NRC 1984'de 72 kesim çalışmasından elde edildi, RE=0,0635 EBW^0,75 EBG^1,097
B58: =Besi!B22 -> 0 | C58: =ROUND((Besi!C22/Besi!$C$4)*100,2) -> 0 | D58: =ROUND(Besi!C22,2) -> 0 | E58: =ROUND(C$34*Besi!C22,2) -> 0 | F58: 0 | G58: 0 | W58: 0 | X58: 0 | Y58: 0 | Z58: 0 | AA58: 0 | AB58: 0 | AC58: 0 | AE58: 0 | AF58: 0 | AG58: 0 | AH58: 0 | AI58: 0 | AJ58: 0 | AK58: 0 | AL58: 0 | AM58: 0 | AN58: 0 | AO58: 0 | AP58: 0 | AQ58: 0 | AR58: 0 | AS58: 0 | AT58: 100 | AU58: 0 | BG58: 0 | BH58: 0 | BI58: 0 | BJ58: 0 | BK58: 0 | BL58: 0 | BM58: 0 | BN58: 0 | BO58: 0 | BP58: 0 | BQ58: 0 | BR58: 0 | BS58: 0 | BT58: 0 | BU58: 0 | BV58: 0 | BW58: 0 | BX58: 0 | BY58: 0 | BZ58: 0 | CB58: 0 | CC58: 0 | CD58: 0 | CE58: 0 | CF58: 0 | CG58: 0 | CH58: 0 | CI58: 0 | CJ58: 0 | CK58: 0 | CL58: 3 | CM58: NPg= | CN58: =SWG*(268-(29.4*(pRE/SWG))) -> 215.9549364 | CO58: Büyüme için net protein ihtiyacı, g/gün | CQ58: İstenilen canlı ağırlık artışı : | CR58: 1.5 | CS58: kg/gün | CX58: Yok | DA58: 1 | DC58: SBWG'deki yağ oranı= 0,122 RE-0,146, protein oranı= 0,248-0,0264 RE
B59: =Besi!B23 -> 0 | C59: =ROUND((Besi!C23/Besi!$C$4)*100,2) -> 0 | D59: =ROUND(Besi!C23,2) -> 0 | E59: =ROUND(C$34*Besi!C23,2) -> 0 | F59: 0 | G59: 0 | W59: 0 | X59: =X28 -> 0 | Y59: 0 | Z59: 0 | AA59: 0 | AB59: 0 | AC59: 0 | AE59: 0 | AF59: 0 | AG59: 0 | AH59: 0 | AI59: 0 | AJ59: 0 | AK59: 0 | AL59: 0 | AM59: 0 | AN59: 0 | AO59: 0 | AP59: 0 | AQ59: 0 | AR59: 0 | AS59: 0 | AT59: 100 | AU59: 0 | BG59: 0 | BH59: 0 | BI59: 0 | BJ59: 0 | BK59: 0 | BL59: 0 | BM59: 0 | BN59: 0 | BO59: 0 | BP59: 0 | BQ59: 0 | BR59: 0 | BS59: 0 | BT59: 0 | BU59: 0 | BV59: 0 | BW59: 0 | BX59: 0 | BY59: 0 | BZ59: 0 | CB59: 0 | CC59: 0 | CD59: 0 | CE59: 0 | CF59: 0 | CG59: 0 | CH59: 0 | CI59: 0 | CJ59: 0 | CK59: 0 | CL59: 4 | CM59: MPg= | CN59: =IF(EQSBW<=300,NPg/(0.834-(EQSBW*0.00114)),NPg/0.492) -> 395.0009811 | CO59: Büyüme için MP ihtiyacı, g/gün, HATA, NRC2016'ya göre düzeltildi | CQ59: Hedef yağlılık düzeyi : | CR59: Az yağlı, % 27 yağlı | CX59: Orta (10-20 cm) | DA59: 0.85
B60: =Besi!B24 -> 0 | C60: =ROUND((Besi!C24/Besi!$C$4)*100,2) -> 0 | D60: =ROUND(Besi!C24,2) -> 0 | E60: =ROUND(C$34*Besi!C24,2) -> 0 | F60: 0 | G60: 0 | W60: 0 | X60: 0 | Y60: 0 | Z60: 0 | AA60: 0 | AB60: 0 | AC60: 0 | AE60: 0 | AF60: 0 | AG60: 0 | AH60: 0 | AI60: 0 | AJ60: 0 | AK60: 0 | AL60: 0 | AM60: 0 | AN60: 0 | AO60: 0 | AP60: 0 | AQ60: 0 | AR60: 0 | AS60: 0 | AT60: 100 | AU60: 0 | BG60: 0 | BH60: 0 | BI60: 0 | BJ60: 0 | BK60: 0 | BL60: 0 | BM60: 0 | BN60: 0 | BO60: 0 | BP60: 0 | BQ60: 0 | BR60: 0 | BS60: 0 | BT60: 0 | BU60: 0 | BV60: 0 | BW60: 0 | BX60: 0 | BY60: 0 | BZ60: 0 | CB60: 0 | CC60: 0 | CD60: 0 | CE60: 0 | CF60: 0 | CG60: 0 | CH60: 0 | CI60: 0 | CJ60: 0 | CK60: 0 | CM60: EBG= | CN60: =12.341*EQEBW^-0.6837*pRE^0.9116 -> 1.508105963 | CO60: ME'nin sağlayabileceği GCAA,kg | CX60: Şiddetli (30-60 cm) | DA60: 0.7
B61: =Besi!B25 -> 0 | C61: =ROUND((Besi!C25/Besi!$C$4)*100,2) -> 0 | D61: =ROUND(Besi!C25,2) -> 0 | E61: =ROUND(C$34*Besi!C25,2) -> 0 | F61: 0 | G61: 0 | W61: 0 | X61: 0 | Y61: 0 | Z61: 0 | AA61: 0 | AB61: 0 | AC61: 0 | AE61: 0 | AF61: 0 | AG61: 0 | AH61: 0 | AI61: 0 | AJ61: 0 | AK61: 0 | AL61: 0 | AM61: 0 | AN61: 0 | AO61: 0 | AP61: 0 | AQ61: 0 | AR61: 0 | AS61: 0 | AT61: 100 | AU61: 0 | BG61: 0 | BH61: 0 | BI61: 0 | BJ61: 0 | BK61: 0 | BL61: 0 | BM61: 0 | BN61: 0 | BO61: 0 | BP61: 0 | BQ61: 0 | BR61: 0 | BS61: 0 | BT61: 0 | BU61: 0 | BV61: 0 | BW61: 0 | BX61: 0 | BY61: 0 | BZ61: 0 | CB61: 0 | CC61: 0 | CD61: 0 | CE61: 0 | CF61: 0 | CG61: 0 | CH61: 0 | CI61: 0 | CJ61: 0 | CK61: 0 | CM61: SWG= | CN61: =13.91*pRE^0.9116*EQSBW^-0.6837 -> 1.570869187 | CQ61: Kaç gün önce doğurdu? : | CS61: gün
B62: =Besi!B26 -> 0 | C62: =ROUND((Besi!C26/Besi!$C$4)*100,2) -> 0 | D62: =ROUND(Besi!C26,2) -> 0 | E62: =ROUND(C$34*Besi!C26,2) -> 0 | F62: 0 | G62: 0 | W62: 0 | X62: 0 | Y62: 0 | Z62: 0 | AA62: 0 | AB62: 0 | AC62: 0 | AE62: 0 | AF62: 0 | AG62: 0 | AH62: 0 | AI62: 0 | AJ62: 0 | AK62: 0 | AL62: 0 | AM62: 0 | AN62: 0 | AO62: 0 | AP62: 0 | AQ62: 0 | AR62: 0 | AS62: 0 | AT62: 100 | AU62: 0 | BG62: 0 | BH62: 0 | BI62: 0 | BJ62: 0 | BK62: 0 | BL62: 0 | BM62: 0 | BN62: 0 | BO62: 0 | BP62: 0 | BQ62: 0 | BR62: 0 | BS62: 0 | BT62: 0 | BU62: 0 | BV62: 0 | BW62: 0 | BX62: 0 | BY62: 0 | BZ62: 0 | CB62: REFAA | CC62: REFAA | CD62: REFAA | CE62: REFAA | CF62: REFAA | CG62: REFAA | CH62: REFAA | CI62: REFAA | CJ62: REFAA | CK62: REFAA | CM62: Damızlık düvelerin | CN62: Büyüme İhtiyaçları | CO62: Hedef Ağırlıkları ve Ağırlık Artış Oranlarının Tahmini | CQ62: Kaç günlük gebe? : | CR62: 0 | CS62: gün
B63: =Besi!B27 -> 0 | C63: =ROUND((Besi!C27/Besi!$C$4)*100,2) -> 0 | D63: =ROUND(Besi!C27,2) -> 0 | E63: =ROUND(C$34*Besi!C27,2) -> 0 | F63: 0 | G63: 0 | CB63: =SUM(CB65:CB91) -> 5.134686276 | CC63: 10.48027 | CD63: 11.68476559 | CE63: 14.64685187 | CF63: 47.72789182 | CG63: 14.51012515 | CH63: 19.88829588 | CI63: 9.425642037 | CJ63: 19.36176749 | CK63: 7.332890607 | CM63: MW : | CN63: =VLOOKUP(Breed,CQ3:CV30,6,FALSE) -> 682 | CO63: Ergin canlı ağırlık, kg | CQ63: Kaçıncı doğumunu yapacak : | CR63: 0 | CU63: Ay | CV63: HAIR, cm | CW63: TDNp | DA63: DM requirements for growing yearlings
B64: =Besi!B28 -> 0 | C64: =ROUND((Besi!C28/Besi!$C$4)*100,2) -> 0 | D64: =ROUND(Besi!C28,2) -> 0 | E64: =ROUND(C$34*Besi!C28,2) -> 0 | F64: 0 | G64: 0 | Z64: önhesap | AA64: =SUM(AA66:AA92) -> 0.2018813539 | AB64: =SUM(AB66:AB92) -> 22.79811865 | AD64: =SUM(AD66:AD92) -> 27.12273642 | AE64: 4.43290436 | AF64: 68.17708243 | AG64: 15.29410815 | AH64: 33.02699024 | AI64: 0.1117314792 | AJ64: 48.43282987 | AK64: 5.30732815 | AL64: 326.8274512 | AM64: 60.02845418 | AN64: 125.4023761 | AO64: =SUM(AO66:AO92) -> 257.9717767 | AP64: 729.7802264 | AQ64: 116.9733779 | AR64: 95.28056009 | AS64: 3052.820805 | AT64: 1887.518876 | AU64: 894.6292285 | AV64: 45.42215688 | AW64: 3.47593024 | AX64: 41.36034709 | AY64: =IF(SUM(AY66:AY92)>0.18,0.18,SUM(AY66:AY92)) -> 0.18 | BA64: =SUM(BA66:BA92) -> 0.2069464234 | BB64: 3.213263126 | BC64: 0.3203264528 | BD64: 6.610769235 | BE64: 245.3338161 | BF64: 251.9445853 | BG64: 25.19445853 | BH64: 24.53338161 | BI64: 0.6610769235 | BJ64: 48.43282987 | BK64: 7.749252779 | BL64: 94.47921948 | BM64: =SUM(BM66:BM92) -> 39.36634145 | BN64: 23.61980487 | BO64: 52.90836291 | BP64: 30.23335023 | BQ64: 11.08556175 | BR64: 5.30732815 | BS64: =SUM(BS66:BS92) -> 326.8274512 | BT64: 48.02276334 | BU64: 380.1575427 | BV64: 94.47921948 | BW64: 23.61980487 | BX64: 498.2565671 | BY64: =SUM(BY66:BY92) -> 2762.399939 | BZ64: =SUM(BZ66:BZ92) -> 50.26294477 | CB64: MET, g | CC64: LİZ, g | CD64: ARJ, g | CE64: TRE, g | CF64: LÖY, g | CG64: İZOLÖY, g | CH64: VAL, g | CI64: HIS, g | CJ64: FENAL, g | CK64: TRİP, g | CM64: TPW= | CN64: =IF(OR(AnimalType="Damızlık Boğa",AnimalType="Kastre Erkek",AnimalType="Buzağı",AnimalType="Besi Sığırı")=TRUE,0,MW*VLOOKUP(Breed,CQ3:DB30,12,FALSE)) -> 0 | CO64: Hedef gebelik ağırlığı, kg | CP64: =TPW-SBW -> -288 | CQ64: Mevcut hava sıcaklığı : | CR64: 20 | CS64: ºC | CU64: 01 | CV64: 1.3 | CW64: 50 | DA64: Finishing weight
B65: =Besi!B29 -> 0 | C65: =ROUND((Besi!C29/Besi!$C$4)*100,2) -> 0 | D65: =ROUND(Besi!C29,2) -> 0 | E65: =ROUND(C$34*Besi!C29,2) -> 0 | F65: 0 | G65: 0 | Y65: Kdüssü | Z65: Kdüssü | AA65: RD | AB65: RESC | AC65: Kpj | AD65: Af_forages | AE65: Af_conc | AF65: RDPAj | AG65: RDPB1j | AH65: RDPB2j | AI65: RDPB3j | AJ65: RDPEPj | AK65: REPB1j | AL65: REPB2j | AM65: REPB3j | AN65: REPCj | AO65: RDCAj | AP65: RDCB1j | AQ65: RDCB2j | AR65: RECAj | AS65: RECB1j | AT65: RECB2j | AU65: RECCj | AV65: 1/Y1j | AW65: 1/Y2j | AX65: 1/Y3j | AY65: RATIOj | AZ65: IMPj | BA65: Y1j | BB65: Y2j | BC65: Y3j | BD65: FCBACTj | BE65: NFCBACTj | BF65: BACTj | BG65: BACTNj | BH65: NFCBACTNj | BI65: FCBACTNj | BJ65: PEPUPj | BK65: PEPUPNj | BL65: REBTPj | BM65: REBCWj | BN65: REBNAj | BO65: REBCHOj | BP65: REBFATj | BQ65: REBASHj | BR65: DIGPB1j | BS65: DIGPB2j | BT65: DIGPB3j | BU65: DIGFPj | BV65: DIGBTPj | BW65: DIGBNAj | BX65: DIGPj | BY65: DIGFCj | BZ65: DIGBCj | CB65: =IF(ISERROR(AY5*0.01*(AK66+AL66+AM66+AN66))=TRUE,0,AY5*0.01*(AK66+AL66+AM66+AN66)) -> 0 | CC65: =IF(ISERROR(AZ5*0.01*(AK66+AL66+AM66+AN66))=TRUE,0,AZ5*0.01*(AK66+AL66+AM66+AN66)) -> 0 | CD65: =IF(ISERROR(BA5*0.01*(AK66+AL66+AM66+AN66))=TRUE,0,BA5*0.01*(AK66+AL66+AM66+AN66)) -> 0 | CE65: =IF(ISERROR(BB5*0.01*(AK66+AL66+AM66+AN66))=TRUE,0,BB5*0.01*(AK66+AL66+AM66+AN66)) -> 0 | CF65: =IF(ISERROR(BC5*0.01*(AK66+AL66+AM66+AN66))=TRUE,0,BC5*0.01*(AK66+AL66+AM66+AN66)) -> 0 | CG65: =IF(ISERROR(BD5*0.01*(AK66+AL66+AM66+AN66))=TRUE,0,BD5*0.01*(AK66+AL66+AM66+AN66)) -> 0 | CH65: =IF(ISERROR(BE5*0.01*(AK66+AL66+AM66+AN66))=TRUE,0,BE5*0.01*(AK66+AL66+AM66+AN66)) -> 0 | CI65: =IF(ISERROR(BF5*0.01*(AK66+AL66+AM66+AN66))=TRUE,0,BF5*0.01*(AK66+AL66+AM66+AN66)) -> 0 | CJ65: =IF(ISERROR(BG5*0.01*(AK66+AL66+AM66+AN66))=TRUE,0,BG5*0.01*(AK66+AL66+AM66+AN66)) -> 0 | CK65: =IF(ISERROR(BH5*0.01*(AK66+AL66+AM66+AN66))=TRUE,0,BH5*0.01*(AK66+AL66+AM66+AN66)) -> 0 | CM65: GS : | CN65: =IF(OR(AnimalType="Damızlık Boğa",AnimalType="Kastre Erkek",AnimalType="Buzağı",AnimalType="Besi Sığırı")=TRUE, 0, VLOOKUP(Breed,CQ3:CX30,7,FALSE)) -> 0 | CO65: Irka özgü gebelik süresi, gün | CQ65: Geçen ayın sıcaklık ortalaması : | CR65: 22 | CS65: °C | CU65: 02 | CV65: 1.2 | CW65: 50 | DA65: 455 | DB65: 500 | DC65: 545 | DD65: 590 | DE65: 635
B66: =Besi!B30 -> 0 | C66: =ROUND((Besi!C30/Besi!$C$4)*100,2) -> 0 | D66: =ROUND(Besi!C30,2) -> 0 | E66: =ROUND(C$34*Besi!C30,2) -> 0 | F66: 0 | G66: 0 | Y66: =IF(ISERROR(IF(Z66>AU5/100,AU5/100,Z66))=TRUE,0,IF(Z66>AU5/100,AU5/100,Z66)) -> 0 | Z66: =IF(ISERROR(IF(pH<5.7,0,büyükA*((BH36/((-0.1058+(0.0752*pH))-BH36))+1)))=TRUE,0,IF(pH<5.7,0,büyükA*((BH36/((-0.1058+(0.0752*pH))-BH36))+1))) -> 0.02040189968 | AA66: =IF(ISERROR(AU5/(AU5+AC66))=TRUE,0,AU5/(AU5+AC66)) -> 0 | AB66: =IF(ISERROR(AC66/(AU5+AC66))=TRUE,0,AC66/(AU5+AC66)) -> 1 | AC66: =IF(ISERROR(IF(A5<3,Kp_forages*AD66,Kp_conc*AE66))=TRUE,0,IF(A5<3,Kp_forages*AD66,Kp_conc*AE66)) -> 51.3296485 | AD66: =IF(ISERROR(IF(A5<3,100/((AC5/100)+70),""))=TRUE,0,IF(A5<3,100/((AC5/100)+70),"")) -> 1.428571429 | AE66: =IF(ISERROR(IF(OR(A5=3,A5=4,A5=5,A5=6)=TRUE,100/((AC5/100)+90),""))=TRUE,0,IF(OR(A5=3,A5=4,A5=5,A5=6)=TRUE,100/((AC5/100)+90),"")) ->  | AF66: =IF(ISERROR(BR96*Z36*10)=TRUE,0,BR96*Z36*10) -> 0 | AG66: =IF(ISERROR(BT96*Z36*10*(AV5/(AV5+AC66)))=TRUE,0,BT96*Z36*10*(AV5/(AV5+AC66))) -> 0 | AH66: =IF(ISERROR(BZ96*Z36*10*(AW5/(AW5+AC66)))=TRUE,0,BZ96*Z36*10*(AW5/(AW5+AC66))) -> 0 | AI66: =IF(ISERROR(BX96*Z36*10*(AX5/(AX5+AC66)))=TRUE,0,BX96*Z36*10*(AX5/(AX5+AC66))) -> 0 | AJ66: =IF(ISERROR(AG66+AH66+AI66)=TRUE,0,AG66+AH66+AI66) -> 0 | AK66: =IF(ISERROR(BT96*Z36*10*(AC66/(AC66+AV5)))=TRUE,0,BT96*Z36*10*(AC66/(AC66+AV5))) -> 0 | AL66: =IF(ISERROR(BZ96*Z36*10*(AC66/(AW5+AC66)))=TRUE,0,BZ96*Z36*10*(AC66/(AW5+AC66))) -> 0 | AM66: =IF(ISERROR(BX96*Z36*10*(AC66/(AX5+AC66)))=TRUE,0,BX96*Z36*10*(AC66/(AX5+AC66))) -> 0 | AN66: =IF(ISERROR(BV96*Z36*10)=TRUE,0,BV96*Z36*10) -> 0 | AO66: =IF(ISERROR(Z36*10*BP96*(AS5/(AS5+AC66)))=TRUE,0,Z36*10*BP96*(AS5/(AS5+AC66))) -> 0 | AP66: =IF(ISERROR(Z36*10*BN96*(AT5/(AT5+AC66)))=TRUE,0,Z36*10*BN96*(AT5/(AT5+AC66))) -> 0 | AQ66: =IF(ISERROR(Z36*10*BL96*(AU5/(AU5+AC66)))=TRUE,0,Z36*10*BL96*(AU5/(AU5+AC66))) -> 0 | AR66: =IF(ISERROR(Z36*10*BP96*(AC66/(AS5+AC66)))=TRUE,0,Z36*10*BP96*(AC66/(AS5+AC66))) -> 0 | AS66: =IF(ISERROR(Z36*10*BN96*(AC66/(AT5+AC66)))=TRUE,0,Z36*10*BN96*(AC66/(AT5+AC66))) -> 0 | AT66: =IF(ISERROR(Z36*10*BL96*(AC66/(AU5+AC66)))=TRUE,0,Z36*10*BL96*(AC66/(AU5+AC66))) -> 0 | AU66: =IF(ISERROR(Z36*10*BJ96)=TRUE,0,Z36*10*BJ96) -> 0 | AV66: =IF(ISERROR((_KM1/AU5)+(1/_YG1))=TRUE,0,(_KM1/AU5)+(1/_YG1)) -> 0 | AW66: =IF(ISERROR((_KM2/AS5)+(1/_YG2))=TRUE,0,(_KM2/AS5)+(1/_YG2)) -> 0 | AX66: =IF(ISERROR((_KM2/AT5)+(1/_YG2))=TRUE,0,(_KM2/AT5)+(1/_YG2)) -> 0 | AY66: =IF(ISERROR(AJ66/(AO66+AP66+AJ66))=TRUE,0,AJ66/(AO66+AP66+AJ66)) -> 0 | AZ66: =IF(ISERROR(EXP(0.404*LN(AY66*100)+1.942))=TRUE,0,EXP(0.404*LN(AY66*100)+1.942)) -> 0 | BA66: =IF(ISERROR(1/AV66)=TRUE,0,1/AV66) -> 0 | BB66: =IF(ISERROR((1/AW66)*(1+AZ66*0.01))=TRUE,0,(1/AW66)*(1+AZ66*0.01)) -> 0 | BC66: =IF(ISERROR((1/AX66)*(1+AZ66*0.01))=TRUE,0,(1/AX66)*(1+AZ66*0.01)) -> 0 | BD66: =IF(ISERROR(BA66*AQ66)=TRUE,0,BA66*AQ66) -> 0 | BE66: =IF(ISERROR((BB66*AO66)+(BC66*AP66))=TRUE,0,(BB66*AO66)+(BC66*AP66)) -> 0 | BF66: =IF(ISERROR(BD66+BE66)=TRUE,0,BD66+BE66) -> 0 | BG66: =IF(ISERROR(0.1*BF66)=TRUE,0,0.1*BF66) -> 0 | BH66: =IF(ISERROR(0.1*BE66)=TRUE,0,0.1*BE66) -> 0 | BI66: =IF(ISERROR(0.1*BD66)=TRUE,0,0.1*BD66) -> 0 | BJ66: =IF(ISERROR(AJ66)=TRUE,0,AJ66) -> 0 | BK66: =IF(ISERROR(BJ66/6.25)=TRUE,0,BJ66/6.25) -> 0 | BL66: =IF(ISERROR(0.6*0.625*BF66)=TRUE,0,0.6*0.625*BF66) -> 0 | BM66: =IF(ISERROR(0.25*0.625*BF66)=TRUE,0,0.25*0.625*BF66) -> 0 | BN66: =IF(ISERROR(0.15*0.625*BF66)=TRUE,0,0.15*0.625*BF66) -> 0 | BO66: =IF(ISERROR(0.21*BF66)=TRUE,0,0.21*BF66) -> 0 | BP66: =IF(ISERROR(0.12*BF66)=TRUE,0,0.12*BF66) -> 0 | BQ66: =IF(ISERROR(0.044*BF66)=TRUE,0,0.044*BF66) -> 0 | BR66: =AK66 -> 0 | BS66: =AL66 -> 0 | BT66: =IF(ISERROR(0.8*AM66)=TRUE,0,0.8*AM66) -> 0 | BU66: =IF(ISERROR(BR66+BS66+BT66)=TRUE,0,BR66+BS66+BT66) -> 0 | BV66: =BL66 -> 0 | BW66: =BN66 -> 0 | BX66: =IF(ISERROR(BU66+BV66+BW66)=TRUE,0,BU66+BV66+BW66) -> 0 | BY66: =IF(ISERROR(AR66+stdig*AS66+0.2*AT66)=TRUE,0,AR66+stdig*AS66+0.2*AT66) -> 0 | BZ66: =IF(ISERROR(0.95*BO66)=TRUE,0,0.95*BO66) -> 0 | CB66: 0.8303226098 | CC66: 3.507183561 | CD66: 3.507183561 | CE66: 3.507183561 | CF66: 6.80368825 | CG66: 3.507183561 | CH66: 4.746471038 | CI66: 1.239287477 | CJ66: 4.33750617 | CK66: 5.576793648 | CL66: İonofor ve İmplant | CM66: İBY : | CN66: =IF(AnimalType="Damızlık Düve", IF(DaysPreg>0, Tage+(GS-DaysPreg), IF(Tage>=TPA, IF(SBW>=TPW, Tage+GS, Tage+ (TPW-SBW)+GS), IF(SBW>=TPW, VLOOKUP(Breed,CQ3:DA30,11,FALSE)*30.4, IF( (TPW-SBW)>((VLOOKUP(Breed,CQ3:DA30,11,FALSE)*30.4-GS)-Tage), VLOOKUP(Breed,CQ3:DA30,11,FALSE)*30.4+(TPW-SBW)-((VLOOKUP(Breed,CQ3:DA30,11,FALSE)*30.4-GS)-Tage), VLOOKUP(Breed,CQ3:DA30,11,FALSE)*30.4) ) ) ), 0) -> 0 | CO66: Hedef ilk buzağılama yaşı, gün TCA | CQ66: Sıcaklık Stresi : | CR66: Normal | CU66: 03 | CV66: 1.1 | CW66: 64 | CZ66: Dmreq | DA66: =2.5459 + 0.0196 * BW - 0.5161 * ADG -> 7.65175 | DB66: =2.7101 + 0.0192 * BW - 0.518 * ADG -> 7.6931 | DC66: =2.8656 + 0.0189 * BW - 0.5248 * ADG -> 7.7484 | DD66: =3.1544 + 0.0183 * BW - 0.5381 * ADG -> 7.83725 | DE66: =3.2985 + 0.018 * BW - 0.5312 * ADG -> 7.9017 | DF66: =FORECAST(BesiSonAg,DA66:DE66,DA65:DE65) -> 7.773596111
B67: =Besi!B31 -> 0 | C67: =ROUND((Besi!C31/Besi!$C$4)*100,2) -> 0 | D67: =ROUND(Besi!C31,2) -> 0 | E67: =ROUND(C$34*Besi!C31,2) -> 0 | F67: 0 | G67: 0 | Y67: 0.03 | Z67: 0.0312726568 | AA67: 0.05596315835 | AB67: 0.9440368417 | AC67: 50.6066957 | AD67: 1.408450704 | AF67: 29.66964 | AG67: 1.135791999 | AH67: 1.394098466 | AI67: 0.02772180673 | AJ67: 2.557612272 | AK67: 0.4257680007 | AL67: 6.413701534 | AM67: 15.58787819 | AN67: 101.5014 | AO67: 0 | AP67: 224.5458624 | AQ67: 89.92214847 | AR67: 0 | AS67: 378.7841376 | AT67: 1516.887602 | AU67: 849.09825 | AV67: 19.32833888 | AW67: 0.9932092785 | AX67: 8.272311206 | AY67: 0.01126188085 | AZ67: 7.315612594 | BA67: 0.05173750348 | BB67: 1.080493456 | BC67: 0.1297286936 | BD67: 4.65234747 | BE67: 29.13004138 | BF67: 33.78238885 | BG67: 3.378238885 | BH67: 2.913004138 | BI67: 0.465234747 | BJ67: 2.557612272 | BK67: 0.4092179636 | BL67: 12.66839582 | BM67: 5.278498258 | BN67: 3.167098955 | BO67: 7.094301659 | BP67: 4.053886662 | BQ67: 1.48642511 | BR67: =AK67 -> 0.4257680007 | BS67: =AL67 -> 6.413701534 | BT67: 12.47030255 | BU67: 19.30977209 | BV67: =BL67 -> 12.66839582 | BW67: =BN67 -> 3.167098955 | BX67: 35.14526686 | BY67: 587.4656235 | BZ67: 6.739586576 | CB67: 0.2727065865 | CC67: 1.03359163 | CD67: 1.626139275 | CE67: 1.060525614 | CF67: 2.299488871 | CG67: 1.319765209 | CH67: 1.642973015 | CI67: 0.7709852877 | CJ67: 1.885378869 | CK67: 0.4242102456 | CL67: Yok | CM67: TPA = | CN67: =IF(AnimalType="Damızlık Düve", İBY-GS, 0) -> 0 | CO67: Hedef gebelik yaşı, gün | CP67: =TPA-Tage -> 0 | CQ67: Geceleri serinliyor mu? | CR67: Evet | CU67: 04 | CV67: 0.9 | CW67: 74 | CZ67: MSU ve OSU dan 29.03.2021 de uyarlandı
B68: TOPLAM | C68: =ROUND(SUM(C41:C67),0) -> 100 | D68: =ROUND(SUM(D41:D67),2) -> 9.38 | E68: =ROUND(SUM(E41:E67),2) -> 937.2 | F68: =ROUND(SUM(F41:F67),2) -> 4.7 | G68: =ROUND(SUM(G41:G67),2) -> 470 | Y68: 0.05 | Z68: 0.05450709804 | AA68: 0.08038425957 | AB68: 0.9196157404 | AC68: 57.20123226 | AE68: 1.106929378 | AF68: 2.308202433 | AG68: 4.746161932 | AH68: 6.089135757 | AI68: 0.008542040916 | AJ68: 10.84383973 | AK68: 0.9049543701 | AL68: 29.02550572 | AM68: 1.396043618 | AN68: 2.340976099 | AO68: 14.83561802 | AP68: 54.69384789 | AQ68: 5.356288071 | AR68: 2.828718773 | AS68: 104.2851832 | AT68: 61.2772556 | AU68: 23.25993852 | AV68: 11.59734826 | AW68: 0.8277751438 | AX68: 8.272311206 | AY68: 0.134918424 | AZ68: 19.95026518 | BA68: 0.08622660781 | BB68: 1.449068217 | BC68: 0.1450021187 | BD68: 0.4618545508 | BE68: 29.42854638 | BF68: 29.89040093 | BG68: 2.989040093 | BH68: 2.942854638 | BI68: 0.04618545508 | BJ68: 10.84383973 | BK68: 1.735014357 | BL68: 11.20890035 | BM68: 4.670375145 | BN68: 2.802225087 | BO68: 6.276984195 | BP68: 3.586848111 | BQ68: 1.315177641 | BR68: 0.9049543701 | BS68: 29.02550572 | BT68: 1.116834895 | BU68: 31.04729499 | BV68: 11.20890035 | BW68: 2.802225087 | BX68: 45.05842042 | BY68: 93.29805731 | BZ68: 5.963134985 | CB68: 4.03165708 | CC68: 5.939494805 | CD68: 6.551442755 | CE68: 10.0791427 | CF68: 38.6247147 | CG68: 9.683176379 | CH68: 13.49885183 | CI68: 7.415369272 | CJ68: 13.13888245 | CK68: 1.331886714 | CL68: İonofor | CM68: Tage : | CN68: =IF(OR(AnimalType="Damızlık Boğa",AnimalType="Kastre Erkek",AnimalType="Buzağı",AnimalType="Besi Sığırı")=TRUE,0,Age*30.4) -> 0 | CO68: Düvenin yaşı, gün | CQ68: Zemindeki çamur miktarı : | CR68: Yok | CU68: 05 | CV68: 0.8 | CW68: 74
C69: 8 | E69: 5 | F69: 6 | G69: 7 | Y69: 0.04 | Z69: 0.04262992059 | AA69: 0.06553393594 | AB69: 0.9344660641 | AC69: 57.03707862 | AE69: 1.103752759 | AF69: 36.19924 | AG69: 9.412154221 | AH69: 25.54375601 | AI69: 0.07546763161 | AJ69: 35.03137787 | AK69: 3.976605779 | AL69: 291.388244 | AM69: 43.04453237 | AN69: 21.56 | AO69: 243.1361587 | AP69: 450.5405161 | AQ69: 21.69494134 | AR69: 92.45184131 | AS69: 2569.751484 | AT69: 309.3540187 | AU69: 22.27104 | AV69: 14.49646974 | AW69: 1.654945817 | AX69: 24.81572468 | AY69: 0.04807326849 | AZ69: 13.14888596 | BA69: 0.0689823121 | BB69: 0.6837014528 | BC69: 0.04559564044 | BD69: 1.496567214 | BE69: 186.7752283 | BF69: 188.2717955 | BG69: 18.82717955 | BH69: 18.67752283 | BI69: 0.1496567214 | BJ69: 35.03137787 | BK69: 5.605020459 | BL69: 70.60192332 | BM69: 29.41746805 | BN69: 17.65048083 | BO69: 39.53707706 | BP69: 22.59261546 | BQ69: 8.283959002 | BR69: 3.976605779 | BS69: 291.388244 | BT69: 34.43562589 | BU69: 329.8004757 | BV69: 70.60192332 | BW69: 17.65048083 | BX69: 418.0528798 | BY69: 2081.636258 | BZ69: 37.5602232 | CB69: 0 | CC69: 0 | CD69: 0 | CE69: 0 | CF69: 0 | CG69: 0 | CH69: 0 | CI69: 0 | CJ69: 0 | CK69: 0 | CL69: İmplant | CM69: BPADG= | CN69: =IF(AnimalType="Damızlık Düve", IF(DaysPreg>0, 0, IF(SBW>=TPW, 0, IF(Tage>=TPA, 1, (TPW-SBW)/(TPA-Tage)) ) ),0) -> 0 | CO69: Gebelik öncesi hedef günlük canlı ağırlık artışı, kg/gün | CQ69: Deri ve kıllarının durumu : | CR69: Kuru | CU69: 06 | CV69: 0.7 | CW69: 65
Y70: 0 | Z70: 0.02040189968 | AA70: 0 | AB70: 1 | AC70: 57.41732581 | AE70: 1.111111111 | AF70: 0 | AG70: 0 | AH70: 0 | AI70: 0 | AJ70: 0 | AK70: 0 | AL70: 0 | AM70: 0 | AN70: 0 | AO70: 0 | AP70: 0 | AQ70: 0 | AR70: 0 | AS70: 0 | AT70: 0 | AU70: 0 | AV70: 0 | AW70: 0 | AX70: 0 | AY70: 0 | AZ70: 0 | BA70: 0 | BB70: 0 | BC70: 0 | BD70: 0 | BE70: 0 | BF70: 0 | BG70: 0 | BH70: 0 | BI70: 0 | BJ70: 0 | BK70: 0 | BL70: 0 | BM70: 0 | BN70: 0 | BO70: 0 | BP70: 0 | BQ70: 0 | BR70: 0 | BS70: 0 | BT70: 0 | BU70: 0 | BV70: 0 | BW70: 0 | BX70: 0 | BY70: 0 | BZ70: 0 | CB70: 0 | CC70: 0 | CD70: 0 | CE70: 0 | CF70: 0 | CG70: 0 | CH70: 0 | CI70: 0 | CJ70: 0 | CK70: 0 | CL70: İonofor+İmplant | CM70: BUZAG= | CN70: =IF(OR(AnimalType="Damızlık Düve",AnimalType="Laktasyondaki İnek",AnimalType="Kurudaki İnek")=TRUE, IF(DogumSay=1,0.8, IF(DogumSay=2,0.92, IF(DogumSay=3,0.96, 1))), 0) *MW -> 0 | CO70: Hedef buzağılama ağırlığı, kg | CQ70: Rüzgarın hızı : | CR70: 1 | CS70: km/sa | CU70: 07 | CV70: 0.6 | CW70: 62
Y71: 0 | Z71: 0.02040189968 | AA71: 0 | AB71: 1 | AC71: 57.41732581 | AE71: 1.111111111 | AF71: 0 | AG71: 0 | AH71: 0 | AI71: 0 | AJ71: 0 | AK71: 0 | AL71: 0 | AM71: 0 | AN71: 0 | AO71: 0 | AP71: 0 | AQ71: 0 | AR71: 0 | AS71: 0 | AT71: 0 | AU71: 0 | AV71: 0 | AW71: 0 | AX71: 0 | AY71: 0 | AZ71: 0 | BA71: 0 | BB71: 0 | BC71: 0 | BD71: 0 | BE71: 0 | BF71: 0 | BG71: 0 | BH71: 0 | BI71: 0 | BJ71: 0 | BK71: 0 | BL71: 0 | BM71: 0 | BN71: 0 | BO71: 0 | BP71: 0 | BQ71: 0 | BR71: 0 | BS71: 0 | BT71: 0 | BU71: 0 | BV71: 0 | BW71: 0 | BX71: 0 | BY71: 0 | BZ71: 0 | CB71: 0 | CC71: 0 | CD71: 0 | CE71: 0 | CF71: 0 | CG71: 0 | CH71: 0 | CI71: 0 | CJ71: 0 | CK71: 0 | CM71: BUZAG+1= | CN71: =IF(OR(AnimalType="Damızlık Düve",AnimalType="Laktasyondaki İnek",AnimalType="Kurudaki İnek")=TRUE, IF(DogumSay=1,0.92, IF(DogumSay=2,0.96, 1)), 0) *MW -> 0 | CO71: Sonraki hedef buzağılama ağırlığı, kg | CQ71: Merada otluyor mu? | CR71: Otlamıyor | CU71: 08 | CV71: 0.7 | CW71: 59
Y72: 0 | Z72: 0.02040189968 | AA72: 0 | AB72: 0 | AC72: 0 | AF72: 0 | AG72: 0 | AH72: 0 | AI72: 0 | AJ72: 0 | AK72: 0 | AL72: 0 | AM72: 0 | AN72: 0 | AO72: 0 | AP72: 0 | AQ72: 0 | AR72: 0 | AS72: 0 | AT72: 0 | AU72: 0 | AV72: 0 | AW72: 0 | AX72: 0 | AY72: 0 | AZ72: 0 | BA72: 0 | BB72: 0 | BC72: 0 | BD72: 0 | BE72: 0 | BF72: 0 | BG72: 0 | BH72: 0 | BI72: 0 | BJ72: 0 | BK72: 0 | BL72: 0 | BM72: 0 | BN72: 0 | BO72: 0 | BP72: 0 | BQ72: 0 | BR72: 0 | BS72: 0 | BT72: 0 | BU72: 0 | BV72: 0 | BW72: 0 | BX72: 0 | BY72: 0 | BZ72: 0 | CB72: 0 | CC72: 0 | CD72: 0 | CE72: 0 | CF72: 0 | CG72: 0 | CH72: 0 | CI72: 0 | CJ72: 0 | CK72: 0 | CL72: Fizyolojik durumu | CM72: APADG= | CN72: =IF(AnimalType="Damızlık Düve", IF(DaysPreg>0, IF(SBW>=BUZAG, 0, IF((BUZAG-SBW) >= (GS-DaysPreg), 1, (BUZAG-SBW)/(GS-DaysPreg))), 0), IF(OR(AnimalType="Laktasyondaki İnek",AnimalType="Kurudaki İnek")=TRUE, IF(DaysPreg>0, IF(SBW>=BUZAG, 0, IF((BUZAG - SBW) >= (GS-DaysPreg), 1, (BUZAG - SBW) / (GS-DaysPreg)) ), 0 ), 0 )) -> 0 | CO72: Gebelik sonrası hedef günlük canlı ağırlık artışı, kg/gün | CQ72: Otlanan mera alanı : | CS72: hektar | CU72: 09 | CV72: 0.8 | CW72: 57
Y73: 0 | Z73: 0.02040189968 | AA73: 0 | AB73: 0 | AC73: 0 | AF73: 0 | AG73: 0 | AH73: 0 | AI73: 0 | AJ73: 0 | AK73: 0 | AL73: 0 | AM73: 0 | AN73: 0 | AO73: 0 | AP73: 0 | AQ73: 0 | AR73: 0 | AS73: 0 | AT73: 0 | AU73: 0 | AV73: 0 | AW73: 0 | AX73: 0 | AY73: 0 | AZ73: 0 | BA73: 0 | BB73: 0 | BC73: 0 | BD73: 0 | BE73: 0 | BF73: 0 | BG73: 0 | BH73: 0 | BI73: 0 | BJ73: 0 | BK73: 0 | BL73: 0 | BM73: 0 | BN73: 0 | BO73: 0 | BP73: 0 | BQ73: 0 | BR73: 0 | BS73: 0 | BT73: 0 | BU73: 0 | BV73: 0 | BW73: 0 | BX73: 0 | BY73: 0 | BZ73: 0 | CB73: 0 | CC73: 0 | CD73: 0 | CE73: 0 | CF73: 0 | CG73: 0 | CH73: 0 | CI73: 0 | CJ73: 0 | CK73: 0 | CL73: Buzağı | CM73: CI : | CN73: =IF(OR(AnimalType="Damızlık Boğa",AnimalType="Kastre Erkek",AnimalType="Buzağı",AnimalType="Besi Sığırı")=TRUE,0,360) -> 0 | CO73: Buzağılama aralığı, gün | CQ73: Merada otlanabilir ot miktarı : | CS73: ton/hektar | CU73: 10 | CV73: 0.9 | CW73: 50
Y74: 0 | Z74: 0.02040189968 | AA74: 0 | AB74: 0 | AC74: 0 | AF74: 0 | AG74: 0 | AH74: 0 | AI74: 0 | AJ74: 0 | AK74: 0 | AL74: 0 | AM74: 0 | AN74: 0 | AO74: 0 | AP74: 0 | AQ74: 0 | AR74: 0 | AS74: 0 | AT74: 0 | AU74: 0 | AV74: 0 | AW74: 0 | AX74: 0 | AY74: 0 | AZ74: 0 | BA74: 0 | BB74: 0 | BC74: 0 | BD74: 0 | BE74: 0 | BF74: 0 | BG74: 0 | BH74: 0 | BI74: 0 | BJ74: 0 | BK74: 0 | BL74: 0 | BM74: 0 | BN74: 0 | BO74: 0 | BP74: 0 | BQ74: 0 | BR74: 0 | BS74: 0 | BT74: 0 | BU74: 0 | BV74: 0 | BW74: 0 | BX74: 0 | BY74: 0 | BZ74: 0 | CB74: 0 | CC74: 0 | CD74: 0 | CE74: 0 | CF74: 0 | CG74: 0 | CH74: 0 | CI74: 0 | CJ74: 0 | CK74: 0 | CL74: 1 yaşında | CM74: ACADG= | CN74: =IF(OR(AnimalType="Damızlık Boğa",AnimalType="Kastre Erkek",AnimalType="Buzağı",AnimalType="Besi Sığırı")=TRUE, 0, (CN71-BUZAG)/CI) -> 0 | CO74: Buzağılama sonrası hedef günlük canlı ağırlık artışı, kg/gün | CQ74: Merada otlayan hayvan sayısı : | CU74: 11 | CV74: 1.1 | CW74: 50
Y75: 0 | Z75: 0.02040189968 | AA75: 0 | AB75: 0 | AC75: 0 | AF75: 0 | AG75: 0 | AH75: 0 | AI75: 0 | AJ75: 0 | AK75: 0 | AL75: 0 | AM75: 0 | AN75: 0 | AO75: 0 | AP75: 0 | AQ75: 0 | AR75: 0 | AS75: 0 | AT75: 0 | AU75: 0 | AV75: 0 | AW75: 0 | AX75: 0 | AY75: 0 | AZ75: 0 | BA75: 0 | BB75: 0 | BC75: 0 | BD75: 0 | BE75: 0 | BF75: 0 | BG75: 0 | BH75: 0 | BI75: 0 | BJ75: 0 | BK75: 0 | BL75: 0 | BM75: 0 | BN75: 0 | BO75: 0 | BP75: 0 | BQ75: 0 | BR75: 0 | BS75: 0 | BT75: 0 | BU75: 0 | BV75: 0 | BW75: 0 | BX75: 0 | BY75: 0 | BZ75: 0 | CB75: 0 | CC75: 0 | CD75: 0 | CE75: 0 | CF75: 0 | CG75: 0 | CH75: 0 | CI75: 0 | CJ75: 0 | CK75: 0 | CL75: Gebe İnek | CM75: ADGpreg= | CN75: =IF(OR(AnimalType="Damızlık Boğa",AnimalType="Kastre Erkek",AnimalType="Buzağı",AnimalType="Besi Sığırı")=TRUE, 0, IF(DaysPreg>0, CBW*(18.28*(0.02-0.0000286*DaysPreg)*EXP((0.02*DaysPreg)-(0.0000143*DaysPreg^2)))/1000, 0) ) -> 0 | CO75: Gebeler için uterusa bağlı ağırlık artışı, kg/gün (günlük artışa (SWG) ilave edilmelidir) | CQ75: Merada kalınan süre : | CS75: gün | CU75: 12 | CV75: 1.3 | CW75: 50
Y76: 0 | Z76: 0.02040189968 | AA76: 0 | AB76: 1 | AC76: 51.3296485 | AD76: 1.428571429 | AF76: 0 | AG76: 0 | AH76: 0 | AI76: 0 | AJ76: 0 | AK76: 0 | AL76: 0 | AM76: 0 | AN76: 0 | AO76: 0 | AP76: 0 | AQ76: 0 | AR76: 0 | AS76: 0 | AT76: 0 | AU76: 0 | AV76: 0 | AW76: 0 | AX76: 0 | AY76: 0 | AZ76: 0 | BA76: 0 | BB76: 0 | BC76: 0 | BD76: 0 | BE76: 0 | BF76: 0 | BG76: 0 | BH76: 0 | BI76: 0 | BJ76: 0 | BK76: 0 | BL76: 0 | BM76: 0 | BN76: 0 | BO76: 0 | BP76: 0 | BQ76: 0 | BR76: 0 | BS76: 0 | BT76: 0 | BU76: 0 | BV76: 0 | BW76: 0 | BX76: 0 | BY76: 0 | BZ76: 0 | CB76: 0 | CC76: 0 | CD76: 0 | CE76: 0 | CF76: 0 | CG76: 0 | CH76: 0 | CI76: 0 | CJ76: 0 | CK76: 0 | CL76: Gebe Olmayan İnek | CM76: Gebe düveler için büyüme ihtiyaçlarını hesaplamak için EQEBW'den fötal ve uterus dokusu ağırlıkları elde edilir | CQ76: Meranın arazi durumu :
Y77: 0 | Z77: 0.02040189968 | AA77: 0 | AB77: 1 | AC77: 51.3296485 | AD77: 1.428571429 | AF77: 0 | AG77: 0 | AH77: 0 | AI77: 0 | AJ77: 0 | AK77: 0 | AL77: 0 | AM77: 0 | AN77: 0 | AO77: 0 | AP77: 0 | AQ77: 0 | AR77: 0 | AS77: 0 | AT77: 0 | AU77: 0 | AV77: 0 | AW77: 0 | AX77: 0 | AY77: 0 | AZ77: 0 | BA77: 0 | BB77: 0 | BC77: 0 | BD77: 0 | BE77: 0 | BF77: 0 | BG77: 0 | BH77: 0 | BI77: 0 | BJ77: 0 | BK77: 0 | BL77: 0 | BM77: 0 | BN77: 0 | BO77: 0 | BP77: 0 | BQ77: 0 | BR77: 0 | BS77: 0 | BT77: 0 | BU77: 0 | BV77: 0 | BW77: 0 | BX77: 0 | BY77: 0 | BZ77: 0 | CB77: 0 | CC77: 0 | CD77: 0 | CE77: 0 | CF77: 0 | CG77: 0 | CH77: 0 | CI77: 0 | CJ77: 0 | CK77: 0 | CL77: Diğerleri | CM77: CW= | CN77: =IF(OR(AnimalType="Damızlık Boğa",AnimalType="Kastre Erkek",AnimalType="Buzağı",AnimalType="Besi Sığırı")=TRUE,0,(CBW*0.01828)*EXP((0.02*DaysPreg)-(0.0000143*DaysPreg^2))) -> 0 | CO77: Fötüs ağırlığı, kg | CQ77: Meradaki kuru madde tüketimi : | CS77: kg/gün | CU77: Table 5. Additive codes and adjustment factors
Y78: 0 | Z78: 0.02040189968 | AA78: 0 | AB78: 1 | AC78: 51.3296485 | AD78: 1.428571429 | AF78: 0 | AG78: 0 | AH78: 0 | AI78: 0 | AJ78: 0 | AK78: 0 | AL78: 0 | AM78: 0 | AN78: 0 | AO78: 0 | AP78: 0 | AQ78: 0 | AR78: 0 | AS78: 0 | AT78: 0 | AU78: 0 | AV78: 0 | AW78: 0 | AX78: 0 | AY78: 0 | AZ78: 0 | BA78: 0 | BB78: 0 | BC78: 0 | BD78: 0 | BE78: 0 | BF78: 0 | BG78: 0 | BH78: 0 | BI78: 0 | BJ78: 0 | BK78: 0 | BL78: 0 | BM78: 0 | BN78: 0 | BO78: 0 | BP78: 0 | BQ78: 0 | BR78: 0 | BS78: 0 | BT78: 0 | BU78: 0 | BV78: 0 | BW78: 0 | BX78: 0 | BY78: 0 | BZ78: 0 | CB78: 0 | CC78: 0 | CD78: 0 | CE78: 0 | CF78: 0 | CG78: 0 | CH78: 0 | CI78: 0 | CJ78: 0 | CK78: 0 | CM78: CBW= | CN78: =IF(OR(AnimalType="Damızlık Boğa",AnimalType="Kastre Erkek",AnimalType="Buzağı",AnimalType="Besi Sığırı")=TRUE,0,VLOOKUP(Breed,CQ3:CT30,4,FALSE)) -> 0 | CO78: Buzağı doğum ağırlığı, kg | CQ78: TPA, TPW ve İBY KONTROLÜ | CU78: Code | CV78: Additive | CW78: DMIreal | CX78: NEma
Y79: 0 | Z79: 0.02040189968 | AA79: 0 | AB79: 1 | AC79: 51.3296485 | AD79: 1.428571429 | AF79: 0 | AG79: 0 | AH79: 0 | AI79: 0 | AJ79: 0 | AK79: 0 | AL79: 0 | AM79: 0 | AN79: 0 | AO79: 0 | AP79: 0 | AQ79: 0 | AR79: 0 | AS79: 0 | AT79: 0 | AU79: 0 | AV79: 0 | AW79: 0 | AX79: 0 | AY79: 0 | AZ79: 0 | BA79: 0 | BB79: 0 | BC79: 0 | BD79: 0 | BE79: 0 | BF79: 0 | BG79: 0 | BH79: 0 | BI79: 0 | BJ79: 0 | BK79: 0 | BL79: 0 | BM79: 0 | BN79: 0 | BO79: 0 | BP79: 0 | BQ79: 0 | BR79: 0 | BS79: 0 | BT79: 0 | BU79: 0 | BV79: 0 | BW79: 0 | BX79: 0 | BY79: 0 | BZ79: 0 | CB79: 0 | CC79: 0 | CD79: 0 | CE79: 0 | CF79: 0 | CG79: 0 | CH79: 0 | CI79: 0 | CJ79: 0 | CK79: 0 | CM79: Laktasyon | CQ79: IBYbreed | CR79: =VLOOKUP(Breed,CQ3:DA30,11,FALSE)*30.4 -> 729.6 | CU79: Yok | CV79: No anabolic implant or ionophore | CW79: 0.94 | CX79: 1
Y80: 0 | Z80: 0.02040189968 | AA80: 0 | AB80: 1 | AC80: 51.3296485 | AD80: 1.428571429 | AF80: 0 | AG80: 0 | AH80: 0 | AI80: 0 | AJ80: 0 | AK80: 0 | AL80: 0 | AM80: 0 | AN80: 0 | AO80: 0 | AP80: 0 | AQ80: 0 | AR80: 0 | AS80: 0 | AT80: 0 | AU80: 0 | AV80: 0 | AW80: 0 | AX80: 0 | AY80: 0 | AZ80: 0 | BA80: 0 | BB80: 0 | BC80: 0 | BD80: 0 | BE80: 0 | BF80: 0 | BG80: 0 | BH80: 0 | BI80: 0 | BJ80: 0 | BK80: 0 | BL80: 0 | BM80: 0 | BN80: 0 | BO80: 0 | BP80: 0 | BQ80: 0 | BR80: 0 | BS80: 0 | BT80: 0 | BU80: 0 | BV80: 0 | BW80: 0 | BX80: 0 | BY80: 0 | BZ80: 0 | CB80: 0 | CC80: 0 | CD80: 0 | CE80: 0 | CF80: 0 | CG80: 0 | CH80: 0 | CI80: 0 | CJ80: 0 | CK80: 0 | CM80: küçükk= | CN80: =IF(AnimalType="Laktasyondaki İnek",1/LactPeak,0) -> 0 | CO80: ara oran sabiti | CQ80: TPAbreed | CR80: =CR79-GS -> 729.6 | CU80: İonofor | CV80: Ionophore only | CW80: 0.94 | CX80: 1.12
Y81: 0 | Z81: 0.02040189968 | AA81: 0 | AB81: 1 | AC81: 51.3296485 | AD81: 1.428571429 | AF81: 0 | AG81: 0 | AH81: 0 | AI81: 0 | AJ81: 0 | AK81: 0 | AL81: 0 | AM81: 0 | AN81: 0 | AO81: 0 | AP81: 0 | AQ81: 0 | AR81: 0 | AS81: 0 | AT81: 0 | AU81: 0 | AV81: 0 | AW81: 0 | AX81: 0 | AY81: 0 | AZ81: 0 | BA81: 0 | BB81: 0 | BC81: 0 | BD81: 0 | BE81: 0 | BF81: 0 | BG81: 0 | BH81: 0 | BI81: 0 | BJ81: 0 | BK81: 0 | BL81: 0 | BM81: 0 | BN81: 0 | BO81: 0 | BP81: 0 | BQ81: 0 | BR81: 0 | BS81: 0 | BT81: 0 | BU81: 0 | BV81: 0 | BW81: 0 | BX81: 0 | BY81: 0 | BZ81: 0 | CB81: 0 | CC81: 0 | CD81: 0 | CE81: 0 | CF81: 0 | CG81: 0 | CH81: 0 | CI81: 0 | CJ81: 0 | CK81: 0 | CM81: LactPeak, T = | CN81: =IF(AnimalType="Laktasyondaki İnek",8.5,0) -> 0 | CO81: Laktasyon piki, hafta, Eq. 4-15 | CU81: İmplant | CV81: Implant only | CW81: 1 | CX81: 1
Y82: 0 | Z82: 0.02040189968 | AA82: 0 | AB82: 1 | AC82: 51.3296485 | AD82: 1.428571429 | AF82: 0 | AG82: 0 | AH82: 0 | AI82: 0 | AJ82: 0 | AK82: 0 | AL82: 0 | AM82: 0 | AN82: 0 | AO82: 0 | AP82: 0 | AQ82: 0 | AR82: 0 | AS82: 0 | AT82: 0 | AU82: 0 | AV82: 0 | AW82: 0 | AX82: 0 | AY82: 0 | AZ82: 0 | BA82: 0 | BB82: 0 | BC82: 0 | BD82: 0 | BE82: 0 | BF82: 0 | BG82: 0 | BH82: 0 | BI82: 0 | BJ82: 0 | BK82: 0 | BL82: 0 | BM82: 0 | BN82: 0 | BO82: 0 | BP82: 0 | BQ82: 0 | BR82: 0 | BS82: 0 | BT82: 0 | BU82: 0 | BV82: 0 | BW82: 0 | BX82: 0 | BY82: 0 | BZ82: 0 | CB82: 0 | CC82: 0 | CD82: 0 | CE82: 0 | CF82: 0 | CG82: 0 | CH82: 0 | CI82: 0 | CJ82: 0 | CK82: 0 | CM82: küçüka= | CN82: =IF(AnimalType="Laktasyondaki İnek",1/(PKYD*küçükk*EXP(1)),0) -> 0 | CO82: ara oran sabiti | CU82: İonofor+İmplant | CV82: Ionophore + Implant | CW82: 1 | CX82: 1.12
Y83: 0 | Z83: 0.02040189968 | AA83: 0 | AB83: 1 | AC83: 51.3296485 | AD83: 1.428571429 | AF83: 0 | AG83: 0 | AH83: 0 | AI83: 0 | AJ83: 0 | AK83: 0 | AL83: 0 | AM83: 0 | AN83: 0 | AO83: 0 | AP83: 0 | AQ83: 0 | AR83: 0 | AS83: 0 | AT83: 0 | AU83: 0 | AV83: 0 | AW83: 0 | AX83: 0 | AY83: 0 | AZ83: 0 | BA83: 0 | BB83: 0 | BC83: 0 | BD83: 0 | BE83: 0 | BF83: 0 | BG83: 0 | BH83: 0 | BI83: 0 | BJ83: 0 | BK83: 0 | BL83: 0 | BM83: 0 | BN83: 0 | BO83: 0 | BP83: 0 | BQ83: 0 | BR83: 0 | BS83: 0 | BT83: 0 | BU83: 0 | BV83: 0 | BW83: 0 | BX83: 0 | BY83: 0 | BZ83: 0 | CB83: 0 | CC83: 0 | CD83: 0 | CE83: 0 | CF83: 0 | CG83: 0 | CH83: 0 | CI83: 0 | CJ83: 0 | CK83: 0 | CM83: PKYD = | CN83: =IF(AnimalType="Laktasyondaki İnek",VLOOKUP(Breed,CQ3:CU30,5,FALSE),0) -> 0 | CO83: pik süt verimi, kg/gün (Tablo 10-1)
Y84: 0 | Z84: 0.02040189968 | AA84: 0 | AB84: 1 | AC84: 51.3296485 | AD84: 1.428571429 | AF84: 0 | AG84: 0 | AH84: 0 | AI84: 0 | AJ84: 0 | AK84: 0 | AL84: 0 | AM84: 0 | AN84: 0 | AO84: 0 | AP84: 0 | AQ84: 0 | AR84: 0 | AS84: 0 | AT84: 0 | AU84: 0 | AV84: 0 | AW84: 0 | AX84: 0 | AY84: 0 | AZ84: 0 | BA84: 0 | BB84: 0 | BC84: 0 | BD84: 0 | BE84: 0 | BF84: 0 | BG84: 0 | BH84: 0 | BI84: 0 | BJ84: 0 | BK84: 0 | BL84: 0 | BM84: 0 | BN84: 0 | BO84: 0 | BP84: 0 | BQ84: 0 | BR84: 0 | BS84: 0 | BT84: 0 | BU84: 0 | BV84: 0 | BW84: 0 | BX84: 0 | BY84: 0 | BZ84: 0 | CB84: 0 | CC84: 0 | CD84: 0 | CE84: 0 | CF84: 0 | CG84: 0 | CH84: 0 | CI84: 0 | CJ84: 0 | CK84: 0 | CM84: küçükn = | CN84: =IF(AnimalType="Laktasyondaki İnek",ROUND(SonDogumTarihi/7,0),0) -> 0 | CO84: Postpartum hafta, Eq. 4-11
Y85: 0 | Z85: 0.02040189968 | AA85: 0 | AB85: 1 | AC85: 51.3296485 | AD85: 1.428571429 | AF85: 0 | AG85: 0 | AH85: 0 | AI85: 0 | AJ85: 0 | AK85: 0 | AL85: 0 | AM85: 0 | AN85: 0 | AO85: 0 | AP85: 0 | AQ85: 0 | AR85: 0 | AS85: 0 | AT85: 0 | AU85: 0 | AV85: 0 | AW85: 0 | AX85: 0 | AY85: 0 | AZ85: 0 | BA85: 0 | BB85: 0 | BC85: 0 | BD85: 0 | BE85: 0 | BF85: 0 | BG85: 0 | BH85: 0 | BI85: 0 | BJ85: 0 | BK85: 0 | BL85: 0 | BM85: 0 | BN85: 0 | BO85: 0 | BP85: 0 | BQ85: 0 | BR85: 0 | BS85: 0 | BT85: 0 | BU85: 0 | BV85: 0 | BW85: 0 | BX85: 0 | BY85: 0 | BZ85: 0 | CB85: 0 | CC85: 0 | CD85: 0 | CE85: 0 | CF85: 0 | CG85: 0 | CH85: 0 | CI85: 0 | CJ85: 0 | CK85: 0 | CL85: Geceleri Serinliyor mu? | CM85: Yn= | CN85: =IF(AnimalType="Laktasyondaki İnek",IF(Age<36,0.74*küçükn/(küçüka*EXP(küçükk*küçükn)),IF(Age<48,0.88*küçükn/(küçüka*EXP(küçükk*küçükn)),küçükn/(küçüka*EXP(küçükk*küçükn)))),0) -> 0 | CO85: mevcut laktasyon haftasındaki günlük süt verimi, kg/gün
Y86: 0 | Z86: 0.02040189968 | AA86: 0 | AB86: 1 | AC86: 51.3296485 | AD86: 1.428571429 | AF86: 0 | AG86: 0 | AH86: 0 | AI86: 0 | AJ86: 0 | AK86: 0 | AL86: 0 | AM86: 0 | AN86: 0 | AO86: 0 | AP86: 0 | AQ86: 0 | AR86: 0 | AS86: 0 | AT86: 0 | AU86: 0 | AV86: 0 | AW86: 0 | AX86: 0 | AY86: 0 | AZ86: 0 | BA86: 0 | BB86: 0 | BC86: 0 | BD86: 0 | BE86: 0 | BF86: 0 | BG86: 0 | BH86: 0 | BI86: 0 | BJ86: 0 | BK86: 0 | BL86: 0 | BM86: 0 | BN86: 0 | BO86: 0 | BP86: 0 | BQ86: 0 | BR86: 0 | BS86: 0 | BT86: 0 | BU86: 0 | BV86: 0 | BW86: 0 | BX86: 0 | BY86: 0 | BZ86: 0 | CB86: 0 | CC86: 0 | CD86: 0 | CE86: 0 | CF86: 0 | CG86: 0 | CH86: 0 | CI86: 0 | CJ86: 0 | CK86: 0 | CL86: Evet | CM86: TotalY= | CN86: =IF(AnimalType="Laktasyondaki İnek",IF(Age<36,0.74*(-7/(küçüka*küçükk)*((büyükD*EXP(-küçükk*büyükD))+((1/küçükk)*EXP(-küçükk*büyükD))-(1/küçükk))),IF(Age<48,0.88*(-7/(küçüka*küçükk)*((büyükD*EXP(-küçükk*büyükD))+((1/küçükk)*EXP(-küçükk*büyükD))-(1/küçükk))),(-7/(küçüka*küçükk)*((büyükD*EXP(-küçükk*büyükD))+((1/küçükk)*EXP(-küçükk*büyükD))-(1/küçükk))))),0) -> 0 | CO86: Laktasyon toplam süt verimi, kg
Y87: 0 | Z87: 0.02040189968 | AA87: 0 | AB87: 1 | AC87: 51.3296485 | AD87: 1.428571429 | AF87: 0 | AG87: 0 | AH87: 0 | AI87: 0 | AJ87: 0 | AK87: 0 | AL87: 0 | AM87: 0 | AN87: 0 | AO87: 0 | AP87: 0 | AQ87: 0 | AR87: 0 | AS87: 0 | AT87: 0 | AU87: 0 | AV87: 0 | AW87: 0 | AX87: 0 | AY87: 0 | AZ87: 0 | BA87: 0 | BB87: 0 | BC87: 0 | BD87: 0 | BE87: 0 | BF87: 0 | BG87: 0 | BH87: 0 | BI87: 0 | BJ87: 0 | BK87: 0 | BL87: 0 | BM87: 0 | BN87: 0 | BO87: 0 | BP87: 0 | BQ87: 0 | BR87: 0 | BS87: 0 | BT87: 0 | BU87: 0 | BV87: 0 | BW87: 0 | BX87: 0 | BY87: 0 | BZ87: 0 | CB87: 0 | CC87: 0 | CD87: 0 | CE87: 0 | CF87: 0 | CG87: 0 | CH87: 0 | CI87: 0 | CJ87: 0 | CK87: 0 | CL87: Hayır | CM87: büyükD = | CN87: =IF(AnimalType="Laktasyondaki İnek",30,0) -> 0 | CO87: Laktasyon süresi, hafta | CQ87: MİNERAL VE VİTAMİN İHTİYAÇLARI
Y88: 0 | Z88: 0.02040189968 | AA88: 0 | AB88: 1 | AC88: 51.3296485 | AD88: 1.428571429 | AF88: 0 | AG88: 0 | AH88: 0 | AI88: 0 | AJ88: 0 | AK88: 0 | AL88: 0 | AM88: 0 | AN88: 0 | AO88: 0 | AP88: 0 | AQ88: 0 | AR88: 0 | AS88: 0 | AT88: 0 | AU88: 0 | AV88: 0 | AW88: 0 | AX88: 0 | AY88: 0 | AZ88: 0 | BA88: 0 | BB88: 0 | BC88: 0 | BD88: 0 | BE88: 0 | BF88: 0 | BG88: 0 | BH88: 0 | BI88: 0 | BJ88: 0 | BK88: 0 | BL88: 0 | BM88: 0 | BN88: 0 | BO88: 0 | BP88: 0 | BQ88: 0 | BR88: 0 | BS88: 0 | BT88: 0 | BU88: 0 | BV88: 0 | BW88: 0 | BX88: 0 | BY88: 0 | BZ88: 0 | CB88: 0 | CC88: 0 | CD88: 0 | CE88: 0 | CF88: 0 | CG88: 0 | CH88: 0 | CI88: 0 | CJ88: 0 | CK88: 0 | CM88: EMilk = | CN88: =IF(AnimalType="Laktasyondaki İnek",0.092*MilkFat+0.049*SNF-0.0569,0) -> 0 | CO88: Sütün enerji içeriği, Mcal (NEm)/kg | CQ88: Min-Vit | CR88: Maint | CS88: Growth | CT88: Lact | CU88: Preg | CV88: Total | CW88: Max | CX88: Tablo 10-3. Diğer mineral ihtiyaçları, maksimum tolerans konsantrasyonları ve vitamin ihtiyaçları
Y89: 0 | Z89: 0.02040189968 | AA89: 0 | AB89: 1 | AC89: 51.3296485 | AD89: 1.428571429 | AF89: 0 | AG89: 0 | AH89: 0 | AI89: 0 | AJ89: 0 | AK89: 0 | AL89: 0 | AM89: 0 | AN89: 0 | AO89: 0 | AP89: 0 | AQ89: 0 | AR89: 0 | AS89: 0 | AT89: 0 | AU89: 0 | AV89: 0 | AW89: 0 | AX89: 0 | AY89: 0 | AZ89: 0 | BA89: 0 | BB89: 0 | BC89: 0 | BD89: 0 | BE89: 0 | BF89: 0 | BG89: 0 | BH89: 0 | BI89: 0 | BJ89: 0 | BK89: 0 | BL89: 0 | BM89: 0 | BN89: 0 | BO89: 0 | BP89: 0 | BQ89: 0 | BR89: 0 | BS89: 0 | BT89: 0 | BU89: 0 | BV89: 0 | BW89: 0 | BX89: 0 | BY89: 0 | BZ89: 0 | CB89: 0 | CC89: 0 | CD89: 0 | CE89: 0 | CF89: 0 | CG89: 0 | CH89: 0 | CI89: 0 | CJ89: 0 | CK89: 0 | CL89: Zemindeki çamur miktarı | CM89: MilkFat = | CN89: =IF(AnimalType="Laktasyondaki İnek",VLOOKUP(Breed,CQ3:CZ30,10,FALSE),0) -> 0 | CO89: Sütteki yağ oranı, % | CQ89: Ca, g | CR89: =0.0154*SBW/0.5 -> 8.8704 | CS89: =NPg*(0.071/0.5) -> 30.66560096 | CT89: =Yn*1.23/0.5 -> 0 | CU89: =CBW*(13.7/90)/0.5 -> 0 | CV89: =SUM(CR89:CU89) -> 39.53600096 | CW89: =DMIreal*0.2*1000 -> 1650.072518 | CZ89: Büyüme, Besi | DA89: İnekler | DC89: Maksimum
Y90: 0 | Z90: 0.02040189968 | AA90: 0 | AB90: 1 | AC90: 51.3296485 | AD90: 1.428571429 | AF90: 0 | AG90: 0 | AH90: 0 | AI90: 0 | AJ90: 0 | AK90: 0 | AL90: 0 | AM90: 0 | AN90: 0 | AO90: 0 | AP90: 0 | AQ90: 0 | AR90: 0 | AS90: 0 | AT90: 0 | AU90: 0 | AV90: 0 | AW90: 0 | AX90: 0 | AY90: 0 | AZ90: 0 | BA90: 0 | BB90: 0 | BC90: 0 | BD90: 0 | BE90: 0 | BF90: 0 | BG90: 0 | BH90: 0 | BI90: 0 | BJ90: 0 | BK90: 0 | BL90: 0 | BM90: 0 | BN90: 0 | BO90: 0 | BP90: 0 | BQ90: 0 | BR90: 0 | BS90: 0 | BT90: 0 | BU90: 0 | BV90: 0 | BW90: 0 | BX90: 0 | BY90: 0 | BZ90: 0 | CB90: 0 | CC90: 0 | CD90: 0 | CE90: 0 | CF90: 0 | CG90: 0 | CH90: 0 | CI90: 0 | CJ90: 0 | CK90: 0 | CL90: Yok | CM90: MilkProtein = | CN90: =IF(AnimalType="Laktasyondaki İnek",3.38,0) -> 0 | CO90: Sütteki protein oranı, % | CQ90: P, g | CR90: =0.016*SBW/0.68 -> 6.776470588 | CS90: =NPg*0.045/0.68 -> 14.29113549 | CT90: =Yn*0.95/0.68 -> 0 | CU90: =CBW*(7.6/90)/0.68 -> 0 | CV90: =SUM(CR90:CU90) -> 21.06760608 | CW90: =DMIreal*0.1*1000 -> 825.036259 | CX90: Mineral/vitamin | CY90: Birim | CZ90: Damızlık boğa | DA90: Gebelik | DB90: Laktasyon başı | DC90: tolerans
Y91: 0 | Z91: 0.02040189968 | AA91: 0 | AB91: 1 | AC91: 51.3296485 | AD91: 1.428571429 | AF91: 0 | AG91: 0 | AH91: 0 | AI91: 0 | AJ91: 0 | AK91: 0 | AL91: 0 | AM91: 0 | AN91: 0 | AO91: 0 | AP91: 0 | AQ91: 0 | AR91: 0 | AS91: 0 | AT91: 0 | AU91: 0 | AV91: 0 | AW91: 0 | AX91: 0 | AY91: 0 | AZ91: 0 | BA91: 0 | BB91: 0 | BC91: 0 | BD91: 0 | BE91: 0 | BF91: 0 | BG91: 0 | BH91: 0 | BI91: 0 | BJ91: 0 | BK91: 0 | BL91: 0 | BM91: 0 | BN91: 0 | BO91: 0 | BP91: 0 | BQ91: 0 | BR91: 0 | BS91: 0 | BT91: 0 | BU91: 0 | BV91: 0 | BW91: 0 | BX91: 0 | BY91: 0 | BZ91: 0 | CB91: 0 | CC91: 0 | CD91: 0 | CE91: 0 | CF91: 0 | CG91: 0 | CH91: 0 | CI91: 0 | CJ91: 0 | CK91: 0 | CL91: Hafif (10-20 cm) | CM91: SNF = | CN91: =IF(AnimalType="Laktasyondaki İnek",8.31,0) -> 0 | CO91: Sütte yağsız katı maddeler, % | CQ91: Mg, g | CS91: =IF(AND(CT91=0,CU91=0)=TRUE,CZ91*10*DMIreal,0) -> 8.25036259 | CT91: =IF(AnimalType="Laktasyondaki İnek",IF(SonDogumTarihi<90,DB91*10*DMIreal,0),0) -> 0 | CU91: =IF(OR(AnimalType="Damızlık Düve",AnimalType="Kurudaki İnek",AnimalType="Laktasyondaki İnek")=TRUE,IF(DaysPreg>190,DA91*10*DMIreal,0),0) -> 0 | CV91: =SUM(CS91:CU91) -> 8.25036259 | CW91: =DMIreal*DC91*10 -> 33.00145036 | CX91: Mg | CY91: % | CZ91: 0.1 | DA91: 0.12 | DB91: 0.2 | DC91: 0.4
Y92: 0 | Z92: 0.02040189968 | AA92: 0 | AB92: 1 | AC92: 51.3296485 | AD92: 1.428571429 | AF92: 0 | AG92: 0 | AH92: 0 | AI92: 0 | AJ92: 0 | AK92: 0 | AL92: 0 | AM92: 0 | AN92: 0 | AO92: 0 | AP92: 0 | AQ92: 0 | AR92: 0 | AS92: 0 | AT92: 0 | AU92: 0 | AV92: 0 | AW92: 0 | AX92: 0 | AY92: 0 | AZ92: 0 | BA92: 0 | BB92: 0 | BC92: 0 | BD92: 0 | BE92: 0 | BF92: 0 | BG92: 0 | BH92: 0 | BI92: 0 | BJ92: 0 | BK92: 0 | BL92: 0 | BM92: 0 | BN92: 0 | BO92: 0 | BP92: 0 | BQ92: 0 | BR92: 0 | BS92: 0 | BT92: 0 | BU92: 0 | BV92: 0 | BW92: 0 | BX92: 0 | BY92: 0 | BZ92: 0 | CB92: REAA | CC92: REAA | CD92: REAA | CE92: REAA | CF92: REAA | CG92: REAA | CH92: REAA | CI92: REAA | CJ92: REAA | CK92: REAA | CL92: Çok (30-60 cm) | CM92: YEn= | CN92: =IF(AnimalType="Laktasyondaki İnek",EMilk*Yn,0) -> 0 | CO92: Mevcut laktasyon döneminde sütle günlük enerji salınımı, Mcal(NEm)/gün | CQ92: K, g | CS92: =IF(AND(CT92=0,CU92=0)=TRUE,CZ92*10*DMIreal,0) -> 49.50217554 | CT92: =IF(AnimalType="Laktasyondaki İnek",IF(SonDogumTarihi<90,DB92*10*DMIreal,0),0) -> 0 | CU92: =IF(OR(AnimalType="Damızlık Düve",AnimalType="Kurudaki İnek",AnimalType="Laktasyondaki İnek")=TRUE,IF(DaysPreg>190,DA92*10*DMIreal,0),0) -> 0 | CV92: =SUM(CS92:CU92) -> 49.50217554 | CW92: =DMIreal*DC92*10 -> 247.5108777 | CX92: K | CY92: % | CZ92: 0.6 | DA92: 0.6 | DB92: 0.7 | DC92: 3
CB93: =SUM(CB95:CB121) -> 8.611521553 | CC93: =SUM(CC95:CC121) -> 20.43208112 | CD93: 19.76431351 | CE93: 21.22732951 | CF93: 57.14589535 | CG93: 21.64015691 | CH93: 27.55843385 | CI93: 12.65210738 | CJ93: 25.89028155 | CK93: 9.51457325 | CM93: YFatn= | CN93: =IF(AnimalType="Laktasyondaki İnek",MilkFat/100*Yn,0) -> 0 | CO93: Mevcut laktasyon döneminde günlük süt yağı verimi, kg/gün | CQ93: Na, g | CS93: =IF(AND(CT93=0,CU93=0)=TRUE,CZ93*10*DMIreal,0) -> 5.775253813 | CT93: =IF(AnimalType="Laktasyondaki İnek",IF(SonDogumTarihi<90,DB93*10*DMIreal,0),0) -> 0 | CU93: =IF(OR(AnimalType="Damızlık Düve",AnimalType="Kurudaki İnek",AnimalType="Laktasyondaki İnek")=TRUE,IF(DaysPreg>190,DA93*10*DMIreal,0),0) -> 0 | CV93: =SUM(CS93:CU93) -> 5.775253813 | CX93: Na | CY93: % | CZ93: 0.07 | DA93: 0.07 | DB93: 0.1
Y94: =SUM(Y96:Y122) -> 2812.662884 | Z94: =SUM(Z96:Z122) -> 264.3227786 | AA94: 251.1066397 | AB94: 28.72168272 | AC94: 279.8283224 | AD94: 12.00569084 | AE94: 125.4023761 | AF94: 137.4080669 | AG94: 763.2052012 | AH94: 1510.015101 | AI94: 894.6292285 | AJ94: 3167.84953 | AK94: 217.5560031 | AL94: =SUM(AL96:AL122) -> 13.21613893 | AM94: 39.36634145 | AN94: 39.36634145 | AO94: 2.645418146 | AP94: 1.511667512 | AQ94: 5.542780876 | AR94: =SUM(AR96:AR122) -> 49.06620799 | AS94: 378.5036596 | AT94: 99.64566337 | AU94: 142.3509477 | AV94: 555.278068 | AW94: 3170.494948 | AX94: 114.3734698 | AY94: 365.4497317 | AZ94: 4205.596218 | BA94: 4280.7633 | BB94: 15.47658602 | BC94: 4.726079591 | BD94: -39.74127692 | BE94: -25.24808911 | BF94: 474.6367622 | BG94: 4.726079591 | BI94: =SUM(BI96:BI122) -> 7034.97485 | BK94: =SUM(BK96:BK122) -> 894.6292285 | BM94: =SUM(BM96:BM122) -> 2004.492254 | BO94: =SUM(BO96:BO122) -> 3782.601031 | BQ94: =SUM(BQ96:BQ122) -> 353.2523368 | BS94: =SUM(BS96:BS122) -> 68.17708243 | BU94: =SUM(BU96:BU122) -> 20.6014363 | BW94: =SUM(BW96:BW122) -> 125.4023761 | BY94: =SUM(BY96:BY122) -> 60.14018566 | CA94: =SUM(CA96:CA122) -> 359.8544415 | CB94: MET, g | CC94: LİZ, g | CD94: ARJ, g | CE94: TRE, g | CF94: LÖY, g | CG94: İZOLÖY, g | CH94: VAL, g | CI94: HIS, g | CJ94: FENAL, g | CK94: TRİP, g | CL94: Kirlilik | CM94: YProtn= | CN94: =IF(AnimalType="Laktasyondaki İnek",MilkProtein/100*Yn,0) -> 0 | CO94: Mevcut laktasyon döneminde günlük süt proteini verimi, kg/gün | CQ94: S, g | CS94: =IF(AND(CT94=0,CU94=0)=TRUE,CZ94*10*DMIreal,0) -> 12.37554389 | CT94: =IF(AnimalType="Laktasyondaki İnek",IF(SonDogumTarihi<90,DB94*10*DMIreal,0),0) -> 0 | CU94: =IF(OR(AnimalType="Damızlık Düve",AnimalType="Kurudaki İnek",AnimalType="Laktasyondaki İnek")=TRUE,IF(DaysPreg>190,DA94*10*DMIreal,0),0) -> 0 | CV94: =SUM(CS94:CU94) -> 12.37554389 | CW94: =DMIreal*DC94*10 -> 33.00145036 | CX94: S | CY94: % | CZ94: 0.15 | DA94: 0.15 | DB94: 0.15 | DC94: 0.4
Y95: DIGCj | Z95: REFATj | AA95: DIGFFj | AB95: DIGBFj | AC95: DIGFj | AD95: FEPB3j | AE95: FEPCj | AF95: FEFPj | AG95: FECB1j | AH95: FECB2j | AI95: FECCj | AJ95: FEFCj | AK95: FEFAj | AL95: FEFFj | AM95: FEBCWj | AN95: FEBCPj | AO95: FEBCj | AP95: FEBFj | AQ95: FEBASHj | AR95: FEBACTj | AS95: FEENGPj | AT95: FEENGFj | AU95: FEENGAj | AV95: FEPROTj | AW95: FECHOj | AX95: FEFATj | AY95: FEASHj | AZ95: FEDMj | BA95: TDNAPPj | BB95: MEaj | BC95: MECj | BD95: NEgaj | BE95: NEmaj | BF95: MPaj | BG95: REBAAj | BH95: CHO,% | BI95: CHO,g | BJ95: CC,% | BK95: CC,g | BL95: CB2j, % | BM95: CB2j, g | BN95: CB1j,% | BO95: CB1j,g | BP95: CAj, % | BQ95: CAj, g | BR95: PAj, % | BS95: PAj, g | BT95: PB1j, % | BU95: PB1j, g | BV95: PCj, % | BW95: PCj, g | BX95: PB3j, % | BY95: PB3j, g | BZ95: PB2j, % | CA95: PB2j, g | CB95: =IF(ISERROR(CB5+CB65)=TRUE,0,CB5+CB65) -> 0 | CC95: 0 | CD95: 0 | CE95: 0 | CF95: 0 | CG95: 0 | CH95: 0 | CI95: 0 | CJ95: 0 | CK95: 0 | CL95: Kuru | CM95: TotalE= | CN95: =IF(AnimalType="Laktasyondaki İnek",EMilk*TotalY,0) -> 0 | CO95: Laktasyonda toplam enerji verimi, Mcal | CQ95: Co, mg | CS95: =IF(AND(CT95=0,CU95=0)=TRUE,CZ95*DMIreal,0) -> 0.825036259 | CT95: =IF(AnimalType="Laktasyondaki İnek",IF(SonDogumTarihi<90,DB95*DMIreal,0),0) -> 0 | CU95: =IF(OR(AnimalType="Damızlık Düve",AnimalType="Kurudaki İnek",AnimalType="Laktasyondaki İnek")=TRUE,IF(DaysPreg>190,DA95*DMIreal,0),0) -> 0 | CV95: =SUM(CS95:CU95) -> 0.825036259 | CW95: =DMIreal*DC95 -> 82.5036259 | CX95: Co | CY95: mg/kg | CZ95: 0.1 | DA95: 0.1 | DB95: 0.1 | DC95: 10
Y96: =IF(ISERROR(BY66+BZ66)=TRUE,0,BY66+BZ66) -> 0 | Z96: =IF(ISERROR(AQ5*Z36*10)=TRUE,0,AQ5*Z36*10) -> 0 | AA96: =IF(ISERROR(0.95*Z96)=TRUE,0,0.95*Z96) -> 0 | AB96: =IF(ISERROR(0.95*BP66)=TRUE,0,0.95*BP66) -> 0 | AC96: =IF(ISERROR(AA96+AB96)=TRUE,0,AA96+AB96) -> 0 | AD96: =IF(ISERROR((1-0.8)*AM66)=TRUE,0,(1-0.8)*AM66) -> 0 | AE96: =AN66 -> 0 | AF96: =IF(ISERROR(AD96+AE96)=TRUE,0,AD96+AE96) -> 0 | AG96: =IF(ISERROR((1-stdig)*AS66)=TRUE,0,(1-stdig)*AS66) -> 0 | AH96: =IF(ISERROR((1-0.2)*AT66)=TRUE,0,(1-0.2)*AT66) -> 0 | AI96: =AU66 -> 0 | AJ96: =IF(ISERROR(AG96+AH96+AI96)=TRUE,0,AG96+AH96+AI96) -> 0 | AK96: =IF(ISERROR(AR5*10*Z36*(1-0.5))=TRUE,0,AR5*10*Z36*(1-0.5)) -> 0 | AL96: =IF(ISERROR(Z96*(1-0.95))=TRUE,0,Z96*(1-0.95)) -> 0 | AM96: =BM66 -> 0 | AN96: =AM96 -> 0 | AO96: =IF(ISERROR(BO66*(1-0.95))=TRUE,0,BO66*(1-0.95)) -> 0 | AP96: =IF(ISERROR(BP66*(1-0.95))=TRUE,0,BP66*(1-0.95)) -> 0 | AQ96: =IF(ISERROR(BQ66*(1-0.5))=TRUE,0,BQ66*(1-0.5)) -> 0 | AR96: =IF(ISERROR(AN96+AO96+AP96+AQ96)=TRUE,0,AN96+AO96+AP96+AQ96) -> 0 | AS96: =IF(ISERROR(0.09*AZ96)=TRUE,0,0.09*AZ96) -> 0 | AT96: =IF(ISERROR(0.0119*Z36*1000)=TRUE,0,0.0119*Z36*1000) -> 0 | AU96: =IF(ISERROR(0.017*Z36*1000)=TRUE,0,0.017*Z36*1000) -> 0 | AV96: =IF(ISERROR(AF96+AN96+AS96)=TRUE,0,AF96+AN96+AS96) -> 0 | AW96: =IF(ISERROR(AJ96+AO96)=TRUE,0,AJ96+AO96) -> 0 | AX96: =IF(ISERROR(AP96+AL96+AT96)=TRUE,0,AP96+AL96+AT96) -> 0 | AY96: =IF(ISERROR(AK96+AQ96+AU96)=TRUE,0,AK96+AQ96+AU96) -> 0 | AZ96: =IF(ISERROR((AF96+AN96+AW96+AX96+AY96)/0.91)=TRUE,0,(AF96+AN96+AW96+AX96+AY96)/0.91) -> 0 | BA96: =IF(ISERROR((AI36-AV96)+(BI96-AW96)+(2.25*(AQ36-AX96)))=TRUE,0,(AI36-AV96)+(BI96-AW96)+(2.25*(AQ36-AX96))) -> 0 | BB96: =IF(ISERROR(0.001*BA96*4.409*0.82)=TRUE,0,0.001*BA96*4.409*0.82) -> 0 | BC96: =IF(ISERROR(BB96/Z36)=TRUE,0,BB96/Z36) -> 0 | BD96: =IF(ISERROR((1.42*BC96-0.174*BC96^2+0.0122*BC96^3-1.65))=TRUE,0,(1.42*BC96-0.174*BC96^2+0.0122*BC96^3-1.65)) -> -1.65 | BE96: =IF(ISERROR((1.37*BC96-0.138*BC96^2+0.0105*BC96^3-1.12))=TRUE,0,(1.37*BC96-0.138*BC96^2+0.0105*BC96^3-1.12)) -> -1.12 | BF96: =IF(ISERROR(BX66-BW66)=TRUE,0,BX66-BW66) -> 0 | BG96: =IF(B5=0,0,IF(C5<=0,0,BC96)) -> 0 | BH96: =IF(ISERROR(IF(A5=7,0,100-AI5-AQ5-AR5))=TRUE,0,IF(A5=7,0,100-AI5-AQ5-AR5)) -> 100 | BI96: =IF(B5=0,0,IF(C5<=0,0,Z36*BH96*10)) -> 0 | BJ96: =IF(ISERROR(AA5*0.01*AB5*2.4)=TRUE,0,AA5*0.01*AB5*2.4) -> 0 | BK96: =IF(B5=0,0,IF(C5<=0,0,Z36*BJ96*10)) -> 0 | BL96: =IF(ISERROR(AA5-(AN5*0.01*AI5)-BJ96)=TRUE,0,AA5-(AN5*0.01*AI5)-BJ96) -> 0 | BM96: =IF(ISERROR(BL96*Z36*10)=TRUE,0,BL96*Z36*10) -> 0 | BN96: =IF(ISERROR(AP5*AT36/100)=TRUE,0,AP5*AT36/100) -> 0 | BO96: =IF(ISERROR(BN96*Z36*10)=TRUE,0,BN96*Z36*10) -> 0 | BP96: =IF(ISERROR(AT36-BN96)=TRUE,0,AT36-BN96) -> 100 | BQ96: =IF(ISERROR(BP96*Z36*10)=TRUE,0,BP96*Z36*10) -> 0 | BR96: =IF(ISERROR(AM5*0.0001*AL5*AI5)=TRUE,0,AM5*0.0001*AL5*AI5) -> 0 | BS96: =IF(ISERROR(BR96*Z36*10)=TRUE,0,BR96*Z36*10) -> 0 | BT96: =IF(ISERROR(AL5*AI5*0.01-BR96)=TRUE,0,AL5*AI5*0.01-BR96) -> 0 | BU96: =IF(ISERROR(BT96*Z36*10)=TRUE,0,BT96*Z36*10) -> 0 | BV96: =IF(ISERROR(AO5*AI5*0.01)=TRUE,0,AO5*AI5*0.01) -> 0 | BW96: =IF(ISERROR(BV96*Z36*10)=TRUE,0,BV96*Z36*10) -> 0 | BX96: =IF(ISERROR((AN5-AO5)*AI5*0.01)=TRUE,0,(AN5-AO5)*AI5*0.01) -> 0 | BY96: =IF(ISERROR(BX96*Z36*10)=TRUE,0,BX96*Z36*10) -> 0 | BZ96: =IF(ISERROR(AI5-BR96-BT96-BX96-BV96)=TRUE,0,AI5-BR96-BT96-BX96-BV96) -> 0 | CA96: =IF(ISERROR(BZ96*Z36*10)=TRUE,0,BZ96*Z36*10) -> 0 | CB96: =IF(ISERROR(CB6+CB66)=TRUE,0,CB6+CB66) -> 1.296519576 | CC96: 4.84158792 | CD96: 4.590542543 | CE96: 4.38953733 | CF96: 8.066516174 | CG96: 4.463225165 | CH96: 5.774933639 | CI96: 1.671913195 | CJ96: 5.212892322 | CK96: 5.869328021 | CL96: Hayvanın aşağı kısımları biraz çamurlu | CM96: TotalFat= | CN96: =IF(AnimalType="Laktasyondaki İnek",MilkFat/100*TotalY,0) -> 0 | CO96: Laktasyonda toplam yağ verimi, kg | CQ96: Cu, mg | CS96: 82.5036259 | CT96: 0 | CU96: 0 | CV96: =SUM(CS96:CU96) -> 82.5036259 | CW96: 825.036259 | CX96: Cu | CY96: mg/kg | CZ96: 10 | DA96: 10 | DB96: 10 | DC96: 100
Y97: 594.2052101 | Z97: 67.431 | AA97: 64.05945 | AB97: 3.851192329 | AC97: 67.91064233 | AD97: 3.117575639 | AE97: =AN67 -> 101.5014 | AF97: 104.6189756 | AG97: 94.69603441 | AH97: 1213.510081 | AI97: =AU67 -> 849.09825 | AJ97: 2157.304366 | AK97: 133.0875 | AL97: 3.37155 | AM97: =BM67 -> 5.278498258 | AN97: =AM97 -> 5.278498258 | AO97: 0.354715083 | AP97: 0.2026943331 | AQ97: 0.7432125548 | AR97: 6.579120229 | AS97: 247.9972363 | AT97: 42.2331 | AU97: 60.333 | AV97: 357.8947102 | AW97: 2157.659081 | AX97: 45.80734433 | AY97: 194.1637126 | AZ97: 2755.524848 | BA97: 748.4934343 | BB97: 2.706088193 | BC97: 0.7624931509 | BD97: -0.6630142099 | BE97: -0.150962246 | BF97: 31.97816791 | BG97: =IF(B6=0,0,IF(C6=0,0,BC97)) -> 0.7624931509 | BH97: 86.2 | BI97: 3059.238 | BJ97: 23.925 | BK97: 849.09825 | BL97: 45.275 | BM97: 1606.80975 | BN97: 17 | BO97: 603.33 | BP97: 0 | BQ97: 0 | BR97: 0.836 | BS97: 29.66964 | BT97: 0.044 | BU97: 1.56156 | BV97: 2.86 | BW97: 101.5014 | BX97: 0.44 | BY97: 15.6156 | BZ97: 0.22 | CA97: 7.8078 | CB97: =IF(ISERROR(CB7+CB67)=TRUE,0,CB7+CB67) -> 0.6851941193 | CC97: 2.214262467 | CD97: 2.58468707 | CE97: 1.841225523 | CF97: 3.416829421 | CG97: 2.165663555 | CH97: 2.552948908 | CI97: 1.153769235 | CJ97: 2.659913884 | CK97: 0.6830424362 | CL97: Üzeri ıslak ve keçeleşmiş | CM97: Total Prot= | CN97: =IF(AnimalType="Laktasyondaki İnek",MilkProtein/100*TotalY,0) -> 0 | CO97: Laktasyonda toplam protein verimi, kg | CQ97: I, mg | CS97: 4.125181295 | CT97: 0 | CU97: 0 | CV97: 4.125181295 | CW97: 412.5181295 | CX97: I | CY97: mg/kg | CZ97: 0.5 | DA97: 0.5 | DB97: 0.5 | DC97: 50
Y98: 99.2611923 | Z98: 7.69177861 | AA98: 7.30718968 | AB98: 3.407505706 | AC98: 10.71469539 | AD98: 0.2792087237 | AE98: 2.340976099 | AF98: 2.620184822 | AG98: 26.07129581 | AH98: 49.02180448 | AI98: 23.25993852 | AJ98: 98.3530388 | AK98: 6.688503139 | AL98: 0.3845889305 | AM98: 4.670375145 | AN98: 4.670375145 | AO98: 0.3138492098 | AP98: 0.1793424056 | AQ98: 0.6575888204 | AR98: 5.821155581 | AS98: 12.21748599 | AT98: 3.979659368 | AU98: 5.685227668 | AV98: 19.50804595 | AW98: 98.66688801 | AX98: 4.543590704 | AY98: 13.03131963 | AZ98: 135.7498443 | BA98: 202.2648609 | BB98: 0.7312643328 | BC98: 2.186630753 | BD98: 0.7506117454 | BE98: 1.325635359 | BF98: 42.25619534 | BG98: 2.186630753 | BH98: 79.7 | BI98: 266.5368501 | BJ98: 6.9552 | BK98: 23.25993852 | BL98: 19.9248 | BM98: 66.63354367 | BN98: 47.538 | BO98: 158.9790311 | BP98: 5.282 | BQ98: 17.66433679 | BR98: 0.6902 | BS98: 2.308202433 | BT98: 1.6898 | BU98: 5.651116302 | BV98: 0.7 | BW98: 2.340976099 | BX98: 0.42 | BY98: 1.404585659 | BZ98: 10.5 | CA98: 35.11464148 | CB98: =IF(ISERROR(CB8+CB68)=TRUE,0,CB8+CB68) -> 6.629807858 | CC98: 13.37623073 | CD98: 12.5890839 | CE98: 14.99656666 | CF98: 45.66254976 | CG98: 15.01126819 | CH98: 19.2305513 | CI98: 9.826424953 | CJ98: 18.01747535 | CK98: 2.962202793 | CL98: Islak ve kar veya çamurla kaplı | CM98: MPlact= | CN98: =IF(AnimalType="Laktasyondaki İnek",(YProtn/0.65)*1000,0) -> 0 | CO98: Süt verimi için MP ihtiyacı, g/gün | CQ98: Fe, mg | CS98: 412.5181295 | CT98: 0 | CU98: 0 | CV98: 412.5181295 | CW98: 8250.36259 | CX98: Fe | CY98: mg/kg | CZ98: 50 | DA98: 50 | DB98: 50 | DC98: 1000
Y99: 2119.196481 | Z99: 189.2 | AA99: 179.74 | AB99: 21.46298469 | AC99: 201.2029847 | AD99: 8.608906474 | AE99: 21.56 | AF99: 30.16890647 | AG99: 642.437871 | AH99: 247.4832149 | AI99: 22.27104 | AJ99: 912.1921259 | AK99: 35.2 | AL99: 9.46 | AM99: 29.41746805 | AN99: 29.41746805 | AO99: 1.976853853 | AP99: 1.129630773 | AQ99: 4.141979501 | AR99: 36.66593218 | AS99: 113.8200295 | AT99: 52.36 | AU99: 74.8 | AV99: 173.406404 | AW99: 914.1689797 | AX99: 62.94963077 | AY99: 114.1419795 | AZ99: 1264.666994 | BA99: 3336.887947 | BB99: 12.06411795 | BC99: 2.741844988 | BD99: 1.186809014 | BE99: 1.815313376 | BF99: 400.402399 | BG99: 2.741844988 | BH99: 84.3 | BI99: 3709.2 | BJ99: 0.50616 | BK99: 22.27104 | BL99: 7.52384 | BM99: 331.04896 | BN99: 68.643 | BO99: 3020.292 | BP99: 7.627 | BQ99: 335.588 | BR99: 0.82271 | BS99: 36.19924 | BT99: 0.30429 | BU99: 13.38876 | BV99: 0.49 | BW99: 21.56 | BX99: 0.98 | BY99: 43.12 | BZ99: 7.203 | CA99: 316.932 | CB99: =IF(ISERROR(CB9+CB69)=TRUE,0,CB9+CB69) -> 0 | CC99: 0 | CD99: 0 | CE99: 0 | CF99: 0 | CG99: 0 | CH99: 0 | CI99: 0 | CJ99: 0 | CK99: 0 | CM99: Gebelik | CQ99: Mn, mg | CS99: 165.0072518 | CT99: 0 | CU99: 0 | CV99: 165.0072518 | CW99: 8250.36259 | CX99: Mn | CY99: mg/kg | CZ99: 20 | DA99: 40 | DB99: 40 | DC99: 1000
Y100: 0 | Z100: 0 | AA100: 0 | AB100: 0 | AC100: 0 | AD100: 0 | AE100: 0 | AF100: 0 | AG100: 0 | AH100: 0 | AI100: 0 | AJ100: 0 | AK100: 0 | AL100: 0 | AM100: 0 | AN100: 0 | AO100: 0 | AP100: 0 | AQ100: 0 | AR100: 0 | AS100: 0 | AT100: 0 | AU100: 0 | AV100: 0 | AW100: 0 | AX100: 0 | AY100: 0 | AZ100: 0 | BA100: 0 | BB100: 0 | BC100: 0 | BD100: -1.65 | BE100: -1.12 | BF100: 0 | BG100: 0 | BH100: 100 | BI100: 0 | BJ100: 0 | BK100: 0 | BL100: 0 | BM100: 0 | BN100: 0 | BO100: 0 | BP100: 100 | BQ100: 0 | BR100: 0 | BS100: 0 | BT100: 0 | BU100: 0 | BV100: 0 | BW100: 0 | BX100: 0 | BY100: 0 | BZ100: 0 | CA100: 0 | CB100: =IF(ISERROR(CB10+CB70)=TRUE,0,CB10+CB70) -> 0 | CC100: 0 | CD100: 0 | CE100: 0 | CF100: 0 | CG100: 0 | CH100: 0 | CI100: 0 | CJ100: 0 | CK100: 0 | CM100: NEm_req= | CN100: =IF(DaysPreg>0,CBW*(km/0.13)*(0.05855-0.0000996*DaysPreg)*EXP((0.03233-0.0000275*DaysPreg)*DaysPreg),0) -> 0 | CO100: kcal/gün | CQ100: Se, mg | CS100: 0.825036259 | CT100: 0 | CU100: 0 | CV100: 0.825036259 | CW100: 16.50072518 | CX100: Se | CY100: mg/kg | CZ100: 0.1 | DA100: 0.1 | DB100: 0.1 | DC100: 2
Y101: 0 | Z101: 0 | AA101: 0 | AB101: 0 | AC101: 0 | AD101: 0 | AE101: 0 | AF101: 0 | AG101: 0 | AH101: 0 | AI101: 0 | AJ101: 0 | AK101: 0 | AL101: 0 | AM101: 0 | AN101: 0 | AO101: 0 | AP101: 0 | AQ101: 0 | AR101: 0 | AS101: 0 | AT101: 0 | AU101: 0 | AV101: 0 | AW101: 0 | AX101: 0 | AY101: 0 | AZ101: 0 | BA101: 0 | BB101: 0 | BC101: 0 | BD101: -1.65 | BE101: -1.12 | BF101: 0 | BG101: 0 | BH101: 100 | BI101: 0 | BJ101: 0 | BK101: 0 | BL101: 0 | BM101: 0 | BN101: 0 | BO101: 0 | BP101: 100 | BQ101: 0 | BR101: 0 | BS101: 0 | BT101: 0 | BU101: 0 | BV101: 0 | BW101: 0 | BX101: 0 | BY101: 0 | BZ101: 0 | CA101: 0 | CB101: =IF(ISERROR(CB11+CB71)=TRUE,0,CB11+CB71) -> 0 | CC101: 0 | CD101: 0 | CE101: 0 | CF101: 0 | CG101: 0 | CH101: 0 | CI101: 0 | CJ101: 0 | CK101: 0 | CM101: Ypn= | CN101: =IF(DaysPreg>0,((CBW*(0.001669-(0.00000211*DaysPreg))*EXP((0.0278-0.0000176*DaysPreg)*DaysPreg)))*6.25,0) -> 0 | CO101: g/gün Gebelik olarak alıkonulan net protein | CQ101: Zn, mg | CS101: 247.5108777 | CT101: 0 | CU101: 0 | CV101: 247.5108777 | CW101: 4125.181295 | CX101: Zn | CY101: mg/kg | CZ101: 30 | DA101: 30 | DB101: 30 | DC101: 500
Y102: 0 | Z102: 0 | AA102: 0 | AB102: 0 | AC102: 0 | AD102: 0 | AE102: 0 | AF102: 0 | AG102: 0 | AH102: 0 | AI102: 0 | AJ102: 0 | AK102: 9.7 | AL102: 0 | AM102: 0 | AN102: 0 | AO102: 0 | AP102: 0 | AQ102: 0 | AR102: 0 | AS102: 1.014790549 | AT102: 0.23086 | AU102: 0.3298 | AV102: 1.014790549 | AW102: 0 | AX102: 0.23086 | AY102: 10.0298 | AZ102: 11.27545055 | BA102: -1.534225549 | BB102: -0.005546808367 | BC102: -0.2859179571 | BD102: -2.070512996 | BE102: -1.523234396 | BF102: 0 | BG102: -0.2859179571 | BH102: 0 | BI102: 0 | BJ102: 0 | BK102: 0 | BL102: 0 | BM102: 0 | BN102: 0 | BO102: 0 | BP102: 0 | BQ102: 0 | BR102: 0 | BS102: 0 | BT102: 0 | BU102: 0 | BV102: 0 | BW102: 0 | BX102: 0 | BY102: 0 | BZ102: 0 | CA102: 0 | CB102: =IF(ISERROR(CB12+CB72)=TRUE,0,CB12+CB72) -> 0 | CC102: 0 | CD102: 0 | CE102: 0 | CF102: 0 | CG102: 0 | CH102: 0 | CI102: 0 | CJ102: 0 | CK102: 0 | CM102: MPpreg= | CN102: =IF(DaysPreg>0,Ypn/0.65,0) -> 0 | CO102: g/gün | CQ102: VitA, IU | CS102: 18150.7977 | CT102: 0 | CU102: 0 | CV102: =SUM(CS102:CU102) -> 18150.7977 | CX102: VitA | CY102: IU/kg | CZ102: 2200 | DA102: 2800 | DB102: 3900
Y103: 0 | Z103: 0 | AA103: 0 | AB103: 0 | AC103: 0 | AD103: 0 | AE103: 0 | AF103: 0 | AG103: 0 | AH103: 0 | AI103: 0 | AJ103: 0 | AK103: 30.38 | AL103: 0 | AM103: 0 | AN103: 0 | AO103: 0 | AP103: 0 | AQ103: 0 | AR103: 0 | AS103: 3.178282154 | AT103: 0.723044 | AU103: 1.03292 | AV103: 3.178282154 | AW103: 0 | AX103: 0.723044 | AY103: 31.41292 | AZ103: 35.31424615 | BA103: -4.805131154 | BB103: -0.01737237507 | BC103: -0.2859179571 | BD103: -2.070512996 | BE103: -1.523234396 | BF103: 0 | BG103: -0.2859179571 | BH103: 0 | BI103: 0 | BJ103: 0 | BK103: 0 | BL103: 0 | BM103: 0 | BN103: 0 | BO103: 0 | BP103: 0 | BQ103: 0 | BR103: 0 | BS103: 0 | BT103: 0 | BU103: 0 | BV103: 0 | BW103: 0 | BX103: 0 | BY103: 0 | BZ103: 0 | CA103: 0 | CB103: =IF(ISERROR(CB13+CB73)=TRUE,0,CB13+CB73) -> 0 | CC103: 0 | CD103: 0 | CE103: 0 | CF103: 0 | CG103: 0 | CH103: 0 | CI103: 0 | CJ103: 0 | CK103: 0 | CM103: Enerji ve protein depolarını hesaplamak için | CO103: CS, vücut ağırlığı ve kompozisyonu kullanılır. | CQ103: VitD, IU | CS103: 2268.849712 | CT103: 0 | CU103: 0 | CV103: =SUM(CS103:CU103) -> 2268.849712 | CX103: VitD | CY103: IU/kg | CZ103: 275 | DA103: 275 | DB103: 275
Y104: 0 | Z104: 0 | AA104: 0 | AB104: 0 | AC104: 0 | AD104: 0 | AE104: 0 | AF104: 0 | AG104: 0 | AH104: 0 | AI104: 0 | AJ104: 0 | AK104: 2.5 | AL104: 0 | AM104: 0 | AN104: 0 | AO104: 0 | AP104: 0 | AQ104: 0 | AR104: 0 | AS104: 0.261543956 | AT104: 0.0595 | AU104: 0.085 | AV104: 0.261543956 | AW104: 0 | AX104: 0.0595 | AY104: 2.585 | AZ104: 2.906043956 | BA104: -0.395418956 | BB104: -0.001429589785 | BC104: -0.2859179571 | BD104: -2.070512996 | BE104: -1.523234396 | BF104: 0 | BG104: -0.2859179571 | BH104: 0 | BI104: 0 | BJ104: 0 | BK104: 0 | BL104: 0 | BM104: 0 | BN104: 0 | BO104: 0 | BP104: 0 | BQ104: 0 | BR104: 0 | BS104: 0 | BT104: 0 | BU104: 0 | BV104: 0 | BW104: 0 | BX104: 0 | BY104: 0 | BZ104: 0 | CA104: 0 | CB104: =IF(ISERROR(CB14+CB74)=TRUE,0,CB14+CB74) -> 0 | CC104: 0 | CD104: 0 | CE104: 0 | CF104: 0 | CG104: 0 | CH104: 0 | CI104: 0 | CJ104: 0 | CK104: 0 | CM104: 1) Mevcut CS için vücut kompozisyonu hesabı:
Y105: 0 | Z105: 0 | AA105: 0 | AB105: 0 | AC105: 0 | AD105: 0 | AE105: 0 | AF105: 0 | AG105: 0 | AH105: 0 | AI105: 0 | AJ105: 0 | AK105: 0 | AL105: 0 | AM105: 0 | AN105: 0 | AO105: 0 | AP105: 0 | AQ105: 0 | AR105: 0 | AS105: 0.01429120879 | AT105: 0.0595 | AU105: 0.085 | AV105: 0.01429120879 | AW105: 0 | AX105: 0.0595 | AY105: 0.085 | AZ105: 0.1587912088 | BA105: -0.1481662088 | BB105: -0.0005356771479 | BC105: -0.1071354296 | BD105: -1.804144484 | BE105: -1.268372414 | BF105: 0 | BG105: -0.1071354296 | BH105: 0 | BI105: 0 | BJ105: 0 | BK105: 0 | BL105: 0 | BM105: 0 | BN105: 0 | BO105: 0 | BP105: 0 | BQ105: 0 | BR105: 0 | BS105: 0 | BT105: 0 | BU105: 0 | BV105: 0 | BW105: 0 | BX105: 0 | BY105: 0 | BZ105: 0 | CA105: 0 | CB105: =IF(ISERROR(CB15+CB75)=TRUE,0,CB15+CB75) -> 0 | CC105: 0 | CD105: 0 | CE105: 0 | CF105: 0 | CG105: 0 | CH105: 0 | CI105: 0 | CJ105: 0 | CK105: 0 | CL105: Sıcaklık Stresi | CM105: AF= | CN105: =0.037683*CS -> 0.188415 | CO105: Boş (empty) vücut yağı oranı | CQ105: Aminoasit İhtiyaçları
Y106: 0 | Z106: 0 | AA106: 0 | AB106: 0 | AC106: 0 | AD106: 0 | AE106: 0 | AF106: 0 | AG106: 0 | AH106: 0 | AI106: 0 | AJ106: 0 | AK106: 0 | AL106: 0 | AM106: 0 | AN106: 0 | AO106: 0 | AP106: 0 | AQ106: 0 | AR106: 0 | AS106: 0 | AT106: 0 | AU106: 0 | AV106: 0 | AW106: 0 | AX106: 0 | AY106: 0 | AZ106: 0 | BA106: 0 | BB106: 0 | BC106: 0 | BD106: -1.65 | BE106: -1.12 | BF106: 0 | BG106: 0 | BH106: 100 | BI106: 0 | BJ106: 0 | BK106: 0 | BL106: 0 | BM106: 0 | BN106: 0 | BO106: 0 | BP106: 100 | BQ106: 0 | BR106: 0 | BS106: 0 | BT106: 0 | BU106: 0 | BV106: 0 | BW106: 0 | BX106: 0 | BY106: 0 | BZ106: 0 | CA106: 0 | CB106: =IF(ISERROR(CB16+CB76)=TRUE,0,CB16+CB76) -> 0 | CC106: 0 | CD106: 0 | CE106: 0 | CF106: 0 | CG106: 0 | CH106: 0 | CI106: 0 | CJ106: 0 | CK106: 0 | CL106: Normal | CM106: AP= | CN106: =0.200886-0.0066762*CS -> 0.167505 | CO106: Boş (empty) vücut proteini oranı | CR106: Maint | CS106: Growth | CT106: Lact | CU106: Preg | CV106: Total
Y107: 0 | Z107: 0 | AA107: 0 | AB107: 0 | AC107: 0 | AD107: 0 | AE107: 0 | AF107: 0 | AG107: 0 | AH107: 0 | AI107: 0 | AJ107: 0 | AK107: 0 | AL107: 0 | AM107: 0 | AN107: 0 | AO107: 0 | AP107: 0 | AQ107: 0 | AR107: 0 | AS107: 0 | AT107: 0 | AU107: 0 | AV107: 0 | AW107: 0 | AX107: 0 | AY107: 0 | AZ107: 0 | BA107: 0 | BB107: 0 | BC107: 0 | BD107: -1.65 | BE107: -1.12 | BF107: 0 | BG107: 0 | BH107: 100 | BI107: 0 | BJ107: 0 | BK107: 0 | BL107: 0 | BM107: 0 | BN107: 0 | BO107: 0 | BP107: 100 | BQ107: 0 | BR107: 0 | BS107: 0 | BT107: 0 | BU107: 0 | BV107: 0 | BW107: 0 | BX107: 0 | BY107: 0 | BZ107: 0 | CA107: 0 | CB107: =IF(ISERROR(CB17+CB77)=TRUE,0,CB17+CB77) -> 0 | CC107: 0 | CD107: 0 | CE107: 0 | CF107: 0 | CG107: 0 | CH107: 0 | CI107: 0 | CJ107: 0 | CK107: 0 | CL107: Yüzeysel hızlı soluma | CM107: AW= | CN107: =0.766637-0.034506*CS -> 0.594107 | CO107: Boş (empty) vücut suyu oranı | CR107: MPAA | CS107: RPAA | CT107: LPAA | CU107: MPAA
Y108: 0 | Z108: 0 | AA108: 0 | AB108: 0 | AC108: 0 | AD108: 0 | AE108: 0 | AF108: 0 | AG108: 0 | AH108: 0 | AI108: 0 | AJ108: 0 | AK108: 0 | AL108: 0 | AM108: 0 | AN108: 0 | AO108: 0 | AP108: 0 | AQ108: 0 | AR108: 0 | AS108: 0 | AT108: 0 | AU108: 0 | AV108: 0 | AW108: 0 | AX108: 0 | AY108: 0 | AZ108: 0 | BA108: 0 | BB108: 0 | BC108: 0 | BD108: -1.65 | BE108: -1.12 | BF108: 0 | BG108: 0 | BH108: 100 | BI108: 0 | BJ108: 0 | BK108: 0 | BL108: 0 | BM108: 0 | BN108: 0 | BO108: 0 | BP108: 100 | BQ108: 0 | BR108: 0 | BS108: 0 | BT108: 0 | BU108: 0 | BV108: 0 | BW108: 0 | BX108: 0 | BY108: 0 | BZ108: 0 | CA108: 0 | CB108: =IF(ISERROR(CB18+CB78)=TRUE,0,CB18+CB78) -> 0 | CC108: 0 | CD108: 0 | CE108: 0 | CF108: 0 | CG108: 0 | CH108: 0 | CI108: 0 | CJ108: 0 | CK108: 0 | CL108: Ağzı açık soluma | CM108: AA= | CN108: =0.078982-0.00438*CS -> 0.057082 | CO108: Boş (empty) vücut külü oranı | CQ108: Metionin | CR108: =VLOOKUP(CQ108,CQ121:CR130,2,FALSE)*0.01*MPmaint -> 5.31322195 | CS108: =VLOOKUP(CQ108,CQ121:CS130,2,FALSE)*RPN/EAAGi -> 0.4849847768 | CT108: =VLOOKUP(CQ108,CQ121:CS130,3,FALSE)*0.01*YProtn/VLOOKUP(CQ108,CT121:CV130,3,FALSE) -> 0 | CU108: =VLOOKUP(CQ108,CQ121:CR130,2,FALSE)*0.01*Ypn/VLOOKUP(CQ108,CT121:CV130,2,FALSE) -> 0 | CV108: =SUM(CR108:CU108) -> 5.798206726
Y109: 0 | Z109: 0 | AA109: 0 | AB109: 0 | AC109: 0 | AD109: 0 | AE109: 0 | AF109: 0 | AG109: 0 | AH109: 0 | AI109: 0 | AJ109: 0 | AK109: 0 | AL109: 0 | AM109: 0 | AN109: 0 | AO109: 0 | AP109: 0 | AQ109: 0 | AR109: 0 | AS109: 0 | AT109: 0 | AU109: 0 | AV109: 0 | AW109: 0 | AX109: 0 | AY109: 0 | AZ109: 0 | BA109: 0 | BB109: 0 | BC109: 0 | BD109: -1.65 | BE109: -1.12 | BF109: 0 | BG109: 0 | BH109: 100 | BI109: 0 | BJ109: 0 | BK109: 0 | BL109: 0 | BM109: 0 | BN109: 0 | BO109: 0 | BP109: 100 | BQ109: 0 | BR109: 0 | BS109: 0 | BT109: 0 | BU109: 0 | BV109: 0 | BW109: 0 | BX109: 0 | BY109: 0 | BZ109: 0 | CA109: 0 | CB109: =IF(ISERROR(CB19+CB79)=TRUE,0,CB19+CB79) -> 0 | CC109: 0 | CD109: 0 | CE109: 0 | CF109: 0 | CG109: 0 | CH109: 0 | CI109: 0 | CJ109: 0 | CK109: 0 | CM109: G_EBW= | CN109: =0.851*SBW -> 245.088 | CO109: Empty body weight, kg | CQ109: Lizin | CR109: =VLOOKUP(CQ109,CQ121:CR130,2,FALSE)*0.01*MPmaint -> 17.00231024 | CS109: =VLOOKUP(CQ109,CQ121:CS130,2,FALSE)*RPN/EAAGi -> 1.551951286 | CT109: =VLOOKUP(CQ109,CQ121:CS130,3,FALSE)*0.01*YProtn/VLOOKUP(CQ109,CT121:CV130,3,FALSE) -> 0 | CU109: =VLOOKUP(CQ109,CQ121:CR130,2,FALSE)*0.01*Ypn/VLOOKUP(CQ109,CT121:CV130,2,FALSE) -> 0 | CV109: =SUM(CR109:CU109) -> 18.55426152
Y110: 0 | Z110: 0 | AA110: 0 | AB110: 0 | AC110: 0 | AD110: 0 | AE110: 0 | AF110: 0 | AG110: 0 | AH110: 0 | AI110: 0 | AJ110: 0 | AK110: 0 | AL110: 0 | AM110: 0 | AN110: 0 | AO110: 0 | AP110: 0 | AQ110: 0 | AR110: 0 | AS110: 0 | AT110: 0 | AU110: 0 | AV110: 0 | AW110: 0 | AX110: 0 | AY110: 0 | AZ110: 0 | BA110: 0 | BB110: 0 | BC110: 0 | BD110: -1.65 | BE110: -1.12 | BF110: 0 | BG110: 0 | BH110: 100 | BI110: 0 | BJ110: 0 | BK110: 0 | BL110: 0 | BM110: 0 | BN110: 0 | BO110: 0 | BP110: 100 | BQ110: 0 | BR110: 0 | BS110: 0 | BT110: 0 | BU110: 0 | BV110: 0 | BW110: 0 | BX110: 0 | BY110: 0 | BZ110: 0 | CA110: 0 | CB110: =IF(ISERROR(CB20+CB80)=TRUE,0,CB20+CB80) -> 0 | CC110: 0 | CD110: 0 | CE110: 0 | CF110: 0 | CG110: 0 | CH110: 0 | CI110: 0 | CJ110: 0 | CK110: 0 | CL110: Merada otluyor mu? | CM110: TA= | CN110: =AA*G_EBW -> 13.99011322 | CO110: Toplam kül, kg | CQ110: Histidin | CR110: =VLOOKUP(CQ110,CQ121:CR130,2,FALSE)*0.01*MPmaint -> 6.641527437 | CS110: =VLOOKUP(CQ110,CQ121:CS130,2,FALSE)*RPN/EAAGi -> 0.6062309709 | CT110: =VLOOKUP(CQ110,CQ121:CS130,3,FALSE)*0.01*YProtn/VLOOKUP(CQ110,CT121:CV130,3,FALSE) -> 0 | CU110: =VLOOKUP(CQ110,CQ121:CR130,2,FALSE)*0.01*Ypn/VLOOKUP(CQ110,CT121:CV130,2,FALSE) -> 0 | CV110: 7.247758408
Y111: 0 | Z111: 0 | AA111: 0 | AB111: 0 | AC111: 0 | AD111: 0 | AE111: 0 | AF111: 0 | AG111: 0 | AH111: 0 | AI111: 0 | AJ111: 0 | AK111: 0 | AL111: 0 | AM111: 0 | AN111: 0 | AO111: 0 | AP111: 0 | AQ111: 0 | AR111: 0 | AS111: 0 | AT111: 0 | AU111: 0 | AV111: 0 | AW111: 0 | AX111: 0 | AY111: 0 | AZ111: 0 | BA111: 0 | BB111: 0 | BC111: 0 | BD111: -1.65 | BE111: -1.12 | BF111: 0 | BG111: 0 | BH111: 100 | BI111: 0 | BJ111: 0 | BK111: 0 | BL111: 0 | BM111: 0 | BN111: 0 | BO111: 0 | BP111: 100 | BQ111: 0 | BR111: 0 | BS111: 0 | BT111: 0 | BU111: 0 | BV111: 0 | BW111: 0 | BX111: 0 | BY111: 0 | BZ111: 0 | CA111: 0 | CB111: =IF(ISERROR(CB21+CB81)=TRUE,0,CB21+CB81) -> 0 | CC111: 0 | CD111: 0 | CE111: 0 | CF111: 0 | CG111: 0 | CH111: 0 | CI111: 0 | CJ111: 0 | CK111: 0 | CL111: Otluyor | CM111: 2) CS= 1 kül, yağ, protein kompozisyonu: | CQ111: Fenilalanin | CR111: =VLOOKUP(CQ111,CQ121:CR130,2,FALSE)*0.01*MPmaint -> 9.298138412 | CS111: =VLOOKUP(CQ111,CQ121:CS130,2,FALSE)*RPN/EAAGi -> 0.8487233593 | CT111: =VLOOKUP(CQ111,CQ121:CS130,3,FALSE)*0.01*YProtn/VLOOKUP(CQ111,CT121:CV130,3,FALSE) -> 0 | CU111: =VLOOKUP(CQ111,CQ121:CR130,2,FALSE)*0.01*Ypn/VLOOKUP(CQ111,CT121:CV130,2,FALSE) -> 0 | CV111: 10.14686177
Y112: 0 | Z112: 0 | AA112: 0 | AB112: 0 | AC112: 0 | AD112: 0 | AE112: 0 | AF112: 0 | AG112: 0 | AH112: 0 | AI112: 0 | AJ112: 0 | AK112: 0 | AL112: 0 | AM112: 0 | AN112: 0 | AO112: 0 | AP112: 0 | AQ112: 0 | AR112: 0 | AS112: 0 | AT112: 0 | AU112: 0 | AV112: 0 | AW112: 0 | AX112: 0 | AY112: 0 | AZ112: 0 | BA112: 0 | BB112: 0 | BC112: 0 | BD112: -1.65 | BE112: -1.12 | BF112: 0 | BG112: 0 | BH112: 100 | BI112: 0 | BJ112: 0 | BK112: 0 | BL112: 0 | BM112: 0 | BN112: 0 | BO112: 0 | BP112: 100 | BQ112: 0 | BR112: 0 | BS112: 0 | BT112: 0 | BU112: 0 | BV112: 0 | BW112: 0 | BX112: 0 | BY112: 0 | BZ112: 0 | CA112: 0 | CB112: =IF(ISERROR(CB22+CB82)=TRUE,0,CB22+CB82) -> 0 | CC112: 0 | CD112: 0 | CE112: 0 | CF112: 0 | CG112: 0 | CH112: 0 | CI112: 0 | CJ112: 0 | CK112: 0 | CL112: Otlamıyor | CM112: AA1= | CN112: 0.074602 | CO112: Empty vücut külü oranı @ CS=1 | CQ112: Triptofan | CR112: =VLOOKUP(CQ112,CQ121:CR130,2,FALSE)*0.01*MPmaint -> 1.593966585 | CS112: =VLOOKUP(CQ112,CQ121:CS130,2,FALSE)*RPN/EAAGi -> 0.145495433 | CT112: =VLOOKUP(CQ112,CQ121:CS130,3,FALSE)*0.01*YProtn/VLOOKUP(CQ112,CT121:CV130,3,FALSE) -> 0 | CU112: =VLOOKUP(CQ112,CQ121:CR130,2,FALSE)*0.01*Ypn/VLOOKUP(CQ112,CT121:CV130,2,FALSE) -> 0 | CV112: 1.739462018
Y113: 0 | Z113: 0 | AA113: 0 | AB113: 0 | AC113: 0 | AD113: 0 | AE113: 0 | AF113: 0 | AG113: 0 | AH113: 0 | AI113: 0 | AJ113: 0 | AK113: 0 | AL113: 0 | AM113: 0 | AN113: 0 | AO113: 0 | AP113: 0 | AQ113: 0 | AR113: 0 | AS113: 0 | AT113: 0 | AU113: 0 | AV113: 0 | AW113: 0 | AX113: 0 | AY113: 0 | AZ113: 0 | BA113: 0 | BB113: 0 | BC113: 0 | BD113: -1.65 | BE113: -1.12 | BF113: 0 | BG113: 0 | BH113: 100 | BI113: 0 | BJ113: 0 | BK113: 0 | BL113: 0 | BM113: 0 | BN113: 0 | BO113: 0 | BP113: 100 | BQ113: 0 | BR113: 0 | BS113: 0 | BT113: 0 | BU113: 0 | BV113: 0 | BW113: 0 | BX113: 0 | BY113: 0 | BZ113: 0 | CA113: 0 | CB113: =IF(ISERROR(CB23+CB83)=TRUE,0,CB23+CB83) -> 0 | CC113: 0 | CD113: 0 | CE113: 0 | CF113: 0 | CG113: 0 | CH113: 0 | CI113: 0 | CJ113: 0 | CK113: 0 | CM113: AF1= | CN113: 0.037683 | CO113: Empty vücut yağı oranı @ CS=1 | CQ113: Treonin | CR113: =VLOOKUP(CQ113,CQ121:CR130,2,FALSE)*0.01*MPmaint -> 10.3607828 | CS113: =VLOOKUP(CQ113,CQ121:CS130,2,FALSE)*RPN/EAAGi -> 0.9457203147 | CT113: =VLOOKUP(CQ113,CQ121:CS130,3,FALSE)*0.01*YProtn/VLOOKUP(CQ113,CT121:CV130,3,FALSE) -> 0 | CU113: =VLOOKUP(CQ113,CQ121:CR130,2,FALSE)*0.01*Ypn/VLOOKUP(CQ113,CT121:CV130,2,FALSE) -> 0 | CV113: 11.30650312
Y114: 0 | Z114: 0 | AA114: 0 | AB114: 0 | AC114: 0 | AD114: 0 | AE114: 0 | AF114: 0 | AG114: 0 | AH114: 0 | AI114: 0 | AJ114: 0 | AK114: 0 | AL114: 0 | AM114: 0 | AN114: 0 | AO114: 0 | AP114: 0 | AQ114: 0 | AR114: 0 | AS114: 0 | AT114: 0 | AU114: 0 | AV114: 0 | AW114: 0 | AX114: 0 | AY114: 0 | AZ114: 0 | BA114: 0 | BB114: 0 | BC114: 0 | BD114: -1.65 | BE114: -1.12 | BF114: 0 | BG114: 0 | BH114: 100 | BI114: 0 | BJ114: 0 | BK114: 0 | BL114: 0 | BM114: 0 | BN114: 0 | BO114: 0 | BP114: 100 | BQ114: 0 | BR114: 0 | BS114: 0 | BT114: 0 | BU114: 0 | BV114: 0 | BW114: 0 | BX114: 0 | BY114: 0 | BZ114: 0 | CA114: 0 | CB114: =IF(ISERROR(CB24+CB84)=TRUE,0,CB24+CB84) -> 0 | CC114: 0 | CD114: 0 | CE114: 0 | CF114: 0 | CG114: 0 | CH114: 0 | CI114: 0 | CJ114: 0 | CK114: 0 | CL114: Arazinin durumu | CM114: AP1= | CN114: 0.194208 | CO114: Empty vücut proteini oranı @ CS=1 | CQ114: Löysin | CR114: =VLOOKUP(CQ114,CQ121:CR130,2,FALSE)*0.01*MPmaint -> 17.79929353 | CS114: =VLOOKUP(CQ114,CQ121:CS130,2,FALSE)*RPN/EAAGi -> 1.624699002 | CT114: =VLOOKUP(CQ114,CQ121:CS130,3,FALSE)*0.01*YProtn/VLOOKUP(CQ114,CT121:CV130,3,FALSE) -> 0 | CU114: =VLOOKUP(CQ114,CQ121:CR130,2,FALSE)*0.01*Ypn/VLOOKUP(CQ114,CT121:CV130,2,FALSE) -> 0 | CV114: 19.42399253
Y115: 0 | Z115: 0 | AA115: 0 | AB115: 0 | AC115: 0 | AD115: 0 | AE115: 0 | AF115: 0 | AG115: 0 | AH115: 0 | AI115: 0 | AJ115: 0 | AK115: 0 | AL115: 0 | AM115: 0 | AN115: 0 | AO115: 0 | AP115: 0 | AQ115: 0 | AR115: 0 | AS115: 0 | AT115: 0 | AU115: 0 | AV115: 0 | AW115: 0 | AX115: 0 | AY115: 0 | AZ115: 0 | BA115: 0 | BB115: 0 | BC115: 0 | BD115: -1.65 | BE115: -1.12 | BF115: 0 | BG115: 0 | BH115: 100 | BI115: 0 | BJ115: 0 | BK115: 0 | BL115: 0 | BM115: 0 | BN115: 0 | BO115: 0 | BP115: 100 | BQ115: 0 | BR115: 0 | BS115: 0 | BT115: 0 | BU115: 0 | BV115: 0 | BW115: 0 | BX115: 0 | BY115: 0 | BZ115: 0 | CA115: 0 | CB115: =IF(ISERROR(CB25+CB85)=TRUE,0,CB25+CB85) -> 0 | CC115: 0 | CD115: 0 | CE115: 0 | CF115: 0 | CG115: 0 | CH115: 0 | CI115: 0 | CJ115: 0 | CK115: 0 | CL115: Düz | CM115: 3) Kül miktarının CS'nu, EBW'i ve CS 1'de vücut kütlesini değiştirmediği farzedilirse: | CQ115: İzolöysin | CR115: =VLOOKUP(CQ115,CQ121:CR130,2,FALSE)*0.01*MPmaint -> 7.438510729 | CS115: =VLOOKUP(CQ115,CQ121:CS130,2,FALSE)*RPN/EAAGi -> 0.6789786875 | CT115: =VLOOKUP(CQ115,CQ121:CS130,3,FALSE)*0.01*YProtn/VLOOKUP(CQ115,CT121:CV130,3,FALSE) -> 0 | CU115: =VLOOKUP(CQ115,CQ121:CR130,2,FALSE)*0.01*Ypn/VLOOKUP(CQ115,CT121:CV130,2,FALSE) -> 0 | CV115: 8.117489417
Y116: 0 | Z116: 0 | AA116: 0 | AB116: 0 | AC116: 0 | AD116: 0 | AE116: 0 | AF116: 0 | AG116: 0 | AH116: 0 | AI116: 0 | AJ116: 0 | AK116: 0 | AL116: 0 | AM116: 0 | AN116: 0 | AO116: 0 | AP116: 0 | AQ116: 0 | AR116: 0 | AS116: 0 | AT116: 0 | AU116: 0 | AV116: 0 | AW116: 0 | AX116: 0 | AY116: 0 | AZ116: 0 | BA116: 0 | BB116: 0 | BC116: 0 | BD116: -1.65 | BE116: -1.12 | BF116: 0 | BG116: 0 | BH116: 100 | BI116: 0 | BJ116: 0 | BK116: 0 | BL116: 0 | BM116: 0 | BN116: 0 | BO116: 0 | BP116: 100 | BQ116: 0 | BR116: 0 | BS116: 0 | BT116: 0 | BU116: 0 | BV116: 0 | BW116: 0 | BX116: 0 | BY116: 0 | BZ116: 0 | CA116: 0 | CB116: =IF(ISERROR(CB26+CB86)=TRUE,0,CB26+CB86) -> 0 | CC116: 0 | CD116: 0 | CE116: 0 | CF116: 0 | CG116: 0 | CH116: 0 | CI116: 0 | CJ116: 0 | CK116: 0 | CL116: Engebeli | CM116: EBW1= | CN116: =TA/AAbir -> 187.5300021 | CO116: CS=1'de hesaplanan EBW, kg | CQ116: Valin | CR116: =VLOOKUP(CQ116,CQ121:CR130,2,FALSE)*0.01*MPmaint -> 10.6264439 | CS116: =VLOOKUP(CQ116,CQ121:CS130,2,FALSE)*RPN/EAAGi -> 0.9699695535 | CT116: =VLOOKUP(CQ116,CQ121:CS130,3,FALSE)*0.01*YProtn/VLOOKUP(CQ116,CT121:CV130,3,FALSE) -> 0 | CU116: =VLOOKUP(CQ116,CQ121:CR130,2,FALSE)*0.01*Ypn/VLOOKUP(CQ116,CT121:CV130,2,FALSE) -> 0 | CV116: 11.59641345
Y117: 0 | Z117: 0 | AA117: 0 | AB117: 0 | AC117: 0 | AD117: 0 | AE117: 0 | AF117: 0 | AG117: 0 | AH117: 0 | AI117: 0 | AJ117: 0 | AK117: 0 | AL117: 0 | AM117: 0 | AN117: 0 | AO117: 0 | AP117: 0 | AQ117: 0 | AR117: 0 | AS117: 0 | AT117: 0 | AU117: 0 | AV117: 0 | AW117: 0 | AX117: 0 | AY117: 0 | AZ117: 0 | BA117: 0 | BB117: 0 | BC117: 0 | BD117: -1.65 | BE117: -1.12 | BF117: 0 | BG117: 0 | BH117: 100 | BI117: 0 | BJ117: 0 | BK117: 0 | BL117: 0 | BM117: 0 | BN117: 0 | BO117: 0 | BP117: 100 | BQ117: 0 | BR117: 0 | BS117: 0 | BT117: 0 | BU117: 0 | BV117: 0 | BW117: 0 | BX117: 0 | BY117: 0 | BZ117: 0 | CA117: 0 | CB117: =IF(ISERROR(CB27+CB87)=TRUE,0,CB27+CB87) -> 0 | CC117: 0 | CD117: 0 | CE117: 0 | CF117: 0 | CG117: 0 | CH117: 0 | CI117: 0 | CJ117: 0 | CK117: 0 | CL117: Tepelik | CM117: TF= | CN117: =AF*G_EBW -> 46.17825552 | CO117: Toplam vücut yağı, kg | CQ117: Arjinin | CR117: =VLOOKUP(CQ117,CQ121:CR130,2,FALSE)*0.01*MPmaint -> 8.766816217 | CS117: =VLOOKUP(CQ117,CQ121:CS130,2,FALSE)*RPN/EAAGi -> 0.8002248817 | CT117: =VLOOKUP(CQ117,CQ121:CS130,3,FALSE)*0.01*YProtn/VLOOKUP(CQ117,CT121:CV130,3,FALSE) -> 0 | CU117: =VLOOKUP(CQ117,CQ121:CR130,2,FALSE)*0.01*Ypn/VLOOKUP(CQ117,CT121:CV130,2,FALSE) -> 0 | CV117: 9.567041098
Y118: 0 | Z118: 0 | AA118: 0 | AB118: 0 | AC118: 0 | AD118: 0 | AE118: 0 | AF118: 0 | AG118: 0 | AH118: 0 | AI118: 0 | AJ118: 0 | AK118: 0 | AL118: 0 | AM118: 0 | AN118: 0 | AO118: 0 | AP118: 0 | AQ118: 0 | AR118: 0 | AS118: 0 | AT118: 0 | AU118: 0 | AV118: 0 | AW118: 0 | AX118: 0 | AY118: 0 | AZ118: 0 | BA118: 0 | BB118: 0 | BC118: 0 | BD118: -1.65 | BE118: -1.12 | BF118: 0 | BG118: 0 | BH118: 100 | BI118: 0 | BJ118: 0 | BK118: 0 | BL118: 0 | BM118: 0 | BN118: 0 | BO118: 0 | BP118: 100 | BQ118: 0 | BR118: 0 | BS118: 0 | BT118: 0 | BU118: 0 | BV118: 0 | BW118: 0 | BX118: 0 | BY118: 0 | BZ118: 0 | CA118: 0 | CB118: =IF(ISERROR(CB28+CB88)=TRUE,0,CB28+CB88) -> 0 | CC118: 0 | CD118: 0 | CE118: 0 | CF118: 0 | CG118: 0 | CH118: 0 | CI118: 0 | CJ118: 0 | CK118: 0 | CM118: TP= | CN118: =AP*G_EBW -> 41.05346544 | CO118: Toplam vücut proteini, kg
Y119: 0 | Z119: 0 | AA119: 0 | AB119: 0 | AC119: 0 | AD119: 0 | AE119: 0 | AF119: 0 | AG119: 0 | AH119: 0 | AI119: 0 | AJ119: 0 | AK119: 0 | AL119: 0 | AM119: 0 | AN119: 0 | AO119: 0 | AP119: 0 | AQ119: 0 | AR119: 0 | AS119: 0 | AT119: 0 | AU119: 0 | AV119: 0 | AW119: 0 | AX119: 0 | AY119: 0 | AZ119: 0 | BA119: 0 | BB119: 0 | BC119: 0 | BD119: -1.65 | BE119: -1.12 | BF119: 0 | BG119: 0 | BH119: 100 | BI119: 0 | BJ119: 0 | BK119: 0 | BL119: 0 | BM119: 0 | BN119: 0 | BO119: 0 | BP119: 100 | BQ119: 0 | BR119: 0 | BS119: 0 | BT119: 0 | BU119: 0 | BV119: 0 | BW119: 0 | BX119: 0 | BY119: 0 | BZ119: 0 | CA119: 0 | CB119: =IF(ISERROR(CB29+CB89)=TRUE,0,CB29+CB89) -> 0 | CC119: 0 | CD119: 0 | CE119: 0 | CF119: 0 | CG119: 0 | CH119: 0 | CI119: 0 | CJ119: 0 | CK119: 0 | CM119: TF1= | CN119: =_EBW1*AFbir -> 7.066693069 | CO119: Toplam vücut yağı @ CS=1, kg | CQ119: Tablo 10-5 Doku ve süt proteininin amino asit kompozisyonu, g/100 g protein | CT119: Tablo 10-6 Emilen amino asitlerin fizyolojik fonksiyonlardaki kullanımları (g/g)
Y120: 0 | Z120: 0 | AA120: 0 | AB120: 0 | AC120: 0 | AD120: 0 | AE120: 0 | AF120: 0 | AG120: 0 | AH120: 0 | AI120: 0 | AJ120: 0 | AK120: 0 | AL120: 0 | AM120: 0 | AN120: 0 | AO120: 0 | AP120: 0 | AQ120: 0 | AR120: 0 | AS120: 0 | AT120: 0 | AU120: 0 | AV120: 0 | AW120: 0 | AX120: 0 | AY120: 0 | AZ120: 0 | BA120: 0 | BB120: 0 | BC120: 0 | BD120: -1.65 | BE120: -1.12 | BF120: 0 | BG120: 0 | BH120: 100 | BI120: 0 | BJ120: 0 | BK120: 0 | BL120: 0 | BM120: 0 | BN120: 0 | BO120: 0 | BP120: 100 | BQ120: 0 | BR120: 0 | BS120: 0 | BT120: 0 | BU120: 0 | BV120: 0 | BW120: 0 | BX120: 0 | BY120: 0 | BZ120: 0 | CA120: 0 | CB120: =IF(ISERROR(CB30+CB90)=TRUE,0,CB30+CB90) -> 0 | CC120: 0 | CD120: 0 | CE120: 0 | CF120: 0 | CG120: 0 | CH120: 0 | CI120: 0 | CJ120: 0 | CK120: 0 | CM120: TP1= | CN120: =_EBW1*APbir -> 36.41982665 | CO120: Toplam vücut proteini @ CS=1, kg | CQ120: Amino a. | CR120: Doku | CS120: Süt | CT120: Amino a. | CU120: Gebelik | CV120: Laktasyon
Y121: 0 | Z121: 0 | AA121: 0 | AB121: 0 | AC121: 0 | AD121: 0 | AE121: 0 | AF121: 0 | AG121: 0 | AH121: 0 | AI121: 0 | AJ121: 0 | AK121: 0 | AL121: 0 | AM121: 0 | AN121: 0 | AO121: 0 | AP121: 0 | AQ121: 0 | AR121: 0 | AS121: 0 | AT121: 0 | AU121: 0 | AV121: 0 | AW121: 0 | AX121: 0 | AY121: 0 | AZ121: 0 | BA121: 0 | BB121: 0 | BC121: 0 | BD121: -1.65 | BE121: -1.12 | BF121: 0 | BG121: 0 | BH121: 100 | BI121: 0 | BJ121: 0 | BK121: 0 | BL121: 0 | BM121: 0 | BN121: 0 | BO121: 0 | BP121: 100 | BQ121: 0 | BR121: 0 | BS121: 0 | BT121: 0 | BU121: 0 | BV121: 0 | BW121: 0 | BX121: 0 | BY121: 0 | BZ121: 0 | CA121: 0 | CB121: =IF(ISERROR(CB31+CB91)=TRUE,0,CB31+CB91) -> 0 | CC121: 0 | CD121: 0 | CE121: 0 | CF121: 0 | CG121: 0 | CH121: 0 | CI121: 0 | CJ121: 0 | CK121: 0 | CM121: 4) Mobilize edilebilir enerji ve protein hesabı: | CQ121: Metionin | CR121: 2 | CS121: 2.71 | CT121: Metionin | CU121: 0.85 | CV121: 0.98
Y122: 0 | Z122: 0 | AA122: 0 | AB122: 0 | AC122: 0 | AD122: 0 | AE122: 0 | AF122: 0 | AG122: 0 | AH122: 0 | AI122: 0 | AJ122: 0 | AK122: 0 | AL122: 0 | AM122: 0 | AN122: 0 | AO122: 0 | AP122: 0 | AQ122: 0 | AR122: 0 | AS122: 0 | AT122: 0 | AU122: 0 | AV122: 0 | AW122: 0 | AX122: 0 | AY122: 0 | AZ122: 0 | BA122: 0 | BB122: 0 | BC122: 0 | BD122: -1.65 | BE122: -1.12 | BF122: 0 | BG122: 0 | BH122: 100 | BI122: 0 | BJ122: 0 | BK122: 0 | BL122: 0 | BM122: 0 | BN122: 0 | BO122: 0 | BP122: 100 | BQ122: 0 | BR122: 0 | BS122: 0 | BT122: 0 | BU122: 0 | BV122: 0 | BW122: 0 | BX122: 0 | BY122: 0 | BZ122: 0 | CA122: 0 | CB122: DIGFAA | CC122: DIGFAA | CD122: DIGFAA | CE122: DIGFAA | CF122: DIGFAA | CG122: DIGFAA | CH122: DIGFAA | CI122: DIGFAA | CJ122: DIGFAA | CK122: DIGFAA | CM122: FM= | CN122: =(TF-TFbir) -> 39.11156245 | CO122: Mobilize edilebilir yağ, kg | CQ122: Lizin | CR122: 6.4 | CS122: 7.62 | CT122: Lizin | CU122: 0.85 | CV122: 0.88
CB123: =SUM(CB125:CB151) -> 4.07462389 | CC123: 6.941326355 | CD123: 8.048419555 | CE123: 10.75886966 | CF123: 38.56822777 | CG123: 10.63515331 | CH123: 14.6221901 | CI123: 7.697970575 | CJ123: 14.4522079 | CK123: 2.480397421 | CM123: PM= | CN123: =(TP-TPbir) -> 4.633638794 | CO123: Mobilize edilebilir protein, kg | CQ123: Histidin | CR123: 2.5 | CS123: 2.74 | CT123: Histidin | CU123: 0.85 | CV123: 0.9
X124: YEMLER | Y124: en az | Z124: en çok | AA124: KM %Yem | AB124: NDF %KM | AC124: Lignin %NDF | AD124: Effekt. %NDF | AE124: HS,% | AF124: TDN %KM | AG124: ME,Mcal/kg | AH124: NEm,Mcal/kg | AI124: NEg,Mcal/kg | AJ124: HP,% | AK124: DIP %HP | AL124: UIP %HP | AM124: SoIP %HP | AN124: NPN %SoIP | AO124: NDFIP %HP | AP124: ADFIP %HP | AQ124: Nişasta %NSC | AR124: HY %KM | AS124: HK %KM | AT124: A kd %/sa© | AU124: B1 kd %/sa© | AV124: B2 kd %/sa© | AW124: B1 kd %/sa(p) | AX124: B2 kd %/sa(p) | AY124: B3 kd %/sa(p) | AZ124: MET %UIP | BA124: LİZ %UIP | BB124: ARJ %UIP | BC124: TRE %UIP | BD124: LÖY %UIP | BE124: İZOLÖY %UIP | BF124: VAL %UIP | BG124: HIS %UIP | BH124: FENAL %UIP | BI124: TRİP %UIP | BJ124: Ca %KM | BK124: P %KM | BL124: Mg %KM | BM124: Cl %KM | BN124: K %KM | BO124: Na %KM | BP124: S %KM | BQ124: Co mg/kg | BR124: Cu mg/kg | BS124: I mg/kg | BT124: Fe mg/kg | BU124: Mn mg/kg | BV124: Se mg/kg | BW124: Zn mg/kg | BX124: Vit A 1000 IU/kg | BY124: Vit D 1000 IU/kg | BZ124: Vit E IU/kg | CA124: FİYAT,TL | CB124: MET, g | CC124: LİZ, g | CD124: ARJ, g | CE124: TRE, g | CF124: LÖY, g | CG124: İZOLÖY, g | CH124: VAL, g | CI124: HIS, g | CJ124: FENAL, g | CK124: TRİP, g | CL124: Yem Hammaddeleri | CM124: ER= | CN124: =9.4*FM+5.7*PM -> 394.0604282 | CO124: Enerji depoları, Mcal | CQ124: Fenilalanin | CR124: 3.5 | CS124: 4.75 | CT124: Fenilalanin | CU124: 0.85 | CV124: 1
X125: SULU KABA YEMLER | CB125: =IF(ISERROR(AY5*0.01*(AK66+AL66+0.8*AM66))=TRUE,0,AY5*0.01*(AK66+AL66+0.8*AM66)) -> 0 | CC125: =IF(ISERROR(AZ5*0.01*(AK66+AL66+0.8*AM66))=TRUE,0,AZ5*0.01*(AK66+AL66+0.8*AM66)) -> 0 | CD125: =IF(ISERROR(BA5*0.01*(AK66+AL66+0.8*AM66))=TRUE,0,BA5*0.01*(AK66+AL66+0.8*AM66)) -> 0 | CE125: =IF(ISERROR(BB5*0.01*(AK66+AL66+0.8*AM66))=TRUE,0,BB5*0.01*(AK66+AL66+0.8*AM66)) -> 0 | CF125: =IF(ISERROR(BC5*0.01*(AK66+AL66+0.8*AM66))=TRUE,0,BC5*0.01*(AK66+AL66+0.8*AM66)) -> 0 | CG125: =IF(ISERROR(BD5*0.01*(AK66+AL66+0.8*AM66))=TRUE,0,BD5*0.01*(AK66+AL66+0.8*AM66)) -> 0 | CH125: =IF(ISERROR(BE5*0.01*(AK66+AL66+0.8*AM66))=TRUE,0,BE5*0.01*(AK66+AL66+0.8*AM66)) -> 0 | CI125: =IF(ISERROR(BF5*0.01*(AK66+AL66+0.8*AM66))=TRUE,0,BF5*0.01*(AK66+AL66+0.8*AM66)) -> 0 | CJ125: =IF(ISERROR(BG5*0.01*(AK66+AL66+0.8*AM66))=TRUE,0,BG5*0.01*(AK66+AL66+0.8*AM66)) -> 0 | CK125: =IF(ISERROR(BH5*0.01*(AK66+AL66+0.8*AM66))=TRUE,0,BH5*0.01*(AK66+AL66+0.8*AM66)) -> 0 | CL125: Sulu Kaba Yemler | CM125: 5) Sonraki CS'na ulaşmak için enerji ve protein kazancını veya kaybını hesap etmek için EBW, AF ve AP kullanılır: | CQ125: Triptofan | CR125: 0.6 | CS125: 1.51 | CT125: Triptofan | CU125: 0.85 | CV125: 0.85
X126: AGRİTOM | Y126: 0 | Z126: 3 | AA126: 11.9 | AB126: 41.93 | AC126: 19.23 | AD126: 65 | AE126: 0 | AF126: 77 | AG126: 2.69 | AH126: 1.76 | AI126: 1.01 | AJ126: 20.5 | AK126: 86 | AL126: 14 | AM126: 70 | AN126: 100 | AO126: 7.7 | AP126: 6.1 | AQ126: 90 | AR126: 2.94 | AS126: 3.36 | AT126: 10 | AU126: 50 | AV126: 4 | AW126: 300 | AX126: 10 | AY126: 0.5 | AZ126: 1.73 | BA126: 3.65 | BB126: 1.73 | BC126: 3.94 | BD126: 6.35 | BE126: 3.65 | BF126: 5.48 | BG126: 1.83 | BH126: 3.94 | BI126: 1.35 | BJ126: 0.16 | BK126: 0.3 | BL126: 0.25 | BM126: 0.72 | BN126: 0.6 | BO126: 0.21 | BP126: 0.22 | BQ126: 0.72 | BR126: 6 | BS126: 0 | BT126: 121 | BU126: 21 | BV126: 0.12 | BW126: 21 | BX126: 0 | BY126: 0 | BZ126: 0 | CA126: 15 | CB126: 0.129375473 | CC126: 0.5464665501 | CD126: 0.5464665501 | CE126: 0.5464665501 | CF126: 1.060106488 | CG126: 0.5464665501 | CH126: 0.739564271 | CI126: 0.1930977209 | CJ126: 0.6758420231 | CK126: 0.868939744 | CL126: Kuru Kaba Yemler | CM126: EBWN= | CN126: =TA/AAN -> 265.4569697 | CO126: Sonraki skorda EBW | CQ126: Treonin | CR126: 3.9 | CS126: 3.72 | CT126: Treonin | CU126: 0.85 | CV126: 0.83
X127: AK TAVUS OTU (RED TOP), YAŞ | Y127: 0 | Z127: 5 | AA127: 29 | AB127: 64 | AC127: 12.5 | AD127: 41 | AE127: 0 | AF127: 63 | AG127: 2.28 | AH127: 1.41 | AI127: 0.83 | AJ127: 11.6 | AK127: 87 | AL127: 13 | AM127: 42 | AN127: 4.8 | AO127: 24 | AP127: 2.2 | AQ127: 5 | AR127: 3.9 | AS127: 8 | AT127: 350 | AU127: 25 | AV127: 9 | AW127: 200 | AX127: 14 | AY127: 2 | AZ127: 0.67 | BA127: 2.83 | BB127: 2.83 | BC127: 2.83 | BD127: 5.49 | BE127: 2.83 | BF127: 3.83 | BG127: 1 | BH127: 3.5 | BI127: 4.5 | BJ127: 0.62 | BK127: 0.37 | BL127: 0.25 | BM127: 0 | BN127: 2.35 | BO127: 0.05 | BP127: 0.16 | BQ127: 0 | BR127: 0 | BS127: 0 | BT127: 200 | BU127: 0 | BV127: 0 | BW127: 0 | BX127: 254.4 | BY127: 0 | BZ127: 0 | CA127: 15 | CB127: 0.2514830894 | CC127: 0.9531519562 | CD127: 1.499584348 | CE127: 0.9779897922 | CF127: 2.120530248 | CG127: 1.217053964 | CH127: 1.515107995 | CI127: 0.7109830552 | CJ127: 1.738648519 | CK127: 0.3911959169 | CL127: Enerji Kaynakları | CM127: AAN = | CN127: =0.078982-0.00438*(CS+1) -> 0.052702 | CO127: Sonraki skorda kül oranı | CQ127: Löysin | CR127: 6.7 | CS127: 9.18 | CT127: Löysin | CU127: 0.66 | CV127: 0.72
X128: ARPA ÇİMİ | Y128: 0 | Z128: 10 | AA128: 16.07 | AB128: 35.71 | AC128: 14.18 | AD128: 65 | AE128: 30 | AF128: 72.68 | AG128: 2.65 | AH128: 1.79 | AI128: 1.15 | AJ128: 20.64 | AK128: 72 | AL128: 28 | AM128: 70 | AN128: 100 | AO128: 3.94 | AP128: 1.3 | AQ128: 90 | AR128: 3.41 | AS128: 2.91 | AT128: 10 | AU128: 50 | AV128: 4 | AW128: 300 | AX128: 10 | AY128: 0.5 | AZ128: 1.73 | BA128: 3.65 | BB128: 1.73 | BC128: 3.94 | BD128: 6.35 | BE128: 3.65 | BF128: 5.48 | BG128: 1.83 | BH128: 3.94 | BI128: 1.35 | BJ128: 0.52 | BK128: 0.29 | BL128: 0.19 | BM128: 0 | BN128: 2.57 | BO128: 0.12 | BP128: 0.24 | BQ128: 0.72 | BR128: 7.7 | BS128: 0 | BT128: 375 | BU128: 44.8 | BV128: 0.15 | BW128: 24.5 | BX128: 0 | BY128: 0 | BZ128: 0 | CA128: 15 | CB128: 3.693765327 | CC128: 5.441707848 | CD128: 6.002368657 | CE128: 9.234413318 | CF128: 35.38759104 | CG128: 8.871632795 | CH128: 12.36751784 | CI128: 6.793889799 | CJ128: 12.03771736 | CK128: 1.22026176 | CL128: Protein Kaynakları | CM128: ERcs= | CN128: =CN124-CN126 -> 128.6034585 | CO128: 1 CS değişimi için gerekli enerji, Mcal | CP128: =NEmsup -> 12.69208654 | CQ128: İzolöysin | CR128: 2.8 | CS128: 5.79 | CT128: İzolöysin | CU128: 0.66 | CV128: 0.62
X129: ARPA SİLAJI | Y129: 0 | Z129: 5 | AA129: 39 | AB129: 56.8 | AC129: 5.44 | AD129: 65 | AE129: 30 | AF129: 60 | AG129: 2.17 | AH129: 1.31 | AI129: 0.74 | AJ129: 11.9 | AK129: 86 | AL129: 14 | AM129: 70 | AN129: 100 | AO129: 7.7 | AP129: 6.1 | AQ129: 100 | AR129: 2.92 | AS129: 8.3 | AT129: 10 | AU129: 50 | AV129: 4 | AW129: 300 | AX129: 10 | AY129: 0.5 | AZ129: 1.73 | BA129: 3.65 | BB129: 1.73 | BC129: 3.94 | BD129: 6.35 | BE129: 3.65 | BF129: 5.48 | BG129: 1.83 | BH129: 3.94 | BI129: 1.35 | BJ129: 0.52 | BK129: 0.29 | BL129: 0.19 | BM129: 0 | BN129: 2.57 | BO129: 0.12 | BP129: 0.24 | BQ129: 0.72 | BR129: 7.7 | BS129: 0 | BT129: 375 | BU129: 44.8 | BV129: 0.15 | BW129: 24.5 | BX129: 0 | BY129: 0 | BZ129: 0 | CA129: 3.5 | CB129: 0 | CC129: 0 | CD129: 0 | CE129: 0 | CF129: 0 | CG129: 0 | CH129: 0 | CI129: 0 | CJ129: 0 | CK129: 0 | CL129: Yan Ürünler | CM129: DaysToChange= | CN129: =IF(NEmsup-NEmtotal>0,ERcs/(NEmsup-NEmtotal),IF(NEmsup-NEmtotal<0,(ERcs*0.8)/(NEmsup-NEmtotal),0)) -> 19.29310132 | CO129: 1 CS değişimi için gerekli zaman, gün | CP129: =NEmtotal -> 6.026312264 | CQ129: Valin | CR129: 4 | CS129: 5.89 | CT129: Valin | CU129: 0.66 | CV129: 0.72
X130: BAKLA OTU, HASAT SONRASI | Y130: 0 | Z130: 5 | AA130: 19.4 | AB130: 43.4 | AC130: 8.7 | AD130: 81 | AE130: 0 | AF130: 60 | AG130: 1.93 | AH130: 1.08 | AI130: 0.51 | AJ130: 17 | AK130: 75 | AL130: 25 | AM130: 26 | AN130: 92 | AO130: 21.65908189 | AP130: 9.263122678 | AQ130: 64 | AR130: 2.5 | AS130: 9.1 | AT130: 250 | AU130: 30 | AV130: 5.5 | AW130: 150 | AX130: 9 | AY130: 1.25 | AZ130: 0.73 | BA130: 6.02 | BB130: 6.39 | BC130: 5 | BD130: 9.26 | BE130: 6.01 | BF130: 7.14 | BG130: 2.62 | BH130: 6.32 | BI130: 1.84 | BJ130: 1.19 | BK130: 0.24 | BL130: 0.27 | BM130: 0 | BN130: 1.56 | BO130: 0.07 | BP130: 0.3 | BQ130: 0.23 | BR130: 9.9 | BS130: 0.13 | BT130: 160 | BU130: 42.3 | BV130: 0.55 | BW130: 26.1 | BX130: 19.3 | BY130: 1 | BZ130: 0 | CA130: 8 | CB130: 0 | CC130: 0 | CD130: 0 | CE130: 0 | CF130: 0 | CG130: 0 | CH130: 0 | CI130: 0 | CJ130: 0 | CK130: 0 | CL130: Karma Yemler | CM130: AF, AP, TF ve TP sonraki CS için adım 1 ve 3' deki gibi, FM, PM ve ER sonraki ve mevcut skorlar arasındaki fark olarak hesaplanır. | CQ130: Arjinin | CR130: 3.3 | CS130: 3.4 | CT130: Arjinin | CU130: 0.66 | CV130: 0.85
X131: BEZELYE SİLAJI | Y131: 0 | Z131: 5 | AA131: 25 | AB131: 55 | AC131: 23.4 | AD131: 61 | AE131: 0 | AF131: 58 | AG131: 2.1 | AH131: 1.3 | AI131: 0.6 | AJ131: 16 | AK131: 91 | AL131: 9 | AM131: 45 | AN131: 100 | AO131: 32 | AP131: 18 | AQ131: 10 | AR131: 3.3 | AS131: 8 | AT131: 10 | AU131: 25 | AV131: 5.5 | AW131: 150 | AX131: 11 | AY131: 1.75 | AZ131: 1.22 | BA131: 3.21 | BB131: 2.44 | BC131: 3.3 | BD131: 6.4 | BE131: 3.13 | BF131: 0 | BG131: 0.63 | BH131: 4.18 | BI131: 1.84 | BJ131: 1.25 | BK131: 0.28 | BL131: 0.33 | BM131: 0.41 | BN131: 1.6 | BO131: 0.16 | BP131: 0.29 | BQ131: 0 | BR131: 11.1 | BS131: 0 | BT131: 280 | BU131: 49.7 | BV131: 0 | BW131: 32 | BX131: 155 | BY131: 0 | BZ131: 0 | CA131: 5.5 | CB131: 0 | CC131: 0 | CD131: 0 | CE131: 0 | CF131: 0 | CG131: 0 | CH131: 0 | CI131: 0 | CJ131: 0 | CK131: 0 | CL131: Vitamin-Mineral Kaynakları | CM131: Mobilizasyon esnasında 1 Mcal RE, 0,80 Mcal rasyon NEm'i yerine geçer; yeniden dolma esnasında 1 Mcal rasyon NEm'i 1 Mcal RE sağlar.
X132: BUĞDAY SİLAJI, HAMUR | Y132: 0 | Z132: 5 | AA132: 35 | AB132: 60.7 | AC132: 14.81 | AD132: 61 | AE132: 0 | AF132: 57 | AG132: 2.06 | AH132: 1.21 | AI132: 0.64 | AJ132: 12.5 | AK132: 81 | AL132: 19 | AM132: 45 | AN132: 100 | AO132: 27 | AP132: 8 | AQ132: 100 | AR132: 2.5 | AS132: 7.5 | AT132: 10 | AU132: 50 | AV132: 6 | AW132: 300 | AX132: 14 | AY132: 0.2 | AZ132: 0.98 | BA132: 3 | BB132: 4.33 | BC132: 2.82 | BD132: 13.64 | BE132: 3.98 | BF132: 4.5 | BG132: 2.23 | BH132: 4.84 | BI132: 1.06 | BJ132: 0.44 | BK132: 0.29 | BL132: 0.17 | BM132: 0 | BN132: 2.24 | BO132: 0.04 | BP132: 0.21 | BQ132: 0 | BR132: 9 | BS132: 0 | BT132: 386 | BU132: 79.5 | BV132: 0 | BW132: 28 | BX132: 59 | BY132: 0 | BZ132: 0 | CA132: 4 | CB132: 0 | CC132: 0 | CD132: 0 | CE132: 0 | CF132: 0 | CG132: 0 | CH132: 0 | CI132: 0 | CJ132: 0 | CK132: 0 | CM132: KURU MADDE TÜKETİMİ TAHMİNİ
X133: BUĞDAYGİL MERASI, İLKBAHAR | Y133: 0 | Z133: 5 | AA133: 23 | AB133: 47.9 | AC133: 6 | AD133: 41 | AE133: 0 | AF133: 74 | AG133: 2.68 | AH133: 1.76 | AI133: 1.14 | AJ133: 21.3 | AK133: 94 | AL133: 6 | AM133: 41 | AN133: 2.44 | AO133: 14.5 | AP133: 2 | AQ133: 8 | AR133: 4 | AS133: 10.4 | AT133: 350 | AU133: 40 | AV133: 9 | AW133: 200 | AX133: 12 | AY133: 2 | AZ133: 0.67 | BA133: 2.83 | BB133: 2.83 | BC133: 2.83 | BD133: 5.49 | BE133: 2.83 | BF133: 3.83 | BG133: 1 | BH133: 3.5 | BI133: 4.5 | BJ133: 0.55 | BK133: 0.45 | BL133: 0.32 | BM133: 0 | BN133: 3.16 | BO133: 0 | BP133: 0.2 | BQ133: 0 | BR133: 0 | BS133: 0 | BT133: 0 | BU133: 0 | BV133: 0 | BW133: 21 | BX133: 184 | BY133: 0 | BZ133: 0 | CA133: 6 | CB133: 0 | CC133: 0 | CD133: 0 | CE133: 0 | CF133: 0 | CG133: 0 | CH133: 0 | CI133: 0 | CJ133: 0 | CK133: 0 | CL133: Yem silmek için sütun listesi | CM133: BI = | CN133: =IF(Breed="Siyah Alaca",1.08,1) -> 1.08 | CO133: DMI için Tablo 10-1'teki ırk düzeltme faktörü, BE olarak önceden bulundu….
X134: BUĞDAYGİL MERASI, SONBAHAR | Y134: 0 | Z134: 5 | AA134: 24 | AB134: 67 | AC134: 6.5 | AD134: 41 | AE134: 0 | AF134: 53 | AG134: 1.92 | AH134: 1.07 | AI134: 0.52 | AJ134: 22 | AK134: 93 | AL134: 7 | AM134: 43 | AN134: 2.33 | AO134: 16.4 | AP134: 2 | AQ134: 8 | AR134: 3.7 | AS134: 10 | AT134: 350 | AU134: 45 | AV134: 7 | AW134: 200 | AX134: 12 | AY134: 2 | AZ134: 0.67 | BA134: 2.83 | BB134: 2.83 | BC134: 2.83 | BD134: 5.49 | BE134: 2.83 | BF134: 3.83 | BG134: 1 | BH134: 3.5 | BI134: 4.5 | BJ134: 0 | BK134: 0 | BL134: 0 | BM134: 0 | BN134: 0 | BO134: 0 | BP134: 0 | BQ134: 0 | BR134: 0 | BS134: 0 | BT134: 0 | BU134: 0 | BV134: 0 | BW134: 0 | BX134: 0 | BY134: 0 | BZ134: 0 | CA134: 6 | CB134: 0 | CC134: 0 | CD134: 0 | CE134: 0 | CF134: 0 | CG134: 0 | CH134: 0 | CI134: 0 | CJ134: 0 | CK134: 0 | CL134: Y | CM134: BFAF = | CN134: =IF(EBW<=350,1,IF(EBW<=400,0.97,IF(EBW<=450,0.9,IF(EBW<=500,0.82,0.73)))) -> 1 | CO134: Vücut yağına göre düzeltme faktörü (Tablo 10-4)
X135: BUĞDAYGİL MERASI, YAZ | Y135: 0 | Z135: 5 | AA135: 25 | AB135: 55 | AC135: 7 | AD135: 41 | AE135: 0 | AF135: 67 | AG135: 2.42 | AH135: 1.54 | AI135: 0.94 | AJ135: 15 | AK135: 90 | AL135: 10 | AM135: 42 | AN135: 4.76 | AO135: 24 | AP135: 2.2 | AQ135: 8 | AR135: 3.7 | AS135: 9 | AT135: 350 | AU135: 40 | AV135: 9 | AW135: 200 | AX135: 10 | AY135: 2 | AZ135: 0.67 | BA135: 2.83 | BB135: 2.83 | BC135: 2.83 | BD135: 5.49 | BE135: 2.83 | BF135: 3.83 | BG135: 1 | BH135: 3.5 | BI135: 4.5 | BJ135: 0 | BK135: 0 | BL135: 0 | BM135: 0 | BN135: 0 | BO135: 0 | BP135: 0 | BQ135: 0 | BR135: 0 | BS135: 0 | BT135: 0 | BU135: 0 | BV135: 0 | BW135: 0 | BX135: 0 | BY135: 0 | BZ135: 0 | CA135: 6 | CB135: 0 | CC135: 0 | CD135: 0 | CE135: 0 | CF135: 0 | CG135: 0 | CH135: 0 | CI135: 0 | CJ135: 0 | CK135: 0 | CL135: Z | CM135: DMI_ADTV = | CN135: 0.94 | CO135: DMI için Tablo 10-4'teki yem katkısı düzeltme faktörü
X136: ÇAVDAR SİLAJI,KÖRPE | Y136: 0 | Z136: 5 | AA136: 15 | AB136: 53 | AC136: 8 | AD136: 41 | AE136: 0 | AF136: 60 | AG136: 2.08 | AH136: 1.37 | AI136: 0.79 | AJ136: 16.1 | AK136: 81 | AL136: 19 | AM136: 45 | AN136: 100 | AO136: 27 | AP136: 8 | AQ136: 6 | AR136: 2.5 | AS136: 7.5 | AT136: 10 | AU136: 50 | AV136: 6 | AW136: 300 | AX136: 14 | AY136: 0.2 | AZ136: 0.98 | BA136: 3 | BB136: 4.33 | BC136: 2.82 | BD136: 13.64 | BE136: 3.98 | BF136: 4.5 | BG136: 2.23 | BH136: 4.84 | BI136: 1.06 | BJ136: 0.44 | BK136: 0.29 | BL136: 0.17 | BM136: 0 | BN136: 2.24 | BO136: 0.04 | BP136: 0.21 | BQ136: 0 | BR136: 9 | BS136: 0 | BT136: 386 | BU136: 79.5 | BV136: 0 | BW136: 28 | BX136: 59 | BY136: 0 | BZ136: 0 | CA136: 3 | CB136: 0 | CC136: 0 | CD136: 0 | CE136: 0 | CF136: 0 | CG136: 0 | CH136: 0 | CI136: 0 | CJ136: 0 | CK136: 0 | CL136: AA | CM136: TEMP1 = | CN136: =IF(Tc<-15,1.16,IF(Tc>35,IF(GeceSerinleme="Hayır",0.65,0.9), -0.000006*Tc^3+0.00015*Tc^2-0.0026*Tc+1.0573 )) -> 1.0173 | CO136: DMI için Tablo 10-4'teki çevre sıcaklığı düzeltme faktörü, Bütün sığır tipleri için kullanılır. | CP136: =IF(Tc<-15,1.16,IF(Tc<-5,1.07,IF(Tc<5,1.05,IF(Tc<15,1.03,IF(Tc<25,1,IF(Tc<35,0.9,IF(AND(GeceSerinleme="Evet",Tc>=35)=TRUE,0.9,0.65))))))) -> 1
X137: ÇAYIR (MEADOW) OTU, İLKBAHAR | Y137: 0 | Z137: 5 | AA137: 15 | AB137: 53 | AC137: 8 | AD137: 41 | AE137: 0 | AF137: 44.8 | AG137: 1.62 | AH137: 0.78 | AI137: 0.25 | AJ137: 20.3 | AK137: 94 | AL137: 6 | AM137: 60 | AN137: 5 | AO137: 2 | AP137: 1 | AQ137: 0 | AR137: 3 | AS137: 10 | AT137: 250 | AU137: 30 | AV137: 9 | AW137: 135 | AX137: 40 | AY137: 6 | AZ137: 0.67 | BA137: 2.83 | BB137: 2.83 | BC137: 2.83 | BD137: 5.49 | BE137: 2.83 | BF137: 3.83 | BG137: 1 | BH137: 3.5 | BI137: 4.5 | BJ137: 0.26 | BK137: 0.15 | BL137: 0 | BM137: 0 | BN137: 0 | BO137: 0 | BP137: 0 | BQ137: 0.24 | BR137: 0 | BS137: 0 | BT137: 0 | BU137: 0 | BV137: 0 | BW137: 0 | BX137: 37.2 | BY137: 0 | BZ137: 0 | CA137: 6 | CB137: 0 | CC137: 0 | CD137: 0 | CE137: 0 | CF137: 0 | CG137: 0 | CH137: 0 | CI137: 0 | CJ137: 0 | CK137: 0 | CL137: AB | CM137: MUD1 = | CN137: =IF(CamurMiktar="Yok",1,IF(CamurMiktar="Hafif (10-20 cm)",0.85,0.7)) -> 1 | CO137: DMI için Tablo 10-4'teki çamur düzeltme faktörü, Bütün sığır tipleri için kullanılır.
X138: ÇAYIR (MEADOW) OTU, SONBAHAR | Y138: 0 | Z138: 5 | AA138: 20 | AB138: 52 | AC138: 8 | AD138: 41 | AE138: 0 | AF138: 51.9 | AG138: 1.88 | AH138: 1.03 | AI138: 0.48 | AJ138: 13.4 | AK138: 92 | AL138: 8 | AM138: 60 | AN138: 5 | AO138: 2 | AP138: 1 | AQ138: 0 | AR138: 3 | AS138: 10 | AT138: 250 | AU138: 30 | AV138: 7 | AW138: 135 | AX138: 40 | AY138: 6 | AZ138: 0.67 | BA138: 2.83 | BB138: 2.83 | BC138: 2.83 | BD138: 5.49 | BE138: 2.83 | BF138: 3.83 | BG138: 1 | BH138: 3.5 | BI138: 4.5 | BJ138: 0.26 | BK138: 0.15 | BL138: 0 | BM138: 0 | BN138: 0 | BO138: 0 | BP138: 0 | BQ138: 0.24 | BR138: 0 | BS138: 0 | BT138: 0 | BU138: 0 | BV138: 0 | BW138: 0 | BX138: 37.2 | BY138: 0 | BZ138: 0 | CA138: 6 | CB138: 0 | CC138: 0 | CD138: 0 | CE138: 0 | CF138: 0 | CG138: 0 | CH138: 0 | CI138: 0 | CJ138: 0 | CK138: 0 | CL138: AC | CM138: DMI_NEma = | CN138: =IF(NEma<1,0.95,NEma) -> 1.627125
X139: ÇAYIR OTU (NAPIERGRASS) YAŞ, 30 GÜNLÜK | Y139: 0 | Z139: 5 | AA139: 20 | AB139: 70 | AC139: 14.29 | AD139: 41 | AE139: 0 | AF139: 55 | AG139: 1.99 | AH139: 1.14 | AI139: 0.58 | AJ139: 8.7 | AK139: 83 | AL139: 17 | AM139: 46 | AN139: 2.2 | AO139: 10 | AP139: 2.2 | AQ139: 8 | AR139: 3 | AS139: 9 | AT139: 250 | AU139: 30 | AV139: 3 | AW139: 135 | AX139: 11 | AY139: 0.09 | AZ139: 0.67 | BA139: 2.83 | BB139: 2.83 | BC139: 2.83 | BD139: 5.49 | BE139: 2.83 | BF139: 3.83 | BG139: 1 | BH139: 3.5 | BI139: 4.5 | BJ139: 0.6 | BK139: 0.41 | BL139: 0.26 | BM139: 0 | BN139: 1.31 | BO139: 0.01 | BP139: 0.1 | BQ139: 0 | BR139: 0 | BS139: 0 | BT139: 0 | BU139: 0 | BV139: 0 | BW139: 0 | BX139: 0 | BY139: 0 | BZ139: 0 | CA139: 6 | CB139: 0 | CC139: 0 | CD139: 0 | CE139: 0 | CF139: 0 | CG139: 0 | CH139: 0 | CI139: 0 | CJ139: 0 | CK139: 0 | CL139: AD | CM139: DMIcalf = | CN139: =((SBW^0.75*(0.2435*DMI_NEma-0.0466*DMI_NEma^2-0.1128))/DMI_NEma)*(BFAF*BI*DMI_ADTV*TEMP1*_MUD1) -> 7.101087839 | CO139: kg/gün Buzağılar için
X140: ÇAYIR OTU (NAPIERGRASS) YAŞ, 60 GÜNLÜK | Y140: 0 | Z140: 5 | AA140: 23 | AB140: 75 | AC140: 18.67 | AD140: 41 | AE140: 0 | AF140: 53 | AG140: 1.92 | AH140: 1.07 | AI140: 0.52 | AJ140: 7.8 | AK140: 81 | AL140: 19 | AM140: 46 | AN140: 2.2 | AO140: 10 | AP140: 2.2 | AQ140: 8 | AR140: 1 | AS140: 6 | AT140: 250 | AU140: 30 | AV140: 3 | AW140: 135 | AX140: 11 | AY140: 0.09 | AZ140: 0.67 | BA140: 2.83 | BB140: 2.83 | BC140: 2.83 | BD140: 5.49 | BE140: 2.83 | BF140: 3.83 | BG140: 1 | BH140: 3.5 | BI140: 4.5 | BJ140: 0.6 | BK140: 0.41 | BL140: 0.26 | BM140: 0 | BN140: 1.31 | BO140: 0.01 | BP140: 0.1 | BQ140: 0 | BR140: 0 | BS140: 0 | BT140: 0 | BU140: 0 | BV140: 0 | BW140: 0 | BX140: 0 | BY140: 0 | BZ140: 0 | CA140: 6 | CB140: 0 | CC140: 0 | CD140: 0 | CE140: 0 | CF140: 0 | CG140: 0 | CH140: 0 | CI140: 0 | CJ140: 0 | CK140: 0 | CL140: AE | CM140: DMIyearling = | CN140: =IF(BW<500,((SBW^0.75*(0.2435*DMI_NEma-0.0466*DMI_NEma^2-0.0869))/DMI_NEma)*(BFAF*BI*DMI_ADTV*TEMP1*_MUD1), DMreqYearling) -> 8.25036259 | CO140: kg/gün Bir yaşındakiler için
X141: ÇAYIR SİLAJI, KÖRPE <%55 NDF | Y141: 0 | Z141: 5 | AA141: 36.2 | AB141: 51 | AC141: 4.8 | AD141: 41 | AE141: 0 | AF141: 60.4 | AG141: 2.1 | AH141: 1.39 | AI141: 0.81 | AJ141: 16.8 | AK141: 80.9 | AL141: 19.1 | AM141: 46 | AN141: 100 | AO141: 4.3 | AP141: 1.1 | AQ141: 8 | AR141: 3.2 | AS141: 10.25 | AT141: 250 | AU141: 30 | AV141: 3 | AW141: 135 | AX141: 11 | AY141: 0.09 | AZ141: 0.67 | BA141: 2.83 | BB141: 2.83 | BC141: 2.83 | BD141: 5.49 | BE141: 2.83 | BF141: 3.83 | BG141: 1 | BH141: 3.5 | BI141: 4.5 | BJ141: 0.6 | BK141: 0.41 | BL141: 0.26 | BM141: 0 | BN141: 1.31 | BO141: 0.01 | BP141: 0.1 | BQ141: 0 | BR141: 0 | BS141: 0 | BT141: 0 | BU141: 0 | BV141: 0 | BW141: 0 | BX141: 0 | BY141: 0 | BZ141: 0 | CA141: 3 | CB141: 0 | CC141: 0 | CD141: 0 | CE141: 0 | CF141: 0 | CG141: 0 | CH141: 0 | CI141: 0 | CJ141: 0 | CK141: 0 | CL141: AF | CM141: DMInonpreg = | CN141: =((SBW^0.75*(0.04997*DMI_NEma^2+0.0384)/DMI_NEma)*TEMP1*_MUD1+0.2*Yn) -> 7.461038868 | CO141: kg/gün Gebe olmayan İnekler için
X142: ÇAYIR SİLAJI, OLGUN >%60 NDF | Y142: 0 | Z142: 5 | AA142: 38.7 | AB142: 66.6 | AC142: 7.4 | AD142: 41 | AE142: 0 | AF142: 53.2 | AG142: 1.75 | AH142: 1.11 | AI142: 0.55 | AJ142: 12.7 | AK142: 67.1 | AL142: 32.9 | AM142: 46 | AN142: 100 | AO142: 3.2 | AP142: 1.4 | AQ142: 8 | AR142: 3.2 | AS142: 10.25 | AT142: 250 | AU142: 30 | AV142: 3 | AW142: 135 | AX142: 11 | AY142: 0.09 | AZ142: 0.67 | BA142: 2.83 | BB142: 2.83 | BC142: 2.83 | BD142: 5.49 | BE142: 2.83 | BF142: 3.83 | BG142: 1 | BH142: 3.5 | BI142: 4.5 | BJ142: 0.6 | BK142: 0.41 | BL142: 0.26 | BM142: 0 | BN142: 1.31 | BO142: 0.01 | BP142: 0.1 | BQ142: 0 | BR142: 0 | BS142: 0 | BT142: 0 | BU142: 0 | BV142: 0 | BW142: 0 | BX142: 0 | BY142: 0 | BZ142: 0 | CA142: 3 | CB142: 0 | CC142: 0 | CD142: 0 | CE142: 0 | CF142: 0 | CG142: 0 | CH142: 0 | CI142: 0 | CJ142: 0 | CK142: 0 | CL142: AG | CM142: DMIpreg = | CN142: =((SBW^0.75*(0.04997*DMI_NEma^2+0.04631)/DMI_NEma)*TEMP1*_MUD1+0.2*Yn) -> 7.80677835 | CO142: kg/gün Gebe İnekler için (gebeliğin son 2/3'si)
X143: KARIŞIK MERA, İLKBAHAR | Y143: 0 | Z143: 5 | AA143: 21 | AB143: 41.5 | AC143: 7 | AD143: 41 | AE143: 0 | AF143: 79 | AG143: 2.86 | AH143: 1.91 | AI143: 1.27 | AJ143: 26 | AK143: 94 | AL143: 6 | AM143: 43 | AN143: 2.33 | AO143: 12.4 | AP143: 2.1 | AQ143: 50 | AR143: 3.2 | AS143: 10.25 | AT143: 350 | AU143: 45 | AV143: 9 | AW143: 200 | AX143: 14 | AY143: 2 | AZ143: 0.7 | BA143: 4.43 | BB143: 4.61 | BC143: 3.92 | BD143: 7.38 | BE143: 4.42 | BF143: 5.49 | BG143: 1.81 | BH143: 4.91 | BI143: 3.17 | BJ143: 0 | BK143: 0 | BL143: 0 | BM143: 0 | BN143: 0 | BO143: 0 | BP143: 0 | BQ143: 0 | BR143: 0 | BS143: 0 | BT143: 0 | BU143: 0 | BV143: 0 | BW143: 0 | BX143: 0 | BY143: 0 | BZ143: 0 | CA143: 6 | CB143: 0 | CC143: 0 | CD143: 0 | CE143: 0 | CF143: 0 | CG143: 0 | CH143: 0 | CI143: 0 | CJ143: 0 | CK143: 0 | CL143: AH | CM143: DMIreal = | CN143: =IF(AnimalType="Buzağı",DMIcalf,IF(OR(AnimalType="Besi Sığırı",AnimalType="Kastre Erkek")=TRUE,DMIyearling,IF(AnimalType="Damızlık Düve",IF(DaysPreg>95,DMIpreg,DMIyearling),IF(OR(AnimalType="Laktasyondaki İnek",AnimalType="Kurudaki İnek")=TRUE,IF(DaysPreg>95,DMIpreg,DMInonpreg),DMInonpreg)))) -> 8.25036259
X144: KARIŞIK MERA, YAZ | Y144: 0 | Z144: 5 | AA144: 22 | AB144: 46.5 | AC144: 7.8 | AD144: 41 | AE144: 0 | AF144: 67 | AG144: 2.42 | AH144: 1.54 | AI144: 0.94 | AJ144: 19.5 | AK144: 92 | AL144: 8 | AM144: 44 | AN144: 3.41 | AO144: 12.5 | AP144: 2.6 | AQ144: 48 | AR144: 3.2 | AS144: 9.4 | AT144: 350 | AU144: 45 | AV144: 9 | AW144: 200 | AX144: 14 | AY144: 2 | AZ144: 0.7 | BA144: 4.43 | BB144: 4.61 | BC144: 3.92 | BD144: 7.38 | BE144: 4.42 | BF144: 5.49 | BG144: 1.81 | BH144: 4.91 | BI144: 3.17 | BJ144: 0 | BK144: 0 | BL144: 0 | BM144: 0 | BN144: 0 | BO144: 0 | BP144: 0 | BQ144: 0 | BR144: 0 | BS144: 0 | BT144: 0 | BU144: 0 | BV144: 0 | BW144: 0 | BX144: 0 | BY144: 0 | BZ144: 0 | CA144: 6 | CB144: 0 | CC144: 0 | CD144: 0 | CE144: 0 | CF144: 0 | CG144: 0 | CH144: 0 | CI144: 0 | CJ144: 0 | CK144: 0 | CL144: AI | CM144: Merada otlayan hayvanlar için | CN144: ot miktarına oranla | CO144: DMI düzenlemesi
X145: MERA (LEG PASTURE), İLKBAHAR | Y145: 0 | Z145: 5 | AA145: 20 | AB145: 33 | AC145: 8 | AD145: 41 | AE145: 0 | AF145: 79 | AG145: 2.86 | AH145: 1.91 | AI145: 1.27 | AJ145: 28 | AK145: 95 | AL145: 5 | AM145: 46 | AN145: 2.17 | AO145: 10 | AP145: 2.15 | AQ145: 8 | AR145: 2.7 | AS145: 10 | AT145: 350 | AU145: 45 | AV145: 9 | AW145: 200 | AX145: 20 | AY145: 2 | AZ145: 0.73 | BA145: 6.02 | BB145: 6.39 | BC145: 5 | BD145: 9.26 | BE145: 6.01 | BF145: 7.14 | BG145: 2.62 | BH145: 6.32 | BI145: 1.84 | BJ145: 1.71 | BK145: 0.3 | BL145: 0.36 | BM145: 0 | BN145: 2.27 | BO145: 0.21 | BP145: 0.36 | BQ145: 0.17 | BR145: 10.7 | BS145: 0 | BT145: 111 | BU145: 41 | BV145: 0.55 | BW145: 30 | BX145: 253 | BY145: 2 | BZ145: 26 | CA145: 6 | CB145: 0 | CC145: 0 | CD145: 0 | CE145: 0 | CF145: 0 | CG145: 0 | CH145: 0 | CI145: 0 | CJ145: 0 | CK145: 0 | CL145: AJ | CM145: pI= | CN145: =IF(Otlama="Otluyor",GRAZE*DMIreal,0) -> 0 | CO145: Otlama durumlarında DMIreal tahmini için düzeltme, kg
X146: MERA (LEG PASTURE), YAZ | Y146: 0 | Z146: 5 | AA146: 21 | AB146: 38 | AC146: 8.5 | AD146: 41 | AE146: 0 | AF146: 66 | AG146: 2.39 | AH146: 1.51 | AI146: 0.91 | AJ146: 22.2 | AK146: 94 | AL146: 6 | AM146: 46 | AN146: 2.17 | AO146: 12 | AP146: 3 | AQ146: 8 | AR146: 2.9 | AS146: 10.2 | AT146: 350 | AU146: 45 | AV146: 9 | AW146: 200 | AX146: 18 | AY146: 2 | AZ146: 0.73 | BA146: 6.02 | BB146: 6.39 | BC146: 5 | BD146: 9.26 | BE146: 6.01 | BF146: 7.14 | BG146: 2.62 | BH146: 6.32 | BI146: 1.84 | BJ146: 1.71 | BK146: 0.3 | BL146: 0.36 | BM146: 0 | BN146: 2.27 | BO146: 0.21 | BP146: 0.36 | BQ146: 0.17 | BR146: 10.7 | BS146: 0 | BT146: 111 | BU146: 41 | BV146: 0.55 | BW146: 30 | BX146: 253 | BY146: 2 | BZ146: 26 | CA146: 6 | CB146: 0 | CC146: 0 | CD146: 0 | CE146: 0 | CF146: 0 | CG146: 0 | CH146: 0 | CI146: 0 | CJ146: 0 | CK146: 0 | CL146: AK | CM146: FA= | CN146: =IF(Otlama="Otluyor",1000*GU*IPM/(SBW*GrazeN*DOP),0) -> 0 | CO146: Günlük ot toleransı, g/kg SBW/gün
X147: MISIR SİLAJI, %23-26 KM | Y147: 0 | Z147: 5 | AA147: 25.02 | AB147: 55.78 | AC147: 8.29 | AD147: 81 | AE147: 0 | AF147: 60.14 | AG147: 2.01 | AH147: 1.19 | AI147: 0.62 | AJ147: 7.26 | AK147: 69.2 | AL147: 30.8 | AM147: 55 | AN147: 100 | AO147: 25.41 | AP147: 11.41 | AQ147: 100 | AR147: 3.32 | AS147: 6.63 | AT147: 10 | AU147: 25 | AV147: 6 | AW147: 300 | AX147: 10 | AY147: 0.2 | AZ147: 0.8 | BA147: 2.13 | BB147: 1.87 | BC147: 2.13 | BD147: 6.4 | BE147: 2.4 | BF147: 3.2 | BG147: 1.07 | BH147: 2.94 | BI147: 0.11 | BJ147: 0.31 | BK147: 0.27 | BL147: 0.22 | BM147: 0.18 | BN147: 1.22 | BO147: 0.03 | BP147: 0.12 | BQ147: 0.097 | BR147: 9.2 | BS147: 0 | BT147: 180 | BU147: 41.1 | BV147: 0 | BW147: 21.2 | BX147: 58.1 | BY147: 0 | BZ147: 0 | CA147: 2.5 | CB147: 0 | CC147: 0 | CD147: 0 | CE147: 0 | CF147: 0 | CG147: 0 | CH147: 0 | CI147: 0 | CJ147: 0 | CK147: 0 | CL147: AL | CM147: GRAZE= | CN147: =IF(Otlama="Otluyor",IF(OR(FA>DMIreal*1000*4,IPM>1150)=TRUE,1,((0.17*IPM)-(0.000074*IPM^2)+2.4)/100),0) -> 0 | CO147: Otlama varsa ot varlığı faktörü, %
X148: MISIR SİLAJI, %26-29 KM | Y148: 0 | Z148: 5 | AA148: 27.73 | AB148: 52.96 | AC148: 9.26 | AD148: 81 | AE148: 0 | AF148: 62.17 | AG148: 2.08 | AH148: 1.26 | AI148: 0.68 | AJ148: 7.2 | AK148: 70 | AL148: 30 | AM148: 55 | AN148: 100 | AO148: 22.53 | AP148: 8.83 | AQ148: 100 | AR148: 3.55 | AS148: 5.75 | AT148: 10 | AU148: 25 | AV148: 5 | AW148: 300 | AX148: 10 | AY148: 0.2 | AZ148: 0.8 | BA148: 2.13 | BB148: 1.87 | BC148: 2.13 | BD148: 6.4 | BE148: 2.4 | BF148: 3.2 | BG148: 1.07 | BH148: 2.94 | BI148: 0.11 | BJ148: 0.31 | BK148: 0.27 | BL148: 0.22 | BM148: 0.18 | BN148: 1.22 | BO148: 0.03 | BP148: 0.12 | BQ148: 0.097 | BR148: 9.2 | BS148: 0 | BT148: 180 | BU148: 41.1 | BV148: 0 | BW148: 21.2 | BX148: 58.1 | BY148: 0 | BZ148: 0 | CA148: 2.5 | CB148: 0 | CC148: 0 | CD148: 0 | CE148: 0 | CF148: 0 | CG148: 0 | CH148: 0 | CI148: 0 | CJ148: 0 | CK148: 0 | CL148: AM | CM148: IPM = | CN148: =pAVAIL*0.15*1000 -> 0 | CO148: Başlangıç mera miktarı (kg KM/ha)
X149: MISIR SİLAJI, %29-33 KM | Y149: 0 | Z149: 5 | AA149: 31.29 | AB149: 52.92 | AC149: 9.47 | AD149: 81 | AE149: 0 | AF149: 60.99 | AG149: 2.04 | AH149: 1.22 | AI149: 0.64 | AJ149: 7.22 | AK149: 70.2 | AL149: 29.8 | AM149: 50 | AN149: 100 | AO149: 22.05 | AP149: 10.17 | AQ149: 100 | AR149: 3.43 | AS149: 5.8 | AT149: 10 | AU149: 30 | AV149: 6 | AW149: 300 | AX149: 10 | AY149: 0.2 | AZ149: 0.8 | BA149: 2.13 | BB149: 1.87 | BC149: 2.13 | BD149: 6.4 | BE149: 2.4 | BF149: 3.2 | BG149: 1.07 | BH149: 2.94 | BI149: 0.11 | BJ149: 0.31 | BK149: 0.27 | BL149: 0.22 | BM149: 0.18 | BN149: 1.22 | BO149: 0.03 | BP149: 0.12 | BQ149: 0.097 | BR149: 9.2 | BS149: 0 | BT149: 180 | BU149: 41.1 | BV149: 0 | BW149: 21.2 | BX149: 58.1 | BY149: 0 | BZ149: 0 | CA149: 2.5 | CB149: 0 | CC149: 0 | CD149: 0 | CE149: 0 | CF149: 0 | CG149: 0 | CH149: 0 | CI149: 0 | CJ149: 0 | CK149: 0 | CL149: AN | CM149: BESİN MADDELERİNİN SAĞLANMASI Besin madde miktarları DMIreal yerine TotalDMFed'den hesaplanmalıdır.
X150: MISIR SİLAJI, %33-40 KM | Y150: 0 | Z150: 5 | AA150: 35.48 | AB150: 51.58 | AC150: 9.59 | AD150: 81 | AE150: 0 | AF150: 60.87 | AG150: 2.03 | AH150: 1.22 | AI150: 0.64 | AJ150: 7.29 | AK150: 66.2 | AL150: 33.8 | AM150: 50 | AN150: 100 | AO150: 21.48 | AP150: 9.28 | AQ150: 100 | AR150: 3.5 | AS150: 5.83 | AT150: 10 | AU150: 30 | AV150: 6 | AW150: 300 | AX150: 10 | AY150: 0.2 | AZ150: 0.8 | BA150: 2.13 | BB150: 1.87 | BC150: 2.13 | BD150: 6.4 | BE150: 2.4 | BF150: 3.2 | BG150: 1.07 | BH150: 2.94 | BI150: 0.11 | BJ150: 0.31 | BK150: 0.27 | BL150: 0.22 | BM150: 0.18 | BN150: 1.22 | BO150: 0.03 | BP150: 0.12 | BQ150: 0.097 | BR150: 9.2 | BS150: 0 | BT150: 180 | BU150: 41.1 | BV150: 0 | BW150: 21.2 | BX150: 58.1 | BY150: 0 | BZ150: 0 | CA150: 2.5 | CB150: 0 | CC150: 0 | CD150: 0 | CE150: 0 | CF150: 0 | CG150: 0 | CH150: 0 | CI150: 0 | CJ150: 0 | CK150: 0 | CL150: AO | CM150: SEVİYE BİR
X151: OTLAK (RANGE), AĞUSTOS | Y151: 0 | Z151: 5 | AA151: 20 | AB151: 63.7 | AC151: 8 | AD151: 41 | AE151: 0 | AF151: 59.4 | AG151: 2.15 | AH151: 1.29 | AI151: 0.72 | AJ151: 9.7 | AK151: 66 | AL151: 34 | AM151: 42 | AN151: 5 | AO151: 24 | AP151: 2 | AQ151: 0 | AR151: 3 | AS151: 10 | AT151: 250 | AU151: 30 | AV151: 7 | AW151: 135 | AX151: 10 | AY151: 0.75 | AZ151: 0.67 | BA151: 2.83 | BB151: 2.83 | BC151: 2.83 | BD151: 5.49 | BE151: 2.83 | BF151: 3.83 | BG151: 1 | BH151: 3.5 | BI151: 4.5 | BJ151: 0.26 | BK151: 0.15 | BL151: 0 | BM151: 0 | BN151: 0 | BO151: 0 | BP151: 0 | BQ151: 0.24 | BR151: 0 | BS151: 0 | BT151: 0 | BU151: 0 | BV151: 0 | BW151: 0 | BX151: 37.2 | BY151: 0 | BZ151: 0 | CA151: 6 | CB151: 0 | CC151: 0 | CD151: 0 | CE151: 0 | CF151: 0 | CG151: 0 | CH151: 0 | CI151: 0 | CJ151: 0 | CK151: 0 | CL151: AP | CM151: NDF = | CN151: =AA33/TotalDMFed*100 -> 36.83803277
X152: OTLAK (RANGE), EYLÜL | Y152: 0 | Z152: 5 | AA152: 20 | AB152: 66.6 | AC152: 9 | AD152: 41 | AE152: 0 | AF152: 57.3 | AG152: 2.07 | AH152: 1.22 | AI152: 0.65 | AJ152: 6.9 | AK152: 67 | AL152: 33 | AM152: 42 | AN152: 5 | AO152: 24 | AP152: 2 | AQ152: 0 | AR152: 3 | AS152: 10 | AT152: 250 | AU152: 30 | AV152: 7 | AW152: 135 | AX152: 12 | AY152: 0.75 | AZ152: 0.67 | BA152: 2.83 | BB152: 2.83 | BC152: 2.83 | BD152: 5.49 | BE152: 2.83 | BF152: 3.83 | BG152: 1 | BH152: 3.5 | BI152: 4.5 | BJ152: 0.26 | BK152: 0.15 | BL152: 0 | BM152: 0 | BN152: 0 | BO152: 0 | BP152: 0 | BQ152: 0.24 | BR152: 0 | BS152: 0 | BT152: 0 | BU152: 0 | BV152: 0 | BW152: 0 | BX152: 37.2 | BY152: 0 | BZ152: 0 | CA152: 6 | CB152: AAA | CC152: AAA | CD152: AAA | CE152: AAA | CF152: AAA | CG152: AAA | CH152: AAA | CI152: AAA | CJ152: AAA | CK152: AAA | CL152: AQ | CM152: eNDF = | CN152: =AC33/TotalDMFed*100 -> 34.10322128
X153: OTLAK (RANGE), HAZİRAN | Y153: 0 | Z153: 5 | AA153: 20 | AB153: 65.6 | AC153: 5 | AD153: 41 | AE153: 0 | AF153: 64.9 | AG153: 2.35 | AH153: 1.47 | AI153: 0.88 | AJ153: 11 | AK153: 72 | AL153: 28 | AM153: 42 | AN153: 5 | AO153: 24 | AP153: 2 | AQ153: 0 | AR153: 3 | AS153: 10 | AT153: 250 | AU153: 30 | AV153: 7 | AW153: 135 | AX153: 12 | AY153: 3 | AZ153: 0.67 | BA153: 2.83 | BB153: 2.83 | BC153: 2.83 | BD153: 5.49 | BE153: 2.83 | BF153: 3.83 | BG153: 1 | BH153: 3.5 | BI153: 4.5 | BJ153: 0.26 | BK153: 0.15 | BL153: 0 | BM153: 0 | BN153: 0 | BO153: 0 | BP153: 0 | BQ153: 0.24 | BR153: 0 | BS153: 0 | BT153: 0 | BU153: 0 | BV153: 0 | BW153: 0 | BX153: 37.2 | BY153: 0 | BZ153: 0 | CA153: 6 | CB153: =SUM(CB155:CB181) -> 6.606666972 | CC153: 14.68862235 | CD153: 14.62417323 | CE153: 16.04025803 | CF153: 45.66361716 | CG153: 16.00157298 | CH153: 20.44211002 | CI153: 10.23946158 | CJ153: 19.32733563 | CK153: 4.020408698 | CL153: AR | CM153: MPfeed= | CN153: =UIPintake*0.8 -> 296.4611327
X154: OTLAK (RANGE), KIŞ | Y154: 0 | Z154: 5 | AA154: 80 | AB154: 66.1 | AC154: 11 | AD154: 41 | AE154: 0 | AF154: 50.5 | AG154: 1.83 | AH154: 0.99 | AI154: 0.44 | AJ154: 4.7 | AK154: 63 | AL154: 37 | AM154: 42 | AN154: 5 | AO154: 24 | AP154: 2 | AQ154: 0 | AR154: 3 | AS154: 10 | AT154: 250 | AU154: 30 | AV154: 7 | AW154: 135 | AX154: 10 | AY154: 0.2 | AZ154: 0.67 | BA154: 2.83 | BB154: 2.83 | BC154: 2.83 | BD154: 5.49 | BE154: 2.83 | BF154: 3.83 | BG154: 1 | BH154: 3.5 | BI154: 4.5 | BJ154: 0.26 | BK154: 0.15 | BL154: 0 | BM154: 0 | BN154: 0 | BO154: 0 | BP154: 0 | BQ154: 0.24 | BR154: 0 | BS154: 0 | BT154: 0 | BU154: 0 | BV154: 0 | BW154: 0 | BX154: 37.2 | BY154: 0 | BZ154: 0 | CA154: 6 | CB154: MET, g | CC154: LİZ, g | CD154: ARJ, g | CE154: TRE, g | CF154: LÖY, g | CG154: İZOLÖY, g | CH154: VAL, g | CI154: HIS, g | CJ154: FENAL, g | CK154: TRİP, g | CL154: AS | CM154: MCP= | CN154: =0.13*TDN*eNDFadj -> 721.3839582 | CO154: Mikrobiyel ham protein, g/gün
X155: OTLAK (RANGE), TEMMUZ | Y155: 0 | Z155: 5 | AA155: 20 | AB155: 67.7 | AC155: 5.5 | AD155: 41 | AE155: 0 | AF155: 62.3 | AG155: 2.25 | AH155: 1.39 | AI155: 0.81 | AJ155: 10.5 | AK155: 70 | AL155: 30 | AM155: 42 | AN155: 5 | AO155: 24 | AP155: 2 | AQ155: 0 | AR155: 3 | AS155: 10 | AT155: 250 | AU155: 30 | AV155: 7 | AW155: 135 | AX155: 12 | AY155: 2 | AZ155: 0.67 | BA155: 2.83 | BB155: 2.83 | BC155: 2.83 | BD155: 5.49 | BE155: 2.83 | BF155: 3.83 | BG155: 1 | BH155: 3.5 | BI155: 4.5 | BJ155: 0.26 | BK155: 0.15 | BL155: 0 | BM155: 0 | BN155: 0 | BO155: 0 | BP155: 0 | BQ155: 0.24 | BR155: 0 | BS155: 0 | BT155: 0 | BU155: 0 | BV155: 0 | BW155: 0 | BX155: 37.2 | BY155: 0 | BZ155: 0 | CA155: 6 | CB155: =IF(ISERROR(CB35+CB125)=TRUE,0,CB35+CB125) -> 0 | CC155: 0 | CD155: 0 | CE155: 0 | CF155: 0 | CG155: 0 | CH155: 0 | CI155: 0 | CJ155: 0 | CK155: 0 | CL155: AT | CM155: eNDFadj= | CN155: =IF(eNDF>20,1,1-((20-eNDF)*0.025)) -> 1
X156: PARLAK YALANCI DARI (BAHIAGRASS), YAŞ | Y156: 0 | Z156: 5 | AA156: 30 | AB156: 68 | AC156: 10.29 | AD156: 41 | AE156: 30.4 | AF156: 54 | AG156: 1.95 | AH156: 1.11 | AI156: 0.55 | AJ156: 8.9 | AK156: 83 | AL156: 17 | AM156: 41 | AN156: 2.4 | AO156: 14.5 | AP156: 2 | AQ156: 5 | AR156: 2.1 | AS156: 10 | AT156: 250 | AU156: 30 | AV156: 3 | AW156: 135 | AX156: 11 | AY156: 0.09 | AZ156: 0.67 | BA156: 2.83 | BB156: 2.83 | BC156: 2.83 | BD156: 5.49 | BE156: 2.83 | BF156: 3.83 | BG156: 1 | BH156: 3.5 | BI156: 4.5 | BJ156: 0.46 | BK156: 0.22 | BL156: 0.25 | BM156: 0 | BN156: 1.45 | BO156: 0 | BP156: 0 | BQ156: 0 | BR156: 0 | BS156: 0 | BT156: 0 | BU156: 0 | BV156: 0 | BW156: 0 | BX156: 304.2 | BY156: 0 | BZ156: 0 | CA156: 6 | CB156: =IF(ISERROR(CB36+CB126)=TRUE,0,CB36+CB126) -> 0.468888481 | CC156: 1.585275007 | CD156: 1.428186899 | CE156: 1.254629876 | CF156: 2.011503014 | CG156: 1.266031433 | CH156: 1.519937454 | CI156: 0.5338775684 | CJ156: 1.329531247 | CK156: 1.075434596 | CL156: AU | CM156: TDN= | CN156: =TDN -> 5549.107371 | CO156: Toplam sindirilebilir besin maddeleri, g/gün
X157: SORGUM SİLAJI | Y157: 0 | Z157: 5 | AA157: 30 | AB157: 60.8 | AC157: 9.375 | AD157: 81 | AE157: 0 | AF157: 60 | AG157: 2.17 | AH157: 1.31 | AI157: 0.74 | AJ157: 9.39 | AK157: 73 | AL157: 27 | AM157: 45 | AN157: 100 | AO157: 50 | AP157: 5 | AQ157: 100 | AR157: 2.64 | AS157: 5.9 | AT157: 10 | AU157: 20 | AV157: 5 | AW157: 300 | AX157: 8 | AY157: 0.2 | AZ157: 0.75 | BA157: 3.61 | BB157: 7.07 | BC157: 2.26 | BD157: 4.29 | BE157: 3.01 | BF157: 2.78 | BG157: 1.35 | BH157: 2.78 | BI157: 0.75 | BJ157: 0.49 | BK157: 0.22 | BL157: 0.28 | BM157: 0.13 | BN157: 1.72 | BO157: 0.01 | BP157: 0.12 | BQ157: 0.3 | BR157: 9.2 | BS157: 0 | BT157: 383 | BU157: 68.5 | BV157: 0.03 | BW157: 32 | BX157: 0 | BY157: 0 | BZ157: 0 | CA157: 5 | CB157: =IF(ISERROR(CB37+CB127)=TRUE,0,CB37+CB127) -> 0.5518816187 | CC157: 1.872281785 | CD157: 2.279723812 | CE157: 1.604567322 | CF157: 2.962318664 | CG157: 1.853719503 | CH157: 2.205576257 | CI157: 1.012502475 | CJ157: 2.317027777 | CK157: 0.5739009925 | CL157: AV | CM157: MPbact= | CN157: =MCP*0.64 -> 461.6857333
X158: SORGUM-SUDAN OTU SİLAJI | Y158: 0 | Z158: 5 | AA158: 28 | AB158: 68 | AC158: 7.04 | AD158: 41 | AE158: 0 | AF158: 55 | AG158: 1.99 | AH158: 1.14 | AI158: 0.58 | AJ158: 10.8 | AK158: 72 | AL158: 28 | AM158: 50 | AN158: 90 | AO158: 40 | AP158: 11 | AQ158: 100 | AR158: 2.8 | AS158: 9.8 | AT158: 10 | AU158: 20 | AV158: 5 | AW158: 175 | AX158: 12 | AY158: 1.5 | AZ158: 0.67 | BA158: 2.83 | BB158: 2.83 | BC158: 2.83 | BD158: 5.49 | BE158: 2.83 | BF158: 3.83 | BG158: 1 | BH158: 3.5 | BI158: 4.5 | BJ158: 0.5 | BK158: 0.21 | BL158: 0.42 | BM158: 0 | BN158: 2.61 | BO158: 0.02 | BP158: 0.06 | BQ158: 0.27 | BR158: 36.6 | BS158: 0 | BT158: 120 | BU158: 98.8 | BV158: 0 | BW158: 0 | BX158: 175.4 | BY158: 0 | BZ158: 0 | CA158: 5 | CB158: =IF(ISERROR(CB38+CB128)=TRUE,0,CB38+CB128) -> 5.585896872 | CC158: 11.23106556 | CD158: 10.91626252 | CE158: 13.18106083 | CF158: 40.68979548 | CG158: 12.88182204 | CH158: 16.71659631 | CI158: 8.693081536 | CJ158: 15.6807766 | CK158: 2.37107311 | CL158: AW | CM158: MPtotal= | CN158: =MPbact+MPfeed -> 758.146866
X159: SORGUM-SUDAN OTU, YAŞ | Y159: 0 | Z159: 5 | AA159: 18 | AB159: 55 | AC159: 5.45 | AD159: 41 | AE159: 0 | AF159: 65 | AG159: 2.35 | AH159: 1.47 | AI159: 0.88 | AJ159: 16.8 | AK159: 88 | AL159: 12 | AM159: 45 | AN159: 11.11 | AO159: 30 | AP159: 5 | AQ159: 90 | AR159: 3.9 | AS159: 9 | AT159: 300 | AU159: 20 | AV159: 9 | AW159: 200 | AX159: 14 | AY159: 2 | AZ159: 0.67 | BA159: 2.83 | BB159: 2.83 | BC159: 2.83 | BD159: 5.49 | BE159: 2.83 | BF159: 3.83 | BG159: 1 | BH159: 3.5 | BI159: 4.5 | BJ159: 0.49 | BK159: 0.44 | BL159: 0.35 | BM159: 0 | BN159: 2.14 | BO159: 0 | BP159: 0.11 | BQ159: 0.13 | BR159: 35.9 | BS159: 0 | BT159: 210 | BU159: 81.4 | BV159: 0 | BW159: 0 | BX159: 304.6 | BY159: 0 | BZ159: 0 | CA159: 5 | CB159: =IF(ISERROR(CB39+CB129)=TRUE,0,CB39+CB129) -> 0 | CC159: 0 | CD159: 0 | CE159: 0 | CF159: 0 | CG159: 0 | CH159: 0 | CI159: 0 | CJ159: 0 | CK159: 0 | CL159: AX | CM159: SEVİYE İKİ | CN159: YAŞAMA PAYI AMİNO ASİT İHTİYAÇLARI
X160: ŞEYTAN OTU (PANGOLAGRASS), YAŞ | Y160: 0 | Z160: 5 | AA160: 21 | AB160: 70 | AC160: 11.4 | AD160: 41 | AE160: 0 | AF160: 55 | AG160: 1.99 | AH160: 1.14 | AI160: 0.58 | AJ160: 9.1 | AK160: 84 | AL160: 16 | AM160: 42 | AN160: 4.8 | AO160: 24 | AP160: 2.2 | AQ160: 5 | AR160: 2.3 | AS160: 7.6 | AT160: 250 | AU160: 30 | AV160: 3 | AW160: 135 | AX160: 11 | AY160: 0.09 | AZ160: 0.67 | BA160: 2.83 | BB160: 2.83 | BC160: 2.83 | BD160: 5.49 | BE160: 2.83 | BF160: 3.83 | BG160: 1 | BH160: 3.5 | BI160: 4.5 | BJ160: 0.38 | BK160: 0.22 | BL160: 0.18 | BM160: 0 | BN160: 1.43 | BO160: 0 | BP160: 0 | BQ160: 0 | BR160: 0 | BS160: 0 | BT160: 0 | BU160: 0 | BV160: 0 | BW160: 0 | BX160: 0 | BY160: 0 | BZ160: 0 | CA160: 5 | CB160: =IF(ISERROR(CB40+CB130)=TRUE,0,CB40+CB130) -> 0 | CC160: 0 | CD160: 0 | CE160: 0 | CF160: 0 | CG160: 0 | CH160: 0 | CI160: 0 | CJ160: 0 | CK160: 0 | CL160: AY | CM160: RPN = | CN160: =PB*0.01*EBG -> 0.131301597 | CO160: Büyüme için net protein ihtiyacı, g/gün
X161: YERFISTIĞI OTU, HASAT SONRASI | Y161: 0 | Z161: 5 | AA161: 18 | AB161: 60 | AC161: 4.3 | AD161: 98 | AE161: 0 | AF161: 60 | AG161: 2.02 | AH161: 1.33 | AI161: 0.75 | AJ161: 15 | AK161: 70 | AL161: 30 | AM161: 25 | AN161: 92 | AO161: 21.02053313 | AP161: 7.860420552 | AQ161: 64 | AR161: 2.552649584 | AS161: 8.166484033 | AT161: 250 | AU161: 30 | AV161: 5.5 | AW161: 150 | AX161: 9 | AY161: 1.25 | AZ161: 0.73 | BA161: 6.02 | BB161: 6.39 | BC161: 5 | BD161: 9.26 | BE161: 6.01 | BF161: 7.14 | BG161: 2.62 | BH161: 6.32 | BI161: 1.84 | BJ161: 1.18 | BK161: 0.21 | BL161: 0.22 | BM161: 0 | BN161: 2.07 | BO161: 0.08 | BP161: 0.25 | BQ161: 0.41 | BR161: 13.7 | BS161: 0 | BT161: 170 | BU161: 38.5 | BV161: 0.55 | BW161: 22.1 | BX161: 19.3 | BY161: 1 | BZ161: 0 | CA161: 5 | CB161: =IF(ISERROR(CB41+CB131)=TRUE,0,CB41+CB131) -> 0 | CC161: 0 | CD161: 0 | CE161: 0 | CF161: 0 | CG161: 0 | CH161: 0 | CI161: 0 | CJ161: 0 | CK161: 0 | CL161: AZ | CM161: PB = | CN161: =100*aaRP -> 9.53783102 | CO161: EBG'de protein içeriği, g/100 g (Tablo 3-1)???
X162: YONCA SİLAJI, ÇİÇ.BAŞI | Y162: 0 | Z162: 5 | AA162: 35 | AB162: 43 | AC162: 23.26 | AD162: 82 | AE162: 0 | AF162: 63 | AG162: 2.28 | AH162: 1.41 | AI162: 0.83 | AJ162: 19 | AK162: 92 | AL162: 8 | AM162: 50 | AN162: 100 | AO162: 27 | AP162: 15 | AQ162: 10 | AR162: 3.2 | AS162: 9.5 | AT162: 10 | AU162: 25 | AV162: 5.5 | AW162: 150 | AX162: 11 | AY162: 1.75 | AZ162: 1.22 | BA162: 3.21 | BB162: 2.44 | BC162: 3.3 | BD162: 6.4 | BE162: 3.13 | BF162: 0 | BG162: 0.63 | BH162: 4.18 | BI162: 1.84 | BJ162: 1.32 | BK162: 0.31 | BL162: 0.26 | BM162: 0 | BN162: 2.85 | BO162: 0.02 | BP162: 0.28 | BQ162: 0.65 | BR162: 12.1 | BS162: 0.16 | BT162: 252 | BU162: 32.4 | BV162: 0.18 | BW162: 19.5 | BX162: 155 | BY162: 0 | BZ162: 0 | CA162: 4 | CB162: =IF(ISERROR(CB42+CB132)=TRUE,0,CB42+CB132) -> 0 | CC162: 0 | CD162: 0 | CE162: 0 | CF162: 0 | CG162: 0 | CH162: 0 | CI162: 0 | CJ162: 0 | CK162: 0 | CL162: BA | CM162: aaRP = | CN162: =0.248-0.0264*aaRE -> 0.0953783102 | CO162: Ağırlık artışında alıkonulan protein oranı, Eq. 3-3
X163: YONCA SİLAJI, ÇİÇ.ORTASI | Y163: 0 | Z163: 5 | AA163: 38 | AB163: 47 | AC163: 23.4 | AD163: 82 | AE163: 0 | AF163: 58 | AG163: 2.1 | AH163: 1.24 | AI163: 0.68 | AJ163: 17 | AK163: 91 | AL163: 9 | AM163: 45 | AN163: 100 | AO163: 32 | AP163: 18 | AQ163: 10 | AR163: 3.1 | AS163: 9 | AT163: 10 | AU163: 25 | AV163: 5.5 | AW163: 150 | AX163: 11 | AY163: 1.75 | AZ163: 1.22 | BA163: 3.21 | BB163: 2.44 | BC163: 3.3 | BD163: 6.4 | BE163: 3.13 | BF163: 0 | BG163: 0.63 | BH163: 4.18 | BI163: 1.84 | BJ163: 1.74 | BK163: 0.27 | BL163: 0.33 | BM163: 0.41 | BN163: 2.35 | BO163: 0.16 | BP163: 0.31 | BQ163: 0 | BR163: 11.1 | BS163: 0 | BT163: 280 | BU163: 49.7 | BV163: 0 | BW163: 40.7 | BX163: 155 | BY163: 0 | BZ163: 0 | CA163: 4 | CB163: =IF(ISERROR(CB43+CB133)=TRUE,0,CB43+CB133) -> 0 | CC163: 0 | CD163: 0 | CE163: 0 | CF163: 0 | CG163: 0 | CH163: 0 | CI163: 0 | CJ163: 0 | CK163: 0 | CL163: BB | CM163: aaRE = | CN163: =0.0635*EBW^0.75*EBG^1.097 -> 5.781124613 | CO163: Eq. 3-1
X164: YONCA SİLAJI, TAM ÇİÇ. | Y164: 0 | Z164: 5 | AA164: 40 | AB164: 51 | AC164: 23.53 | AD164: 82 | AE164: 0 | AF164: 55 | AG164: 1.99 | AH164: 1.14 | AI164: 0.58 | AJ164: 16 | AK164: 91 | AL164: 9 | AM164: 40 | AN164: 100 | AO164: 37 | AP164: 21 | AQ164: 10 | AR164: 2.7 | AS164: 8 | AT164: 10 | AU164: 25 | AV164: 5.5 | AW164: 150 | AX164: 11 | AY164: 1.75 | AZ164: 1.22 | BA164: 3.21 | BB164: 2.44 | BC164: 3.3 | BD164: 6.4 | BE164: 3.13 | BF164: 0 | BG164: 0.63 | BH164: 4.18 | BI164: 1.84 | BJ164: 1.74 | BK164: 0.27 | BL164: 0.33 | BM164: 0.41 | BN164: 2.35 | BO164: 0.16 | BP164: 0.31 | BQ164: 0 | BR164: 11.1 | BS164: 0 | BT164: 280 | BU164: 49.7 | BV164: 0 | BW164: 40.7 | BX164: 155 | BY164: 0 | BZ164: 0 | CA164: 4 | CB164: =IF(ISERROR(CB44+CB134)=TRUE,0,CB44+CB134) -> 0 | CC164: 0 | CD164: 0 | CE164: 0 | CF164: 0 | CG164: 0 | CH164: 0 | CI164: 0 | CJ164: 0 | CK164: 0 | CL164: BC | CM164: EAAGi = | CN164: =IF(SBW<300,0.834-(0.00114*EBW),0.492) -> 0.54146688 | CO164: Büyüme için i. Amino asitin kullanım etkinliği, g/g (Tablo 10-6)
X165: YULAF SİLAJI, HAMUR | Y165: 0 | Z165: 5 | AA165: 36.4 | AB165: 58.1 | AC165: 16.07 | AD165: 61 | AE165: 0 | AF165: 59 | AG165: 2.13 | AH165: 1.28 | AI165: 0.71 | AJ165: 12.7 | AK165: 85 | AL165: 15 | AM165: 50 | AN165: 100 | AO165: 30 | AP165: 10 | AQ165: 100 | AR165: 3.12 | AS165: 10.1 | AT165: 10 | AU165: 50 | AV165: 5 | AW165: 300 | AX165: 12 | AY165: 0.2 | AZ165: 2.12 | BA165: 2.02 | BB165: 4.38 | BC165: 2.16 | BD165: 7.7 | BE165: 3.84 | BF165: 0 | BG165: 1.8 | BH165: 5.86 | BI165: 1.28 | BJ165: 0.58 | BK165: 0.31 | BL165: 0.21 | BM165: 0 | BN165: 2.88 | BO165: 0.09 | BP165: 0.24 | BQ165: 0 | BR165: 8 | BS165: 0 | BT165: 367 | BU165: 66.3 | BV165: 0.07 | BW165: 29.8 | BX165: 0 | BY165: 0 | BZ165: 0 | CA165: 4 | CB165: =IF(ISERROR(CB45+CB135)=TRUE,0,CB45+CB135) -> 0 | CC165: 0 | CD165: 0 | CE165: 0 | CF165: 0 | CG165: 0 | CH165: 0 | CI165: 0 | CJ165: 0 | CK165: 0 | CL165: BD | CM165: KARBONHİDRAT TÜKETİMİ
CB166: =IF(ISERROR(CB46+CB136)=TRUE,0,CB46+CB136) -> 0 | CC166: 0 | CD166: 0 | CE166: 0 | CF166: 0 | CG166: 0 | CH166: 0 | CI166: 0 | CJ166: 0 | CK166: 0 | CL166: BE | CM166: CHO= | CN166: =(BI94/1000)/TotalDMFed*100 -> 84.01389271 | CO166: KM'deki CHO oranı
CB167: =IF(ISERROR(CB47+CB137)=TRUE,0,CB47+CB137) -> 0 | CC167: 0 | CD167: 0 | CE167: 0 | CF167: 0 | CG167: 0 | CH167: 0 | CI167: 0 | CJ167: 0 | CK167: 0 | CL167: BF | CM167: CC= | CN167: =(BK94/1000)/TotalDMFed*100 -> 10.68394495 | CO167: KM'deki değerlendirilemeyen selüloz oranı
CB168: =IF(ISERROR(CB48+CB138)=TRUE,0,CB48+CB138) -> 0 | CC168: 0 | CD168: 0 | CE168: 0 | CF168: 0 | CG168: 0 | CH168: 0 | CI168: 0 | CJ168: 0 | CK168: 0 | CL168: BG | CM168: CB2= | CN168: =(BM94/1000)/TotalDMFed*100 -> 23.93827991 | CO168: KM'deki değerlendirilebilir selüloz oranı
CB169: =IF(ISERROR(CB49+CB139)=TRUE,0,CB49+CB139) -> 0 | CC169: 0 | CD169: 0 | CE169: 0 | CF169: 0 | CG169: 0 | CH169: 0 | CI169: 0 | CJ169: 0 | CK169: 0 | CL169: BH | CM169: NFC= | CN169: =(AU33/1000)/TotalDMFed*100 -> 49.39166785 | CO169: KM'deki selüloz olmayan CHO oranı
CB170: =IF(ISERROR(CB50+CB140)=TRUE,0,CB50+CB140) -> 0 | CC170: 0 | CD170: 0 | CE170: 0 | CF170: 0 | CG170: 0 | CH170: 0 | CI170: 0 | CJ170: 0 | CK170: 0 | CL170: BI | CM170: CB1= | CN170: =(BO94/1000)/TotalDMFed*100 -> 45.17301682 | CO170: KM'deki nişasta oranı
CB171: =IF(ISERROR(CB51+CB141)=TRUE,0,CB51+CB141) -> 0 | CC171: 0 | CD171: 0 | CE171: 0 | CF171: 0 | CG171: 0 | CH171: 0 | CI171: 0 | CJ171: 0 | CK171: 0 | CL171: BJ | CM171: CA= | CN171: =(BQ94/1000)/TotalDMFed*100 -> 4.218651034 | CO171: KM'deki şeker oranı
CB172: =IF(ISERROR(CB52+CB142)=TRUE,0,CB52+CB142) -> 0 | CC172: 0 | CD172: 0 | CE172: 0 | CF172: 0 | CG172: 0 | CH172: 0 | CI172: 0 | CJ172: 0 | CK172: 0 | CL172: BK | CM172: PROTEİN TÜKETİMİ
CB173: =IF(ISERROR(CB53+CB143)=TRUE,0,CB53+CB143) -> 0 | CC173: 0 | CD173: 0 | CE173: 0 | CF173: 0 | CG173: 0 | CH173: 0 | CI173: 0 | CJ173: 0 | CK173: 0 | CL173: BL | CM173: U= | CN173: =121.7-12.01*büyükX+0.3235*büyükX^2 -> 49.2973723 | CO173: Geri alınan üre N'u (N tüketiminin %'si olarak)
CB174: =IF(ISERROR(CB54+CB144)=TRUE,0,CB54+CB144) -> 0 | CC174: 0 | CD174: 0 | CE174: 0 | CF174: 0 | CG174: 0 | CH174: 0 | CI174: 0 | CJ174: 0 | CK174: 0 | CL174: BM | CM174: X= | CN174: =CPtotal/(TotalDMFed*10) -> 7.573524483 | CO174: Rasyon KM'sindeki % HP
CB175: =IF(ISERROR(CB55+CB145)=TRUE,0,CB55+CB145) -> 0 | CC175: 0 | CD175: 0 | CE175: 0 | CF175: 0 | CG175: 0 | CH175: 0 | CI175: 0 | CJ175: 0 | CK175: 0 | CL175: BN | CM175: Değerlendirilebilir selülozun yıkımlanma oranını pH'nın etkisine göre ayarlama
CB176: =IF(ISERROR(CB56+CB146)=TRUE,0,CB56+CB146) -> 0 | CC176: 0 | CD176: 0 | CE176: 0 | CF176: 0 | CG176: 0 | CH176: 0 | CI176: 0 | CJ176: 0 | CK176: 0 | CL176: BO | CM176: 1) Rumen pH'sını belirlemek; eğer eNDF<24,5 % ise, pH= | CN176: =IF(eNDF<24.5,5.425+0.04229*eNDF,6.46) -> 6.46 | CO176: Rumen pH'sı
CB177: =IF(ISERROR(CB57+CB147)=TRUE,0,CB57+CB147) -> 0 | CC177: 0 | CD177: 0 | CE177: 0 | CF177: 0 | CG177: 0 | CH177: 0 | CI177: 0 | CJ177: 0 | CK177: 0 | CL177: BP | CM177: 2) Her yem için orijinal verimi hesaplamak, Y=
CB178: =IF(ISERROR(CB58+CB148)=TRUE,0,CB58+CB148) -> 0 | CC178: 0 | CD178: 0 | CE178: 0 | CF178: 0 | CG178: 0 | CH178: 0 | CI178: 0 | CJ178: 0 | CK178: 0 | CL178: BQ | CM178: 3) Nispi verim ayarlamasını hesaplamak, relY= | CN178: =(1- EXP(-5.624*((pH-5.7)^0.909)) )/0.9968 -> 0.9906739215
CB179: =IF(ISERROR(CB59+CB149)=TRUE,0,CB59+CB149) -> 0 | CC179: 0 | CD179: 0 | CE179: 0 | CF179: 0 | CG179: 0 | CH179: 0 | CI179: 0 | CJ179: 0 | CK179: 0 | CL179: BR | CM179: 4) Her yem için yeni verimi hesaplamak, Y'=
CB180: =IF(ISERROR(CB60+CB150)=TRUE,0,CB60+CB150) -> 0 | CC180: 0 | CD180: 0 | CE180: 0 | CF180: 0 | CG180: 0 | CH180: 0 | CI180: 0 | CJ180: 0 | CK180: 0 | CL180: BS | CM180: 5) Her yem için yeni Kd'yi hesaplamak, Kd'=
CB181: =IF(ISERROR(CB61+CB151)=TRUE,0,CB61+CB151) -> 0 | CC181: 0 | CD181: 0 | CE181: 0 | CF181: 0 | CG181: 0 | CH181: 0 | CI181: 0 | CJ181: 0 | CK181: 0 | CL181: BT | CM181: büyükA= | CN181: =(-0.01490722+(0.012024*pH)-(0.0010152*pH^2)) -> 0.02040189968
CL182: BU | CM182: Rumenden kaçan CHO ve proteini hesaplamak
CE183: AMİNO ASİT TABLOSU | CL183: BV | CM183: RD= | CN183: =AA64 -> 0.2018813539 | CO183: Yem maddesinin rumende yıkımlanan komponent oranı
CE184: REBAA | CF184: DIGBAA | CG184: REFAA | CH184: REAA | CI184: DIGFAA | CJ184: AAA | CL184: BW | CM184: RESC= | CN184: =AB64 -> 22.79811865 | CO184: Yem maddesinin rumende yıkımlanmadan kaçan komponent oranı
CD185: MET, g | CE185: =CB2 -> 3.476835277 | CF185: =CB33 -> 2.532043082 | CG185: =CB63 -> 5.134686276 | CH185: =CB93 -> 8.611521553 | CI185: =CB123 -> 4.07462389 | CJ185: =CB153 -> 6.606666972 | CK185: 19 | CL185: BX | CM185: GEÇİŞ ORANI FORMÜLÜ
CD186: LİZ, g | CE186: =CC2 -> 9.951811119 | CF186: =CC33 -> 7.747295998 | CG186: =CC63 -> 10.48027 | CH186: =CC93 -> 20.43208112 | CI186: =CC123 -> 6.941326355 | CJ186: =CC153 -> 14.68862235 | CK186: 61 | CL186: BY | CM186: Kp_forages= | CN186: =(0.388+(0.022*TotalDMFed/SBW^0.75)+2*FORAGE^2)/100 -> 35.93075395
CD187: ARJ, g | CE187: =CD2 -> 8.07954792 | CF187: =CD33 -> 6.575753676 | CG187: =CD63 -> 11.68476559 | CH187: =CD93 -> 19.76431351 | CI187: =CD123 -> 8.048419555 | CJ187: =CD153 -> 14.62417323 | CK187: 53 | CL187: BZ | CM187: Kp_conc= | CN187: =-0.424+(1.45*Kp_forages) -> 51.67559323
CD188: TRE, g | CE188: =CE2 -> 6.580477637 | CF188: =CE33 -> 5.281388369 | CG188: =CE63 -> 14.64685187 | CH188: =CE93 -> 21.22732951 | CI188: =CE123 -> 10.75886966 | CJ188: =CE153 -> 16.04025803 | CK188: 44 | CL188: CA | CM188: FORAGE | CN188: =KabaYemDMI/TotalDMFed*100 -> 42.38327949 | CO188: Rasyondaki kaba yem oranı, %
CD189: LÖY, g | CE189: =CF2 -> 9.418003529 | CF189: =CF33 -> 7.095389383 | CG189: =CF63 -> 47.72789182 | CH189: =CF93 -> 57.14589535 | CI189: =CF123 -> 38.56822777 | CJ189: =CF153 -> 45.66361716 | CK189: 63 | CL189: X | CM189: Af_forages= | CN189: =Af_forages -> 27.12273642
CD190: İZOLÖY, g | CE190: =CG2 -> 7.130031764 | CF190: =CG33 -> 5.366419667 | CG190: =CG63 -> 14.51012515 | CH190: =CG93 -> 21.64015691 | CI190: =CG123 -> 10.63515331 | CJ190: =CG153 -> 16.00157298 | CK190: 46 | CM190: Af_conc= | CN190: =Af_conc -> 4.43290436
CD191: VAL, g | CE191: =CH2 -> 7.670137968 | CF191: =CH33 -> 5.81991992 | CG191: =CH63 -> 19.88829588 | CH191: =CH93 -> 27.55843385 | CI191: =CH123 -> 14.6221901 | CJ191: =CH153 -> 20.44211002 | CK191: 50 | CM191: Rumende yıkımlanan protein fraksiyonlarının miktarını hesaplamak için,
CD192: HIS, g | CE192: =CI2 -> 3.226465345 | CF192: =CI33 -> 2.541491004 | CG192: =CI63 -> 9.425642037 | CH192: =CI93 -> 12.65210738 | CI192: =CI123 -> 7.697970575 | CJ192: =CI153 -> 10.23946158 | CK192: 20 | CL192: Seçilen Yemler Alanı | CM192: RDPA= | CN192: =AF64 -> 68.17708243 | CO192: rumende yıkımlanan NPN miktarı, g/gün
CD193: FENAL, g | CE193: =CJ2 -> 6.528514066 | CF193: =CJ33 -> 4.875127725 | CG193: =CJ63 -> 19.36176749 | CH193: =CJ93 -> 25.89028155 | CI193: =CJ123 -> 14.4522079 | CJ193: =CJ153 -> 19.32733563 | CK193: 43 | CM193: RDPB1= | CN193: =AG64 -> 15.29410815 | CO193: rumende yıkımlanan B1 gerçek protein miktarı, g/gün
CD194: TRİP, g | CE194: =CK2 -> 2.181682643 | CF194: =CK33 -> 1.540011278 | CG194: =CK63 -> 7.332890607 | CH194: =CK93 -> 9.51457325 | CI194: =CK123 -> 2.480397421 | CJ194: =CK153 -> 4.020408698 | CK194: 22 | CM194: RDPB2= | CN194: =AH64 -> 33.02699024 | CO194: rumende yıkımlanan B2 gerçek protein miktarı, g/gün
CD195: REBAA= | CE195: Duodenumda görülen Bakteriyel amino asit miktarı, g/gün | CM195: RDPB3= | CN195: =AI64 -> 0.1117314792 | CO195: rumende yıkımlanan B3 gerçek protein miktarı, g/gün
CD196: DIGBAA= | CE196: Emilen Bakteriyel Amino asit miktarı, g/gün | CM196: RDPEP= | CN196: =AJ64 -> 48.43282987 | CO196: rumende yıkımlanan peptid miktarı, g/gün
CD197: REFAA= | CE197: Duodenumda görülen Yem amino asit miktarı, g/gün | CM197: Rumende yıkımlanmadan kaçan ve ince barsaklara geçen protein fraksiyonlarının miktarını hesaplamak için,
CD198: REAA= | CE198: Duodenumda görülen amino asitin toplam miktarı, g/gün | CM198: REPB1= | CN198: =AK64 -> 5.30732815 | CO198: rumenden kaçan B1 gerçek protein miktarı, g/gün
CD199: DIGFAA= | CE199: Rumenden kaçan rasyon proteininden emilen amino asit, g/gün | CM199: REPB2= | CN199: =AL64 -> 326.8274512 | CO199: rumenden kaçan B2 gerçek protein miktarı, g/gün
CD200: AAA= | CE200: Rasyon ve bakteriyel kökenli emilen toplam amino asit, g/gün | CM200: REPB3= | CN200: =AM64 -> 60.02845418 | CO200: rumenden kaçan B3 gerçek protein miktarı, g/gün
... 268 more rows
